{"text_format":"1","workbook":"xlsx","n_sheets":10,"sheets":["Avantages perçus","Conventions signées","AVANTAGES","CONVENTIONS","FIRMES","Conception","Rémunérations","Déplacements","Tableaux de synthèse","Top 25 firmes"],"not_rendered":{"charts":0,"images":89,"macros":1,"external_links":5,"defined_names":21,"comments":4,"pivot_tables":0},"unopened":[],"bounds":{"document_bytes":16777216,"sheet_cells":100000,"rows_first":2000,"rows_last":500,"rows_between":2000,"halvings":0,"cell_chars":16384,"cell_head_chars":4096},"cells_cut":0,"cells_raw":0,"read":"whole","date_system":"1900"}

{"sheet":"Avantages perçus","index":0,"n_rows":226,"n_cols":9,"rows_kept":226,"cut":false,"hidden":false,"merged":[]}
["Bénéficiaire","Type de bénéficiaire","Entreprise","Date","Nature","Montant"]
["IGR, Villejuif","Etablissement de santé ","MSD France","2013-01-09","TRANSPORT ",25]
["IGR, Villejuif","Etablissement de santé ","MSD France","18/06/2013","TRANSPORT ",252]
["IGR, Villejuif","Etablissement de santé ","SANDOZ","2013-07-10","DONS DE MATERIEL ",60]
["IGR, Villejuif","Etablissement de santé ","ROCHE SAS","30/09/2013","Dons de matériel ",85]
["IGR, Villejuif","Etablissement de santé ","ROCHE SAS","30/09/2013","Dons de matériel ",85]
["IGR, Villejuif","Etablissement de santé ","COVIDIEN FRANCE S.A.S.","29/10/2013","REPAS ",24]
["IGR, Villejuif","Etablissement de santé ","ROCHE SAS","30/10/2013","Dons de fonctionnement ",10000]
["IGR, Villejuif","Association professionnel de santé ","ASTELLAS PHARMA","2013-11-06","DONS DE FONCTIONNEMENT ",10000]
["IGR, Villejuif","Etablissement de santé ","CHUGAI PHARMA FRANCE","2013-11-10","DONS ",1000]
["IGR, Villejuif","Personnes morales assurant la formation initiale ou continue des professionnels de santé ","CELGENE","26/11/2013","DONS DE FONCTIONNEMENT / RECHERCHE ",15000]
["IGR, Villejuif","Etablissement de santé ","CHUGAI PHARMA FRANCE","2013-12-10","DONS ",5000]
["IGR, Villejuif","Etablissement de santé ","PFIZER SAS","16/12/2013","AUTRE: [DON] ",15000]
["IGR, Villejuif","Académies, Fondation, sociétés savantes, organismes de conseils ","BIOM'UP","24/12/2013","Don ",500]
["IGR, Villejuif","Etablissement de santé ","PFIZER SAS","2014-02-03","AUTRE: [DON] ",15000]
["IGR, Villejuif","Association professionnel de santé ","Takeda France","27/03/2014","Autre : [stand] ",2500]
["IGR, Villejuif","Etablissement de santé ","Genzyme","2014-04-01","Autre : [Remboursement de frais] ",3000]
["IGR, Villejuif","Etablissement de santé ","CHUGAI PHARMA FRANCE","2014-04-10","DONS ",5000]
["IGR, Villejuif","Etablissement de santé ","PSI CRO FRANCE","14/04/2014","Autre ",9174]
["IGR, Villejuif","Etablissement de santé ","PSI CRO FRANCE","14/04/2014","Autre ",5617]
["IGR, Villejuif","Association professionnel de santé ","GAMIDA","18/04/2014","DONS DE FONCTIONNEMENT ",500]
["IGR, Villejuif","Etablissement de santé ","PHILIPS FRANCE","2014-05-07","DONS DE FONCTIONNEMENT ",500]
["IGR, Villejuif","Etablissement de santé ","Becton Dickinson France SAS","14/05/2014","DONS DE FONCTIONNEMENT ",1000]
["IGR, Villejuif","Etablissement de santé ","NOVARTIS PHARMA SAS","20/05/2014","Autre : [Don] ",15000]
["IGR, Villejuif","Etablissement de santé ","NOVARTIS PHARMA SAS","20/05/2014","Autre : [Don] ",15000]
["IGR, Villejuif","Etablissement de santé ","PSI CRO FRANCE","21/05/2014","Autre ",22506]
["IGR, Villejuif","Association professionnel de santé ","LEO Pharma","27/05/2014","DONS DE FONCTIONNEMENT ",600]
["IGR, Villejuif","Etablissement de santé ","NOVARTIS PHARMA SAS","20/06/2014","Autre : [Don] ",20000]
["IGR, Villejuif","Etablissement de santé ","CHUGAI PHARMA FRANCE","2014-07-10","DONS ",5000]
["IGR, Villejuif","Etablissement de santé ","ROCHE SAS","2014-10-01","DONS DE FONCTIONNEMENT ",2000]
["IGR, Villejuif","Etablissement de santé ","ROCHE SAS","2014-10-01","DONS DE MATERIEL ",145]
["IGR, Villejuif","Etablissement de santé ","PSI CRO FRANCE","28/01/2015","Autre ",3300]
["IGR, Villejuif","Etablissement de santé ","PSI CRO FRANCE","28/01/2015","Autre ",15408]
["IGR, Villejuif","Association professionnel de santé ","ASTELLAS PHARMA","2015-02-04","DONS DE FONCTIONNEMENT ",7000]
["IGR, Villejuif","Etablissement de santé ","INC RESEARCH, LLC","2015-02-05","HEBERGEMENT ",147]
["IGR, Villejuif","Etablissement de santé ","INC RESEARCH, LLC","2015-02-05","REPAS ",108]
["IGR, Villejuif","Etablissement de santé ","INC RESEARCH, LLC","2015-02-06","REPAS ",107]
["IGR, Villejuif","Etablissement de santé ","INC RESEARCH, LLC","2015-02-06","HEBERGEMENT ",147]
["IGR, Villejuif","Etablissement de santé ","INC RESEARCH, LLC","2015-02-07","TRANSPORT ",155]
["IGR, Villejuif","Etablissement de santé ","INC RESEARCH, LLC","2015-02-07","DONS DE FONCTIONNEMENT ",17]
["IGR, Villejuif","Etablissement de santé ","PSI CRO FRANCE","16/02/2015","Autre ",55374]
["IGR, Villejuif","Etablissement de santé ","SINCLAIR PHARMA","26/03/2015","AUTRE : STAND CONGRES ",2460]
["IGR, Villejuif","Etablissement de santé ","PSI CRO FRANCE","26/03/2015","Autre ",12474]
["IGR, Villejuif","Etablissement de santé ","SINCLAIR PHARMA","2015-04-09","AUTRE : STAND CONGRES ",500]
["IGR, Villejuif","Etablissement de santé ","PSI CRO FRANCE","14/04/2015","Autre ",528]
["IGR, Villejuif","Etablissement de santé ","PSI CRO FRANCE","14/04/2015","Autre ",396]
["IGR, Villejuif","Etablissement de santé ","PSI CRO FRANCE","14/04/2015","Autre ",634]
["IGR, Villejuif","Etablissement de santé ","PSI CRO FRANCE","14/04/2015","Autre ",396]
["IGR, Villejuif","Etablissement de santé ","BOSTON SCIENTIFIC SAS","22/05/2015","Autre : [Location de stand] ",4500]
["IGR, Villejuif","Académies, Fondation, sociétés savantes, organismes de conseils ","INSTITUT MERIEUX","2015-06-08","REMUNERATION ",50000]
["IGR, Villejuif","Etablissement de santé ","MSD France","17/06/2015","AUTRE : REMUNERATION ",1250]
["IGR, Villejuif","Etablissement de santé ","PSI CRO FRANCE","30/06/2015","Autre ",5148]
["IGR, Villejuif","Etablissement de santé ","PSI CRO FRANCE","30/06/2015","Autre ",5280]
["IGR, Villejuif","Etablissement de santé ","PSI CRO FRANCE","30/06/2015","Autre ",924]
["IGR, Villejuif","Etablissement de santé ","PSI CRO FRANCE","30/06/2015","Autre ",3062]
["IGR, Villejuif","Etablissement de santé ","PSI CRO FRANCE","30/06/2015","Autre ",264]
["IGR, Villejuif","Etablissement de santé ","PSI CRO FRANCE","30/06/2015","Autre ",104609]
["IGR, Villejuif","Etablissement de santé ","INC RESEARCH, LLC","2015-07-02","HEBERGEMENT ",114]
["IGR, Villejuif","Etablissement de santé ","INC RESEARCH, LLC","2015-07-02","REPAS ",165]
["IGR, Villejuif","Etablissement de santé ","INC RESEARCH, LLC","2015-07-03","TRANSPORT ",53]
["IGR, Villejuif","Etablissement de santé ","INC RESEARCH, LLC","2015-07-03","DONS DE FONCTIONNEMENT ",45]
["IGR, Villejuif","Etablissement de santé ","MSD France","19/08/2015","AUTRE : REMUNERATION ",1500]
["IGR, Villejuif","Etablissement de santé ","MSD France","18/11/2015","AUTRE : REMUNERATION ",50400]
["IGR, Villejuif","Etablissement de santé ","Genzyme","17/12/2015","Autre : [Remboursement de frais] ",1500]
["IGR, Villejuif","Etablissement de santé ","CHUGAI PHARMA FRANCE","28/12/2015","DONS ",4000]
["IGR, Villejuif","Etablissement de santé ","CHUGAI PHARMA FRANCE","28/12/2015","DONS ",2500]
["IGR, Villejuif","Etablissement de santé ","CHUGAI PHARMA FRANCE","28/12/2015","DONS ",4000]
["IGR, Villejuif","Etablissement de santé ","ROCHE SAS","2016-01-12","Autre : [Remboursement de frais] ",192]
["IGR, Villejuif","Etablissement de santé ","PFIZER SAS","2016-02-02","Dons de fonctionnement ",500000]
["IGR, Villejuif","Etablissement de santé ","PFIZER SAS","22/03/2016","Transport ",738]
["IGR, Villejuif","Etablissement de santé ","Advanced Accelerator Applications","30/03/2016","Autre ",400]
["IGR, Villejuif","Académies, Fondation, sociétés savantes, organismes de conseils ","INSTITUT MERIEUX","15/04/2016","REMUNERATION ",50000]
["IGR, Villejuif","Etablissement de santé ","ASTELLAS PHARMA","2016-05-03","DONS DE FONCTIONNEMENT ",28000]
["IGR, Villejuif","Académies, Fondation, sociétés savantes, organismes de conseils ","INSTITUT MERIEUX","23/06/2016","REMUNERATION ",500]
["IGR, Villejuif","Académies, Fondation, sociétés savantes, organismes de conseils ","INSTITUT MERIEUX","23/06/2016","REMUNERATION ",500]
["IGR, Villejuif","Etablissement de santé ","MSD France","18/07/2016","AUTRE : REMUNERATION ",87744]
["IGR, Villejuif","Etablissement de santé ","ROCHE SAS","26/07/2016","Hebergement ",198]
["IGR, Villejuif","Etablissement de santé ","ROCHE SAS","26/07/2016","Transport ",668]
["IGR, Villejuif","Etablissement de santé ","ROCHE SAS","2016-08-02","Hebergement ",122]
["IGR, Villejuif","Etablissement de santé ","ROCHE SAS","2016-08-02","Transport ",287]
["IGR, Villejuif","Académies, Fondation, sociétés savantes, organismes de conseils ","INSTITUT MERIEUX","29/09/2016","REMUNERATION ",500]
["IGR, Villejuif","Etablissement de santé ","MSD France","2016-10-03","DONS DE FONCTIONNEMENT ",18490]
["IGR, Villejuif","Etablissement de santé ","Lilly France SAS","2016-12-07","AUTRE : [CONTRAT DE PARTENARIAT - LOCATION DE STAND] ",1200]
["IGR, Villejuif","Etablissement de santé ","CHUGAI PHARMA FRANCE","27/12/2016","DONS ",2500]
["IGR, Villejuif","Etablissement de santé ","PFIZER SAS","2017-01-10","Dons de fonctionnement ",500000]
["IGR, Villejuif","Etablissement de santé ","PSI CRO FRANCE","13/01/2017","FRAIS RELATIFS A LA RECHERCHE IMPLIQUANT LA PERSONNE HUMAINE ",8350]
["IGR, Villejuif","Etablissement de santé ","PSI CRO FRANCE","26/01/2017","FRAIS RELATIFS A LA RECHERCHE IMPLIQUANT LA PERSONNE HUMAINE ",11814]
["IGR, Villejuif","Etablissement de santé ","AbbVie","20/02/2017","AUTRE : [DONS] ",800]
["IGR, Villejuif","Etablissement de santé ","MERCK SERONO","2017-03-03","AUTRES ",3000]
["IGR, Villejuif","Etablissement de santé ","ROCHE SAS","21/03/2017","Transport ",63]
["IGR, Villejuif","Etablissement de santé ","Bayer HealthCare SAS","27/04/2017","HEBERGEMENT ",186]
["IGR, Villejuif","Etablissement de santé ","ROCHE SAS","16/05/2017","Transport ",552]
["IGR, Villejuif","Etablissement de santé ","ROCHE SAS","30/05/2017","Transport ",185]
["IGR, Villejuif","Etablissement de santé ","ROCHE SAS","14/06/2017","Transport ",568]
["IGR, Villejuif","Etablissement de santé ","ROCHE SAS","20/06/2017","Transport ",116]
["IGR, Villejuif","Etablissement de santé ","MERCK SERONO","21/06/2017","AUTRES ",520]
["IGR, Villejuif","Etablissement de santé ","CHUGAI PHARMA FRANCE","25/06/2017","DONS ",5000]
["IGR, Villejuif","Etablissement de santé ","ROCHE SAS","2017-07-04","Transport ",175]
["IGR, Villejuif","Etablissement de santé ","ROCHE SAS","2017-07-11","Transport ",196]
["IGR, Villejuif","Académies, Fondation, sociétés savantes, organismes de conseils ","LABORATOIRE NUXE","17/07/2017","AUTRE: [DON] ",1000]
["IGR, Villejuif","Etablissement de santé ","ROCHE SAS","16/08/2017","Autre : [Remboursement de frais] ",1200]
["IGR, Villejuif","Etablissement de santé ","MSD France","30/08/2017","DONS DE FONCTIONNEMENT ",12668]
["IGR, Villejuif","Etablissement de santé ","MSD France","30/08/2017","DONS DE FONCTIONNEMENT ",12668]
["IGR, Villejuif","Etablissement de santé ","ROCHE SAS","2017-09-12","Transport ",18]
["IGR, Villejuif","Etablissement de santé ","ROCHE SAS","2017-10-10","Dons de fonctionnement ",5000]
["IGR, Villejuif","Etablissement de santé ","ASTRAZENECA","16/10/2017","DON ",60000]
["IGR, Villejuif","Etablissement de santé ","Takeda France","23/10/2017","AUTRE : DON DE MÉDICAMENT ",25200]
["IGR, Villejuif","Etablissement de santé ","CHUGAI PHARMA FRANCE","2017-11-10","DONS ",5000]
["IGR, Villejuif","Etablissement de santé ","CHUGAI PHARMA FRANCE","27/11/2017","DONS ",10000]
["IGR, Villejuif","Etablissement de santé ","LABORATOIRE GLAXOSMITHKLINE","15/12/2017","TRANSPORT ",29]
["IGR, Villejuif","Etablissement de santé ","CHUGAI PHARMA FRANCE","28/12/2017","DONS ",5000]
["IGR, Villejuif","Etablissement de santé ","CHUGAI PHARMA FRANCE","28/12/2017","DONS ",10000]
["IGR, Villejuif","Etablissement de santé ","CHUGAI PHARMA FRANCE","28/12/2017","DONS ",600]
[]
[null,null,"Total",null,null,{"$f":"SUM(F2:F114)","v":1889985}]
[]
[null,null,null,null,null,"Montants","Nbres","%Montant","%cumulé"]
[null,null,"PFIZER SAS",null,null,{"$f":"SUMIF($C$2:$C$113,C118,$F$2:$F$113)","v":1030738},{"$f":"COUNTIF($C$2:$C$113,C118)","v":5},{"$f":"F118/$F$115","v":0.54536834948425517},{"$f":"H118","v":0.54536834948425517}]
[]
[null,null,"PSI CRO France",null,null,{"$f":"SUMIF($C$2:$C$113,C120,$F$2:$F$113)","v":265258},{"$f":"COUNTIF($C$2:$C$113,C120)","v":19},{"$f":"F120/$F$115","v":0.14034926203118014},{"$f":"H120+I118","v":0.68571761151543531}]
[]
[null,null,"MSD France",null,null,{"$f":"SUMIF($C$2:$C$113,C122,$F$2:$F$113)","v":184997},{"$f":"COUNTIF($C$2:$C$113,C122)","v":9},{"$f":"F122/$F$115","v":9.7882787429529869E-2},{"$f":"H122+I120","v":0.78360039894496514}]
[]
[null,null,"INSTITUT MERIEUX",null,null,{"$f":"SUMIF($C$2:$C$113,C124,$F$2:$F$113)","v":101500},{"$f":"COUNTIF($C$2:$C$113,C124)","v":5},{"$f":"F124/$F$115","v":5.3704129926957091E-2},{"$f":"H124+I122","v":0.83730452887192219}]
[]
[null,null,"CHUGAI PHARMA FRANCE",null,null,{"$f":"SUMIF($C$2:$C$113,C126,$F$2:$F$113)","v":64600},{"$f":"COUNTIF($C$2:$C$113,C126)","v":14},{"$f":"F126/$F$115","v":3.4180165451048551E-2},{"$f":"H126+I124","v":0.87148469432297071}]
[]
[null,null,"ASTRAZENECA",null,null,{"$f":"SUMIF($C$2:$C$113,C128,$F$2:$F$113)","v":60000},{"$f":"COUNTIF($C$2:$C$113,C128)","v":1},{"$f":"F128/$F$115","v":3.1746283700664291E-2},{"$f":"H128+I126","v":0.90323097802363495}]
[]
[null,null,"NOVARTIS PHARMA SAS",null,null,{"$f":"SUMIF($C$2:$C$113,C130,$F$2:$F$113)","v":50000},{"$f":"COUNTIF($C$2:$C$113,C130)","v":3}]
[null,null,"Sociétés étrangères du groupe Novartis",null,null,{"$f":"SUMIF($C$2:$C$113,C131,$F$2:$F$113)","v":0},{"$f":"COUNTIF($C$2:$C$113,C131)","v":0}]
[null,null,"Total NOVARTIS",null,null,{"$f":"SUM(F130:F131)","v":50000},{"$f":"SUM(G130:G131)","v":3},{"$f":"F132/$F$115","v":2.6455236417220241E-2},{"$f":"H132+I128","v":0.9296862144408552}]
[]
[null,null,"ASTELLAS PHARMA",null,null,{"$f":"SUMIF($C$2:$C$113,C134,$F$2:$F$113)","v":45000},{"$f":"COUNTIF($C$2:$C$113,C134)","v":3},{"$f":"F134/$F$115","v":2.3809712775498218E-2},{"$f":"H134+I132","v":0.95349592721635346}]
[]
[null,null,"Takeda France",null,null,{"$f":"SUMIF($C$2:$C$113,C136,$F$2:$F$113)","v":27700},{"$f":"COUNTIF($C$2:$C$113,C136)","v":2},{"$f":"F136/$F$115","v":1.4656200975140015E-2},{"$f":"H136+I132","v":0.94434241541599517}]
[]
[null,null,"ROCHE SAS",null,null,{"$f":"SUMIF($C$2:$C$113,C138,$F$2:$F$113)","v":21855},{"$f":"COUNTIF($C$2:$C$113,C138)","v":20}]
[null,null,"Institut Roche",null,null,{"$f":"SUMIF($C$2:$C$113,C139,$F$2:$F$113)","v":0},{"$f":"COUNTIF($C$2:$C$113,C139)","v":0}]
[null,null,"Total ROCHE",null,null,{"$f":"SUM(F138:F139)","v":21855},{"$f":"SUM(G138:G139)","v":20},{"$f":"F140/$F$115","v":1.1563583837966967E-2},{"$f":"H140+I136","v":0.95590599925396214}]
[]
[null,null,"Genzyme",null,null,{"$f":"SUMIF($C$2:$C$113,C142,$F$2:$F$113)","v":4500},{"$f":"COUNTIF($C$2:$C$113,C142)","v":2},{"$f":"F142/$F$115","v":2.3809712775498216E-3},{"$f":"H142+I140","v":0.95828697053151191}]
[]
[null,null,"MERCK SERONO",null,null,{"$f":"SUMIF($C$2:$C$113,C144,$F$2:$F$113)","v":3520},{"$f":"COUNTIF($C$2:$C$113,C144)","v":2},{"$f":"F144/$F$115","v":1.8624486437723051E-3},{"$f":"H144+I142","v":0.96014941917528418}]
[]
[null,null,"Lilly France SAS",null,null,{"$f":"SUMIF($C$2:$C$113,C146,$F$2:$F$113)","v":1200},{"$f":"COUNTIF($C$2:$C$113,C146)","v":1},{"$f":"F146/$F$115","v":6.3492567401328577E-4},{"$f":"H146+I144","v":0.96078434484929742}]
[]
[null,null,"AbbVie",null,null,{"$f":"SUMIF($C$2:$C$113,C148,$F$2:$F$113)","v":800},{"$f":"COUNTIF($C$2:$C$113,C148)","v":1},{"$f":"F148/$F$115","v":4.2328378267552389E-4},{"$f":"H148+I146","v":0.96120762863197295}]
[]
[null,null,"Bayer HealthCare SAS",null,null,{"$f":"SUMIF($C$2:$C$113,C150,$F$2:$F$113)","v":186},{"$f":"COUNTIF($C$2:$C$113,C150)","v":1},{"$f":"F150/$F$115","v":9.84134794720593E-5},{"$f":"H150+I146","v":0.96088275832876946}]
[]
[null,null,"LABORATOIRE GLAXOSMITHKLINE",null,null,{"$f":"SUMIF($C$2:$C$113,C152,$F$2:$F$113)","v":29},{"$f":"COUNTIF($C$2:$C$113,C152)","v":1},{"$f":"F152/$F$115","v":1.5344037121987742E-5},{"$f":"H152+I150","v":0.96089810236589146}]
[]
[null,null,"Orion Corporation Orion Pharma",null,null,{"$f":"SUMIF($C$2:$C$113,C154,$F$2:$F$113)","v":0},{"$f":"COUNTIF($C$2:$C$113,C154)","v":0},{"$f":"F154/$F$115","v":0}]
[]
[null,null,"BRISTOL-MYERS SQUIBB COMPANY",null,null,{"$f":"SUMIF($C$2:$C$113,C156,$F$2:$F$113)","v":0},{"$f":"COUNTIF($C$2:$C$113,C156)","v":0}]
[null,null,"BRISTOL-MYERS SQUIBB",null,null,{"$f":"SUMIF($C$2:$C$113,C157,$F$2:$F$113)","v":0},{"$f":"COUNTIF($C$2:$C$113,C157)","v":0}]
[null,null,"Total BMS",null,null,{"$f":"SUM(F156:F157)","v":0},{"$f":"SUM(G156:G157)","v":0},{"$f":"F158/$F$115","v":0}]
[]
[null,null,"Celgene Corporation",null,null,{"$f":"SUMIF($C$2:$C$113,C160,$F$2:$F$113)","v":0},{"$f":"COUNTIF($C$2:$C$113,C160)","v":0},{"$f":"F160/$F$115","v":0}]
[]
[null,null,"JANSSEN-CILAG",null,null,{"$f":"SUMIF($C$2:$C$113,C162,$F$2:$F$113)","v":0},{"$f":"COUNTIF($C$2:$C$113,C162)","v":0},{"$f":"F162/$F$115","v":0}]
[]
[null,null,"AMGEN SAS",null,null,{"$f":"SUMIF($C$2:$C$113,C164,$F$2:$F$113)","v":0},{"$f":"COUNTIF($C$2:$C$113,C164)","v":0},{"$f":"F164/$F$115","v":0}]
[]
[null,null,"PIERRE FABRE MEDICAMENT",null,null,{"$f":"SUMIF($C$2:$C$113,C166,$F$2:$F$113)","v":0},{"$f":"COUNTIF($C$2:$C$113,C166)","v":0},{"$f":"F166/$F$115","v":0}]
[]
[null,null,"IPSEN PHARMA",null,null,{"$f":"SUMIF($C$2:$C$113,C168,$F$2:$F$113)","v":0},{"$f":"COUNTIF($C$2:$C$113,C168)","v":0},{"$f":"F168/$F$115","v":0}]
[]
[null,null,"SANOFI-AVENTIS RECHERCHE & DEVELOPPEMENT",null,null,{"$f":"SUMIF($C$2:$C$113,C170,$F$2:$F$113)","v":0},{"$f":"COUNTIF($C$2:$C$113,C170)","v":0}]
[null,null,"SANOFI AVENTIS France",null,null,{"$f":"SUMIF($C$2:$C$113,C171,$F$2:$F$113)","v":0},{"$f":"COUNTIF($C$2:$C$113,C171)","v":0}]
[null,null,"SANOFI-AVENTIS GROUPE",null,null,{"$f":"SUMIF($C$2:$C$113,C172,$F$2:$F$113)","v":0},{"$f":"COUNTIF($C$2:$C$113,C172)","v":0}]
[null,null,"TOTAL SANOFI-AVENTIS",null,null,{"$f":"SUM(F170:F172)","v":0},{"$f":"SUM(G170:G172)","v":0},{"$f":"F173/$F$115","v":0}]
[]
[null,null,"GE Medical Systems SCS",null,null,{"$f":"SUM(F172:F174)","v":0},{"$f":"SUM(G172:G174)","v":0}]
[]
[null,null,"EISAI SAS",null,null,{"$f":"SUM(F174:F176)","v":0},{"$f":"SUM(G174:G176)","v":0}]
[]
[null,null,"Totaux",null,null,{"$f":"SUM(F118:F173)-F130-F134-F138","v":1816883},{"$f":"SUM(G118:G158)-G130-G134-G138","v":86},{"$f":"F179/$F$115","v":0.96132138614856733}]
[]
[]
[]
[]
[]
[]
[]
[]
[]
[]
[]
[]
[]
[]
[]
[]
[]
[]
[]
[]
[]
[]
[]
[]
[]
[]
[]
[]
[]
[]
[]
[]
[]
[]
[]
[]
[]
[]
[]
[]
[null,null,"Totaux"]
[]
[null,null,"Les CROs"]
[]
[]
[]
[null,null,"INC RESEARCH, LLC",null,null,{"$f":"SUMIF($C$2:$C$113,C226,$F$2:$F$113)","v":1058},{"$f":"COUNTIF($C$2:$C$113,C226)","v":10}]

{"sheet":"Conventions signées","index":1,"n_rows":750,"n_cols":10,"rows_kept":750,"cut":false,"hidden":false,"merged":[]}
["Bénéficiaire","Type de bénéficiaire","Entreprise","Date","Période","Objet","Montants",null,null,"Lieux"]
["IGR, Villejuif","Etablissement de santé ","GE Medical Systems SCS","01/01/2013","01/01/2013 - 31/12/2014 ","Autre : Autre : site de référence ",17980]
["IGR, Villejuif","Etablissement de santé ","SANOFI-AVENTIS RECHERCHE & DEVELOPPEMENT","01/01/2013","01/01/2013 - 31/12/2013 ","Contrat d'expert scientifique, contrat dans le cadre d'une recherche, contrat de consultant "]
["IGR, Villejuif","Etablissement de santé ","PFIZER SAS","02/01/2013","02/01/2013 - ","Formation "]
["IGR, Villejuif","Etablissement de santé ","SANOFI AVENTIS FRANCE","10/01/2013","10/01/2013 - 10/01/2013 ","Autres prestations de services "]
["IGR, Villejuif","Etablissement de santé ","SANOFI-AVENTIS RECHERCHE & DEVELOPPEMENT","10/01/2013","11/07/2011 - 30/06/2014 ","Recherche scientifique "]
["IGR, Villejuif","Etablissement de santé ","SANOFI-AVENTIS RECHERCHE & DEVELOPPEMENT","10/01/2013","09/05/2012 - 31/12/2016 ","Contrat d'expert scientifique, contrat dans le cadre d'une recherche, contrat de consultant "]
["IGR, Villejuif","Etablissement de santé ","LABORATOIRE GLAXOSMITHKLINE","28/01/2013","28/01/2013 - ","Recherche scientifique "]
["IGR, Villejuif","Etablissement de santé ","SANOFI AVENTIS FRANCE","30/01/2013","30/01/2013 - 01/01/2999 ","Recherche scientifique "]
["IGR, Villejuif","Etablissement de santé ","BOEHRINGER INGELHEIM FRANCE","04/02/2013","04/02/2013 - ","Autre : RECHERCHE AVENANT "]
["IGR, Villejuif","Etablissement de santé ","SANOFI-AVENTIS GROUPE","04/02/2013","04/02/2013 - 04/02/2013 ","Contrat d'intervenant à une manifestation / orateur "]
["IGR, Villejuif","Etablissement de santé ","INNATE PHARMA","21/02/2013","21/02/2013 - ","Recherche scientifique "]
["IGR, Villejuif","Etablissement de santé ","JANSSEN-CILAG","22/02/2013","22/02/2013 - ","Recherche scientifique "]
["IGR, Villejuif","Etablissement de santé ","INC RESEARCH, LLC","23/02/2013","23/02/2013 - ","Recherche scientifique "]
["IGR, Villejuif","Etablissement de santé ","Advanced Accelerator Applications","05/03/2013","05/03/2013 - ","Recherche scientifique "]
["IGR, Villejuif","Association professionnel de santé ","LEO Pharma","19/03/2013","19/03/2013 - ","Recherche scientifique "]
["IGR, Villejuif","Etablissement de santé ","SANOFI-AVENTIS RECHERCHE & DEVELOPPEMENT","21/03/2013","21/03/2013 - 21/03/2013 ","Autres prestations de services "]
["IGR, Villejuif","Etablissement de santé ","LABORATOIRE GLAXOSMITHKLINE","03/04/2013","03/04/2013 - ","Recherche scientifique "]
["IGR, Villejuif","Etablissement de santé ","SANOFI-AVENTIS RECHERCHE & DEVELOPPEMENT","22/04/2013","22/04/2013 - 30/04/2014 ","Recherche scientifique "]
["IGR, Villejuif","Etablissement de santé ","ROCHE SAS","25/04/2013","25/04/2013 - 31/12/2013 ","Autre : Autre : [ Expert ]"]
["IGR, Villejuif","Etablissement de santé ","PFIZER SAS","16/05/2013","16/05/2013 - ","Autre : PUBLICITE STAND "]
["IGR, Villejuif","Etablissement de santé ","SANOFI-AVENTIS RECHERCHE & DEVELOPPEMENT","16/05/2013","16/05/2013 - ","Contrat d'intervenant à une manifestation / orateur "]
["IGR, Villejuif","Etablissement de santé ","PSI CRO FRANCE","28/05/2013","28/05/2013 - ","Recherche scientifique "]
["IGR, Villejuif","Etablissement de santé ","AbbVie","29/05/2013","29/05/2013 - ","Autre : AUTRE : CONVENTION DE RECHERCHE "]
["IGR, Villejuif","Etablissement de santé ","PFIZER SAS","10/06/2013","10/06/2013 - ","Autre : PUBLICITE STAND "]
["IGR, Villejuif","Etablissement de santé ","Lilly France SAS","19/06/2013","19/06/2013 - ","Autre : LOCATION DE STAND "]
["IGR, Villejuif","Etablissement de santé ","PFIZER SAS","20/06/2013","20/06/2013 - ","Autre : PUBLICITE STAND "]
["IGR, Villejuif","Etablissement de santé ","GENETHON","21/06/2013","21/06/2013 - 31/12/2018 ","Recherche scientifique "]
["IGR, Villejuif","Etablissement de santé ","SANOFI-AVENTIS RECHERCHE & DEVELOPPEMENT","24/06/2013","24/06/2013 - 01/01/2999 ","Recherche scientifique "]
["IGR, Villejuif","Etablissement de santé ","INC RESEARCH, LLC","27/06/2013","27/06/2013 - ","Recherche scientifique "]
["IGR, Villejuif","Etablissement de santé ","MSD France","30/06/2013","14/11/2011 - ","Autre : RECHERCHE BIOMEDICALE "]
["IGR, Villejuif","Etablissement de santé ","MSD France","30/06/2013","28/10/2008 - ","Autre : RECHERCHE BIOMEDICALE "]
["IGR, Villejuif","Etablissement de santé ","MSD France","30/06/2013","01/12/2011 - ","Autre : RECHERCHE BIOMEDICALE "]
["IGR, Villejuif","Etablissement de santé ","MSD France","30/06/2013","27/01/2012 - ","Autre : RECHERCHE BIOMEDICALE "]
["IGR, Villejuif","Etablissement de santé ","MSD France","30/06/2013","18/01/2013 - ","Autre : RECHERCHE BIOMEDICALE "]
["IGR, Villejuif","Etablissement de santé ","MSD France","30/06/2013","17/02/2012 - ","Autre : RECHERCHE BIOMEDICALE "]
["IGR, Villejuif","Etablissement de santé ","PFIZER SAS","12/07/2013","25/05/2011 - ","Recherche scientifique "]
["IGR, Villejuif","Etablissement de santé ","PFIZER SAS","12/07/2013","25/05/2011 - ","Recherche scientifique "]
["IGR, Villejuif","Etablissement de santé ","PFIZER SAS","12/07/2013","25/05/2011 - ","Recherche scientifique"]
["IGR, Villejuif","Etablissement de santé ","MSD France","18/07/2013","18/07/2013 - ","Autre : RECHERCHE BIOMÉDICALE "]
["IGR, Villejuif","Etablissement de santé ","ASTRAZENECA","23/07/2013","23/07/2013 - ","Autre : Autre "]
["IGR, Villejuif","Etablissement de santé ","MSD France","30/07/2013","30/07/2013 - ","Autre : RECHERCHE BIOMÉDICALE "]
["IGR, Villejuif","Etablissement de santé ","MSD France","30/07/2013","30/07/2013 - ","Autre : RECHERCHE BIOMEDICALE "]
["IGR, Villejuif","Etablissement de santé ","GE Medical Systems SCS","30/07/2013","30/07/2013 - 31/12/2014 ","Autre : Recherche et Evaluation "]
["IGR, Villejuif","Etablissement de santé ","Celgene Corporation","04/08/2013","06/12/2013 - ","Recherche scientifique ",261728]
["IGR, Villejuif","Etablissement de santé ","LABORATOIRE GLAXOSMITHKLINE","06/08/2013","06/08/2013 - ","Recherche scientifique "]
["IGR, Villejuif","Etablissement de santé ","MSD France","13/08/2013","13/08/2013 - ","Autre : PRESTATION EVENEMENTIELLE (STAND, AUTRE) "]
["IGR, Villejuif","Etablissement de santé ","MSD France","13/08/2013","13/08/2013 - ","Autre : PRESTATION SERVICE "]
["IGR, Villejuif","Etablissement de santé ","QUINTILES BENEFIT FRANCE SNC","21/08/2013","21/08/2013 - 21/08/2013 ","Autre : Recherche Clinique "]
["IGR, Villejuif","Etablissement de santé ","PFIZER SAS","26/08/2013","26/08/2013 - 26/08/2013 ","Recherche scientifique "]
["IGR, Villejuif","Etablissement de santé ","ASTRAZENECA","09/09/2013","09/10/2013 - ","Recherche scientifique "]
["IGR, Villejuif","Etablissement de santé ","ASTRAZENECA","09/09/2013","06/09/2013 - ","Recherche scientifique "]
["IGR, Villejuif","Etablissement de santé ","Bayer HealthCare SAS","11/09/2013","10/10/2013 - 10/10/2013 ","Autre : Autre :Contrat de location de stand "]
["IGR, Villejuif","Etablissement de santé ","Orion Corporation Orion Pharma","12/09/2013","12/09/2013 - ","Recherche scientifique "]
["IGR, Villejuif","Etablissement de santé ","GE Medical Systems SCS","23/09/2013","23/09/2013 - 24/09/2013 ","Autre : Marketing et Parrainage "]
["IGR, Villejuif","Académies, Fondation, sociétés savantes, organismes de conseils ","Bayer HealthCare SAS","23/09/2013","14/10/2013 - ","Autre : Recherche et Développement "]
["IGR, Villejuif","Etablissement de santé ","GE Medical Systems SCS","25/09/2013","01/08/2013 - 31/01/2014 ","Autre : Recherche et Evaluation "]
["IGR, Villejuif","Etablissement de santé ","Puma Biotechnology","26/09/2013","26/09/2013 - ","Recherche scientifique "]
["IGR, Villejuif","Etablissement de santé ","GE Medical Systems SCS","30/09/2013","30/09/2013 - ","Autre : Recherche et Evaluation"]
["IGR, Villejuif","Etablissement de santé ","ROCHE SAS","05/10/2013","21/10/2013 - ","Recherche scientifique "]
["IGR, Villejuif","Etablissement de santé ","PIERRE FABRE MEDICAMENT","08/10/2013","08/10/2013 - ","Autre : CONVENTIONS DE RECHERCHE BIO MEDICALE "]
["IGR, Villejuif","Etablissement de santé ","MERCK SERONO","10/10/2013","10/10/2013 - 21/10/2013 ","Autre : AUTRE "]
["IGR, Villejuif","Etablissement de santé ","GE Medical Systems SCS","10/10/2013","10/10/2013 - ","Autre : Marketing et Parrainage "]
["IGR, Villejuif","Etablissement de santé ","LABORATOIRE GLAXOSMITHKLINE","16/10/2013","16/10/2013 - ","Recherche scientifique "]
["IGR, Villejuif","Etablissement de santé ","BOEHRINGER INGELHEIM FRANCE","24/10/2013","24/10/2013 - ","Recherche scientifique "]
["IGR, Villejuif","Etablissement de santé ","BOEHRINGER INGELHEIM FRANCE","24/10/2013","24/10/2013 - ","Recherche scientifique "]
["IGR, Villejuif","Etablissement de santé ","ROCHE SAS","29/10/2013","01/01/2014 - 31/12/2014 ","Autre : Autre : [ Expert ] "]
["IGR, Villejuif","Etablissement de santé ","ROCHE SAS","07/11/2013","30/06/2013 - 30/12/2013 ","Autre : Autre : [ Partenariat ] "]
["IGR, Villejuif","Etablissement de santé ","MSD France","20/11/2013","20/11/2013 - 31/12/2017 ","Autre : RECHERCHE BIOMEDICALE "]
["IGR, Villejuif","Etablissement de santé ","B.BRAUN MEDICAL SAS","22/11/2013","22/11/2013 - 31/12/2013 ","Partenariat "]
["IGR, Villejuif","Etablissement de santé ","Bristol-Myers Squibb EMEA","25/11/2013","25/11/2013 - ","Autre : Autre : [Consultant (HCP)] "]
["IGR, Villejuif","Etablissement de santé ","BOEHRINGER INGELHEIM FRANCE","26/11/2013","26/11/2013 - ","Recherche scientifique "]
["IGR, Villejuif","Personnes morales assurant la formation initiale ou continue des professionnels de santé ","CELGENE","26/11/2013","26/11/2013 - 31/12/2013 ","Autre : SUBVENTIONS "]
["IGR, Villejuif","Etablissement de santé ","ASTRAZENECA","02/12/2013","02/12/2013 - ","Recherche scientifique "]
["IGR, Villejuif","Etablissement de santé ","ASTRAZENECA","04/12/2013","01/10/2013 - ","Recherche scientifique "]
["IGR, Villejuif","Etablissement de santé ","Transgene SA","05/12/2013","05/12/2013 - 04/12/2015 ","Recherche scientifique "]
["IGR, Villejuif","Etablissement de santé ","Bayer HealthCare SAS","05/12/2013","05/12/2013 - ","Autre : Recherche et Développement "]
["IGR, Villejuif","Etablissement de santé ","SANOFI AVENTIS FRANCE","06/12/2013","06/12/2013 - 31/12/2016 ","Autre : Recherche et Développement "]
["IGR, Villejuif","Etablissement de santé ","ASTRAZENECA","10/12/2013","10/12/2013 - ","Recherche scientifique"]
["IGR, Villejuif","Etablissement de santé ","ASTRAZENECA","10/12/2013","10/12/2013 - ","Recherche scientifique "]
["IGR, Villejuif","Etablissement de santé ","AMGEN SAS","10/12/2013","21/01/2014 - 21/01/2014 ","Autre : AUTRE [LOCATION DE STAND] "]
["IGR, Villejuif","Etablissement de santé ","IPSEN PHARMA","13/12/2013","13/12/2013 - ","Recherche scientifique "]
["IGR, Villejuif","Etablissement de santé ","Bayer HealthCare SAS","17/12/2013","17/12/2013 - 31/12/2015 ","Autre : Contrat de conseil scientifique "]
["IGR, Villejuif","Etablissement de santé ","MSD France","19/12/2013","19/12/2013 - ","Autre : RECHERCHE BIOMÉDICALE "]
["IGR, Villejuif","Etablissement de santé ","MSD France","31/12/2013","17/09/2013 - ","Autre : RECHERCHE BIOMÉDICALE "]
["IGR, Villejuif","Etablissement de santé ","MSD France","31/12/2013","17/10/2013 - ","Autre : EXPERT "]
["IGR, Villejuif","Etablissement de santé ","MSD France","31/12/2013","08/07/2013 - ","Autre : RECHERCHE BIOMEDICALE "]
["IGR, Villejuif","Etablissement de santé ","MUNDIPHARMA","02/01/2014","02/01/2014 - ","Autre : AUTRE : LOCATION DE STAND "]
["IGR, Villejuif","Académies, Fondation, sociétés savantes, organismes de conseils ","Bayer HealthCare SAS","02/01/2014","10/01/2014 - 10/01/2014 ","Autre : Autre :Contrat de location de stand "]
["IGR, Villejuif","Etablissement de santé ","ASTRAZENECA","06/01/2014","06/01/2014 - ","Partenariat "]
["IGR, Villejuif","Etablissement de santé ","BRISTOL-MYERS SQUIBB","08/01/2014","08/01/2014 - ","Autre : Autre : [Recherche/Développement] "]
["IGR, Villejuif","Etablissement de santé ","BRISTOL-MYERS SQUIBB","08/01/2014","08/01/2014 - ","Autre : Autre : [Recherche/Développement] "]
["IGR, Villejuif","Académies, Fondation, sociétés savantes, organismes de conseils ","Bayer HealthCare SAS","15/01/2014","22/01/2014 - 22/01/2014 ","Autre : Autre :Contrat de location de stand "]
["IGR, Villejuif","Etablissement de santé ","PIERRE FABRE MEDICAMENT","15/01/2014","31/01/2015 - ","Autre : CONTRAT DE PRESTATION DE RECHERCHE "]
["IGR, Villejuif","Etablissement de santé ","FRESENIUS KABI FRANCE","15/01/2014","15/01/2014 - ","Autre : AUTRE : ASSISTANCE "]
["IGR, Villejuif","Etablissement de santé ","COVIDIEN FRANCE S.A.S.","17/01/2014","17/01/2014 - ","Autre : PRESTATIONS DE SERVICES AVEC DES PERSONNES MORALES "]
["IGR, Villejuif","Etablissement de santé ","Lilly France SAS","20/01/2014","20/01/2014 - 20/01/2014 ","Autre : AUTRE : [CONTRAT DE PARTENARIAT - LOCATION DE STAND] "]
["IGR, Villejuif","Etablissement de santé ","NODEA MEDICAL","22/01/2014","07/11/2013 - 07/01/2015 ","Autre : Convention de recherche biomédicale. "]
["IGR, Villejuif","Etablissement de santé ","MERCK SERONO","23/01/2014","23/01/2014 - 23/01/2014 ","Autre : CONGRES/SYMPOSIUM"]
["IGR, Villejuif","Etablissement de santé ","Takeda France","29/01/2014","29/01/2014 - 15/02/2014 ","Autre : Autre : [CONTRAT_DE_PRESTATIONS_DE_SERVICES] "]
["IGR, Villejuif","Etablissement de santé ","BOEHRINGER INGELHEIM FRANCE","29/01/2014","29/01/2014 - ","Recherche scientifique "]
["IGR, Villejuif","Etablissement de santé ","BOEHRINGER INGELHEIM FRANCE","05/02/2014","05/02/2014 - ","Recherche scientifique "]
["IGR, Villejuif","Académies, Fondation, sociétés savantes, organismes de conseils ","MEDTRONIC France S.A.S","10/02/2014","27/03/2014 - 28/03/2014 ","Inscription congrès "]
["IGR, Villejuif","Etablissement de santé ","MSD France","02/03/2014","02/03/2014 - 31/12/2018 ","Autre : RECHERCHE BIOMEDICALE "]
["IGR, Villejuif","Etablissement de santé ","MSD France","02/03/2014","02/03/2014 - 31/12/2018 ","Autre : RECHERCHE BIOMEʄICALE "]
["IGR, Villejuif","Etablissement de santé ","ROCHE SAS","03/03/2014","01/04/2014 - 31/12/2014 ","Autre : Autre : [ Expert ] "]
["IGR, Villejuif","Etablissement de santé ","Takeda France","04/03/2014","04/03/2014 - 31/12/2014 ","Autre : Autre : [Convention mécénat] "]
["IGR, Villejuif","Etablissement de santé ","LABORATOIRE GLAXOSMITHKLINE","06/03/2014","06/03/2014 - ","Recherche scientifique "]
["IGR, Villejuif","Etablissement de santé ","Bayer HealthCare SAS","06/03/2014","13/03/2014 - 31/12/2016 ","Autre : Contrat de recherche interventionnelle et non-interventionnelle "]
["IGR, Villejuif","Etablissement de santé ","ASTRAZENECA","10/03/2014","21/03/2014 - ","Autre : Congrès/symposium "]
["IGR, Villejuif","Etablissement de santé ","LABORATOIRE GLAXOSMITHKLINE","10/03/2014","10/03/2014 - ","Recherche scientifique "]
["IGR, Villejuif","Etablissement de santé ","MERCK SERONO","18/03/2014","17/03/2014 - 02/04/2014 ","Formation "]
["IGR, Villejuif","Etablissement de santé ","IPSEN PHARMA","18/03/2014","25/03/2014 - 25/04/2014 ","Formation "]
["IGR, Villejuif","Association professionnel de santé ","Takeda France","27/03/2014","27/03/2014 - 27/03/2014 ","Autre : Autre : [Stand] "]
["IGR, Villejuif","Etablissement de santé ","Genzyme","01/04/2014","01/04/2014 - 01/04/2014 ","Autres prestations de services "]
["IGR, Villejuif","Etablissement de santé ","ROCHE SAS","02/04/2014","31/01/2014 - 31/12/2014 ","Autre : Autre : [ Expert ] "]
["IGR, Villejuif","Etablissement de santé ","IPSEN PHARMA","04/04/2014","21/05/2014 - 23/05/2014 ","Autre : CONGRES/SYMPOSIUM "]
["IGR, Villejuif","Etablissement de santé ","Bayer HealthCare SAS","10/04/2014","10/04/2014 - 31/12/2014 ","Autre : AUTRE : Partenariat "]
["IGR, Villejuif","Etablissement de santé ","NOVARTIS PHARMA SAS","17/04/2014","17/04/2014 - 16/12/2017 ","Recherche scientifique"]
["IGR, Villejuif","Etablissement de santé ","Inventivhealthclinical","22/04/2014","22/04/2014 - ","Recherche scientifique "]
["IGR, Villejuif","Etablissement de santé ","LABORATOIRE GLAXOSMITHKLINE","23/04/2014","23/04/2014 - ","Recherche scientifique "]
["IGR, Villejuif","Etablissement de santé ","Inventivhealthclinical","24/04/2014","24/04/2014 - ","Recherche scientifique "]
["IGR, Villejuif","Association professionnel de santé ","EISAI SAS","28/04/2014","18/06/2014 - 18/06/2014 ","Autre : AUTRE / STAND "]
["IGR, Villejuif","Etablissement de santé ","BRISTOL-MYERS SQUIBB","02/05/2014","02/05/2014 - ","Autre : Autre : [Recherche/Développement] "]
["IGR, Villejuif","Etablissement de santé ","SANOFI AVENTIS FRANCE","02/05/2014","02/05/2014 - 30/06/2021 ","Partenariat "]
["IGR, Villejuif","Etablissement de santé ","VIFOR FRANCE SA","05/05/2014","05/05/2014 - ","Autre : LOCATION DE STAND "]
["IGR, Villejuif","Etablissement de santé ","AbbVie","06/05/2014","06/05/2014 - ","Autre : AUTRE: [CONTRAT DE PRESTATIONS DE SERVICES] "]
["IGR, Villejuif","Etablissement de santé ","DIAXONHIT","07/05/2014","01/06/2014 - 01/06/2015 ","Recherche scientifique "]
["IGR, Villejuif","Etablissement de santé ","Advanced Accelerator Applications","12/05/2014","12/05/2014 - ","Recherche scientifique "]
["IGR, Villejuif","Etablissement de santé ","ROCHE SAS","13/05/2014","09/05/2014 - ","Recherche scientifique "]
["IGR, Villejuif","Etablissement de santé ","GENETHON","13/05/2014","13/05/2014 - 12/05/2016 ","Recherche scientifique "]
["IGR, Villejuif","Etablissement de santé ","GENETHON","19/05/2014","19/05/2014 - 18/05/2015 ","Recherche scientifique "]
["IGR, Villejuif","Etablissement de santé ","SANDOZ","21/05/2014","21/05/2014 - 27/09/2018 ","Autre : PARTENARIAT RECHERCHE "]
["IGR, Villejuif","Etablissement de santé ","PPD FRANCE SAS","21/05/2014","21/05/2014 - 21/05/2019 ","Autre : RECHERCHE CLINIQUE "]
["IGR, Villejuif","Etablissement de santé ","Lilly France SAS","23/05/2014","23/05/2014 - 23/05/2014 ","Autre : AUTRE : [CONTRAT DE PARTENARIAT - LOCATION DE STAND] "]
["IGR, Villejuif","Etablissement de santé ","ASTRAZENECA","23/05/2014","23/05/2014 - ","Autre : Autre "]
["IGR, Villejuif","Etablissement de santé ","ASTRAZENECA","23/05/2014","23/05/2014 - ","Autre : Congrès/symposium "]
["IGR, Villejuif","Etablissement de santé ","B.BRAUN MEDICAL SAS","26/05/2014","26/05/2014 - ","Autre : AUTRE [PRESTATIONS DE SERVICE]"]
["IGR, Villejuif","Etablissement de santé ","MSD France","10/06/2014","10/06/2014 - ","Autre : RECHERCHE BIOMÉDICALE "]
["IGR, Villejuif","Etablissement de santé ","ASTRAZENECA","10/06/2014","26/06/2014 - ","Autre : Congrès/symposium "]
["IGR, Villejuif","Etablissement de santé ","BRISTOL-MYERS SQUIBB","12/06/2014","12/06/2014 - ","Autre : Autre : [Recherche/Développement] "]
["IGR, Villejuif","Personnes morales assurant la formation initiale ou continue des professionnels de santé ","CELGENE","16/06/2014","24/06/2014 - 24/06/2014 ","Formation "]
["IGR, Villejuif","Etablissement de santé ","Lilly France SAS","18/06/2014","18/06/2014 - 18/06/2014 ","Autre : AUTRE : [CONTRAT DE PARTENARIAT - LOCATION DE STAND] "]
["IGR, Villejuif","Etablissement de santé ","ProStrakan Pharma","18/06/2014","18/06/2014 - 18/06/2014 ","Autre : Congrès / Symposium "]
["IGR, Villejuif","Association professionnel de santé ","BOEHRINGER INGELHEIM FRANCE","18/06/2014","18/06/2014 - ","Autre : CONGRES / SYMPOSIUM "]
["IGR, Villejuif","Etablissement de santé ","ASTRAZENECA","26/06/2014","26/06/2014 - ","Autre : Congrès/symposium "]
["IGR, Villejuif","Etablissement de santé ","NOVARTIS PHARMA SAS","30/06/2014","30/06/2014 - 31/07/2017 ","Recherche scientifique "]
["IGR, Villejuif","Etablissement de santé ","BRISTOL-MYERS SQUIBB","30/06/2014","30/06/2014 - ","Autre : Autre : [Recherche/Développement] "]
["IGR, Villejuif","Etablissement de santé ","BRISTOL-MYERS SQUIBB","30/06/2014","30/06/2014 - ","Autre : Autre : [Recherche/Développement] "]
["IGR, Villejuif","Etablissement de santé ","NODEA MEDICAL","01/07/2014","30/08/2014 - 30/06/2016 ","Autre : Convention de recherche biomédicale "]
["IGR, Villejuif","Etablissement de santé ","BRISTOL-MYERS SQUIBB","07/07/2014","07/07/2014 - ","Autre : Autre : [Recherche/Développement] "]
["IGR, Villejuif","Etablissement de santé ","BRISTOL-MYERS SQUIBB","07/07/2014","07/07/2014 - ","Autre : Autre : [Recherche/Développement] "]
["IGR, Villejuif","Etablissement de santé ","NODEA MEDICAL","07/07/2014","06/06/2014 - 06/02/2015 ","Autre : convention de recherche biomédicale "]
["IGR, Villejuif","Etablissement de santé ","PFIZER SAS","08/07/2014","22/07/2014 - ","Recherche scientifique "]
["IGR, Villejuif","Etablissement de santé ","LEO Pharma","09/07/2014","09/07/2014 - 23/05/2014 ","Autre : AUTRE : [LOCATION DE STAND] "]
["IGR, Villejuif","Etablissement de santé ","PAREXEL International","15/07/2014","15/07/2014 - ","Autre : RECHERCHE CLINIQUE "]
["IGR, Villejuif","Etablissement de santé ","Genzyme","15/07/2014","15/07/2014 - 15/07/2014 ","Autres prestations de services "]
["IGR, Villejuif","Etablissement de santé ","BRACCO IMAGING FRANCE","17/07/2014","17/07/2014 - ","Autre : AUTRE : [LOCATION ESPACE STAND]"]
["IGR, Villejuif","Etablissement de santé ","INC RESEARCH, LLC","17/07/2014","17/07/2014 - ","Recherche scientifique "]
["IGR, Villejuif","Etablissement de santé ","MERCK SERONO","18/07/2014","10/10/2014 - 20/10/2014 ","Autre : CONSEIL "]
["IGR, Villejuif","Etablissement de santé ","PFIZER SAS","22/07/2014","27/08/2014 - ","Autre : AUTRE : [PARTENARIAT/STAND] "]
["IGR, Villejuif","Etablissement de santé ","ROCHE SAS","24/07/2014","09/10/2014 - 11/10/2014 ","Autre : Autre : [ Partenariat ] "]
["IGR, Villejuif","Etablissement de santé ","SANOFI AVENTIS FRANCE","24/07/2014","24/07/2014 - ","Recherche scientifique "]
["IGR, Villejuif","Etablissement de santé ","CHUGAI PHARMA FRANCE","25/07/2014","25/07/2014 - ","Autre : LOCATION DE STAND "]
["IGR, Villejuif","Etablissement de santé ","PIERRE FABRE MEDICAMENT","05/08/2014","09/10/2014 - 11/10/2014 ","Autre : CONTRAT DE LOCATION DE STAND "]
["IGR, Villejuif","Etablissement de santé ","PIERRE FABRE MEDICAMENT","11/08/2014","01/07/2014 - 31/12/2014 ","Autre : CONVENTION DE PARTENARIAT "]
["IGR, Villejuif","Etablissement de santé ","INC RESEARCH, LLC","12/08/2014","12/08/2014 - ","Recherche scientifique "]
["IGR, Villejuif","Etablissement de santé ","PFIZER SAS","26/08/2014","02/09/2014 - ","Autre : CONGRES/SYMPOSIUM "]
["IGR, Villejuif","Etablissement de santé ","ASTRAZENECA","03/09/2014","03/09/2014 - ","Formation "]
["IGR, Villejuif","Etablissement de santé ","SANOFI-AVENTIS GROUPE","04/09/2014","04/06/2013 - 04/06/2018 ","Recherche scientifique "]
["IGR, Villejuif","Etablissement de santé ","Accuray Europe","12/09/2014","09/10/2014 - 11/10/2014 ","Inscription congrès "]
["IGR, Villejuif","Etablissement de santé ","ROCHE SAS","18/09/2014","31/01/2015 - ","Recherche scientifique "]
["IGR, Villejuif","Etablissement de santé ","ROCHE SAS","18/09/2014","31/01/2015 - ","Recherche scientifique "]
["IGR, Villejuif","Etablissement de santé ","ROCHE SAS","22/09/2014","26/09/2014 - ","Recherche scientifique "]
["IGR, Villejuif","Etablissement de santé ","Bayer HealthCare SAS","22/09/2014","22/09/2014 - 31/12/2018 ","Autre : Recherche et développement "]
["IGR, Villejuif","Etablissement de santé ","ROCHE SAS","23/09/2014","01/06/2014 - 30/04/2015 ","Recherche scientifique "]
["IGR, Villejuif","Etablissement de santé ","Orion Corporation Orion Pharma","23/09/2014","23/09/2014 - ","Recherche scientifique "]
["IGR, Villejuif","Etablissement de santé ","ROCHE SAS","06/10/2014","10/10/2014 - ","Recherche scientifique"]
["IGR, Villejuif","Etablissement de santé ","NOVARTIS PHARMA SAS","09/10/2014","09/10/2014 - 11/10/2014 ","Autre : Autre : [Contrat de conseilprestation] "]
["IGR, Villejuif","Etablissement de santé ","ROCHE SAS","09/10/2014","06/10/2014 - 10/10/2014 ","Autre : Autre : [ Parrainage ] "]
["IGR, Villejuif","Association professionnel de santé ","Takeda France","09/10/2014","09/10/2014 - 11/10/2014 ","Autre : Autre : [CONVENTION D'HOSPITALITE] "]
["IGR, Villejuif","Etablissement de santé ","Lilly France SAS","11/10/2014","09/10/2014 - 11/10/2014 ","Autre : AUTRE : [CONTRAT DE PARTENARIAT - LOCATION DE STAND] "]
["IGR, Villejuif","Etablissement de santé ","SANOFI AVENTIS FRANCE","13/10/2014","13/10/2014 - ","Recherche scientifique "]
["IGR, Villejuif","Etablissement de santé ","Inventivhealthclinical","13/10/2014","13/10/2014 - ","Contrat d'expert scientifique, contrat dans le cadre d'une recherche, contrat de consultant "]
["IGR, Villejuif","Etablissement de santé ","AbbVie","22/10/2014","22/10/2014 - ","Autre : AUTRE : [ETUDE CLINIQUE] "]
["IGR, Villejuif","Etablissement de santé ","INC RESEARCH, LLC","05/11/2014","05/11/2014 - ","Recherche scientifique "]
["IGR, Villejuif","Personnes morales assurant la formation initiale ou continue des professionnels de santé ","ONXEO","18/11/2014","18/11/2014 - 19/11/2014 ","Autre : conseil "]
["IGR, Villejuif","Etablissement de santé ","PSI CRO FRANCE","21/11/2014","21/11/2014 - ","Recherche scientifique "]
["IGR, Villejuif","Etablissement de santé ","Transgene SA","25/11/2014","05/12/2014 - 04/02/2015 ","Recherche scientifique "]
["IGR, Villejuif","Etablissement de santé ","INC RESEARCH, LLC","27/11/2014","27/11/2014 - ","Recherche scientifique "]
["IGR, Villejuif","Etablissement de santé ","ROCHE SAS","01/12/2014","01/10/2014 - 31/12/2015 ","Autre : Autre : [ Partenariat ] "]
["IGR, Villejuif","Etablissement de santé ","BRISTOL-MYERS SQUIBB","01/12/2014","01/12/2014 - ","Autre : Autre : [Recherche/Développement] "]
["IGR, Villejuif","Etablissement de santé ","ROCHE SAS","03/12/2014","26/03/2014 - ","Recherche scientifique "]
["IGR, Villejuif","Etablissement de santé ","ASTRAZENECA","04/12/2014","04/12/2014 - ","Formation "]
["IGR, Villejuif","Association professionnel de santé ","ASTRAZENECA","10/12/2014","01/10/2014 - ","Autre : Autre "]
["IGR, Villejuif","Etablissement de santé ","QUINTILES BENEFIT FRANCE SNC","16/12/2014","16/12/2014 - 16/12/2014 ","Autre : Recherche Clinique "]
["IGR, Villejuif","Association professionnel de santé ","SIEMENS SAS","16/12/2014","16/12/2014 - 09/02/2015 ","Autre : Autre : Contrat de Sponsoring Evènement Commercial "]
["IGR, Villejuif","Etablissement de santé ","QUINTILES BENEFIT FRANCE SNC","18/12/2014","18/12/2014 - 18/12/2014 ","Autre : Recherche Clinique "]
["IGR, Villejuif","Etablissement de santé ","Lilly France SAS","19/12/2014","19/01/2015 - 19/01/2015 ","Autre : AUTRE : [CONTRAT DE PARTENARIAT - LOCATION DE STAND] "]
["IGR, Villejuif","Etablissement de santé ","BOEHRINGER INGELHEIM FRANCE","21/12/2014","21/12/2014 - ","Contrat d'expert scientifique, contrat dans le cadre d'une recherche, contrat de consultant "]
["IGR, Villejuif","Association professionnel de santé ","EISAI SAS","22/12/2014","23/01/2015 - 23/01/2015 ","Formation "]
["IGR, Villejuif","Etablissement de santé ","PIERRE FABRE MEDICAMENT","31/12/2014","26/01/2015 - ","Autre : CONTRAT DE LOCATION DE STAND "]
["IGR, Villejuif","Etablissement de santé ","ROCHE SAS","01/01/2015","26/09/2014 - ","Recherche scientifique "]
["IGR, Villejuif","Etablissement de santé ","GE Medical Systems SCS","01/01/2015","01/01/2015 - 31/12/2016 ","Autre : Autre : site de référence ",22080]
["IGR, Villejuif","Etablissement de santé ","ROCHE SAS","04/01/2015","01/01/2015 - 31/12/2015 ","Autre : Autre : [ Partenariat ] "]
["IGR, Villejuif","Etablissement de santé ","Institut Roche","05/01/2015","05/01/2015 - 30/04/2017 ","Recherche scientifique ",250000]
["IGR, Villejuif","Etablissement de santé ","ASTRAZENECA","05/01/2015","05/01/2015 - ","Achat / location d'espaces dans le cadre d'événements scientifiques "]
["IGR, Villejuif","Etablissement de santé ","COVIDIEN FRANCE S.A.S.","07/01/2015","07/01/2015 - ","Autre : PRESTATIONS DE SERVICES AVEC DES PERSONNES MORALES "]
["IGR, Villejuif","Etablissement de santé ","AMGEN SAS","09/01/2015","12/01/2015 - 26/01/2015 ","Autre : AUTRE [CONVENTION DE PARTENARIAT] "]
["IGR, Villejuif","Etablissement de santé ","Genzyme","16/01/2015","16/01/2015 - 17/01/2015 ","Autre : Autre : Prestation de service "]
["IGR, Villejuif","Etablissement de santé ","MSD France","19/01/2015","19/01/2015 - ","Autre : RECHERCHE BIOMÉDICALE "]
["IGR, Villejuif","Etablissement de santé ","LVL MEDICAL PARIS ET NORD","27/01/2015","27/01/2015 - ","Autre : Marketing "]
["IGR, Villejuif","Etablissement de santé ","PFIZER SAS","27/01/2015","27/01/2015 - ","Recherche scientifique"]
["IGR, Villejuif","Etablissement de santé ","BRISTOL-MYERS SQUIBB","01/02/2015","01/02/2015 - ","Autre : Autre : [Recherche/Développement] "]
["IGR, Villejuif","Etablissement de santé ","MSD France","02/02/2015","02/02/2015 - ","Autre : RECHERCHE BIOMÉDICALE "]
["IGR, Villejuif","Association professionnel de santé ","ASTRAZENECA","03/02/2015","23/02/2015 - ","Autre : Autre "]
["IGR, Villejuif","Etablissement de santé ","QUINTILES BENEFIT FRANCE SNC","05/02/2015","05/02/2015 - 05/02/2015 ","Autre : Recherche Clinique "]
["IGR, Villejuif","Etablissement de santé ","QUINTILES BENEFIT FRANCE SNC","09/02/2015","09/02/2015 - 09/02/2015 ","Autre : Recherche Clinique "]
["IGR, Villejuif","Etablissement de santé ","MSD France","10/02/2015","10/02/2015 - ","Autre : PRESTATION SERVICE "]
["IGR, Villejuif","Etablissement de santé ","MSD France","10/02/2015","10/02/2015 - ","Autre : EXPERT "]
["IGR, Villejuif","Etablissement de santé ","MSD France","10/02/2015","10/02/2015 - ","Autre : PRESTATION SERVICE "]
["IGR, Villejuif","Etablissement de santé ","SANOFI-AVENTIS RECHERCHE & DEVELOPPEMENT","11/02/2015","11/02/2015 - 31/12/2015 ","Autre : Autre : [Expertise] "]
["IGR, Villejuif","Etablissement de santé ","BRISTOL-MYERS SQUIBB","11/02/2015","11/02/2015 - ","Autre : Autre : [Recherche/Développement] "]
["IGR, Villejuif","Etablissement de santé ","ROCHE SAS","14/02/2015","06/03/2015 - 31/12/2015 ","Autre : Autre : [ Expert ] "]
["IGR, Villejuif","Etablissement de santé ","ROCHE SAS","15/02/2015","15/02/2015 - 31/12/2015 ","Autre : Autre : [ Expert ] "]
["IGR, Villejuif","Etablissement de santé ","ROCHE SAS","18/02/2015","11/01/2016 - ","Recherche scientifique "]
["IGR, Villejuif","Etablissement de santé ","BOEHRINGER INGELHEIM FRANCE","23/02/2015","23/02/2015 - ","Autre : RECHERCHE AVENANT "]
["IGR, Villejuif","Etablissement de santé ","AbbVie","24/02/2015","24/02/2015 - ","Autre : RECHERCHE SCIENTIFIQUE "]
["IGR, Villejuif","Etablissement de santé ","ROCHE SAS","02/03/2015","16/03/2015 - ","Recherche scientifique "]
["IGR, Villejuif","Etablissement de santé ","ROCHE SAS","04/03/2015","16/12/2014 - ","Recherche scientifique"]
["IGR, Villejuif","Etablissement de santé ","ASTRAZENECA","05/03/2015","20/03/2015 - ","Autre : Congrès/symposium "]
["IGR, Villejuif","Etablissement de santé ","PHILIPS FRANCE","11/03/2015","23/02/2015 - 23/08/2015 ","Autre : AUTRE : CONTRAT DE PRESTATIONS DE SERVICES "]
["IGR, Villejuif","Etablissement de santé ","NANOBIOTIX S.A.","11/03/2015","11/03/2015 - 31/12/2017 ","Autre : Recherche biomédicale "]
["IGR, Villejuif","Etablissement de santé ","INC RESEARCH, LLC","11/03/2015","11/03/2015 - ","Recherche scientifique "]
["IGR, Villejuif","Etablissement de santé ","SANOFI-AVENTIS RECHERCHE & DEVELOPPEMENT","23/03/2015","23/03/2015 - 01/09/2017 ","Autres prestations de services "]
["IGR, Villejuif","Etablissement de santé ","SANOFI-AVENTIS RECHERCHE & DEVELOPPEMENT","23/03/2015","23/03/2015 - 31/12/2016 ","Partenariat "]
["IGR, Villejuif","Etablissement de santé ","AbbVie","31/03/2015","31/03/2015 - ","Autre : AUTRE: [CONVENTION HOSPITALIERE] "]
["IGR, Villejuif","Etablissement de santé ","PSI CRO AG","01/04/2015","01/04/2015 - ","Autre : Convention pour la participation à un comité de surveillance et de suivi d’une recherche clinique "]
["IGR, Villejuif","Etablissement de santé ","PSI CRO AG","01/04/2015","01/04/2015 - ","Autre : Convention pour la participation à un comité de surveillance et de suivi d’une recherche clinique "]
["IGR, Villejuif","Etablissement de santé ","ASTRAZENECA","07/04/2015","27/03/2015 - ","Contrat d'intervenant à une manifestation / orateur "]
["IGR, Villejuif","Etablissement de santé ","PAREXEL International","07/04/2015","07/04/2015 - ","Autre : RECHERCHE CLINIQUE "]
["IGR, Villejuif","Etablissement de santé ","ROCHE SAS","09/04/2015","01/10/2014 - 31/12/2016 ","Autre : Autre : [ Partenariat ] "]
["IGR, Villejuif","Etablissement de santé ","Genzyme","09/04/2015","09/04/2015 - 09/04/2015 ","Autres prestations de services "]
["IGR, Villejuif","Etablissement de santé ","NODEA MEDICAL","10/04/2015","06/01/2015 - 06/06/2015 ","Autre : Convention de recherche biomédicale "]
["IGR, Villejuif","Etablissement de santé ","QUINTILES BENEFIT FRANCE SNC","14/04/2015","14/04/2015 - 14/04/2015 ","Autre : Recherche Clinique "]
["IGR, Villejuif","Etablissement de santé ","MSD France","15/04/2015","15/04/2015 - 15/04/2018 ","Autre : PRESTATION SERVICE "]
["IGR, Villejuif","Etablissement de santé ","Lilly France SAS","24/04/2015","24/04/2015 - 01/12/2016 ","Recherche scientifique "]
["IGR, Villejuif","Association professionnel de santé ","EISAI SAS","28/04/2015","17/06/2015 - 17/06/2015 ","Autre : AUTRE / STAND "]
["IGR, Villejuif","Etablissement de santé ","ROCHE SAS","29/04/2015","10/04/2015 - ","Recherche scientifique"]
["IGR, Villejuif","Etablissement de santé ","Bayer HealthCare SAS","29/04/2015","01/05/2015 - 31/12/2023 ","Recherche scientifique ",77165]
["IGR, Villejuif","Etablissement de santé ","INC RESEARCH, LLC","30/04/2015","30/04/2015 - ","Recherche scientifique "]
["IGR, Villejuif","Etablissement de santé ","GE Medical Systems SCS","02/05/2015","09/02/2015 - 09/02/2015 ","Autre : Marketing et Parrainage "]
["IGR, Villejuif","Etablissement de santé ","BOEHRINGER INGELHEIM FRANCE","04/05/2015","04/05/2015 - ","Recherche scientifique "]
["IGR, Villejuif","Etablissement de santé ","Lilly France SAS","05/05/2015","17/06/2015 - 17/06/2015 ","Autre : AUTRE : [CONTRAT DE PARTENARIAT - LOCATION DE STAND] "]
["IGR, Villejuif","Etablissement de santé ","PAREXEL International","12/05/2015","11/06/2015 - ","Autre : RECHERCHE CLINIQUE "]
["IGR, Villejuif","Etablissement de santé ","GE Medical Systems SCS","15/05/2015","04/06/2015 - 04/06/2015 ","Autre : Marketing et Parrainage "]
["IGR, Villejuif","Etablissement de santé ","Lilly France SAS","18/05/2015","01/05/2015 - 30/12/2017 ","Recherche scientifique "]
["IGR, Villejuif","Académies, Fondation, sociétés savantes, organismes de conseils ","INSTITUT MERIEUX","22/05/2015","22/05/2015 - 21/05/2017 ","Recherche scientifique "]
["IGR, Villejuif","Etablissement de santé ","SANOFI AVENTIS FRANCE","27/05/2015","27/05/2015 - ","Recherche scientifique "]
["IGR, Villejuif","Etablissement de santé ","Bayer HealthCare SAS","27/05/2015","27/05/2015 - 31/12/2018 ","Autre : Recherche et développement "]
["IGR, Villejuif","Etablissement de santé ","Bayer HealthCare SAS","02/06/2015","02/06/2015 - 31/12/2018 ","Autre : Recherche et développement "]
["IGR, Villejuif","Etablissement de santé ","BARD FRANCE SAS","04/06/2015","04/06/2015 - 05/06/2015 ","Autre : LOCATION STAND "]
["IGR, Villejuif","Etablissement de santé ","IPSEN PHARMA","04/06/2015","17/06/2015 - 17/06/2015 ","Autre : CONGRES/SYMPOSIUM "]
["IGR, Villejuif","Personnes morales assurant la formation initiale ou continue des professionnels de santé ","PFIZER SAS","05/06/2015","05/06/2015 - ","Recherche scientifique "]
["IGR, Villejuif","Etablissement de santé ","ASTRAZENECA","07/06/2015","18/09/2015 - ","Formation "]
["IGR, Villejuif","Etablissement de santé ","ONXEO","09/06/2015","09/06/2015 - 09/06/2015 ","Autre : Conseil "]
["IGR, Villejuif","Etablissement de santé ","MSD France","10/06/2015","10/06/2015 - ","Autre : PRESTATION SERVICE "]
["IGR, Villejuif","Etablissement de santé ","Genzyme","11/06/2015","11/06/2015 - 11/06/2015 ","Autres prestations de services "]
["IGR, Villejuif","Etablissement de santé ","Bayer HealthCare SAS","11/06/2015","25/06/2015 - 25/06/2015 ","Autre : Autre :Contrat de location de stand"]
["IGR, Villejuif","Personnes morales assurant la formation initiale ou continue des professionnels de santé ","BOEHRINGER INGELHEIM FRANCE","17/06/2015","17/06/2015 - ","Autre : CONGRES / SYMPOSIUM "]
["IGR, Villejuif","Association professionnel de santé ","NOVARTIS PHARMA SAS","17/06/2015","17/06/2015 - 17/06/2015 ","Autre : Autre : [Contrat de conseil & prestation] "]
["IGR, Villejuif","Etablissement de santé ","ASTRAZENECA","17/06/2015","17/06/2015 - ","Autre : Congrès/symposium "]
["IGR, Villejuif","Etablissement de santé ","PFIZER SAS","17/06/2015","17/06/2015 - 17/06/2015 ","Autre : Autre : Stand "]
["IGR, Villejuif","Etablissement de santé ","ASTRAZENECA","18/06/2015","18/06/2015 - ","Formation "]
["IGR, Villejuif","Etablissement de santé ","ROCHE SAS","23/06/2015","23/06/2015 - 23/06/2015 ","Autre : Autre : [ Parrainage ] "]
["IGR, Villejuif","Etablissement de santé ","ASTRAZENECA","23/06/2015","23/06/2015 - ","Autre : Congrès/symposium "]
["IGR, Villejuif","Etablissement de santé ","ASTRAZENECA","24/06/2015","24/06/2015 - ","Autre : Congrès/symposium "]
["IGR, Villejuif","Personnes morales assurant la formation initiale ou continue des professionnels de santé ","PFIZER SAS","01/07/2015","01/07/2015 - ","Recherche scientifique "]
["IGR, Villejuif","Etablissement de santé ","ASTRAZENECA","04/07/2015","04/09/2015 - ","Formation "]
["IGR, Villejuif","Etablissement de santé ","JANSSEN-CILAG","08/07/2015","17/06/2015 - 17/06/2015 ","Autre : AUTRE : PARTENARIAT "]
["IGR, Villejuif","Etablissement de santé ","JANSSEN-CILAG","08/07/2015","17/06/2015 - 17/06/2015 ","Autre : AUTRE : PARTENARIAT "]
["IGR, Villejuif","Etablissement de santé ","NOVARTIS PHARMA SAS","10/07/2015","10/07/2015 - 26/01/2020 ","Recherche scientifique "]
["IGR, Villejuif","Etablissement de santé ","PFIZER SAS","10/07/2015","10/07/2015 - 10/07/2015 ","Autre : Conseil "]
["IGR, Villejuif","Etablissement de santé ","Bayer HealthCare SAS","16/07/2015","16/07/2015 - 16/07/2018 ","Autre : Contrat de recherche interventionnelle et non-interventionnelle "]
["IGR, Villejuif","Etablissement de santé ","INC RESEARCH, LLC","23/07/2015","23/07/2015 - ","Recherche scientifique "]
["IGR, Villejuif","Etablissement de santé ","Bayer HealthCare SAS","24/07/2015","24/07/2015 - ","Recherche scientifique "]
["IGR, Villejuif","Etablissement de santé ","Orion Corporation Orion Pharma","24/07/2015","24/07/2015 - ","Recherche scientifique "]
["IGR, Villejuif","Etablissement de santé ","Lilly France SAS","29/07/2015","01/08/2015 - 31/12/2017 ","Recherche scientifique",124482]
["IGR, Villejuif","Etablissement de santé ","Lilly France SAS","01/08/2015","12/10/2012 - ","Recherche scientifique ",643590]
["IGR, Villejuif","Etablissement de santé ","Inventivhealthclinical","04/08/2015","04/08/2015 - ","Contrat d'expert scientifique, contrat dans le cadre d'une recherche, contrat de consultant "]
["IGR, Villejuif","Etablissement de santé ","NOVARTIS PHARMA SAS","19/08/2015","19/08/2015 - 02/06/2017 ","Recherche scientifique "]
["IGR, Villejuif","Etablissement de santé ","Lilly France SAS","24/08/2015","05/03/2015 - 30/09/2018 ","Recherche scientifique ",177574]
["IGR, Villejuif","Etablissement de santé ","ASTRAZENECA","24/08/2015","24/08/2015 - ","Recherche scientifique "]
["IGR, Villejuif","Etablissement de santé ","ASTRAZENECA","24/08/2015","24/08/2015 - ","Recherche scientifique "]
["IGR, Villejuif","Etablissement de santé ","QUINTILES BENEFIT FRANCE SNC","24/08/2015","24/08/2015 - 24/08/2015 ","Autre : Recherche Clinique "]
["IGR, Villejuif","Personnes morales assurant la formation initiale ou continue des professionnels de santé ","PFIZER SAS","26/08/2015","26/08/2015 - ","Recherche scientifique "]
["IGR, Villejuif","Etablissement de santé ","NOVARTIS PHARMA SAS","31/08/2015","31/08/2015 - 17/10/2017 ","Recherche scientifique "]
["IGR, Villejuif","Etablissement de santé ","ROCHE SAS","01/09/2015","01/09/2015 - 31/08/2016 ","Autre : Autre : [ Expert ] "]
["IGR, Villejuif","Etablissement de santé ","SANOFI-AVENTIS RECHERCHE & DEVELOPPEMENT","01/09/2015","01/09/2015 - 01/09/2018 ","Recherche scientifique "]
["IGR, Villejuif","Etablissement de santé ","NOVARTIS PHARMA SAS","14/09/2015","14/09/2015 - 01/03/2018 ","Recherche scientifique "]
["IGR, Villejuif","Etablissement de santé ","SANOFI AVENTIS FRANCE","14/09/2015","14/09/2015 - ","Recherche scientifique "]
["IGR, Villejuif","Etablissement de santé ","SANOFI-AVENTIS RECHERCHE & DEVELOPPEMENT","15/09/2015","15/01/2015 - 31/10/2017 ","Recherche scientifique "]
["IGR, Villejuif","Etablissement de santé ","ICON CLINICAL RESEARCH SARL","15/09/2015","15/09/2015 - ","Autre : Recherche biomédicale "]
["IGR, Villejuif","Etablissement de santé ","NOVARTIS PHARMA SAS","16/09/2015","16/09/2015 - 12/10/2018 ","Recherche scientifique "]
["IGR, Villejuif","Etablissement de santé ","SANOFI-AVENTIS RECHERCHE & DEVELOPPEMENT","18/09/2015","18/09/2015 - 18/09/2017 ","Recherche scientifique"]
["IGR, Villejuif","Académies, Fondation, sociétés savantes, organismes de conseils ","Bayer HealthCare SAS","21/09/2015","24/09/2015 - 25/09/2016 ","Contrat d'expert scientifique, contrat dans le cadre d'une recherche, contrat de consultant "]
["IGR, Villejuif","Etablissement de santé ","CHUGAI PHARMA FRANCE","25/09/2015","25/09/2015 - ","Autre : LOCATION DE STAND "]
["IGR, Villejuif","Etablissement de santé ","ROCHE SAS","28/09/2015","07/10/2015 - 08/10/2015 ","Autre : Autre : [ Parrainage ] "]
["IGR, Villejuif","Etablissement de santé ","NOVARTIS PHARMA SAS","28/09/2015","28/09/2015 - 31/12/2020 ","Recherche scientifique "]
["IGR, Villejuif","Etablissement de santé ","ROCHE SAS","29/09/2015","01/10/2015 - 31/10/2015 ","Autre : Autre : [ Parrainage ] "]
["IGR, Villejuif","Etablissement de santé ","KEOCYT","29/09/2015","01/10/2015 - 01/10/2015 ","Autre : AUTRE : LOCATION DE STAND "]
["IGR, Villejuif","Association professionnel de santé ","NOVARTIS PHARMA SAS","01/10/2015","01/10/2015 - 01/10/2015 ","Autre : Autre : [Contrat de conseil & prestation] "]
["IGR, Villejuif","Etablissement de santé ","NOVARTIS PHARMA SAS","01/10/2015","01/10/2015 - 01/10/2015 ","Autre : Autre : [Contrat de conseil & prestation] "]
["IGR, Villejuif","Etablissement de santé ","PFIZER SAS","01/10/2015","01/10/2015 - 01/10/2015 ","Autre : Autre : Stand "]
["IGR, Villejuif","Etablissement de santé ","MERCK SERONO","02/10/2015","02/10/2015 - 12/10/2015 ","Contrat d'expert scientifique, contrat dans le cadre d'une recherche, contrat de consultant "]
["IGR, Villejuif","Etablissement de santé ","MERCK SERONO","02/10/2015","02/10/2015 - 12/10/2015 ","Autre : CONSEIL "]
["IGR, Villejuif","Etablissement de santé ","SynteractHCR France S.A.S.","02/10/2015","02/10/2015 - ","Autre : Recherche Clinique "]
["IGR, Villejuif","Etablissement de santé ","ONXEO","06/10/2015","06/10/2015 - 05/10/2016 ","Autre : Conseil "]
["IGR, Villejuif","Etablissement de santé ","GENTICEL","06/10/2015","03/06/2015 - 30/12/2015 ","Recherche scientifique "]
["IGR, Villejuif","Etablissement de santé ","MSD France","07/10/2015","07/10/2015 - ","Autre : PRESTATION SERVICE "]
["IGR, Villejuif","Etablissement de santé ","BRISTOL-MYERS SQUIBB","08/10/2015","08/10/2015 - ","Autre : Autre : [Recherche/Développement] "]
["IGR, Villejuif","Etablissement de santé ","BRISTOL-MYERS SQUIBB","11/10/2015","11/10/2015 - ","Autre : Autre : [Recherche/Développement] "]
["IGR, Villejuif","Etablissement de santé ","PIERRE FABRE MEDICAMENT","14/10/2015","14/10/2015 - ","Autre : CONTRAT DE PRESTATION DE RECHERCHE "]
["IGR, Villejuif","Etablissement de santé ","B.BRAUN MEDICAL SAS","19/10/2015","09/10/2015 - 09/10/2015 ","Autre : Autre : [PARTENARIAT] "]
["IGR, Villejuif","Etablissement de santé ","Lilly France SAS","20/10/2015","01/11/2015 - 31/08/2019 ","Recherche scientifique ",233690]
["IGR, Villejuif","Etablissement de santé ","Genzyme","20/10/2015","22/10/2015 - 22/10/2015 ","Autre : Autre : [Autre] "]
["IGR, Villejuif","Etablissement de santé ","Inventivhealthclinical","21/10/2015","21/10/2015 - ","Recherche scientifique "]
["IGR, Villejuif","Personnes morales assurant la formation initiale ou continue des professionnels de santé ","PFIZER SAS","27/10/2015","27/10/2015 - ","Recherche scientifique "]
["IGR, Villejuif","Etablissement de santé ","SANOFI AVENTIS FRANCE","29/10/2015","29/10/2015 - ","Recherche scientifique "]
["IGR, Villejuif","Etablissement de santé ","ROCHE SAS","02/11/2015","08/12/2014 - ","Recherche scientifique "]
["IGR, Villejuif","Etablissement de santé ","QUINTILES BENEFIT FRANCE SNC","04/11/2015","04/11/2015 - 04/11/2015 ","Autre : Recherche Clinique "]
["IGR, Villejuif","Etablissement de santé ","NOVARTIS PHARMA SAS","06/11/2015","06/11/2015 - 31/03/2016 ","Autre : Autre : [Contrat de partenariat] "]
["IGR, Villejuif","Etablissement de santé ","ASTRAZENECA","09/11/2015","01/04/2015 - ","Recherche scientifique "]
["IGR, Villejuif","Etablissement de santé ","BRISTOL-MYERS SQUIBB","18/11/2015","18/11/2015 - ","Autre : Autre : [Recherche/Développement] "]
["IGR, Villejuif","Etablissement de santé ","BRISTOL-MYERS SQUIBB","23/11/2015","23/11/2015 - ","Autre : Autre : [Recherche/Développement] "]
["IGR, Villejuif","Etablissement de santé ","NANOBIOTIX S.A.","24/11/2015","24/11/2015 - ","Autre : Convention de Recherche Biomédicale "]
["IGR, Villejuif","Etablissement de santé ","NOVARTIS PHARMA SAS","01/12/2015","01/12/2015 - 16/07/2019 ","Recherche scientifique "]
["IGR, Villejuif","Etablissement de santé ","ROCHE SAS","02/12/2015","30/10/2015 - ","Recherche scientifique "]
["IGR, Villejuif","Etablissement de santé ","ROCHE SAS","10/12/2015","01/01/2016 - 31/12/2016 ","Autre : Autre : [ Parrainage ] "]
["IGR, Villejuif","Etablissement de santé ","SANOFI-AVENTIS RECHERCHE & DEVELOPPEMENT","10/12/2015","10/12/2015 - 10/12/2018 ","Contrat d'expert scientifique, contrat dans le cadre d'une recherche, contrat de consultant "]
["IGR, Villejuif","Etablissement de santé ","INC RESEARCH, LLC","10/12/2015","10/12/2015 - ","Recherche scientifique "]
["IGR, Villejuif","Etablissement de santé ","NOVARTIS PHARMA SAS","14/12/2015","14/12/2015 - 13/09/2018 ","Recherche scientifique "]
["IGR, Villejuif","Etablissement de santé ","Lilly France SAS","14/12/2015","01/10/2015 - 30/06/2019 ","Recherche scientifique ",53041]
["IGR, Villejuif","Etablissement de santé ","INC RESEARCH, LLC","21/12/2015","21/12/2015 - ","Recherche scientifique "]
["IGR, Villejuif","Etablissement de santé ","MSD France","22/12/2015","22/12/2015 - ","Autre : PRESTATION SERVICE "]
["IGR, Villejuif","Etablissement de santé ","Genzyme","24/12/2015","24/12/2015 - 24/12/2015 ","Autres prestations de services "]
["IGR, Villejuif","Etablissement de santé ","ROCHE SAS","30/12/2015","11/01/2016 - 22/01/2016 ","Autre : Autre : [ Location de stand ] "]
["IGR, Villejuif","Etablissement de santé ","GENTICEL","31/12/2015","03/06/2015 - 30/12/2015 ","Recherche scientifique "]
["IGR, Villejuif","Etablissement de santé ","ROCHE SAS","01/01/2016","21/01/2016 - ","Recherche scientifique "]
["IGR, Villejuif","Etablissement de santé ","OSE Immunotherapeutics","06/01/2016","06/01/2016 - 21/03/2020 ","Recherche scientifique "]
["IGR, Villejuif","Etablissement de santé ","ASTRAZENECA","07/01/2016","07/01/2016 - ","Formation "]
["IGR, Villejuif","Etablissement de santé ","AMGEN SAS","07/01/2016","07/01/2016 - 26/01/2016 ","Partenariat "]
["IGR, Villejuif","Etablissement de santé ","PFIZER SAS","08/01/2016","04/01/2016 - 08/01/2016 ","Autre : Conseil "]
["IGR, Villejuif","Etablissement de santé ","Lilly France SAS","11/01/2016","01/01/2016 - 30/10/2018 ","Recherche scientifique "]
["IGR, Villejuif","Etablissement de santé ","MERCK SERONO","13/01/2016","13/01/2016 - 30/06/2017 ","Recherche scientifique "]
["IGR, Villejuif","Etablissement de santé ","ASTRAZENECA","13/01/2016","13/01/2016 - ","Achat / location d'espaces dans le cadre d'événements scientifiques "]
["IGR, Villejuif","Association professionnel de santé ","Lilly France SAS","13/01/2016","13/01/2016 - ","Recherche scientifique ",373960]
["IGR, Villejuif","Académies, Fondation, sociétés savantes, organismes de conseils ","Becton Dickinson France SAS","14/01/2016","14/01/2016 - 14/01/2016 ","Autre : Conseil "]
["IGR, Villejuif","Etablissement de santé ","Genzyme","16/01/2016","16/01/2016 - 17/01/2016 ","Autre : Autre : Prestation de service "]
["IGR, Villejuif","Etablissement de santé ","INNATE PHARMA","18/01/2016","18/01/2016 - 30/06/2019 ","Recherche scientifique "]
["IGR, Villejuif","Etablissement de santé ","Lilly France SAS","20/01/2016","18/01/2016 - 20/01/2016 ","Autre : LOCATION DE STAND "]
["IGR, Villejuif","Etablissement de santé ","Accuray Europe","21/01/2016","21/01/2016 - ","Autre : SUVENTIONS "]
["IGR, Villejuif","Etablissement de santé ","INC RESEARCH, LLC","21/01/2016","21/01/2016 - ","Recherche scientifique "]
["IGR, Villejuif","Etablissement de santé ","LVL MEDICAL PARIS ET NORD","26/01/2016","26/01/2016 - ","Autre : Marketing "]
["IGR, Villejuif","Etablissement de santé ","ICON CLINICAL RESEARCH SARL","02/02/2016","02/02/2016 - ","Autre : Recherche biomédicale "]
["IGR, Villejuif","Etablissement de santé ","MERCK SERONO","05/02/2016","05/02/2016 - 05/02/2016 ","Autre : CONGRES/SYMPOSIUM "]
["IGR, Villejuif","Etablissement de santé ","PPD FRANCE SAS","15/02/2016","15/02/2016 - 13/02/2021 ","Recherche scientifique "]
["IGR, Villejuif","Etablissement de santé ","EISAI SAS","17/02/2016","18/03/2016 - 18/03/2016 ","Autre : AUTRE / STAND "]
["IGR, Villejuif","Etablissement de santé ","PRA","23/02/2016","23/02/2016 - ","Recherche scientifique "]
["IGR, Villejuif","Etablissement de santé ","BRISTOL-MYERS SQUIBB","25/02/2016","25/02/2016 - ","Autre : Autre : [Recherche/Développement] "]
["IGR, Villejuif","Etablissement de santé ","NOVARTIS PHARMA SAS","29/02/2016","29/02/2016 - 28/06/2017 ","Recherche scientifique ",32969]
["IGR, Villejuif","Etablissement de santé ","PPD FRANCE SAS","29/02/2016","29/02/2016 - 27/02/2021 ","Recherche scientifique "]
["IGR, Villejuif","Etablissement de santé ","PIERRE FABRE MEDICAMENT","05/03/2016","01/03/2016 - ","Autre : CONVENTION DE PARTENARIAT"]
["IGR, Villejuif","Etablissement de santé ","AbbVie","07/03/2016","07/03/2016 - ","Autre : RECHERCHE SCIENTIFIQUE "]
["IGR, Villejuif","Etablissement de santé ","QUINTILES BENEFIT FRANCE SNC","08/03/2016","08/03/2016 - 08/03/2016 ","Autre : Recherche Clinique "]
["IGR, Villejuif","Etablissement de santé ","Takeda France","11/03/2016","01/01/2016 - 31/12/2016 ","Autre : Subventions "]
["IGR, Villejuif","Etablissement de santé ","QUINTILES BENEFIT FRANCE SNC","15/03/2016","15/03/2016 - 15/03/2016 ","Autre : Recherche Clinique "]
["IGR, Villejuif","Etablissement de santé ","MSD France","18/03/2016","18/03/2016 - ","Autre : RECHERCHE BIOMÉDICALE "]
["IGR, Villejuif","Etablissement de santé ","GE Medical Systems SCS","21/03/2016","04/06/2015 - 04/06/2015 ","Achat / location d'espaces dans le cadre d'événements scientifiques ",500]
["IGR, Villejuif","Etablissement de santé ","PRA","23/03/2016","23/03/2016 - ","Recherche scientifique "]
["IGR, Villejuif","Etablissement de santé ","MSD France","29/03/2016","29/03/2016 - ","Autre : RECHERCHE BIOMÉDICALE "]
["IGR, Villejuif","Etablissement de santé ","ASTRAZENECA","29/03/2016","29/03/2016 - ","Recherche scientifique "]
["IGR, Villejuif","Etablissement de santé ","SANOFI-AVENTIS RECHERCHE & DEVELOPPEMENT","01/04/2016","01/04/2016 - 13/12/2016 ","Autre : Autre : [Expertise] "]
["IGR, Villejuif","Etablissement de santé ","SANOFI-AVENTIS RECHERCHE & DEVELOPPEMENT","01/04/2016","01/04/2016 - 13/12/2016 ","Recherche scientifique "]
["IGR, Villejuif","Académies, Fondation, sociétés savantes, organismes de conseils ","INSTITUT MERIEUX","04/04/2016","04/04/2016 - ","Evaluation produit cosmétique "]
["IGR, Villejuif","Etablissement de santé ","MSD France","10/04/2016","10/04/2016 - ","Autre : RECHERCHE BIOMÉDICALE "]
["IGR, Villejuif","Etablissement de santé ","SANOFI AVENTIS FRANCE","13/04/2016","13/04/2016 - ","Recherche scientifique "]
["IGR, Villejuif","Etablissement de santé ","MSD France","15/04/2016","15/04/2016 - ","Autre : RECHERCHE BIOMÉDICALE "]
["IGR, Villejuif","Etablissement de santé ","MSD France","15/04/2016","15/04/2016 - ","Autre : RECHERCHE BIOMÉDICALE "]
["IGR, Villejuif","Etablissement de santé ","MSD France","15/04/2016","15/04/2016 - ","Autre : RECHERCHE BIOMÉDICALE "]
["IGR, Villejuif","Etablissement de santé ","BRISTOL-MYERS SQUIBB","27/04/2016","27/04/2016 - ","Autre : Recherche biomédicale "]
["IGR, Villejuif","Etablissement de santé ","NOVARTIS PHARMA SAS","28/04/2016","28/04/2016 - 28/12/2018 ","Recherche scientifique",46025]
["IGR, Villejuif","Etablissement de santé ","MSD France","28/04/2016","28/04/2016 - ","Autre : RECHERCHE BIOMÉDICALE "]
["IGR, Villejuif","Etablissement de santé ","PPD FRANCE SAS","29/04/2016","29/04/2016 - 28/04/2021 ","Recherche scientifique "]
["IGR, Villejuif","Etablissement de santé ","ICON CLINICAL RESEARCH SARL","02/05/2016","02/05/2016 - ","Autre : Recherche biomédicale - Avenant n° 1 "]
["IGR, Villejuif","Etablissement de santé ","MSD France","02/05/2016","02/05/2016 - ","Autre : PRESTATION SERVICE "]
["IGR, Villejuif","Etablissement de santé ","NOVARTIS PHARMA SAS","02/05/2016","02/05/2016 - 25/12/2018 ","Recherche scientifique "]
["IGR, Villejuif","Etablissement de santé ","QUINTILES BENEFIT FRANCE SNC","02/05/2016","02/05/2016 - 02/05/2016 ","Autre : Recherche Clinique "]
["IGR, Villejuif","Etablissement de santé ","NOVARTIS PHARMA SAS","10/05/2016","10/05/2016 - 25/12/2018 ","Recherche scientifique "]
["IGR, Villejuif","Etablissement de santé ","MSD France","13/05/2016","13/05/2016 - ","Autre : PRESTATION SERVICE "]
["IGR, Villejuif","Etablissement de santé ","MERCK SERONO","13/05/2016","13/05/2016 - 13/05/2016 ","Autre : CONGRES/SYMPOSIUM "]
["IGR, Villejuif","Etablissement de santé ","EISAI SAS","18/05/2016","15/06/2016 - 15/06/2016 ","Autre : AUTRE / STAND "]
["IGR, Villejuif","Etablissement de santé ","ICON CLINICAL RESEARCH SARL","19/05/2016","19/05/2016 - ","Autre : Recherche biomédicale "]
["IGR, Villejuif","Etablissement de santé ","ROCHE SAS","19/05/2016","20/05/2016 - ","Recherche scientifique "]
["IGR, Villejuif","Etablissement de santé ","Genzyme","19/05/2016","19/05/2016 - 19/05/2016 ","Autre : Autre : Prestation de service "]
["IGR, Villejuif","Etablissement de santé ","ASTRAZENECA","20/05/2016","20/05/2016 - ","Formation "]
["IGR, Villejuif","Etablissement de santé ","BRISTOL-MYERS SQUIBB","25/05/2016","25/05/2016 - ","Autre : Autre : [Recherche/Développement] "]
["IGR, Villejuif","Etablissement de santé ","ROCHE SAS","30/05/2016","02/04/2016 - 02/04/2016 ","Autre : Autre : [ Orateur / Intervenant ] "]
["IGR, Villejuif","Etablissement de santé ","ROCHE SAS","30/05/2016","08/01/2016 - 31/12/2016 ","Autre : Autre : [ Expert ] "]
["IGR, Villejuif","Etablissement de santé ","Bayer HealthCare SAS","03/06/2016","03/06/2016 - 31/12/2018 ","Autre : Recherche et Développement "]
["IGR, Villejuif","Etablissement de santé ","AMGEN SAS","10/06/2016","15/06/2016 - 15/06/2016 ","Autre : AUTRE [LOCATION DE STAND] "]
["IGR, Villejuif","Etablissement de santé ","CHUGAI PHARMA FRANCE","15/06/2016","15/06/2016 - ","Autre : LOCATION DE STAND "]
["IGR, Villejuif","Personnes morales assurant la formation initiale ou continue des professionnels de santé ","BOEHRINGER INGELHEIM FRANCE","15/06/2016","15/06/2016 - ","Autre : AUTRE : PARTICIPATION A MANIFESTATION SCIENTIFIQUE "]
["IGR, Villejuif","Etablissement de santé ","ASTRAZENECA","15/06/2016","15/06/2016 - ","Achat / location d'espaces dans le cadre d'événements scientifiques "]
["IGR, Villejuif","Etablissement de santé ","PFIZER SAS","15/06/2016","15/06/2016 - 15/06/2016 ","Autre : Autre : Stand "]
["IGR, Villejuif","Etablissement de santé ","PFIZER SAS","17/06/2016","20/06/2016 - 24/06/2016 ","Autre : Conseil "]
["IGR, Villejuif","Etablissement de santé ","PPD FRANCE SAS","20/06/2016","20/06/2016 - 19/06/2021 ","Recherche scientifique "]
["IGR, Villejuif","Etablissement de santé ","CHUGAI PHARMA FRANCE","21/06/2016","21/06/2016 - ","Autre : PARTENARIAT MEDICAL "]
["IGR, Villejuif","Etablissement de santé ","ICON CLINICAL RESEARCH SARL","23/06/2016","23/06/2016 - ","Autre : Recherche biomédicale "]
["IGR, Villejuif","Personnes morales assurant la formation initiale ou continue des professionnels de santé ","ONXEO","25/06/2016","25/06/2016 - 31/12/2016 ","Autre : Recherche clinique "]
["IGR, Villejuif","Etablissement de santé ","Lilly France SAS","27/06/2016","01/06/2016 - 31/12/2019 ","Recherche scientifique "]
["IGR, Villejuif","Etablissement de santé ","MSD France","29/06/2016","29/06/2016 - ","Autre : RECHERCHE BIOMÉDICALE"]
["IGR, Villejuif","Etablissement de santé ","BRISTOL-MYERS SQUIBB","30/06/2016","30/06/2016 - ","Autre : Autre : [Partenariat / Collaboration scientifique] "]
["IGR, Villejuif","Etablissement de santé ","QUINTILES BENEFIT FRANCE SNC","04/07/2016","04/07/2016 - 04/07/2016 ","Recherche scientifique "]
["IGR, Villejuif","Etablissement de santé ","Accuray Europe","06/07/2016","22/04/2017 - ","Contrat d'expert scientifique, contrat dans le cadre d'une recherche, contrat de consultant "]
["IGR, Villejuif","Etablissement de santé ","PPD FRANCE SAS","07/07/2016","07/07/2016 - 06/07/2021 ","Recherche scientifique "]
["IGR, Villejuif","Académies, Fondation, sociétés savantes, organismes de conseils ","BRISTOL-MYERS SQUIBB","07/07/2016","22/09/2016 - ","Autre : Partenariat / Collaboration scientifique "]
["IGR, Villejuif","Etablissement de santé ","QUINTILES BENEFIT FRANCE SNC","12/07/2016","12/07/2016 - 12/07/2016 ","Recherche scientifique "]
["IGR, Villejuif","Etablissement de santé ","ROCHE SAS","13/07/2016","03/10/2016 - 07/10/2016 ","Autre : Autre : [ Location de stand ] "]
["IGR, Villejuif","Etablissement de santé ","ASTRAZENECA","14/07/2016","01/08/2016 - ","Recherche scientifique "]
["IGR, Villejuif","Académies, Fondation, sociétés savantes, organismes de conseils ","ETHICON","21/07/2016","31/07/2016 - 31/12/2016 ","Autre : Conseil "]
["IGR, Villejuif","Etablissement de santé ","NOVARTIS PHARMA SAS","22/07/2016","22/07/2016 - 31/08/2016 ","Contrat d'expert scientifique, contrat dans le cadre d'une recherche, contrat de consultant "]
["IGR, Villejuif","Etablissement de santé ","MSD France","29/07/2016","29/07/2016 - ","Autre : PRESTATION SERVICE "]
["IGR, Villejuif","Etablissement de santé ","ASTRAZENECA","04/08/2016","04/08/2016 - ","Recherche scientifique "]
["IGR, Villejuif","Etablissement de santé ","BRISTOL-MYERS SQUIBB","11/08/2016","11/08/2016 - ","Autre : Autre : [Recherche/Développement] "]
["IGR, Villejuif","Etablissement de santé ","NOVARTIS PHARMA SAS","25/08/2016","25/08/2016 - 30/06/2021 ","Autre : Autre : [Contrat de recherche] "]
["IGR, Villejuif","Etablissement de santé ","MSD France","25/08/2016","25/08/2016 - ","Autre : RECHERCHE BIOMÉDICALE "]
["IGR, Villejuif","Etablissement de santé ","ROCHE SAS","01/09/2016","01/10/2016 - 01/10/2017 ","Autre : Autre : [ Partenariat ] "]
["IGR, Villejuif","Personnes morales assurant la formation initiale ou continue des professionnels de santé ","EISAI SAS","01/09/2016","15/09/2016 - 15/09/2016 ","Autre : AUTRE / STAND"]
["IGR, Villejuif","Editeur de logiciel ","JANSSEN-CILAG","11/09/2016","06/11/2016 - 16/11/2016 ","Partenariat ",1200]
["IGR, Villejuif","Etablissement de santé ","MSD France","12/09/2016","12/09/2016 - ","Autre : RECHERCHE BIOMÉDICALE "]
["IGR, Villejuif","Etablissement de santé ","PPD FRANCE SAS","13/09/2016","13/09/2016 - 12/09/2021 ","Recherche scientifique "]
["IGR, Villejuif","Etablissement de santé ","PPD FRANCE SAS","13/09/2016","13/09/2016 - 12/09/2021 ","Recherche scientifique "]
["IGR, Villejuif","Etablissement de santé ","PPD FRANCE SAS","14/09/2016","14/09/2016 - 13/09/2021 ","Recherche scientifique "]
["IGR, Villejuif","Etablissement de santé ","MSD France","19/09/2016","19/09/2016 - 30/12/2019 ","Autre : RECHERCHE BIOMÉDICALE "]
["IGR, Villejuif","Etablissement de santé ","NOVARTIS PHARMA SAS","21/09/2016","21/09/2016 - ","Recherche scientifique "]
["IGR, Villejuif","Etablissement de santé ","Inventivhealthclinical","26/09/2016","26/09/2016 - ","Recherche scientifique "]
["IGR, Villejuif","Association professionnel de santé ","BOEHRINGER INGELHEIM FRANCE","26/09/2016","23/09/2016 - ","Autre : AUTRE : PARTENARIAT "]
["IGR, Villejuif","Etablissement de santé ","NOVARTIS PHARMA SAS","26/09/2016","26/09/2016 - 31/01/2017 ","Contrat d'expert scientifique, contrat dans le cadre d'une recherche, contrat de consultant "]
["IGR, Villejuif","Etablissement de santé ","Inventivhealthclinical","26/09/2016","26/09/2016 - ","Contrat d'expert scientifique, contrat dans le cadre d'une recherche, contrat de consultant "]
["IGR, Villejuif","Etablissement de santé ","BRISTOL-MYERS SQUIBB","28/09/2016","28/09/2016 - ","Autre : Autre : [Recherche/Développement] "]
["IGR, Villejuif","Etablissement de santé ","Lilly France SAS","30/09/2016","01/09/2016 - 30/06/2020 ","Recherche scientifique "]
["IGR, Villejuif","Etablissement de santé ","ROCHE SAS","03/10/2016","04/10/2016 - 07/10/2016 ","Autre : Autre : [ Parrainage ] "]
["IGR, Villejuif","Etablissement de santé ","MSD France","04/10/2016","04/10/2016 - 05/01/2018 ","Autre : RECHERCHE BIOMÉDICALE "]
["IGR, Villejuif","Etablissement de santé ","BRISTOL-MYERS SQUIBB","04/10/2016","04/10/2016 - ","Autre : Autre : [Recherche/Développement] "]
["IGR, Villejuif","Etablissement de santé ","ASTRAZENECA","05/10/2016","05/12/2016 - ","Formation "]
["IGR, Villejuif","Etablissement de santé ","ASTRAZENECA","05/10/2016","05/12/2016 - ","Formation "]
["IGR, Villejuif","Etablissement de santé ","ASTRAZENECA","05/10/2016","05/12/2016 - ","Formation "]
["IGR, Villejuif","Etablissement de santé ","Bayer HealthCare SAS","06/10/2016","01/06/2016 - 31/12/2016 ","Partenariat"]
["IGR, Villejuif","Etablissement de santé ","QUINTILES BENEFIT FRANCE SNC","06/10/2016","06/10/2016 - 06/10/2016 ","Recherche scientifique "]
["IGR, Villejuif","Etablissement de santé ","PRA","11/10/2016","11/10/2016 - ","Recherche scientifique "]
["IGR, Villejuif","Etablissement de santé ","BRISTOL-MYERS SQUIBB","11/10/2016","11/10/2016 - ","Autre : Autre : [Recherche/Développement] "]
["IGR, Villejuif","Editeur de logiciel ","JANSSEN-CILAG","12/10/2016","12/10/2016 - 15/06/2026 ","Recherche scientifique "]
["IGR, Villejuif","Etablissement de santé ","Genzyme","13/10/2016","13/10/2016 - 13/10/2016 ","Autre : Autre : Prestation de service "]
["IGR, Villejuif","Etablissement de santé ","BRISTOL-MYERS SQUIBB","17/10/2016","17/10/2016 - ","Autre : Partenariat / Collaboration scientifique "]
["IGR, Villejuif","Etablissement de santé ","MERCK SERONO","20/10/2016","20/10/2016 - 21/10/2016 ","Autre : CONGRES/SYMPOSIUM "]
["IGR, Villejuif","Etablissement de santé ","Inventivhealthclinical","25/10/2016","25/10/2016 - ","Recherche scientifique "]
["IGR, Villejuif","Etablissement de santé ","Inventivhealthclinical","25/10/2016","25/10/2016 - ","Contrat d'expert scientifique, contrat dans le cadre d'une recherche, contrat de consultant "]
["IGR, Villejuif","Etablissement de santé ","NOVARTIS PHARMA SAS","02/11/2016","02/11/2016 - 31/08/2017 ","Autre : Autre : [Contrat de conseilprestation] "]
["IGR, Villejuif","Etablissement de santé ","PIERRE FABRE MEDICAMENT","02/11/2016","02/11/2016 - ","Partenariat "]
["IGR, Villejuif","Association usager de santé ","NOVARTIS PHARMA SAS","08/11/2016","08/11/2016 - 30/08/2017 ","Autre : Autre : [Contrat de partenariat] "]
["IGR, Villejuif","Académies, Fondation, sociétés savantes, organismes de conseils ","KYOWA KIRIN","09/11/2016","03/03/2017 - 03/03/2017 ","Achat / location d'espaces dans le cadre d'événements scientifiques ",2000]
["IGR, Villejuif","Etablissement de santé ","BRISTOL-MYERS SQUIBB","09/11/2016","09/11/2016 - ","Contrat d'expert scientifique, contrat dans le cadre d'une recherche, contrat de consultant "]
["IGR, Villejuif","Association professionnel de santé ","NOVARTIS PHARMA SAS","10/11/2016","10/11/2016 - 10/11/2016 ","Don / Mécénat "]
["IGR, Villejuif","Etablissement de santé ","ROCHE SAS","14/11/2016","14/11/2016 - 31/12/2016 ","Autre : Autre : [ Partenariat ] "]
["IGR, Villejuif","Etablissement de santé ","BRISTOL-MYERS SQUIBB","16/11/2016","16/11/2016 - ","Autre : Autre : [Recherche/Développement] "]
["IGR, Villejuif","Etablissement de santé ","ICON CLINICAL RESEARCH SARL","16/11/2016","16/11/2016 - ","Autre : Recherche biomédicale "]
["IGR, Villejuif","Etablissement de santé ","ASTRAZENECA","22/11/2016","22/11/2016 - ","Recherche scientifique"]
["IGR, Villejuif","Etablissement de santé ","BRISTOL-MYERS SQUIBB","23/11/2016","30/11/2016 - ","Autre : Consultant "]
["IGR, Villejuif","Etablissement de santé ","AMGEN SAS","23/11/2016","23/11/2016 - 04/02/2017 ","Autre : AUTRE [CONVENTION DE PARTENARIAT] "]
["IGR, Villejuif","Etablissement de santé ","NOVARTIS PHARMA SAS","24/11/2016","24/11/2016 - 15/11/2019 ","Recherche scientifique "]
["IGR, Villejuif","Etablissement de santé ","ROCHE SAS","24/11/2016","17/10/2016 - ","Recherche scientifique "]
["IGR, Villejuif","Etablissement de santé ","NOVARTIS PHARMA SAS","24/11/2016","24/11/2016 - 15/11/2019 ","Recherche scientifique "]
["IGR, Villejuif","Etablissement de santé ","Lilly France SAS","26/11/2016","26/11/2016 - ","Recherche scientifique ",182104]
["IGR, Villejuif","Etablissement de santé ","SANOFI-AVENTIS RECHERCHE & DEVELOPPEMENT","01/12/2016","01/11/2016 - 31/12/2019 ","Recherche scientifique "]
["IGR, Villejuif","Association usager de santé ","NOVARTIS PHARMA SAS","06/12/2016","06/12/2016 - 31/10/2017 ","Autre : Autre : [Contrat de partenariat] "]
["IGR, Villejuif","Etablissement de santé ","Inventivhealthclinical","07/12/2016","07/12/2016 - ","Recherche scientifique "]
["IGR, Villejuif","Etablissement de santé ","Inventivhealthclinical","07/12/2016","07/12/2016 - ","Contrat d'expert scientifique, contrat dans le cadre d'une recherche, contrat de consultant "]
["IGR, Villejuif","Etablissement de santé ","SANOFI-AVENTIS RECHERCHE & DEVELOPPEMENT","09/12/2016","09/12/2016 - 09/12/2016 ","Recherche scientifique "]
["IGR, Villejuif","Etablissement de santé ","ASTRAZENECA","13/12/2016","15/12/2016 - ","Autre : Conseil "]
["IGR, Villejuif","Etablissement de santé ","Genzyme","15/12/2016","15/12/2016 - 15/12/2016 ","Autre : Autre : Prestation de service "]
["IGR, Villejuif","Etablissement de santé ","ASTRAZENECA","17/12/2016","17/12/2016 - ","Achat / location d'espaces dans le cadre d'événements scientifiques "]
["IGR, Villejuif","Etablissement de santé ","NOVARTIS PHARMA SAS","20/12/2016","20/12/2016 - 23/12/2019 ","Recherche scientifique "]
["IGR, Villejuif","Etablissement de santé ","ASTRAZENECA","26/12/2016","18/01/2017 - ","Achat / location d'espaces dans le cadre d'événements scientifiques ",1000]
["IGR, Villejuif","Etablissement de santé ","BRISTOL-MYERS SQUIBB","26/12/2016","26/12/2016 - ","Autre : Recherche/Développement "]
["IGR, Villejuif","Etablissement de santé ","ICON CLINICAL RESEARCH SARL","26/12/2016","26/12/2016 - ","Autre : Recherche biomédicale"]
["IGR, Villejuif","Etablissement de santé ","ROCHE SAS","01/01/2017","14/04/2016 - ","Recherche scientifique "]
["IGR, Villejuif","Etablissement de santé ","ROCHE SAS","01/01/2017","05/02/2016 - ","Recherche scientifique "]
["IGR, Villejuif","Etablissement de santé ","ROCHE SAS","01/01/2017","26/11/2012 - ","Recherche scientifique "]
["IGR, Villejuif","Etablissement de santé ","ROCHE SAS","01/01/2017","03/06/2013 - ","Recherche scientifique "]
["IGR, Villejuif","Etablissement de santé ","ROCHE SAS","01/01/2017","30/10/2015 - ","Recherche scientifique "]
["IGR, Villejuif","Etablissement de santé ","ROCHE SAS","01/01/2017","05/02/2016 - ","Recherche scientifique "]
["IGR, Villejuif","Académies, Fondation, sociétés savantes, organismes de conseils ","Sociétés étrangères du groupe Novartis","01/01/2017","01/01/2017 - 31/12/2017 ","Autres prestations de services ",3036]
["IGR, Villejuif","Etablissement de santé ","BRISTOL-MYERS SQUIBB","02/01/2017","02/01/2017 - ","Autre : Autre : [Recherche/Développement] "]
["IGR, Villejuif","Etablissement de santé ","PFIZER SAS","03/01/2017","12/12/2016 - 14/01/2017 ","Autre : Conseil "]
["IGR, Villejuif","Etablissement de santé ","MSD France","05/01/2017","05/01/2017 - 29/05/2020 ","Autre : RECHERCHE BIOMÉDICALE "]
["IGR, Villejuif","Etablissement de santé ","JANSSEN-CILAG","09/01/2017","17/01/2017 - 28/03/2024 ","Recherche scientifique "]
["IGR, Villejuif","Etablissement de santé ","PFIZER SAS","09/01/2017","12/12/2016 - 14/01/2017 ","Autre : Conseil "]
["IGR, Villejuif","Etablissement de santé ","MSD France","10/01/2017","10/01/2017 - 10/01/2020 ","Autre : RECHERCHE BIOMÉDICALE "]
["IGR, Villejuif","Etablissement de santé ","ROCHE SAS","16/01/2017","02/01/2017 - 31/12/2017 ","Contrat d'expert scientifique, contrat dans le cadre d'une recherche, contrat de consultant "]
["IGR, Villejuif","Etablissement de santé ","Lilly France SAS","16/01/2017","16/01/2017 - 16/01/2017 ","Achat / location d'espaces dans le cadre d'événements scientifiques "]
["IGR, Villejuif","Etablissement de santé ","JANSSEN-CILAG","16/01/2017","17/01/2017 - 31/05/2020 ","Recherche scientifique "]
["IGR, Villejuif","Etablissement de santé ","BRISTOL-MYERS SQUIBB","25/01/2017","25/01/2017 - ","Contrat d'expert scientifique, contrat dans le cadre d'une recherche, contrat de consultant "]
["IGR, Villejuif","Etablissement de santé ","EISAI SAS","26/01/2017","26/01/2017 - ","Partenariat ",5000]
["IGR, Villejuif","Etablissement de santé ","AbbVie","27/01/2017","27/01/2017 - 27/01/2017 ","Don / Mécénat",800]
["IGR, Villejuif","Association professionnel de santé ","Medline International France SAS","30/01/2017","01/01/2017 - 31/12/2017 ","Autre : VISITE USINE "]
["IGR, Villejuif","Etablissement de santé ","PFIZER SAS","30/01/2017","30/01/2017 - 31/12/2017 ","Autre : Conseil "]
["IGR, Villejuif","Etablissement de santé ","PRA","31/01/2017","31/01/2017 - ","Recherche scientifique "]
["IGR, Villejuif","Etablissement de santé ","Bayer HealthCare SAS","31/01/2017","09/02/2017 - 31/12/2018 ","Contrat d'expert scientifique, contrat dans le cadre d'une recherche, contrat de consultant "]
["IGR, Villejuif","Etablissement de santé ","ICON CLINICAL RESEARCH SARL","01/02/2017","01/02/2017 - ","Autre : Recherche biomédicale "]
["IGR, Villejuif","Etablissement de santé ","NOVARTIS PHARMA SAS","01/02/2017","01/02/2017 - 10/02/2020 ","Recherche scientifique "]
["IGR, Villejuif","Etablissement de santé ","ASTRAZENECA","02/02/2017","18/05/2017 - ","Contrat d'intervenant à une manifestation / orateur ",1000]
["IGR, Villejuif","Etablissement de santé ","BRISTOL-MYERS SQUIBB","06/02/2017","06/02/2017 - ","Contrat d'expert scientifique, contrat dans le cadre d'une recherche, contrat de consultant "]
["IGR, Villejuif","Etablissement de santé ","AMGEN SAS","06/02/2017","06/02/2017 - 30/03/2017 ","Partenariat "]
["IGR, Villejuif","Etablissement de santé ","Bayer HealthCare SAS","07/02/2017","16/01/2017 - 16/01/2017 ","Achat / location d'espaces dans le cadre d'événements scientifiques ",1000]
["IGR, Villejuif","Etablissement de santé ","ROCHE SAS","09/02/2017","15/01/2017 - 31/12/2017 ","Don / Mécénat ",36572]
["IGR, Villejuif","Etablissement de santé ","AbbVie","09/02/2017","09/02/2017 - ","Recherche scientifique "]
["IGR, Villejuif","Etablissement de santé ","Lilly France SAS","16/02/2017","16/02/2017 - ","Recherche scientifique ",682126]
["IGR, Villejuif","Etablissement de santé ","PFIZER SAS","20/02/2017","15/03/2017 - 17/03/2017 ","Autre : Congrès/Symposium "]
["IGR, Villejuif","Etablissement de santé ","CIS BIO INTERNATIONAL","21/02/2017","01/02/2017 - 31/01/2018 ","Recherche scientifique "]
["IGR, Villejuif","Etablissement de santé ","Bayer HealthCare SAS","21/02/2017","01/03/2017 - ","Contrat d'expert scientifique, contrat dans le cadre d'une recherche, contrat de consultant "]
["IGR, Villejuif","Etablissement de santé ","MEDTRONIC France S.A.S","22/02/2017","30/03/2017 - 31/03/2017 ","Autre : ENGAGEMENT UNILATERAL "]
["IGR, Villejuif","Association professionnel de santé ","EISAI SAS","27/02/2017","17/03/2017 - 17/03/2017 ","Achat / location d'espaces dans le cadre d'événements scientifiques ",3600]
["IGR, Villejuif","Etablissement de santé ","GE Medical Systems SCS","28/02/2017","24/08/2015 - 24/04/2017 ","Recherche scientifique ",12410]
["IGR, Villejuif","Etablissement de santé ","INC RESEARCH, LLC","01/03/2017","01/03/2017 - ","Recherche scientifique"]
["IGR, Villejuif","Etablissement de santé ","OLYMPUS France SAS","03/03/2017","03/03/2017 - 03/03/2017 ","Achat / location d'espaces dans le cadre d'événements scientifiques ",2000]
["IGR, Villejuif","Etablissement de santé ","EISAI SAS","08/03/2017","08/03/2017 - ","Partenariat ",30000]
["IGR, Villejuif","Etablissement de santé ","SANOFI AVENTIS FRANCE","09/03/2017","09/03/2017 - 09/03/2017 ","Autres prestations de services "]
["IGR, Villejuif","Etablissement de santé ","Accuray Europe","10/03/2017","09/03/2017 - ","Contrat d'expert scientifique, contrat dans le cadre d'une recherche, contrat de consultant "]
["IGR, Villejuif","Etablissement de santé ","OLYMPUS France SAS","14/03/2017","03/03/2017 - 03/03/2017 ","Achat / location d'espaces dans le cadre d'événements scientifiques ",2000]
["IGR, Villejuif","Etablissement de santé ","Bayer HealthCare SAS","17/03/2017","17/03/2017 - 20/01/2019 ","Contrat d'expert scientifique, contrat dans le cadre d'une recherche, contrat de consultant "]
["IGR, Villejuif","Etablissement de santé ","Taiho Oncology","17/03/2017","17/03/2017 - ","Recherche scientifique "]
["IGR, Villejuif","Etablissement de santé ","Taiho Oncology","17/03/2017","17/03/2017 - ","Recherche scientifique "]
["IGR, Villejuif","Etablissement de santé ","Taiho Oncology","17/03/2017","17/03/2017 - ","Recherche scientifique "]
["IGR, Villejuif","Etablissement de santé ","Taiho Oncology","17/03/2017","17/03/2017 - ","Recherche scientifique "]
["IGR, Villejuif","Etablissement de santé ","Taiho Oncology","17/03/2017","17/03/2017 - ","Recherche scientifique "]
["IGR, Villejuif","Etablissement de santé ","Taiho Oncology","17/03/2017","17/03/2017 - ","Recherche scientifique "]
["IGR, Villejuif","Académies, Fondation, sociétés savantes, organismes de conseils ","ASTRAZENECA","24/03/2017","24/03/2017 - ","Achat / location d'espaces dans le cadre d'événements scientifiques ",5000]
["IGR, Villejuif","Etablissement de santé ","PIERRE FABRE MEDICAMENT","30/03/2017","30/03/2017 - ","Recherche scientifique "]
["IGR, Villejuif","Etablissement de santé ","BRISTOL-MYERS SQUIBB","30/03/2017","30/03/2017 - ","Contrat d'expert scientifique, contrat dans le cadre d'une recherche, contrat de consultant ",566468]
["IGR, Villejuif","Etablissement de santé ","ICON CLINICAL RESEARCH SARL","03/04/2017","03/04/2017 - ","Recherche scientifique "]
["IGR, Villejuif","Académies, Fondation, sociétés savantes, organismes de conseils ","ASTRAZENECA","05/04/2017","10/04/2017 - ","Contrat d'expert scientifique, contrat dans le cadre d'une recherche, contrat de consultant ",1000]
["IGR, Villejuif","Etablissement de santé ","IPSEN PHARMA","10/04/2017","13/12/2017 - ","Recherche scientifique "]
["IGR, Villejuif","Etablissement de santé ","IPSEN PHARMA","10/04/2017","21/11/2017 - ","Recherche scientifique "]
["IGR, Villejuif","Etablissement de santé ","ASTRAZENECA","17/04/2017","15/06/2017 - ","Contrat d'intervenant à une manifestation / orateur ",1800]
["IGR, Villejuif","Etablissement de santé ","ASTRAZENECA","17/04/2017","15/06/2017 - ","Contrat d'intervenant à une manifestation / orateur ",600]
["IGR, Villejuif","Etablissement de santé ","PHARMA MAR S.A.R.L.","17/04/2017","01/04/2017 - 31/03/2018 ","Partenariat ",2000]
["IGR, Villejuif","Etablissement de santé ","BOEHRINGER INGELHEIM FRANCE","18/04/2017","18/04/2017 - ","Contrat d'expert scientifique, contrat dans le cadre d'une recherche, contrat de consultant "]
["IGR, Villejuif","Etablissement de santé ","Bayer HealthCare SAS","18/04/2017","21/06/2017 - 21/06/2017 ","Achat / location d'espaces dans le cadre d'événements scientifiques ",1000]
["IGR, Villejuif","Etablissement de santé ","PPD FRANCE SAS","21/04/2017","21/04/2017 - 20/04/2022 ","Recherche scientifique "]
["IGR, Villejuif","Association professionnel de santé ","BRISTOL-MYERS SQUIBB","26/04/2017","12/05/2017 - ","Achat / location d'espaces dans le cadre d'événements scientifiques ",2000]
["IGR, Villejuif","Etablissement de santé ","ROCHE SAS","27/04/2017","09/12/2016 - 10/12/2016 ","Contrat d'intervenant à une manifestation / orateur ",1200]
["IGR, Villejuif","Académies, Fondation, sociétés savantes, organismes de conseils ","ASTRAZENECA","28/04/2017","09/05/2017 - ","Partenariat ",5000]
["IGR, Villejuif","Etablissement de santé ","Bayer HealthCare SAS","28/04/2017","28/04/2017 - ","Contrat d'expert scientifique, contrat dans le cadre d'une recherche, contrat de consultant "]
["IGR, Villejuif","Etablissement de santé ","Genzyme","04/05/2017","04/05/2017 - 04/05/2017 ","Autres prestations de services "]
["IGR, Villejuif","Association professionnel de santé ","BRISTOL-MYERS SQUIBB","09/05/2017","09/05/2017 - ","Achat / location d'espaces dans le cadre d'événements scientifiques ",5000]
["IGR, Villejuif","Etablissement de santé ","NOVARTIS PHARMA SAS","10/05/2017","10/05/2017 - 23/05/2020 ","Recherche scientifique "]
["IGR, Villejuif","Etablissement de santé ","MSD France","11/05/2017","11/05/2017 - 31/05/2019 ","Recherche scientifique "]
["IGR, Villejuif","Etablissement de santé ","ASTRAZENECA","11/05/2017","11/05/2017 - ","Recherche scientifique ",103467]
["IGR, Villejuif","Etablissement de santé ","NOVARTIS PHARMA SAS","12/05/2017","12/05/2017 - 12/05/2017 ","Autres prestations de services ",3000]
["IGR, Villejuif","Etablissement de santé ","Takeda France","12/05/2017","12/05/2017 - 12/05/2017 ","Achat / location d'espaces dans le cadre d'événements scientifiques ",2500]
["IGR, Villejuif","Etablissement de santé ","AMGEN SAS","12/05/2017","12/05/2017 - 27/05/2017 ","Partenariat "]
["IGR, Villejuif","Etablissement de santé ","BRISTOL-MYERS SQUIBB","15/05/2017","15/05/2017 - ","Contrat d'expert scientifique, contrat dans le cadre d'une recherche, contrat de consultant "]
["IGR, Villejuif","Etablissement de santé ","ROCHE SAS","16/05/2017","26/06/2017 - 25/06/2018 ","Contrat d'expert scientifique, contrat dans le cadre d'une recherche, contrat de consultant "]
["IGR, Villejuif","Etablissement de santé ","NOVARTIS PHARMA SAS","17/05/2017","09/05/2017 - 28/02/2022 ","Partenariat "]
["IGR, Villejuif","Etablissement de santé ","NOVARTIS PHARMA SAS","18/05/2017","18/05/2017 - 18/05/2017 ","Contrat d'intervenant à une manifestation / orateur ",600]
["IGR, Villejuif","Etablissement de santé ","BRISTOL-MYERS SQUIBB","20/05/2017","04/06/2017 - ","Autre : Consultant ",4226]
["IGR, Villejuif","Etablissement de santé ","MSD France","24/05/2017","24/05/2017 - 30/05/2022 ","Recherche scientifique "]
["IGR, Villejuif","Etablissement de santé ","ASTRAZENECA","24/05/2017","24/05/2017 - ","Partenariat ",6500]
["IGR, Villejuif","Etablissement de santé ","SANOFI-AVENTIS RECHERCHE & DEVELOPPEMENT","24/05/2017","24/05/2017 - 23/11/2018 ","Recherche scientifique "]
["IGR, Villejuif","Etablissement de santé ","BRISTOL-MYERS SQUIBB","24/05/2017","24/05/2017 - ","Contrat d'expert scientifique, contrat dans le cadre d'une recherche, contrat de consultant "]
["IGR, Villejuif","Etablissement de santé ","AMGEN SAS","31/05/2017","31/05/2017 - 08/07/2017 ","Partenariat ",500]
["IGR, Villejuif","Etablissement de santé ","ASTRAZENECA","01/06/2017","27/05/2017 - ","Contrat / expertise autre que scientifique ",2350]
["IGR, Villejuif","Etablissement de santé ","ASTRAZENECA","01/06/2017","01/06/2017 - ","Achat / location d'espaces dans le cadre d'événements scientifiques ",500]
["IGR, Villejuif","Etablissement de santé ","ROCHE SAS","07/06/2017","28/06/2017 - 28/06/2017 ","Achat / location d'espaces dans le cadre d'événements scientifiques "]
["IGR, Villejuif","Etablissement de santé ","NOVARTIS PHARMA SAS","09/06/2017","09/06/2017 - 15/03/2022 ","Recherche scientifique "]
["IGR, Villejuif","Etablissement de santé ","PIERRE FABRE MEDICAMENT","13/06/2017","13/06/2017 - ","Partenariat "]
["IGR, Villejuif","Etablissement de santé ","NOVARTIS PHARMA SAS","14/06/2017","14/06/2017 - 04/06/2020 ","Recherche scientifique "]
["IGR, Villejuif","Etablissement de santé ","NOVARTIS PHARMA SAS","15/06/2017","15/06/2017 - 15/06/2017 ","Contrat d'intervenant à une manifestation / orateur "]
["IGR, Villejuif","Etablissement de santé ","NOVARTIS PHARMA SAS","15/06/2017","15/06/2017 - 15/06/2017 ","Contrat d'intervenant à une manifestation / orateur "]
["IGR, Villejuif","Etablissement de santé ","QUINTILES BENEFIT FRANCE SNC","16/06/2017","16/06/2017 - 16/06/2017 ","Recherche scientifique "]
["IGR, Villejuif","Etablissement de santé ","MERCK SERONO","21/06/2017","21/06/2017 - ","Achat / location d'espaces dans le cadre d'événements scientifiques"]
["IGR, Villejuif","Etablissement de santé ","Lilly France SAS","21/06/2017","21/06/2017 - 21/06/2017 ","Achat / location d'espaces dans le cadre d'événements scientifiques "]
["IGR, Villejuif","Association professionnel de santé ","NOVARTIS PHARMA SAS","21/06/2017","21/06/2017 - 21/06/2017 ","Autres prestations de services ",1000]
["IGR, Villejuif","Etablissement de santé ","PFIZER SAS","21/06/2017","21/06/2017 - 21/06/2017 ","Achat / location d'espaces dans le cadre d'événements scientifiques "]
["IGR, Villejuif","Etablissement de santé ","BOEHRINGER INGELHEIM FRANCE","21/06/2017","21/06/2017 - ","Achat / location d'espaces dans le cadre d'événements scientifiques ",800]
["IGR, Villejuif","Etablissement de santé ","NOVARTIS PHARMA SAS","28/06/2017","28/06/2017 - 28/06/2017 ","Contrat d'intervenant à une manifestation / orateur "]
["IGR, Villejuif","Etablissement de santé ","QUINTILES BENEFIT FRANCE SNC","29/06/2017","29/06/2017 - 29/06/2017 ","Recherche scientifique "]
["IGR, Villejuif","Etablissement de santé ","ICON CLINICAL RESEARCH SARL","03/07/2017","03/07/2017 - ","Recherche scientifique "]
["IGR, Villejuif","Etablissement de santé ","SANOFI-AVENTIS GROUPE","04/07/2017","08/07/2017 - 08/07/2017 ","Contrat d'expert scientifique, contrat dans le cadre d'une recherche, contrat de consultant "]
["IGR, Villejuif","Etablissement de santé ","AbbVie","05/07/2017","05/07/2017 - ","Recherche scientifique "]
["IGR, Villejuif","Etablissement de santé ","ROCHE SAS","12/07/2017","12/07/2017 - 30/12/2018 ","Partenariat "]
["IGR, Villejuif","Etablissement de santé ","NOVARTIS PHARMA SAS","17/07/2017","17/07/2017 - 21/06/2021 ","Recherche scientifique "]
["IGR, Villejuif","Etablissement de santé ","SANOFI-AVENTIS RECHERCHE & DEVELOPPEMENT","24/07/2017","02/05/2017 - 01/09/2017 ","Autre : Autre "]
["IGR, Villejuif","Etablissement de santé ","AMGEN SAS","24/07/2017","31/08/2017 - 31/08/2017 ","Partenariat "]
["IGR, Villejuif","Etablissement de santé ","SANOFI-AVENTIS RECHERCHE & DEVELOPPEMENT","25/07/2017","01/06/2017 - 31/12/2017 ","Recherche scientifique "]
["IGR, Villejuif","Etablissement de santé ","QUINTILES BENEFIT FRANCE SNC","25/07/2017","25/07/2017 - 25/07/2017 ","Recherche scientifique "]
["IGR, Villejuif","Etablissement de santé ","QUINTILES BENEFIT FRANCE SNC","28/07/2017","28/07/2017 - 28/07/2017 ","Recherche scientifique "]
["IGR, Villejuif","Etablissement de santé ","AbbVie","04/08/2017","04/08/2017 - ","Recherche scientifique "]
["IGR, Villejuif","Académies, Fondation, sociétés savantes, organismes de conseils ","NOVARTIS PHARMA SAS","08/08/2017","31/07/2017 - 31/12/2018 ","Partenariat "]
["IGR, Villejuif","Etablissement de santé ","PPD FRANCE SAS","10/08/2017","10/08/2017 - 19/03/2022 ","Recherche scientifique"]
["IGR, Villejuif","Etablissement de santé ","BRISTOL-MYERS SQUIBB","16/08/2017","30/06/2017 - 31/10/2019 ","Recherche scientifique ",97622]
["IGR, Villejuif","Etablissement de santé ","BRISTOL-MYERS SQUIBB","20/08/2017","21/12/2016 - 31/12/2022 ","Recherche scientifique ",260777]
["IGR, Villejuif","Etablissement de santé ","BRISTOL-MYERS SQUIBB","20/08/2017","21/08/2017 - 31/12/2020 ","Recherche scientifique ",1538]
["IGR, Villejuif","Etablissement de santé ","QUINTILES BENEFIT FRANCE SNC","28/08/2017","28/08/2017 - 28/08/2017 ","Recherche scientifique "]
["IGR, Villejuif","Etablissement de santé ","AbbVie","29/08/2017","29/08/2017 - ","Recherche scientifique ",1800]
["IGR, Villejuif","Etablissement de santé ","AbbVie","29/08/2017","29/08/2017 - ","Recherche scientifique ",4800]
["IGR, Villejuif","Etablissement de santé ","BRISTOL-MYERS SQUIBB","31/08/2017","01/09/2017 - 29/12/2019 ","Recherche scientifique ",218535]
["IGR, Villejuif","Etablissement de santé ","BRISTOL-MYERS SQUIBB","31/08/2017","01/09/2017 - 08/01/2027 ","Recherche scientifique ",5500]
["IGR, Villejuif","Académies, Fondation, sociétés savantes, organismes de conseils ","NOVARTIS PHARMA SAS","01/09/2017","01/09/2017 - 01/09/2018 ","Contrat d'expert scientifique, contrat dans le cadre d'une recherche, contrat de consultant ",12000]
["IGR, Villejuif","Académies, Fondation, sociétés savantes, organismes de conseils ","NOVARTIS PHARMA SAS","01/09/2017","01/09/2017 - 31/12/2017 ","Partenariat "]
["IGR, Villejuif","Etablissement de santé ","ASTRAZENECA","01/09/2017","15/11/2017 - ","Contrat d'intervenant à une manifestation / orateur ",1600]
["IGR, Villejuif","Etablissement de santé ","ROCHE SAS","11/09/2017","25/09/2017 - 25/09/2017 ","Achat / location d'espaces dans le cadre d'événements scientifiques "]
["IGR, Villejuif","Etablissement de santé ","ROCHE SAS","12/09/2017","12/05/2017 - 12/05/2017 ","Don / Mécénat "]
["IGR, Villejuif","Etablissement de santé ","Rhythm Pharmaceuticals, Inc.","13/09/2017","13/09/2017 - 31/12/2018 ","Recherche scientifique ",4257]
["IGR, Villejuif","Etablissement de santé ","BRISTOL-MYERS SQUIBB COMPANY","15/09/2017","22/09/2017 - 22/09/2018 ","Autres prestations de services ",2000]
["IGR, Villejuif","Etablissement de santé ","BRISTOL-MYERS SQUIBB","18/09/2017","20/09/2017 - 27/02/2023 ","Recherche scientifique ",147866]
["IGR, Villejuif","Etablissement de santé ","Orion Corporation Orion Pharma","18/09/2017","18/09/2017 - ","Recherche scientifique",295864]
["IGR, Villejuif","Etablissement de santé ","BRISTOL-MYERS SQUIBB","20/09/2017","25/09/2017 - 24/09/2018 ","Contrat d'expert scientifique, contrat dans le cadre d'une recherche, contrat de consultant ",10656]
["IGR, Villejuif","Etablissement de santé ","JAZZ PHARMACEUTICALS FRANCE","21/09/2017","21/09/2017 - ","Recherche scientifique "]
["IGR, Villejuif","Etablissement de santé ","JAZZ PHARMACEUTICALS FRANCE","21/09/2017","21/09/2017 - ","Recherche scientifique "]
["IGR, Villejuif","Etablissement de santé ","BRISTOL-MYERS SQUIBB COMPANY","22/09/2017","22/09/2017 - 22/09/2018 ","Recherche scientifique ",328804]
["IGR, Villejuif","Etablissement de santé ","Bayer HealthCare SAS","22/09/2017","01/07/2017 - 31/12/2017 ","Partenariat "]
["IGR, Villejuif","Etablissement de santé ","CELGENE SAS","25/09/2017","25/09/2017 - 31/12/2018 ","Contrat d'expert scientifique, contrat dans le cadre d'une recherche, contrat de consultant ",150000]
["IGR, Villejuif","Etablissement de santé ","INC RESEARCH, LLC","28/09/2017","28/09/2017 - ","Recherche scientifique "]
["IGR, Villejuif","Etablissement de santé ","Takeda France","29/09/2017","29/09/2017 - 30/09/2018 ","Don / Mécénat "]
["IGR, Villejuif","Etablissement de santé ","AbbVie","29/09/2017","29/09/2017 - ","Recherche scientifique ",1800]
["IGR, Villejuif","Etablissement de santé ","ROCHE SAS","03/10/2017","16/08/2017 - 30/09/2018 ","Parrainage ",1800]
["IGR, Villejuif","Etablissement de santé ","ROCHE DIAGNOSTICS FRANCE","04/10/2017","02/10/2017 - 30/09/2018 ","Contrat d'expert scientifique, contrat dans le cadre d'une recherche, contrat de consultant ",100308]
["IGR, Villejuif","Etablissement de santé ","ROCHE SAS","05/10/2017","01/02/2018 - 31/12/2019 ","Contrat d'expert scientifique, contrat dans le cadre d'une recherche, contrat de consultant "]
["IGR, Villejuif","Etablissement de santé ","ASTRAZENECA","05/10/2017","14/11/2017 - ","Contrat d'intervenant à une manifestation / orateur ",800]
["IGR, Villejuif","Etablissement de santé ","ASTRAZENECA","05/10/2017","14/11/2017 - ","Contrat d'intervenant à une manifestation / orateur ",800]
["IGR, Villejuif","Etablissement de santé ","Medline International France SAS","05/10/2017","01/01/2017 - 31/12/2017 ","Autre : VISITE USINE "]
["IGR, Villejuif","Etablissement de santé ","Medline International France SAS","05/10/2017","01/01/2017 - 31/12/2017 ","Autre : VISITE USINE "]
["IGR, Villejuif","Etablissement de santé ","Bayer HealthCare SAS","06/10/2017","06/10/2017 - 06/10/2020 ","Recherche scientifique ",187095]
["IGR, Villejuif","Etablissement de santé ","JANSSEN-CILAG","11/10/2017","20/11/2017 - 21/11/2017 ","Partenariat "]
["IGR, Villejuif","Etablissement de santé ","BRISTOL-MYERS SQUIBB","11/10/2017","12/10/2017 - 31/12/2023 ","Recherche scientifique",653522]
["IGR, Villejuif","Etablissement de santé ","EUSA Pharma (France) SAS","12/10/2017","12/10/2017 - ","Don / Mécénat ",2000]
["IGR, Villejuif","Etablissement de santé ","INC RESEARCH, LLC","16/10/2017","16/10/2017 - ","Recherche scientifique "]
["IGR, Villejuif","Etablissement de santé ","FRESENIUS KABI FRANCE","17/10/2017","01/02/2017 - 01/02/2018 ","Autres prestations de services "]
["IGR, Villejuif","Etablissement de santé ","BRISTOL-MYERS SQUIBB","18/10/2017","28/08/2017 - 27/08/2021 ","Contrat d'expert scientifique, contrat dans le cadre d'une recherche, contrat de consultant ",7110]
["IGR, Villejuif","Etablissement de santé ","BRISTOL-MYERS SQUIBB COMPANY","19/10/2017","22/09/2017 - 22/09/2018 ","Recherche scientifique ",326605]
["IGR, Villejuif","Etablissement de santé ","SANOFI-AVENTIS RECHERCHE & DEVELOPPEMENT","23/10/2017","01/12/2016 - 31/01/2018 ","Recherche scientifique "]
["IGR, Villejuif","Etablissement de santé ","BOEHRINGER INGELHEIM FRANCE","24/10/2017","24/10/2017 - ","Contrat d'expert scientifique, contrat dans le cadre d'une recherche, contrat de consultant "]
["IGR, Villejuif","Association professionnel de santé ","Inventivhealthclinical","30/10/2017","30/10/2017 - ","Recherche scientifique "]
["IGR, Villejuif","Etablissement de santé ","Takeda France","02/11/2017","20/10/2017 - 02/11/2018 ","Don / Mécénat ",25200]
["IGR, Villejuif","Etablissement de santé ","BRISTOL-MYERS SQUIBB","14/11/2017","21/10/2017 - 31/12/2017 ","Contrat d'expert scientifique, contrat dans le cadre d'une recherche, contrat de consultant ",875]
["IGR, Villejuif","Etablissement de santé ","BRISTOL-MYERS SQUIBB","20/11/2017","04/10/2016 - 15/02/2021 ","Recherche scientifique ",224536]
["IGR, Villejuif","Etablissement de santé ","SANOFI-AVENTIS RECHERCHE & DEVELOPPEMENT","21/11/2017","21/11/2017 - 31/12/2019 ","Recherche scientifique "]
["IGR, Villejuif","Etablissement de santé ","BRISTOL-MYERS SQUIBB","23/11/2017","24/11/2017 - 31/03/2018 ","Recherche scientifique ",990649]
["IGR, Villejuif","Etablissement de santé ","PPD FRANCE SAS","27/11/2017","27/11/2017 - 26/11/2022 ","Recherche scientifique "]
["IGR, Villejuif","Etablissement de santé ","ASTRAZENECA","27/11/2017","01/12/2017 - ","Contrat d'expert scientifique, contrat dans le cadre d'une recherche, contrat de consultant ",800]
["IGR, Villejuif","Etablissement de santé ","Inventivhealthclinical","27/11/2017","27/11/2017 - ","Recherche scientifique "]
["IGR, Villejuif","Etablissement de santé ","Bayer HealthCare SAS","28/11/2017","28/11/2017 - 31/12/2022 ","Recherche scientifique ",1909691]
["IGR, Villejuif","Etablissement de santé ","Takeda France","28/11/2017","28/11/2017 - 30/09/2018 ","Don / Mécénat"]
["IGR, Villejuif","Etablissement de santé ","Bayer HealthCare SAS","28/11/2017","28/11/2017 - 31/12/2022 ","Recherche scientifique "]
["IGR, Villejuif","Etablissement de santé ","ROCHE SAS","01/12/2017","01/11/2017 - 01/11/2018 ","Parrainage "]
["IGR, Villejuif","Etablissement de santé ","QUINTILES BENEFIT FRANCE SNC","01/12/2017","01/12/2017 - 01/12/2017 ","Recherche scientifique "]
["IGR, Villejuif","Etablissement de santé ","Inventivhealthclinical","04/12/2017","04/12/2017 - ","Recherche scientifique "]
["IGR, Villejuif","Etablissement de santé ","BRISTOL-MYERS SQUIBB","04/12/2017","18/12/2017 - 01/10/2018 ","Contrat d'expert scientifique, contrat dans le cadre d'une recherche, contrat de consultant ",600]
["IGR, Villejuif","Etablissement de santé ","ROCHE SAS","04/12/2017","11/12/2017 - 09/12/2018 ","Contrat d'expert scientifique, contrat dans le cadre d'une recherche, contrat de consultant "]
["IGR, Villejuif","Etablissement de santé ","BRISTOL-MYERS SQUIBB COMPANY","04/12/2017","06/12/2017 - 31/12/2017 ","Contrat d'expert scientifique, contrat dans le cadre d'une recherche, contrat de consultant ",11456]
["IGR, Villejuif","Etablissement de santé ","ASTRAZENECA","04/12/2017","06/12/2017 - ","Contrat d'intervenant à une manifestation / orateur ",1600]
["IGR, Villejuif","Etablissement de santé ","Celgene Corporation","06/12/2017","07/12/2017 - 07/12/2017 ","Recherche scientifique ",1000]
["IGR, Villejuif","Etablissement de santé ","Rhythm Pharmaceuticals, Inc.","12/12/2017","12/12/2017 - 31/03/2019 ","Recherche scientifique ",12771]
["IGR, Villejuif","Association professionnel de santé ","AMGEN SAS","13/12/2017","13/12/2017 - 10/02/2018 ","Partenariat "]
["IGR, Villejuif","Etablissement de santé ","AMGEN SAS","18/12/2017","19/12/2017 - 22/12/2017 ","Contrat d'expert scientifique, contrat dans le cadre d'une recherche, contrat de consultant "]
["IGR, Villejuif","Etablissement de santé ","ASTRAZENECA","18/12/2017","18/12/2017 - ","Contrat d'expert scientifique, contrat dans le cadre d'une recherche, contrat de consultant ",300]
["IGR, Villejuif","Etablissement de santé ","ROCHE SAS","20/12/2017","15/01/2018 - 31/12/2018 ","Don / Mécénat "]
["IGR, Villejuif","Etablissement de santé ","ICON Clinical Research Limited","20/12/2017","19/06/2017 - 19/03/2021 ","Recherche scientifique "]
[null,null,null,null,null,"Total IGR",{"$f":"SUM(G2:G680)","v":10002080}]
[]
[null,null,null,null,null,null,"Montants","Nbre","%Montant","%cumulé"]
[null,null,"BRISTOL-MYERS SQUIBB COMPANY",null,null,null,{"$f":"SUMIF($C$2:$C$680,C684,$G$2:$G$680)","v":668865},{"$f":"COUNTIF($C$2:$C$680,C684)","v":4}]
[null,null,"BRISTOL-MYERS SQUIBB",null,null,null,{"$f":"SUMIF($C$2:$C$680,C685,$G$2:$G$680)","v":3197480},{"$f":"COUNTIF($C$2:$C$680,C685)","v":51}]
[null,null,"Total BMS",null,null,null,{"$f":"SUM(G684:G685)-G694-G695-G702-G703","v":3478143},{"$f":"SUM(H684:H685)","v":55},{"$f":"G686/$G$681","v":0.34774196967030857},{"$f":"I686","v":0.34774196967030857}]
[]
[null,null,"Lilly France SAS",null,null,null,{"$f":"SUMIF($C$2:$C$680,C688,$G$2:$G$680)","v":2470567},{"$f":"COUNTIF($C$2:$C$680,C688)","v":23},{"$f":"G688/$G$681","v":0.2470053228928383},{"$f":"I688+J686","v":0.59474729256314685}]
[]
[null,null,"Bayer HealthCare SAS",null,null,null,{"$f":"SUMIF($C$2:$C$680,C690,$G$2:$G$680)","v":2175951},{"$f":"COUNTIF($C$2:$C$680,C690)","v":28},{"$f":"G690/$G$681","v":0.21754984963127669},{"$f":"I690+J688","v":0.8122971421944235}]
[]
[null,null,"Orion Corporation Orion Pharma",null,null,null,{"$f":"SUMIF($C$2:$C$680,C692,$G$2:$G$680)","v":295864},{"$f":"COUNTIF($C$2:$C$680,C692)","v":4},{"$f":"G692/$G$681","v":2.9580247308559821E-2},{"$f":"I692+J690","v":0.8418773895029833}]
[]
[null,null,"ROCHE SAS",null,null,null,{"$f":"SUMIF($C$2:$C$680,C694,$G$2:$G$680)","v":39572},{"$f":"COUNTIF($C$2:$C$680,C694)","v":61}]
[null,null,"Institut Roche",null,null,null,{"$f":"SUMIF($C$2:$C$680,C695,$G$2:$G$680)","v":250000},{"$f":"COUNTIF($C$2:$C$680,C695)","v":1}]
[null,null,"Total ROCHE",null,null,null,{"$f":"SUM(G694:G695)","v":289572},{"$f":"SUM(H694:H695)","v":62},{"$f":"G696/$G$681","v":2.8951178154943771E-2},{"$f":"I696+J692","v":0.87082856765792704}]
[]
[null,null,"Celgene Corporation",null,null,null,{"$f":"SUMIF($C$2:$C$680,C698,$G$2:$G$680)","v":262728},{"$f":"COUNTIF($C$2:$C$680,C698)","v":2},{"$f":"G698/$G$681","v":2.6267336394030043E-2},{"$f":"I698+J696","v":0.89709590405195705}]
[]
[null,null,"ASTRAZENECA",null,null,null,{"$f":"SUMIF($C$2:$C$680,C700,$G$2:$G$680)","v":134117},{"$f":"COUNTIF($C$2:$C$680,C700)","v":59},{"$f":"G700/$G$681","v":1.3408910946523123E-2},{"$f":"I700+J698","v":0.91050481499848013}]
[]
[null,null,"NOVARTIS PHARMA SAS",null,null,null,{"$f":"SUMIF($C$2:$C$680,C702,$G$2:$G$680)","v":95594},{"$f":"COUNTIF($C$2:$C$680,C702)","v":45}]
[null,null,"Sociétés étrangères du groupe Novartis",null,null,null,{"$f":"SUMIF($C$2:$C$680,C703,$G$2:$G$680)","v":3036},{"$f":"COUNTIF($C$2:$C$680,C703)","v":1}]
[null,null,"Total NOVARTIS",null,null,null,{"$f":"SUM(G702:G703)","v":98630},{"$f":"SUM(H702:H703)","v":46},{"$f":"G704/$G$681","v":9.8609489226240948E-3},{"$f":"I704+J700","v":0.92036576392110425}]
[]
[null,null,"GE Medical Systems SCS",null,null,null,{"$f":"SUMIF($C$2:$C$680,C706,$G$2:$G$680)","v":52970},{"$f":"COUNTIF($C$2:$C$680,C706)","v":11},{"$f":"G706/$G$681","v":5.2958984531217505E-3},{"$f":"I706+J704","v":0.92566166237422598}]
[]
[null,null,"Takeda France",null,null,null,{"$f":"SUMIF($C$2:$C$680,C708,$G$2:$G$680)","v":27700},{"$f":"COUNTIF($C$2:$C$680,C708)","v":9},{"$f":"G708/$G$681","v":2.7694239598163584E-3},{"$f":"I708+J706","v":0.92843108633404237}]
[]
[null,null,"AbbVie",null,null,null,{"$f":"SUMIF($C$2:$C$680,C710,$G$2:$G$680)","v":9200},{"$f":"COUNTIF($C$2:$C$680,C710)","v":13},{"$f":"G710/$G$681","v":9.198086797946027E-4},{"$f":"I710+J708","v":0.92935089501383694}]
[]
[null,null,"JANSSEN-CILAG",null,null,null,{"$f":"SUMIF($C$2:$C$680,C712,$G$2:$G$680)","v":1200},{"$f":"COUNTIF($C$2:$C$680,C712)","v":8},{"$f":"G712/$G$681","v":1.1997504519060036E-4},{"$f":"I712+J710","v":0.92947087005902751}]
[]
[null,null,"AMGEN SAS",null,null,null,{"$f":"SUMIF($C$2:$C$680,C714,$G$2:$G$680)","v":500},{"$f":"COUNTIF($C$2:$C$680,C714)","v":11},{"$f":"G714/$G$681","v":4.9989602162750149E-5},{"$f":"I714+J712","v":0.92952085966119025}]
[]
[null,null,"LABORATOIRE GLAXOSMITHKLINE",null,null,null,{"$f":"SUMIF($C$2:$C$680,C716,$G$2:$G$680)","v":0},{"$f":"COUNTIF($C$2:$C$680,C716)","v":7},{"$f":"G716/$G$681","v":0},{"$f":"I716+J714","v":0.92952085966119025}]
[]
[null,null,"PIERRE FABRE MEDICAMENT",null,null,null,{"$f":"SUMIF($C$2:$C$680,C718,$G$2:$G$680)","v":0},{"$f":"COUNTIF($C$2:$C$680,C718)","v":10},{"$f":"G718/$G$681","v":0},{"$f":"I718+J716","v":0.92952085966119025}]
[]
[null,null,"Genzyme",null,null,null,{"$f":"SUMIF($C$2:$C$680,C720,$G$2:$G$680)","v":0},{"$f":"COUNTIF($C$2:$C$680,C720)","v":12},{"$f":"G720/$G$681","v":0},{"$f":"I720+J718","v":0.92952085966119025}]
[]
[null,null,"PFIZER SAS",null,null,null,{"$f":"SUMIF($C$2:$C$680,C722,$G$2:$G$680)","v":0},{"$f":"COUNTIF($C$2:$C$680,C722)","v":27},{"$f":"G722/$G$681","v":0},{"$f":"I722+J720","v":0.92952085966119025}]
[]
[null,null,"IPSEN PHARMA",null,null,null,{"$f":"SUMIF($C$2:$C$680,C724,$G$2:$G$680)","v":0},{"$f":"COUNTIF($C$2:$C$680,C724)","v":6},{"$f":"G724/$G$681","v":0},{"$f":"I724+J722","v":0.92952085966119025}]
[]
[null,null,"MSD France",null,null,null,{"$f":"SUMIF($C$2:$C$680,C726,$G$2:$G$680)","v":0},{"$f":"COUNTIF($C$2:$C$680,C726)","v":47},{"$f":"G726/$G$681","v":0},{"$f":"I726+J724","v":0.92952085966119025}]
[]
[null,null,"SANOFI-AVENTIS RECHERCHE & DEVELOPPEMENT",null,null,null,{"$f":"SUMIF($C$2:$C$680,C728,$G$2:$G$680)","v":0},{"$f":"COUNTIF($C$2:$C$680,C728)","v":23}]
[null,null,"SANOFI AVENTIS France",null,null,null,{"$f":"SUMIF($C$2:$C$680,C729,$G$2:$G$680)","v":0},{"$f":"COUNTIF($C$2:$C$680,C729)","v":11}]
[null,null,"SANOFI-AVENTIS GROUPE",null,null,null,0,3]
[null,null,"TOTAL SANOFI-AVENTIS",null,null,null,{"$f":"SUM(G728:G730)","v":0},{"$f":"SUM(H728:H730)","v":37},{"$f":"G731/$G$681","v":0},{"$f":"I731+J726","v":0.92952085966119025}]
[]
[null,null,"MERCK SERONO",null,null,null,{"$f":"SUMIF($C$2:$C$680,C733,$G$2:$G$680)","v":0},{"$f":"COUNTIF($C$2:$C$680,C733)","v":11},{"$f":"G733/$G$681","v":0},{"$f":"I733+J731","v":0.92952085966119025}]
[]
[null,null,"CHUGAI PHARMA France",null,null,null,{"$f":"SUMIF($C$2:$C$680,C735,$G$2:$G$680)","v":0},{"$f":"COUNTIF($C$2:$C$680,C735)","v":4}]
[]
[null,null,"PSI CRO France",null,null,null,{"$f":"SUMIF($C$2:$C$680,C737,$G$2:$G$680)","v":0},{"$f":"COUNTIF($C$2:$C$680,C737)","v":2}]
[]
[null,null,"INSTITUT MERIEUX",null,null,null,{"$f":"SUMIF($C$2:$C$680,C739,$G$2:$G$680)","v":0},{"$f":"COUNTIF($C$2:$C$680,C739)","v":2}]
[]
[null,null,"EISAI SAS",null,null,null,{"$f":"SUMIF($C$2:$C$680,C741,$G$2:$G$680)","v":38600},{"$f":"COUNTIF($C$2:$C$680,C741)","v":9}]
[]
[]
[null,null,"Totaux",null,null,null,{"$f":"SUM(G686:G731)-G694-G695-G702-G703","v":9297142},{"$f":"SUM(H686:H731)-H694-H695-H702-H703","v":514},{"$f":"G744/G681","v":0.92952085966119047}]
[]
[]
[]
[null,null,null,null,null,"Nombre total de conventions signées",null,679]
[null,null,null,null,null,"Nombre de conventions rémunérées",null,{"$f":"COUNTIF(G2:G680, \">0\")","v":90}]
[null,null,null,null,null,"% conventions rémunérées",null,{"$f":"H749/H748","v":0.13254786450662739}]

{"sheet":"AVANTAGES","index":2,"n_rows":228,"n_cols":2,"rows_kept":228,"cut":false,"hidden":false,"merged":[]}
["TYPE_AVTG dans Transparence.sante.gouv.fr","TYPE_AVTG (libellé de regroupement)"]
["[Autre] : Participation Evenement Scientifique ","Congrès"]
["[Autre] inscription congrès ","Inscription"]
["[HEBERGEMENT] ","Hébergement"]
["[HOSPITALITE] ","Hospitalité"]
["[REPAS] ","Repas"]
["[TRANSPORT] ","Transport"]
["Acheminement ","Transport"]
["AUTRE ","Autre"]
["Autre : [ Forfait journée d\u0092étude ] ","Autre"]
["Autre : [ Forfait journée d\u0092étude ou forfait congrès ] ","Congrès"]
["Autre : [ Forfait journée étude ] ","Autre"]
["Autre : [ Inscription ] ","Inscription"]
["AUTRE : [ACCOMPAGNEMENT] ","Autre"]
["AUTRE : [CONTRAT DE PARTENARIAT - LOCATION DE STAND] ","Congrès"]
["AUTRE : [DEDOMMAGEMENT] ","Autre"]
["Autre : [DEJEUNER REUNION] ","Repas"]
["AUTRE : [DON EN NATURE] ","Autre"]
["Autre : [don] ","Autre"]
["AUTRE : [DONS] ","Autre"]
["Autre : [ECHANTILLON] ","Autre"]
["Autre : [Forfait] ","Autre"]
["Autre : [Formation] ","Autre"]
["Autre : [FRAIS D'INSCRIPTION] ","Inscription"]
["Autre : [HONORAIRE] ","Autre"]
["Autre : [Honoraires PdS] ","Autre"]
["Autre : [Honoraires] ","Repas"]
["Autre : [Hospitalité Evenement Scientifique] ","Hospitalité"]
["AUTRE : [HOSPITALITE] ","Hospitalité"]
["AUTRE : [INSCRIPTION CONGRÈS SCIENTIFIQUE] ","Inscription"]
["Autre : [Inscription Evenement Scientifique] ","Inscription"]
["Autre : [Inscription] ","Inscription"]
["Autre : [Location de stand] ","Congrès"]
["Autre : [note de frais] ","Autre"]
["Autre : [Notes de frais] ","Autre"]
["AUTRE : [PARTICIPATION EVENEMENT SCIENTIFIQUE] ","Congrès"]
["AUTRE : [PAUSE] ","Autre"]
["Autre : [Remboursement de frais] ","Autre"]
["AUTRE : [REMBOURSEMENT FRAIS LOGISTIQUE] ","Autre"]
["Autre : [Remis Publication scientifique] ","Autre"]
["Autre : [rémunération] ","Repas"]
["Autre : [Restauration] ","Repas"]
["Autre : [stand] ","Congrès"]
["Autre : cheque ","Autre"]
["AUTRE : CONGRES ","Autre"]
["AUTRE : DEJEUNER ","Repas"]
["AUTRE : DEUX PAUSES ","Repas"]
["AUTRE : DINER ","Repas"]
["AUTRE : DON DE MÉDICAMENT ","Autre"]
["autre : enquête internet ","Autre"]
["AUTRE : FORMATION MEDICALE CONTINUE ","Autre"]
["AUTRE : FRAIS DE RESTAURATION / RP ","Repas"]
["Autre : Frais d'inscription Congres ","Inscription"]
["Autre : Frais d'inscription Congrès ","Inscription"]
["AUTRE : HONORAIRE ","Autre"]
["AUTRE : HONORAIRE CONFERENCE TELEPHONIQUE ","Autre"]
["AUTRE : HONORAIRES ","Autre"]
["AUTRE : HONORAIRES CONFERENCE TELEPHONIQUE ","Autre"]
["AUTRE : HONORAIRES ETUDES ","Autre"]
["AUTRE : HONORAIRES REUNION ","Autre"]
["AUTRE : HOSPITALITE CONGRES ","Congrès"]
["AUTRE : HOSPITALITE STAFF ","Hospitalité"]
["Autre : Indemnite ","Autre"]
["Autre : Inscription ","Inscription"]
["AUTRE : RELATIONS NORMALES DE TRAVAIL ","Autre"]
["AUTRE : REMBOURSEMENT DE FRAIS ","Autre"]
["AUTRE : REMUNERATION ","Autre"]
["AUTRE : REPAS PROFESSIONNEL ","Repas"]
["Autre : repas STAFF ","Repas"]
["AUTRE : REUNION ","Autre"]
["AUTRE : RNT ","Autre"]
["AUTRE : STAFF ","Repas"]
["AUTRE : STAND CONGRES ","Congrès"]
["AUTRE [DINER REUNION] ","Repas"]
["AUTRE [DONS] ","Autre"]
["AUTRE [ENQUETE] ","Autre"]
["AUTRE [FRAIS D INSCRIPTION] ","Inscription"]
["AUTRE [INSCRIPTION] ","Inscription"]
["AUTRE [PAUSE] ","Autre"]
["AUTRE [RESTAURATION STAFF] ","Repas"]
["AUTRE: [DON] ","Autre"]
["AUTRE: [DONS] ","Autre"]
["Autre: [Enquête] ","Autre"]
["AUTRE: [HEBERGEMENT ET RESTAURATIONS] ","Hébergement"]
["AUTRE: [INSCRIPTION] ","Inscription"]
["AUTRE: COLLATION ","Repas"]
["AUTRE: COLLATION/COLLATION ","Repas"]
["AUTRE: CONGRES/COCKTAIL ","Repas"]
["AUTRE: CONGRES/INSCRIPTION ","A définir"]
["AUTRE: DEJEUNER ","Repas"]
["AUTRE: DEJEUNER/DINER ","Repas"]
["AUTRE: DEJEUNER/RESTO ITALIEN BON ","Repas"]
["Autre: Don ","Autre"]
["AUTRE: HOSPITALITE ","Hospitalité"]
["AUTRE: INDEMNITE ","Autre"]
["AUTRE: INSCRIPTION ","Inscription"]
["Autre: Phone consult ","Autre"]
["AUTRE: SOIREE ","Hospitalité"]
["AUTRE: SOIREE/SOIREE ","Autre"]
["AUTRE: STAFF ","Repas"]
["AUTRE: VISITE/(2 X GO-ON 25MG) ","Autre"]
["AUTRE: VISITE/(3 X GO-ON 25MG) ","Autre"]
["AUTRE: VISITE/GO-ON 25MG ","Autre"]
["AUTRE:[FRAIS D'INSCRIPTION] ","Inscription"]
["Autre[HONORAIRES] ","Autre"]
["Autre[inscription congrès] ","Congrès"]
["AUTRES ","Autre"]
["AUTRES: INSCRIPTION ","Inscription"]
["CADEAUX ","Autre"]
["COLLATION ","Repas"]
["COLLATION/COLLATION ","Repas"]
["CONGRES/ACHEMINEMENT (AVION) ","Transport"]
["CONGRES/DEJEUNERS / DINERS (4) ","Repas"]
["CONGRES/HEBERGEMENT ","Hébergement"]
["CONGRES/HEBERGEMENT (1 NUITEES) ","Hébergement"]
["CONGRES/HEBERGEMENT (2 NUITEES) ","Hébergement"]
["CONGRES/HEBERGEMENT 3 NUITS ","Hébergement"]
["CONGRES/INSCRIPTION ","Inscription"]
["CONGRES/REPAS 12.06.13 ","Repas"]
["CONGRES/REPAS 13.06.13 ","Repas"]
["CONGRES/REPAS 14.06.13 ","Repas"]
["CONGRES/REPAS X3 ","Repas"]
["conseil ","Conseil"]
["Conseil - Intervention Ponctuelle ","Autre"]
["Dédommagement ","Autre"]
["DEJEUNER ","Repas"]
["déjeuner ","Repas"]
["DEJEUNER/DEJEUNER ","Repas"]
["DEJEUNER/REPAS ","Repas"]
["Déplacement ","Transport"]
["DINER ","Repas"]
["Dîner ","Repas"]
["DOCUMENTATION ","Autre"]
["Don ","Autre"]
["DONS ","Autre"]
["Dons de fonctionnement ","Autre"]
["DONS DE FONCTIONNEMENT (RÉMUNÉRATION LIÉE À DES ACTIVITÉS DE RECHERCHE) ","Autre"]
["DONS DE FONCTIONNEMENT / RECHERCHE ","Autre"]
["DONS DE MATERIEL ","Autre"]
["Dons de matériel ","Autre"]
["Droits d'auteur pris en charge par UCB ","Autre"]
["enquête ","Autre"]
["EPU ","Repas"]
["EPU/DINER ","Repas"]
["EPU/EPU ","Congrès"]
["EPU/REPAS ","Repas"]
["FRAIS DE BOUCHE ","Repas"]
["Frais de dÃƒÂ©placement ","Transport"]
["FRAIS DE DEPLACEMENT ","Transport"]
["FRAIS DE RESTAURATION ","Repas"]
["FRAIS D'HOSPITALITÉ ","Hospitalité"]
["FRAIS D'INSCRIPTION ","Inscription"]
["Frais d'inscription à une réunion scientifique ","Inscription"]
["FRAIS RELATIFS A LA RECHERCHE IMPLIQUANT LA PERSONNE HUMAINE ","Autre"]
["Frais remboursés (transport) ","Transport"]
["H‚bergement ","Hébergement"]
["HÃ©bergement ","Hébergement"]
["HÃ‰BERGEMENT ","Hébergement"]
["HÃƒÂ©bergement ","Hébergement"]
["HE\u0090BERGEMENT ","Hospitalité"]
["HEBERGEMENT ","Hébergement"]
["Hébergement ","Hébergement"]
["Hébérgement ","Hébergement"]
["HEBERGEMENT SUR TOUTE LA DUREE DU CONGRES ","Hébergement"]
["Hébergement, restauration, transport ","Hospitalité"]
["Honoraire + hospitalité ","Hospitalité"]
["HONORAIRE HCP ","Autre"]
["HONORAIRES ","Autre"]
["Honoraires de consultant ","Conseil"]
["HOSPITALITE ","Hospitalité"]
["HOSPITALITÉ ","Hospitalité"]
["HOSPITALITE - RELATIONS NORMALES DE TRAVAIL ","Hospitalité"]
["Hospitalité [ transport/repas/Hébergement] ","Hospitalité"]
["HOSPITALITE CONGRES ","Hospitalité"]
["Hospitalité Congrès Symposium ","Congrès"]
["HOSPITALITE REUNION PROFESSIONNELLE ","Hospitalité"]
["HOSPITALITE SITES PIERRE FABRE ","Hospitalité"]
["HOSPITALITE STAFF ","Hospitalité"]
["INCRIPTION ","Inscription"]
["INDEMNITE ","Autre"]
["INSCRIPTION ","Inscription"]
["INSCRIPTION CONGRES ","Inscription"]
["Inscription congrès ","Congrès"]
["Inscription Evenement Scientifique ","Inscription"]
["INSCRIPTION_REPAS_TRANSPORT_HEBERGEMENT ","Hospitalité"]
["INVITATIONS ","Autre"]
["Logement ","Hébergement"]
["OPPORTUNITE ","Autre"]
["Participation Evenement Scientifique ","Congrès"]
["PAUSE ","Autre"]
["Prestation en tant que formateur et orateur ","Autre"]
["REMUNERATION ","Autre"]
["REPAS","Repas"]
["Repas ","Repas"]
["répas ","Repas"]
["Repas & Voyage de Train ","Hospitalité"]
["REPAS CONGRES ","Repas"]
["REPAS ET TRANSPORT ","Autre"]
["REPAS FORMATION ","Repas"]
["REPAS IMPROMPTU ","Repas"]
["REPAS MANIFESTATION DE FORMATION ","Repas"]
["REPAS PROFESSIONNEL ","Repas"]
["REPAS RELATION NORMALE DE TRAVAIL ","Repas"]
["REPAS REUNION ","Repas"]
["REPAS REUNION HOSPITALIERE ","Repas"]
["REPAS RÉUNION HOSPITALIÈRE ","Repas"]
["REPAS REUNION SCIENTIFIQUE ","Repas"]
["REPAS RÉUNION SCIENTIFIQUE ","Repas"]
["REPAS SUR TOUTE LA DUREE DU CONGRES ","Repas"]
["Restauration ","Repas"]
["Restauration / Dïner ","Repas"]
["Restauration / Pauses ","Repas"]
["SOIREE ","Repas"]
["SOIREE/REPAS ","Repas"]
["SOIREE/RP ","Autre"]
["STAFF ","Autre"]
["Taxonomie EFPIA ","Autre"]
["TRANBSPORT ","Transport"]
["TRANSFERT ","Transport"]
["TRANSFERT-REPAS(DINER) ","Repas"]
["Transport ","Transport"]
["TRANSPORT ALLER/RETOUR -REPAS(DINER-DEJEUNER-PAUSES)-HEBERGEMENT-TRANSFERT ","Hospitalité"]
["TRANSPORT ALLER/RETOUR -REPAS(DINERS-DEJEUNERS-PAUSES)-HEBERGEMENT-TRANSFERT ","Hospitalité"]
["Transport pris en charge par UCB ","Transport"]
["TRANSPORT taxi ","Transport"]
["VISITE/(2 X GO-ON 25MG) ","Autre"]
["VISITE/(3 X GO-ON 25MG) ","Autre"]
["VISITE/GO-ON 25MG ","Autre"]

{"sheet":"CONVENTIONS","index":3,"n_rows":786,"n_cols":2,"rows_kept":786,"cut":false,"hidden":false,"merged":[]}
["TYPE_CONVENTION dans Transparence.sante.gouv.fr","TYPE_CONVENTION (libellé de regroupement)"]
["[AUTRE] : [COLLABORATION SCIENTIFIQUE] ","Expert"]
["[AUTRE] : [CONVENTION HOSPITALITE]","Hospitalité"]
["[AUTRE] : [CONVENTION HOSPITALITE] ","Hospitalité"]
["[BOARD EXPERTS] ","Réunion de « Board »"]
["[FORMATION] ","Autre"]
["[MARKETING]","Etude de marché"]
["[MARKETING] ","Etude de marché"]
["[ORATEUR] ","Orateur"]
["[ORATEURS MODERATEURS]","Orateur"]
["[ORATEURS MODERATEURS] ","Orateur"]
["[REUNION INFORMATION MEDICALE] ","Réunion professionnelle"]
["26E CONGRES FRANÇAIS DE RHUMATOLOGIE ","Réunion professionnelle"]
["ACCORD DE COOPERATION ","Expert"]
["Achat / location d'espaces dans le cadre d'événements scientifiques","Autre"]
["Achat / location d'espaces dans le cadre d'événements scientifiques ","Autre"]
["AMERICAN COLLEGE OF RHEUMATHOLOGY ACR/ARHP ANNUAL MEETING 2012 ","Réunion professionnelle"]
["ANNUAL EUROPEAN CONGRESS OF RHEUMATOLOGY ","Réunion professionnelle"]
["ASSISES BARCELONE ","Réunion professionnelle"]
["ATELIERS SIMS ","Réunion professionnelle"]
["AUTRE","Autre"]
["AUTRE ","Autre"]
["Autre : ","Autre"]
["Autre : \"CONTRAT D'ORATEUR\" ","Orateur"]
["Autre : [ Collaboration Scientifique ]","Expert"]
["Autre : [ Collaboration Scientifique ] ","Expert"]
["AUTRE : [ CONSEIL / EXPERTISE SCIENTIFIQUE ] ","Conseil"]
["Autre : [ EPU ]","Réunion professionnelle"]
["Autre : [ EPU ] ","Réunion professionnelle"]
["Autre : [ Expert ]","Expert"]
["Autre : [ Expert ] ","Expert"]
["AUTRE : [ HOSPITALITE ]","Hospitalité"]
["AUTRE : [ HOSPITALITE ] ","Hospitalité"]
["Autre : [ hospitalité ] ","Hospitalité"]
["Autre : [ hospitalité liée à une manifestation scientifique ]","Hospitalité"]
["Autre : [ hospitalité liée à une manifestation scientifique ] ","Hospitalité"]
["Autre : [ Manifestation professionnelle ]","Réunion professionnelle"]
["Autre : [ Manifestation professionnelle ] ","Réunion professionnelle"]
["Autre : [ Orateur / Intervenant ]","Orateur"]
["Autre : [ Orateur / Intervenant ] ","Orateur"]
["Autre : [ Orateur ] ","Orateur"]
["Autre : [ Partenariat ] ","Autre"]
["Autre : [ Prestation ] ","Conseil"]
["Autre : [ R‚union professionnelle ]","Réunion professionnelle"]
["Autre : [ R‚union professionnelle ] ","Réunion professionnelle"]
["Autre : [ R\u0082union professionnelle ]","Réunion professionnelle"]
["Autre : [ R\u0082union professionnelle ] ","Réunion professionnelle"]
["Autre : [ Reunion professionnelle ]","Réunion professionnelle"]
["Autre : [ Réunion professionnelle ]","Réunion professionnelle"]
["Autre : [ Reunion professionnelle ] ","Réunion professionnelle"]
["Autre : [ Réunion professionnelle ] ","Réunion professionnelle"]
["Autre : [AUTRE] : [CONTRAT DE COLLABORATION] ","Autre"]
["Autre : [AUTRE] : [CONVENTION HOSPITALITE] ","Hospitalité"]
["Autre : [BOARD EXPERTS] ","Expert"]
["Autre : [collaboration scientifique] ","Expert"]
["Autre : [Communication scientifique]","Expert"]
["Autre : [Communication scientifique] ","Conseil"]
["Autre : [Consultant (HCP)]","Conseil"]
["Autre : [Consultant (HCP)] ","Conseil"]
["Autre : [Consultant] ","Conseil"]
["Autre : [Contrat autre]","Autre"]
["Autre : [Contrat autre] ","Autre"]
["AUTRE : [CONTRAT DE COLLABORATION SCIENTIFIQUE]","Expert"]
["AUTRE : [CONTRAT DE COLLABORATION SCIENTIFIQUE] ","Expert"]
["AUTRE : [CONTRAT DE CONSEIL & PRESTATION]","Conseil"]
["AUTRE : [CONTRAT DE CONSEIL & PRESTATION] ","Conseil"]
["Autre : [Contrat de consultant] ","Conseil"]
["AUTRE : [CONTRAT DE PARTENARIAT - LOCATION DE STAND]","Réunion professionnelle"]
["AUTRE : [CONTRAT DE PARTENARIAT - LOCATION DE STAND] ","Réunion professionnelle"]
["AUTRE : [CONTRAT DE PARTENARIAT] ","Autre"]
["AUTRE : [CONTRAT D'ORATEUR]","Orateur"]
["AUTRE : [CONTRAT D'ORATEUR] ","Orateur"]
["Autre : [CONTRAT ORATEUR] ","Orateur"]
["Autre : [CONTRAT_DE_PRESTATIONS_DE_SERVICES] ","Conseil"]
["AUTRE : [CONVENTION D HOSPITALITE]","Hospitalité"]
["AUTRE : [CONVENTION D HOSPITALITE] ","Hospitalité"]
["Autre : [Convention d’Hospitalité] ","Hospitalité"]
["Autre : [Convention de consultant] ","Conseil"]
["Autre : [CONVENTION D'HOSPITALITE]","Hospitalité"]
["Autre : [Convention d'Hospitalité]","Hospitalité"]
["Autre : [CONVENTION D'HOSPITALITE] ","Hospitalité"]
["Autre : [Convention d'hospitalité] ","Hospitalité"]
["AUTRE : [CONVENTION HOSPITALITE] ","Hospitalité"]
["Autre : [Convention Orateur] ","Orateur"]
["AUTRE : [CONVENTION SANS REMUNERATION]. ","Autre"]
["AUTRE : [DONS] ","Autre"]
["Autre : [entretien]","Etude de marché"]
["Autre : [entretien] ","Etude de marché"]
["Autre : [Espace publicitaire]","Autre"]
["Autre : [Espace publicitaire] ","Autre"]
["AUTRE : [ETUDE CLINIQUE] ","Recherche Clinique"]
["Autre : [EXPERT CONSULTANT] ","Expert"]
["Autre : [Expertise] ","Expert"]
["Autre : [Face face] ","Autre"]
["AUTRE : [HOSPITALITÉ EVENEMENT SCIENTIFIQUE] ","Hospitalité"]
["Autre : [Hospitalité Evenement]","Hospitalité"]
["AUTRE : [HOSPITALITE EVENEMENT] ","Hospitalité"]
["Autre : [Hospitalité Evenement] ","Hospitalité"]
["Autre : [Hospitalité Genzyme] ","Hospitalité"]
["Autre : [Hospitalité] ","Hospitalité"]
["AUTRE : [INTERVENANT]","A définir"]
["AUTRE : [INTERVENANT] ","Orateur"]
["Autre : [Invitation individuelle]","Autre"]
["Autre : [Invitation individuelle] ","Autre"]
["Autre : [Location de stand / Congrès / Autre] ","Réunion professionnelle"]
["Autre : [Marketing]","Etude de marché"]
["Autre : [Marketing] ","Etude de marché"]
["Autre : [Opération SA/Journée-Soirée] ","Autre"]
["Autre : [Opérations Genzyme] ","Autre"]
["Autre : [Orateur]","Orateur"]
["Autre : [Orateur] ","Orateur"]
["Autre : [ORATEURS MODERATEURS]","Orateur"]
["AUTRE : [PARTENARIAT] ","Autre"]
["AUTRE : [PARTICIPATION RÉUNION SCIENTIFIQUE]","Réunion professionnelle"]
["AUTRE : [PARTICIPATION RÉUNION SCIENTIFIQUE] ","Réunion professionnelle"]
["AUTRE : [PARTICIPATION R�ION SCIENTIFIQUE]","Réunion professionnelle"]
["AUTRE : [PARTICIPATION R�ION SCIENTIFIQUE] ","Réunion professionnelle"]
["AUTRE : [PRESTATION DE SERVICE] ","Conseil"]
["Autre : [Recherche biomédicale]","Recherche Clinique"]
["Autre : [Recherche biomédicale] ","Recherche Clinique"]
["Autre : [Recherche/Développement]","Recherche Clinique"]
["Autre : [Recherche/Développement] ","Recherche Clinique"]
["Autre : [Rédaction d'articles scientifiques] ","Rédacteur"]
["Autre : [Repas] ","Hospitalité"]
["Autre : [Réunion]","Réunion professionnelle"]
["Autre : [Réunion] ","Réunion professionnelle"]
["Autre : [RP Prédéclarée Hospitalité] ","Hospitalité"]
["AUTRE : [RP Table ronde actu Rhumatologie] ","Réunion professionnelle"]
["AUTRE : [RP TFI] ","Orateur"]
["Autre : [STAFF]","Réunion professionnelle"]
["Autre : [STAFF] ","Réunion professionnelle"]
["AUTRE : [STAND/TABLE] ","Réunion professionnelle"]
["Autre : 3116001; site 101; ","Autre"]
["Autre : Accord d'Orateur","Orateur"]
["Autre : Accord d'Orateur ","Orateur"]
["Autre : Auteur - rédacteur ","Rédacteur"]
["Autre : AUTRE","Autre"]
["Autre : AUTRE ","Autre"]
["Autre : AUTRE / HOSPITALITES ","Hospitalité"]
["Autre : AUTRE / STAND","Réunion professionnelle"]
["Autre : AUTRE / STAND ","Autre"]
["Autre : AUTRE : [ CONSEIL / EXPERTISE SCIENTIFIQUE ] ","Conseil"]
["Autre : Autre : [ EPU ] ","Réunion professionnelle"]
["Autre : Autre : [ Expert ]","Expert"]
["Autre : Autre : [ Expert ] ","Expert"]
["Autre : AUTRE : [ HOSPITALITE ] ","Hospitalité"]
["Autre : Autre : [ hospitalité liée à une manifestation scientifique ] ","Hospitalité"]
["Autre : Autre : [ Location de stand ] ","Réunion professionnelle"]
["Autre : Autre : [ Manifestation professionnelle ]","Réunion professionnelle"]
["Autre : Autre : [ Manifestation professionnelle ] ","Réunion professionnelle"]
["Autre : Autre : [ Orateur / Intervenant ]","Orateur"]
["Autre : Autre : [ Orateur / Intervenant ] ","Orateur"]
["Autre : Autre : [ Parrainage ] ","Autre"]
["Autre : Autre : [ Partenariat ] ","Autre"]
["Autre : AUTRE : [ RECHERCHE SCIENTIFIQUE ] ","Recherche Clinique"]
["Autre : Autre : [ Reunion professionnelle ]","Réunion professionnelle"]
["Autre : Autre : [ Réunion professionnelle ]","Réunion professionnelle"]
["Autre : Autre : [ Reunion professionnelle ] ","Réunion professionnelle"]
["Autre : Autre : [ Réunion professionnelle ] ","Réunion professionnelle"]
["Autre : Autre : [Autre] ","Autre"]
["Autre : Autre : [collaboration scientifique à titre gratuit] ","Expert"]
["Autre : Autre : [Collaboration Scientifique non remuneree] ","Expert"]
["Autre : AUTRE : [COLLABORATION SCIENTIFIQUE]","Expert"]
["Autre : Autre : [Collaboration Scientifique] ","Expert"]
["Autre : Autre : [Communication scientifique]","Expert"]
["Autre : Autre : [Communication scientifique] ","Expert"]
["Autre : Autre : [Conseil communication] ","Conseil"]
["Autre : Autre : [Consultant (HCP)]","Conseil"]
["Autre : Autre : [Consultant (HCP)] ","Conseil"]
["Autre : AUTRE : [CONSULTANT] ","Conseil"]
["Autre : Autre : [Contrat autre] ","Autre"]
["Autre : AUTRE : [CONTRAT DE COLLABORATION SCIENTIFIQUE] ","Expert"]
["Autre : AUTRE : [CONTRAT DE COLLABORATION] ","Expert"]
["Autre : Autre : [Contrat de conseil & prestation]","Conseil"]
["Autre : AUTRE : [CONTRAT DE CONSEIL & PRESTATION] ","Conseil"]
["Autre : Autre : [Contrat de conseilprestation] ","Conseil"]
["Autre : Autre : [CONTRAT DE CONSULTANT] ","Conseil"]
["Autre : AUTRE : [CONTRAT DE PARTENARIAT - LOCATION DE STAND] ","Réunion professionnelle"]
["Autre : AUTRE : [CONTRAT DE PARTENARIAT] ","Autre"]
["Autre : Autre : [Contrat de recherche] ","Recherche Clinique"]
["Autre : AUTRE : [CONTRAT D'ORATEUR] ","Orateur"]
["Autre : Autre : [CONTRAT_DE_PRESTATIONS_DE_SERVICES] ","Conseil"]
["Autre : Autre : [Convention d ’Hospitalite] ","Hospitalité"]
["Autre : AUTRE : [CONVENTION D HOSPITALITE] ","Hospitalité"]
["Autre : Autre : [Convention d’Hospitalite]","Hospitalité"]
["Autre : Autre : [Convention d’Hospitalite] ","Hospitalité"]
["Autre : Autre : [Convention d’Hospitalité] ","Hospitalité"]
["Autre : Autre : [Convention d\u0092Hospitalité] ","Hospitalité"]
["Autre : Autre : [Convention de partenariat]","Autre"]
["Autre : Autre : [CONVENTION D'HOSPITALITE] ","Hospitalité"]
["Autre : Autre : [Convention d'Hospitalité] ","Hospitalité"]
["Autre : AUTRE : [CONVENTION HOSPITALITE] ","Hospitalité"]
["Autre : Autre : [Convention mécénat]","Autre"]
["Autre : Autre : [Convention mécénat] ","Autre"]
["Autre : Autre : [Conventiond'hospitalité] ","Hospitalité"]
["Autre : AUTRE : [DROIT A L IMAGE] ","Autre"]
["Autre : Autre : [entretien]","Etude de marché"]
["Autre : Autre : [entretien] ","Etude de marché"]
["Autre : AUTRE : [ETUDE CLINIQUE] ","Recherche Clinique"]
["Autre : Autre : [EXPERT CONSULTANT] ","Expert"]
["Autre : Autre : [Expertise]","Expert"]
["Autre : Autre : [Expertise] ","Expert"]
["Autre : Autre : [HONORAIRES ou CONTRAT] ","Autre"]
["Autre : Autre : [HONORAIRES] ","Autre"]
["Autre : Autre : [Hospitalité Evenement Scientifique] ","Réunion professionnelle"]
["Autre : Autre : [Hospitalité Evenement]","Hospitalité"]
["Autre : AUTRE : [HOSPITALITE EVENEMENT] ","Hospitalité"]
["Autre : Autre : [Hospitalité Evenement] ","Hospitalité"]
["Autre : Autre : [HOSPITALITE] ","Hospitalité"]
["Autre : Autre : [Hospitalité] ","Hospitalité"]
["Autre : AUTRE : [INTERVENANT] ","Orateur"]
["Autre : Autre : [Lettre/mail Intervenant] ","Autre"]
["Autre : AUTRE : [LOCATION DE STAND]","Réunion professionnelle"]
["Autre : AUTRE : [LOCATION DE STAND] ","Réunion professionnelle"]
["Autre : AUTRE : [LOCATION ESPACE STAND]","Réunion professionnelle"]
["Autre : AUTRE : [LOCATION ESPACE STAND] ","Réunion professionnelle"]
["Autre : Autre : [Opération SA/Journée-Soirée] ","Hospitalité"]
["Autre : Autre : [Orateur]","Orateur"]
["Autre : Autre : [Orateur] ","Orateur"]
["Autre : Autre : [Partenariat / Collaboration scientifique]","Autre"]
["Autre : Autre : [Partenariat / Collaboration scientifique] ","Expert"]
["Autre : AUTRE : [PARTENARIAT/STAND] ","Réunion professionnelle"]
["Autre : Autre : [PARTENARIAT] ","Autre"]
["Autre : AUTRE : [PARTICIPATION RÉUNION SCIENTIFIQUE]","Réunion professionnelle"]
["Autre : AUTRE : [PARTICIPATION RÉUNION SCIENTIFIQUE] ","Réunion professionnelle"]
["Autre : AUTRE : [PARTICIPATION R�ION SCIENTIFIQUE]","Autre"]
["Autre : AUTRE : [PARTICIPATION R�ION SCIENTIFIQUE] ","Réunion professionnelle"]
["Autre : AUTRE : [PRESTATION DE SERVICES] ","Conseil"]
["Autre : AUTRE : [PRESTATIONS DE SERVICE] ","Conseil"]
["Autre : AUTRE : [PROJET] ","Autre"]
["Autre : Autre : [Recherche/Développement]","Recherche Clinique"]
["Autre : Autre : [Recherche/Développement] ","Recherche Clinique"]
["Autre : Autre : [Repas] ","Autre"]
["Autre : Autre : [Réunion] ","Réunion professionnelle"]
["Autre : Autre : [RP Prédéclarée Hospitalité] ","Hospitalité"]
["Autre : Autre : [RP VACCINER EN 2012 : Q/R] ","Autre"]
["Autre : Autre : [RP] ","Autre"]
["Autre : Autre : [Stand] ","Réunion professionnelle"]
["Autre : AUTRE : ASSISTANCE ","Autre"]
["Autre : AUTRE : CANCER DU POUMON EGFR MUTE ","Expert"]
["Autre : AUTRE : CONSULTANT SCIENTIFIQUE ","Conseil"]
["Autre : Autre : Contrat consultant ","Conseil"]
["Autre : Autre : contrat de collaboration ","Autre"]
["Autre : AUTRE : CONTRAT DE PRESTATIONS DE SERVICES ","Conseil"]
["Autre : Autre : Contrat de Sponsoring Evènement Commercial ","Autre"]
["Autre : Autre : Contrat de Visites sur Site ","Autre"]
["Autre : AUTRE : CONVENTION DE RECHERCHE ","Recherche Clinique"]
["Autre : AUTRE : CONVENTION D'HOSPITALITE ","Hospitalité"]
["Autre : AUTRE : CONVENTION D'HOSPITALITE ET DE COLLABORATION SCIENTIFIQUE ","Expert"]
["Autre : autre : enquête téléphonique ","Etude de marché"]
["Autre : autre : enquête web ","Etude de marché"]
["Autre : Autre : Etude de marché","Etude de marché"]
["Autre : Autre : ETUDE DE MARCHE ","Etude de marché"]
["Autre : Autre : Etude de marché ","Etude de marché"]
["Autre : AUTRE : EXPERT INTERVENANT ","Orateur"]
["Autre : AUTRE : EXPERTISE PARTAGEE ","Expert"]
["Autre : Autre : HOSPITALITE RP ","Hospitalité"]
["Autre : Autre : Intervenant (Orateur/ ModÃ©rateur/ PrÃ©sident...) ","Orateur"]
["Autre : Autre : Intervenant (Orateur/ Modérateur/ Président...)","Orateur"]
["Autre : Autre : Intervenant (Orateur/ Modérateur/ Président...) ","Orateur"]
["Autre : AUTRE : LOCATION DE STAND ","Réunion professionnelle"]
["Autre : AUTRE : MANIFESTATION DE PROMOTION ","Orateur"]
["Autre : Autre : Manifestation Scientifique","Réunion professionnelle"]
["Autre : Autre : Manifestation Scientifique ","Réunion professionnelle"]
["Autre : AUTRE : ORATEUR","Orateur"]
["Autre : AUTRE : ORATEUR ","Orateur"]
["Autre : AUTRE : Partenariat ","Autre"]
["Autre : AUTRE : PARTICIPATION A MANIFESTATION SCIENTIFIQUE","Réunion professionnelle"]
["Autre : AUTRE : PARTICIPATION A MANIFESTATION SCIENTIFIQUE ","Réunion professionnelle"]
["Autre : Autre : Prestation de service ","Conseil"]
["Autre : AUTRE : REFLEXION DANS LE DOMAINE DU CANCER GASTRIQUE METASTASE HER2+ ","Expert"]
["Autre : AUTRE : REFLEXION SCIENTFIQUE AUTOUR DE L'IMMUNOTHERAPIE DANS LA PRISE EN CHARGE DU CANCER BRONCHIQUE ","Expert"]
["Autre : Autre : Réunion professionnelle ou scientifique","Réunion professionnelle"]
["Autre : Autre : Reunion professionnelle ou scientifique ","Réunion professionnelle"]
["Autre : Autre : Réunion professionnelle ou scientifique ","Réunion professionnelle"]
["Autre : Autre : Réunion scientifique ","Réunion professionnelle"]
["Autre : Autre : site de référence ","Autre"]
["Autre : Autre : Stand ","Réunion professionnelle"]
["Autre : Autre :[Collaboration Scientifique] ","Expert"]
["Autre : Autre :Contrat de location de stand","Réunion professionnelle"]
["Autre : Autre :Contrat de location de stand ","Réunion professionnelle"]
["Autre : AUTRE [CONNEXION] ","Autre"]
["Autre : AUTRE [CONTRAT D ORATEUR]","Orateur"]
["Autre : AUTRE [CONTRAT D ORATEUR] ","Orateur"]
["Autre : AUTRE [CONTRAT DE CONSULTANT]","Conseil"]
["Autre : AUTRE [CONTRAT DE CONSULTANT] ","Conseil"]
["Autre : AUTRE [CONTRAT ORATEUR] ","Orateur"]
["Autre : AUTRE [CONVENTION D EXPERT] ","Expert"]
["Autre : AUTRE [CONVENTION D HOSPITALITE]","Hospitalité"]
["Autre : AUTRE [CONVENTION D HOSPITALITE] ","Hospitalité"]
["Autre : Autre [CONVENTION D ORATEUR] ","Orateur"]
["Autre : AUTRE [CONVENTION DE PARTENARIAT] ","Autre"]
["Autre : AUTRE [CONVENTION HOSPITALITE] ","Hospitalité"]
["Autre : AUTRE [LOCATION DE STAND] ","Réunion professionnelle"]
["Autre : AUTRE [PRESTATIONS DE SERVICE]","Conseil"]
["Autre : AUTRE [PRESTATIONS DE SERVICE] ","Conseil"]
["Autre : AUTRE ETUDE DE MARCHE","Etude de marché"]
["Autre : AUTRE ETUDE DE MARCHE ","Etude de marché"]
["Autre : AUTRE: [CONTRAT DE COLLABORATION SCENTIFIQUE] ","Expert"]
["Autre : AUTRE: [CONTRAT DE COLLABORATION SCIENTIFIQUE]","Expert"]
["Autre : AUTRE: [CONTRAT DE COLLABORATION SCIENTIFIQUE] ","Expert"]
["Autre : AUTRE: [CONTRAT DE PRESTATIONS DE SERVICES] ","Conseil"]
["Autre : Autre: [Convention d'hospitalité] ","Hospitalité"]
["Autre : AUTRE: [CONVENTION HOSPITALIERE] ","Autre"]
["Autre : AUTRE: [CONVENTION HOSPITALITE]","Hospitalité"]
["Autre : AUTRE: [CONVENTION HOSPITALITE] ","Hospitalité"]
["Autre : AUTRE: [ETUDE DE MARCHE] ","Etude de marché"]
["Autre : AUTRE: [HOSPITALITE] ","Hospitalité"]
["Autre : Autre: [Prestation de service] ","Conseil"]
["Autre : Autre: Collaboration pour une Etude de Marché ","Etude de marché"]
["Autre : AUTRE: ETUDES DE MARCHE SONDAGES","Etude de marché"]
["Autre : AUTRE: ETUDES DE MARCHE SONDAGES ","Etude de marché"]
["Autre : Autre: Intervenant ","Orateur"]
["Autre : Autre: Orateur ","Orateur"]
["Autre : Autre: Phone consult ","Autre"]
["Autre : AVENANT A CONVENTION DE PRESTATION DE SERVICES ","Conseil"]
["Autre : AVENANT A LA CONVENTION DE PRESTATION DE SERVICES ","Conseil"]
["Autre : Board","Réunion de « Board »"]
["Autre : Board ","Réunion de « Board »"]
["Autre : Bourse d'étude, de recherche ","Recherche Clinique"]
["Autre : collaboration scientifique ","Expert"]
["Autre : Collaboration Scientifique - Conseil","Conseil"]
["Autre : Collaboration Scientifique - Conseil ","Conseil"]
["Autre : CONFÉRENCE PRESSE ","Autre"]
["Autre : Congr\u008as / Symposium","Réunion professionnelle"]
["Autre : Congr\u008as / Symposium ","Réunion professionnelle"]
["Autre : CONGRES ","Réunion professionnelle"]
["Autre : Congres / Symposium","Réunion professionnelle"]
["Autre : Congrés / Symposium","Réunion professionnelle"]
["Autre : Congrès / Symposium","Réunion professionnelle"]
["Autre : CONGRES / SYMPOSIUM ","Réunion professionnelle"]
["Autre : Congrés / Symposium ","Réunion professionnelle"]
["Autre : Congrès / Symposium ","Réunion professionnelle"]
["Autre : CONGRES / SYMPOSIUM / BOARD ","Réunion professionnelle"]
["Autre : CONGRES / SYMPOSIUM / RP ","Réunion professionnelle"]
["Autre : CONGRÈS / SYMPOSIUM/ RP ","Réunion professionnelle"]
["Autre : CONGRES SYMPOSIUM ","Réunion professionnelle"]
["Autre : CONGRES/ SYMPOSIUM ","Réunion professionnelle"]
["Autre : CONGRES/SYMPO ","Réunion professionnelle"]
["Autre : CONGRES/SYMPOSIUM","Réunion professionnelle"]
["Autre : congrès/symposium","Réunion professionnelle"]
["Autre : CONGRES/SYMPOSIUM ","Réunion professionnelle"]
["Autre : congrés/symposium ","Réunion professionnelle"]
["Autre : congrès/symposium ","Réunion professionnelle"]
["Autre : congrès/symposium3 ","Réunion professionnelle"]
["Autre : CONSEIL","Conseil"]
["Autre : CONSEIL ","Conseil"]
["Autre : CONSEIL - PRESTATIONS MULTIPLES ","Conseil"]
["Autre : CONSEIL / PRESTATION ","Conseil"]
["Autre : Conseil : Invitation Board ","Réunion de « Board »"]
["Autre : Conseil : Invitation Congrès ","Réunion professionnelle"]
["Autre : Conseil : Orateur Board ","Réunion de « Board »"]
["Autre : Conseil en R&D ","Conseil"]
["Autre : CONSEIL ET COMMUNICATION MEDICO-SCIENTIFIQUE ","Conseil"]
["Autre : Conseil et Communication Médico-Scientifique ","Conseil"]
["Autre : conseil réunion scientifique ","Conseil"]
["Autre : Consultant ","Conseil"]
["Autre : Consultant (HCP) ","Conseil"]
["Autre : Contrat consultant","Conseil"]
["Autre : Contrat consultant ","Conseil"]
["AUTRE : CONTRAT DE COLLABORATION SCIENTIFIQUE ","Expert"]
["Autre : CONTRAT DE CONFIDENTIALITE ","Autre"]
["Autre : Contrat de conseil scientifique ","Conseil"]
["Autre : CONTRAT DE CONSULTANT ","Conseil"]
["Autre : contrat de consultant/expert/intervenant ","Orateur"]
["Autre : Contrat de Formation ","Autre"]
["Autre : CONTRAT DE LOCATION DE STAND ","Réunion professionnelle"]
["Autre : CONTRAT DE PARTENARIAT - PRESTATION ","Conseil"]
["Autre : CONTRAT DE PRESTATION DE RECHERCHE ","Recherche Clinique"]
["Autre : CONTRAT DE PRESTATION DE SERVICE ","Conseil"]
["Autre : Contrat de recherche interventionnelle et non-interventionnelle ","Recherche Clinique"]
["Autre : Contrat intervenant","Orateur"]
["Autre : Contrat intervenant ","Orateur"]
["Autre : CONTRAT ORATEUR ","Orateur"]
["Autre : Contrat Parrainage Inauguration ","Autre"]
["Autre : CONTRATS D'HOSPITALITE ","Hospitalité"]
["Autre : Convention assimilé à de la recherche ","Recherche Clinique"]
["Autre : CONVENTION D HOSPITALITE","Hospitalité"]
["Autre : CONVENTION D HOSPITALITE ","Hospitalité"]
["Autre : CONVENTION D’HOSPITALITÉ","Hospitalité"]
["Autre : CONVENTION D’HOSPITALITE ","Hospitalité"]
["Autre : CONVENTION D’HOSPITALITÉ ","Hospitalité"]
["Autre : CONVENTION D'ACHAT : FORMATION ","Autre"]
["Autre : CONVENTION DE COLLABORATION","Expert"]
["Autre : CONVENTION DE COLLABORATION ","Expert"]
["AUTRE : CONVENTION DE COLLABORATION SCIENTIFIQUE ","Expert"]
["Autre : CONVENTION DE CONSULTANT ","Conseil"]
["Autre : CONVENTION DE DONS (SUBVENTIONS) ","Autre"]
["Autre : CONVENTION DE PARTENARIAT","Expert"]
["Autre : CONVENTION DE PARTENARIAT ","Autre"]
["Autre : Convention de prestation de service ","Conseil"]
["Autre : CONVENTION DE PRESTATION DE SERVICES","Conseil"]
["Autre : Convention de prestation de services ","Conseil"]
["Autre : CONVENTION DE RECHERCHE","Recherche Clinique"]
["Autre : CONVENTION DE RECHERCHE ","Recherche Clinique"]
["Autre : Convention de Recherche Biomédicale ","Recherche Clinique"]
["Autre : CONVENTION DE RECHERCHE BIOMEDICALE TRIPARTITE ","Recherche Clinique"]
["Autre : Convention de recherche biomédicale. ","Recherche Clinique"]
["Autre : CONVENTION D'HOSPITALITÃ‰ ","Hospitalité"]
["Autre : CONVENTION D'HOSPITALITE","Hospitalité"]
["AUTRE : CONVENTION D'HOSPITALITE ","Hospitalité"]
["Autre : Convention d'Hospitalité ","Hospitalité"]
["AUTRE : CONVENTION D'HOSPITALITE ET DE COLLABORATION SCIENTIFIQUE ","Expert"]
["Autre : CONVENTION HOSPITALITE ","Hospitalité"]
["Autre : CONVENTION ORATEUR ","Orateur"]
["Autre : Convention pour la participation à un comité de surveillance et de suivi d’une recherche clinique ","Autre"]
["Autre : Convention unique Etablissement associé version septembre 2016 ","Autre"]
["Autre : CONVENTIONS DE RECHERCHE BIO MEDICALE","Recherche Clinique"]
["Autre : CONVENTIONS DE RECHERCHE BIO MEDICALE ","Recherche Clinique"]
["Autre : Crossborder ","Autre"]
["Autre : ENGAGEMENT UNILATERAL","Autre"]
["Autre : ENGAGEMENT UNILATERAL ","Autre"]
["autre : enquête téléphonique","Etude de marché"]
["autre : enquête téléphonique ","Etude de marché"]
["autre : enquête téléphonique ","Etude de marché"]
["autre : enquête téléphonique ","Etude de marché"]
["autre : enquête web","Etude de marché"]
["autre : enquête web ","Etude de marché"]
["autre : ETUDE ","Etude de marché"]
["Autre : ETUDE DE MARCHE","Etude de marché"]
["Autre : Etude de marché","Etude de marché"]
["Autre : ETUDE DE MARCHE ","Etude de marché"]
["Autre : Etude de marché ","Etude de marché"]
["Autre : EXPERT","Expert"]
["Autre : EXPERT ","Expert"]
["AUTRE : EXPERT INTERVENANT","Orateur"]
["AUTRE : EXPERT INTERVENANT ","Expert"]
["AUTRE : EXPERTISE PARTAGEE ","Expert"]
["Autre : Hospitalité Congrès Symposium ","Réunion professionnelle"]
["Autre : HOSPITALITE RP/CONGRES / SYMPO","Réunion professionnelle"]
["Autre : HOSPITALITE RP/CONGRES / SYMPO ","Hospitalité"]
["Autre : Intervenant (Orateur/ ModÃ©rateur/ PrÃ©sident...) ","Orateur"]
["Autre : Intervenant (Orateur/ Modérateur/ Président...) ","Orateur"]
["Autre : Interview","Expert"]
["Autre : Interview ","Expert"]
["Autre : INVITATION ","Hospitalité"]
["Autre : LETTRE ACCORD ","Autre"]
["Autre : LOCATION DE STAND ","Réunion professionnelle"]
["Autre : LOCATION STAND ","Réunion professionnelle"]
["AUTRE : MANIFESTATION DE PROMOTION ","Autre"]
["Autre : Manifestation scientifique","Réunion professionnelle"]
["Autre : Manifestation scientifique ","Réunion professionnelle"]
["Autre : MARKETING","Conseil"]
["Autre : Marketing ","Etude de marché"]
["Autre : Marketing et Parrainage ","Autre"]
["Autre : Orateur","Orateur"]
["Autre : Orateur ","Orateur"]
["Autre : ORATEUR INTERVENANT ","Orateur"]
["Autre : ORATEUR REUNION POST EULAR MONTPELLIER ","Orateur"]
["Autre : ORATEUR RP/CONGRES/SYMPO ","Orateur"]
["Autre : ORATEUR RP/CONGRES/SYMPOSIUM ","Orateur"]
["Autre : ORATEUR SOIREE EPU \"Actualités sur les Biothérapies\" ","Orateur"]
["Autre : ORATEUR/MODERATEUR ","Orateur"]
["AUTRE : PARTENARIAT ","Autre"]
["Autre : Partenariat / Collaboration scientifique ","Autre"]
["Autre : PARTENARIAT MEDICAL ","Expert"]
["Autre : PARTENARIAT RECHERCHE ","Recherche Clinique"]
["AUTRE : PARTICIPATION A MANIFESTATION SCIENTIFIQUE","Réunion professionnelle"]
["AUTRE : PARTICIPATION A MANIFESTATION SCIENTIFIQUE ","Orateur"]
["Autre : Participation à une étude de marché ","Etude de marché"]
["Autre : PARTICIPATION REUNION SCIENTIFIQUE","Réunion professionnelle"]
["Autre : PARTICIPATION REUNION SCIENTIFIQUE ","Réunion professionnelle"]
["Autre : PRESTATION CONSEIL SCIENTIF/ PARTICIPATION BOARD ","Réunion de « Board »"]
["Autre : Prestation de service","Conseil"]
["Autre : Prestation de service ","Conseil"]
["Autre : PRESTATION EVENEMENTIELLE (STAND, AUTRE) ","Réunion professionnelle"]
["Autre : PRESTATION SERVICE ","Conseil"]
["Autre : prestations de services ","Conseil"]
["Autre : PRESTATIONS DE SERVICES AVEC DES PERSONNES MORALES ","Conseil"]
["Autre : Pret d'un instrument ","Autre"]
["Autre : PUBLICITE STAND ","Réunion professionnelle"]
["Autre : RÃ©union scientifique ","Réunion professionnelle"]
["Autre : REALISATION D'UNE ENQUETE ","Etude de marché"]
["Autre : REALISATION D'UNE ENQUÊTE ","Etude de marché"]
["Autre : RECHERCHE - ETUDE OBSERVATIONNELLE - OBSERVATEUR","Recherche Clinique"]
["Autre : RECHERCHE - ETUDE OBSERVATIONNELLE - OBSERVATEUR ","Etude de marché"]
["Autre : RECHERCHE AVENANT ","Recherche Clinique"]
["Autre : RECHERCHE BIOMÉDICALE","Recherche Clinique"]
["Autre : RECHERCHE BIOMEDICALE ","Recherche Clinique"]
["Autre : recherche biomédicale ","Recherche Clinique"]
["Autre : Recherche biomédicale - Avenant n° 1 ","Recherche Clinique"]
["Autre : RECHERCHE BIOMEʄICALE ","Recherche Clinique"]
["Autre : RECHERCHE CLINIQUE","Recherche Clinique"]
["Autre : Recherche Clinique ","Recherche Clinique"]
["Autre : Recherche et Développement ","Recherche Clinique"]
["Autre : Recherche et Evaluation","Recherche Clinique"]
["Autre : Recherche et Evaluation ","Recherche Clinique"]
["Autre : RECHERCHE PRET ","Recherche Clinique"]
["Autre : RECHERCHE SCIENTIFIQUE ","Recherche Clinique"]
["Autre : Recherche/Développement ","Recherche Clinique"]
["AUTRE : REFLEXION SCIENTFIQUE EVENEMENT INTERDISCIPLINAIRE ","Conseil"]
["Autre : Reunion Medicale","Réunion professionnelle"]
["Autre : Reunion Medicale ","Réunion professionnelle"]
["Autre : Reunion professionnelle ou scientifique","Réunion professionnelle"]
["Autre : Réunion professionnelle ou scientifique","Réunion professionnelle"]
["Autre : Reunion professionnelle ou scientifique ","Réunion professionnelle"]
["Autre : Réunion professionnelle ou scientifique ","Réunion professionnelle"]
["Autre : Réunion scientifique","Réunion professionnelle"]
["Autre : REUNION SCIENTIFIQUE ","Réunion professionnelle"]
["Autre : Réunion scientifique ","Réunion professionnelle"]
["Autre : RP de type EPU (2007-01)","Réunion professionnelle"]
["Autre : RP de type EPU (2007-01)","Orateur"]
["Autre : RP de type EPU (2007-01) ","Réunion professionnelle"]
["Autre : subventions ","Autre"]
["Autre : SUVENTIONS ","Autre"]
["Autre : VISITE USINE ","Autre"]
["AUTRE [CONNEXION]","Autre"]
["AUTRE [CONNEXION] ","Autre"]
["AUTRE [CONTRAT D ORATEUR]","Orateur"]
["AUTRE [CONTRAT D ORATEUR] ","Orateur"]
["AUTRE [CONTRAT DE CONSULTANT]","Conseil"]
["AUTRE [CONTRAT DE CONSULTANT] ","Conseil"]
["AUTRE [CONTRAT DE PRESTATION DE SERVICE] ","Conseil"]
["AUTRE [CONTRAT ORATEUR]","Orateur"]
["AUTRE [CONTRAT ORATEUR] ","Orateur"]
["AUTRE [CONVENTION D EXPERT]","Expert"]
["AUTRE [CONVENTION D EXPERT] ","Expert"]
["Autre [CONVENTION D HOSPITALITE]","Hospitalité"]
["AUTRE [CONVENTION D HOSPITALITE] ","Hospitalité"]
["AUTRE [CONVENTION D ORATEUR]","Orateur"]
["AUTRE [CONVENTION D ORATEUR] ","Orateur"]
["AUTRE [CONVENTION DE PARTENARIAT] ","Autre"]
["AUTRE [CONVENTION HOSPITALITE] ","Hospitalité"]
["AUTRE [EXPERT]","Expert"]
["AUTRE [EXPERT] ","Expert"]
["AUTRE [ORATEUR] ","Orateur"]
["AUTRE ETUDE DE MARCHE","Etude de marché"]
["AUTRE ETUDE DE MARCHE ","Etude de marché"]
["AUTRE: [CONTRAT DE COLLABORATION SCENTIFIQUE]","Expert"]
["AUTRE: [CONTRAT DE COLLABORATION SCENTIFIQUE] ","Expert"]
["AUTRE: [CONTRAT DE COLLABORATION SCIENTIFIQUE]","Expert"]
["AUTRE: [CONTRAT DE COLLABORATION SCIENTIFIQUE] ","Expert"]
["AUTRE: [CONTRAT DE PRESTATIONS DE SERVICES] ","Conseil"]
["AUTRE: [CONTRAT INVESTIGATEUR] ","Recherche Clinique"]
["Autre: [Convention d'hospitalité] ","Hospitalité"]
["AUTRE: [CONVENTION HOSPITALITE]","Hospitalité"]
["AUTRE: [CONVENTION HOSPITALITE] ","Hospitalité"]
["AUTRE: [CONVENTION] ","Autre"]
["AUTRE: [DONS] ","Autre"]
["AUTRE: [ETUDE DE MARCHE]","Etude de marché"]
["AUTRE: [ETUDE DE MARCHE] ","Etude de marché"]
["AUTRE: [HOSPITALITE] ","Hospitalité"]
["AUTRE: [PARTENARIAT] ","Autre"]
["AUTRE: 27EME JOURNEE SCIENTIFIQUE DU GRIO ","Réunion professionnelle"]
["Autre: Collaboration pour une Etude de Marché","Etude de marché"]
["Autre: Collaboration pour une Etude de Marché","Etude de marché"]
["AUTRE: COLLABORATION POUR UNE ETUDE DE MARCHÉ ","Etude de marché"]
["AUTRE: CONVENTION D'HOSPITALITE ","Hospitalité"]
["AUTRE: DON ","Autre"]
["autre: ETUDE ","Etude de marché"]
["AUTRE: ETUDES DE MARCHE SONDAGES ","Etude de marché"]
["Autre: Intervenant ","Orateur"]
["AUTRE: PARTENARIAT ","Autre"]
["AUTRE: PRESTATION ","Conseil"]
["autre: REDACTION D'ARTICLES ","Rédacteur"]
["AUTRE:[CONVENTION HOSPITALITE] ","Hospitalité"]
["Autre:[RP] ","Autre"]
["AUTRE[EXPERTISE] ","Expert"]
["Autre[INTERVENTION EPU LIMOGES 13/01/2015] ","Orateur"]
["Autre[INTERVENTION REUNION BEZIERS 21 MAI] ","Réunion professionnelle"]
["Autre[INTERVENTION REUNION BEZIERS 21 MAI] ","Orateur"]
["Autre[INTERVENTION REUNION P EULAR LIMOGES 8 OCTOBRE 15] ","Orateur"]
["Autre[INTERVENTION REUNION P EULAR LYON LE 2 JUILLET] ","Orateur"]
["Autre[ORATEUR REUNION POST EULAR AGEN] ","Orateur"]
["Autre[ORATEUR REUNION POST EULAR BORDEAUX] ","Orateur"]
["Autre[ORATEUR REUNION POST EULAR PARIS 94] ","Orateur"]
["Autre[ORATEUR REUNION POST EULAR PARIS] ","Orateur"]
["Autre[ORATEUR REUNION POST EULAR ROUEN] ","Orateur"]
["Autre[ORATEUR REUNION POST EULAR ST ETENNE 18 SEPTEMBRE 14] ","Orateur"]
["Autre[ORATEUR REUNION POST EULAR TOULOUSE] ","Orateur"]
["Autre[ORATEUR REUNION POST EULAR TOURS]","Orateur"]
["AUTRE_CONNEXION ","Autre"]
["Autres ","Autre"]
["Autres prestations de services","Conseil"]
["Autres prestations de services ","Conseil"]
["AVENANT 2 CONVENTION DE RECHERCHE ","Recherche Clinique"]
["Board ","Réunion de « Board »"]
["Collaboration Editions Scientifiques ","Rédacteur"]
["Collaboration Scientifique - Conseil ","Conseil"]
["COLLABORATION SCIENTIFIQUE ET PROFESSIONNELLE ","Expert"]
["Comite Echange scientifique ","Expert"]
["Comite Expert","Expert"]
["Comite Experts ","Expert"]
["COMITE SCIENTIFIQUE ","Expert"]
["COMITÉ SCIENTIFIQUE ","Expert"]
["CONFÉRENCE PRESSE ","Autre"]
["CONFÉRENCE PRESSE ","Orateur"]
["Congès / Symposium ","Réunion professionnelle"]
["Congr\u008as / Symposium","Réunion professionnelle"]
["Congr\u008as / Symposium ","Réunion professionnelle"]
["CongrÃ¨s / Symposium ","Réunion professionnelle"]
["CONGRES","Réunion professionnelle"]
["Congrès","Réunion professionnelle"]
["CONGRES ","Réunion professionnelle"]
["Congrès ","Réunion professionnelle"]
["CONGRES / SYMPOSIUM","Réunion professionnelle"]
["Congrès / symposium","Réunion professionnelle"]
["Congres / Symposium ","Réunion professionnelle"]
["Congrès / Symposium ","Réunion professionnelle"]
["CONGRES / SYMPOSIUM / BOARD ","Réunion de « Board »"]
["CONGRÈS / SYMPOSIUM/ RP ","Réunion professionnelle"]
["CONGRES REUNION SCIENTIFIQUE STRASBOURG ","Réunion professionnelle"]
["CONGRES SYMPOSIUM","Réunion professionnelle"]
["CONGRES SYMPOSIUM ","Réunion professionnelle"]
["CONGRES, SYMPOSIUM ","Réunion professionnelle"]
["CONGRES/SYMPO ","Réunion professionnelle"]
["CONGRES/SYMPOSIUM","Réunion professionnelle"]
["CONGRES/SYMPOSIUM ","Réunion professionnelle"]
["Congrès/symposium ","Réunion professionnelle"]
["congrès-symposium","Réunion professionnelle"]
["congrès-symposium ","Réunion professionnelle"]
["conseil","Conseil"]
["Conseil ","Conseil"]
["CONSEIL ","Conseil"]
["Conseil : Invitation Board ","Réunion de « Board »"]
["Conseil : Invitation Congrès ","Réunion professionnelle"]
["Conseil : Orateur Board ","Réunion de « Board »"]
["Conseil : Orateur RP ","Orateur"]
["Conseil et Communication Médico-Scientifique ","Conseil"]
["Conseil Relations professionnelles ","Conseil"]
["Conseil réunion d'experts ","Conseil"]
["CONSEIL SCIENTIFIQUE ","Expert"]
["Conseil, réunion d'experts ","Conseil"]
["Consultance ","Conseil"]
["Consultance (rhumatologie) ","Conseil"]
["CONSULTANT ","Conseil"]
["Consultation Scientifique ","Conseil"]
["Contrat / expertise autre que scientifique ","Expert"]
["Contrat de conseil scientifique","Expert"]
["Contrat de conseil scientifique ","Expert"]
["CONTRAT DE CONSULTANT ","Conseil"]
["CONTRAT DE PARTENARIAT ","Autre"]
["CONTRAT DE PRESTATION DE SERVICE ","Conseil"]
["CONTRAT DE PRESTATION DE SERVICES ","Conseil"]
["Contrat de recherche interventionnelle et non-interventionnelle ","Recherche Clinique"]
["Contrat d'essai clinique ","Recherche Clinique"]
["Contrat d'expert scientifique, contrat dans le cadre d'une recherche, contrat de consultant","Conseil"]
["Contrat d'expert scientifique, contrat dans le cadre d'une recherche, contrat de consultant ","Conseil"]
["Contrat d'intervenant à une manifestation / orateur","Orateur"]
["Contrat d'intervenant à une manifestation / orateur ","Orateur"]
["Contrat d'interview","Expert"]
["Contrat d'interview ","Expert"]
["CONTRAT D'ORATEUR ","Orateur"]
["CONTRAT ORATEUR ","Orateur"]
["CONTRATS D'HOSPITALITE","Hospitalité"]
["CONTRATS D'HOSPITALITE ","Hospitalité"]
["Convention assimilé à de la recherche ","Recherche Clinique"]
["CONVENTION D HOSPITALITE","Hospitalité"]
["CONVENTION D HOSPITALITE ","Hospitalité"]
["CONVENTION D’HOSPITALITÉ","Hospitalité"]
["CONVENTION D’HOSPITALITE ","Hospitalité"]
["CONVENTION D’HOSPITALITÉ ","Hospitalité"]
["CONVENTION DE COLLABORATION","Expert"]
["CONVENTION DE COLLABORATION ","Expert"]
["CONVENTION DE CONSULTANT ","Conseil"]
["Convention de prestation de service ","Conseil"]
["CONVENTION DE PRESTATION DE SERVICES ","Conseil"]
["CONVENTION DE RECHERCHE","Recherche Clinique"]
["CONVENTION DE RECHERCHE ","Recherche Clinique"]
["Convention de recherche biomédicale /Annexe: Roles et responsabilites des differentes parties impliquees","Recherche Clinique"]
["Convention de recherche biomédicale /Annexe: Roles et responsabilites des differentes parties impliquees ","Recherche Clinique"]
["Convention de recherche biomédicale Investigateur-Coordinateur ","Recherche Clinique"]
["CONVENTION D'HOSPITALITE","Hospitalité"]
["CONVENTION D'HOSPITALITÉ","Hospitalité"]
["CONVENTION D'HOSPITALITE ","Hospitalité"]
["CONVENTION D'HOSPITALITÉ ","Hospitalité"]
["CONVENTION D'ORATEUR RÉUNION D'ÉCHANGES SCIENTIFIQUES ","Orateur"]
["CONVENTION D'ORATEUR RÉUNION PROFESSIONNELLE ","Orateur"]
["CONVENTION HOSPITALITE ","Hospitalité"]
["CONVENTION ORATEUR ","Orateur"]
["CONVENTION RECHERCHE","Recherche Clinique"]
["CONVENTION RECHERCHE ","Recherche Clinique"]
["CONVENTIONDE RECHERCHE ","Recherche Clinique"]
["CONVENTIONS CONSEIL","Conseil"]
["CONVENTIONS ORATEUR ","Orateur"]
["Don / Mécénat","Autre"]
["Don / Mécénat ","Autre"]
["ECCEO ","Réunion professionnelle"]
["EDITION ","Rédacteur"]
["EFIC ","Réunion professionnelle"]
["Enquête / Etude / Etude de marché (hors recherche)","Etude de marché"]
["Enquête / Etude / Etude de marché (hors recherche) ","Etude de marché"]
["EPU ","Réunion professionnelle"]
["ESCEO ","Autre"]
["ÉTUDE / INTERVIEW","Etude de marché"]
["ÉTUDE / INTERVIEW ","Etude de marché"]
["ETUDE DE MARCHE","Etude de marché"]
["ETUDE DE MARCHE","Etude de marché"]
["ETUDE DE MARCHE","Etude de marché"]
["ETUDE DE MARCHE ","Etude de marché"]
["Etudes","Etude de marché"]
["Etudes ","Autre"]
["EULAR ","Réunion professionnelle"]
["Evaluation ","Autre"]
["Evaluation produit cosmétique ","Autre"]
["EXPERT","Expert"]
["EXPERT ","Expert"]
["EXPERTISE ","Expert"]
["EXPERTISE SCIENTIFIQUE","Réunion professionnelle"]
["EXPERTISE SCIENTIFIQUE ","Expert"]
["FORMATION","Formateur"]
["FORMATION ","Formateur"]
["FORMATION CONTINUE ","Autre"]
["FORMATION PERSONNEL ","Autre"]
["Formation, Conseil et Congrès ","Conseil"]
["Hospitalité","Hospitalité"]
["Hospitalité ","Hospitalité"]
["HOSPITALITE RP/CONGRES / SYMPO","Hospitalité"]
["HOSPITALITE RP/CONGRES / SYMPO ","Hospitalité"]
["HOSPITALITE RP/CONGRES/SYMPO ","Hospitalité"]
["HOSPITALITE RP/CONGRES/SYMPOSIUM","Réunion professionnelle"]
["HOSPITALITE RP/CONGRES/SYMPOSIUM ","Réunion professionnelle"]
["Inscription congrès","Réunion professionnelle"]
["Inscription congrès ","Réunion professionnelle"]
["INTERNATIONAL SYMPOSIUM ON INTRA ARTICULAR TREATMENT ","Réunion professionnelle"]
["Interview ","Etude de marché"]
["INVITATION","Hospitalité"]
["INVITATION ","Hospitalité"]
["LETTRE ACCORD","Autre"]
["LETTRE ACCORD ","Autre"]
["Manifestation scientifique - congrès - table ronde - ... (A SUP. APRES FIX INDACFOBJCNV) ","Réunion professionnelle"]
["Marketing","Etude de marché"]
["Marketing","Etude de marché"]
["MARKETING ","Etude de marché"]
["ORATEUR","Orateur"]
["ORATEUR ","Orateur"]
["ORATEUR INTERVENANT ","Orateur"]
["ORATEUR RP/CONGRES/SYMPO","Orateur"]
["Orateur RP/Congres/Sympo ","Orateur"]
["ORATEUR RP/CONGRES/SYMPOSIUM","Orateur"]
["ORATEUR RP/CONGRES/SYMPOSIUM ","Orateur"]
["Orateur symposium","Orateur"]
["Parrainage","Autre"]
["Parrainage ","Autre"]
["Partenariat","Autre"]
["Partenariat ","Autre"]
["PARTENARIAT MEDICAL ","Autre"]
["PARTICIPATION À UN COMITÉ CONSULTATIF SCIENTIFIQUE SUR LA SPÉCIALITÉ CINRYZE À PARIS LE 02/07/2013 ","Expert"]
["Participation à une étude de marché","Etude de marché"]
["Participation à une étude de marché ","Etude de marché"]
["PHYSIOPATHOLOGIE DE L'ARTHROSE ","Autre"]
["PRESTATION","Conseil"]
["PRESTATION ","Conseil"]
["PRESTATION CONSEIL SCIENTIF/ PARTICIPATION BOARD ","Conseil"]
["PRESTATION DE SERVICES ","Conseil"]
["Prestation en tant que formateur et orateur ","Formateur"]
["PRESTATION ÉVÈNEMENTIELLE (STAND, AUTRE) ","Réunion professionnelle"]
["prestation scientifique ","Conseil"]
["PRESTATION SERVICE","Conseil"]
["PRESTATION SERVICE ","Conseil"]
["PRESTATION SERVICE ","Conseil"]
["Prêt de matériel ","Autre"]
["RACHIS AQUITANE CONGRES ","Réunion professionnelle"]
["Recherche","Recherche Clinique"]
["RECHERCHE ","Recherche Clinique"]
["RECHERCHE BIOMEDICALE","Recherche Clinique"]
["RECHERCHE BIOMÉDICALE","Recherche Clinique"]
["RECHERCHE BIOMEDICALE ","Recherche Clinique"]
["recherche biomédicale ","Recherche Clinique"]
["Recherche biomédicale - Avenant n° 1 ","Recherche Clinique"]
["Recherche biomédicale - Avenant n° 2 ","Recherche Clinique"]
["Recherche biomédicale - Avenant n° 3 ","Recherche Clinique"]
["RECHERCHE CLINIQUE","Recherche Clinique"]
["Recherche Clinique ","Recherche Clinique"]
["Recherche et Développement ","Recherche Clinique"]
["RECHERCHE MARKETING ","Etude de marché"]
["Recherche non interventionnelle ou observationnelle ","Etude de marché"]
["RECHERCHE PRET ","Autre"]
["Recherche scientifique","Recherche Clinique"]
["Recherche scientifique ","Recherche Clinique"]
["REDACTEUR SCIENTIFIQUE ","Rédacteur"]
["research ","Recherche Clinique"]
["Réunion de board ","Réunion de « Board »"]
["Reunion Medicale","Réunion professionnelle"]
["Reunion Medicale ","Réunion professionnelle"]
["Reunion Professionnelle ","Réunion professionnelle"]
["Réunion Professionnelle ","Réunion professionnelle"]
["REUNION SCIENTIFIQUE","Réunion professionnelle"]
["REUNION SCIENTIFIQUE ","Réunion professionnelle"]
["REUNION SCIENTIQUE ","Réunion professionnelle"]
["SFR","Réunion professionnelle"]
["SOCIETE FRANCAISE DE RHUMATOLOGIE ","Autre"]
["Subventions ","Autre"]
["SYMPOSIUM SFH ","Réunion professionnelle"]
["VIGGO PETERSEN ","Autre"]
["WCO-IOF-ESCEO ","Réunion professionnelle"]

{"sheet":"FIRMES","index":4,"n_rows":2109,"n_cols":2,"rows_kept":2109,"cut":false,"hidden":false,"merged":[]}
["FIRME dans Transparence.sante.gouv.fr","FIRME (libellé de regroupement)"]
["22 Juillet Conseil","22 Juillet Conseil"]
["3-D Matrix Europe SAS","3-D Matrix Europe SAS"]
["3M Belgium bvba/sprl","3M Belgium bvba/sprl"]
["3M Deutschland GmbH","3M Deutschland GmbH"]
["3M France","3M France"]
["3M MAROC","3M MAROC"]
["3M United Kingdom PLC","3M United Kingdom PLC"]
["3S ORTHO","3S ORTHO"]
["4Tech Cardio Ltd","4Tech Cardio Ltd"]
["7 MED INDUSTRIE","7 MED INDUSTRIE"]
["A a Z SANTE","A a Z SANTE"]
["A DEC INTERNATIONAL INC","A DEC INTERNATIONAL INC"]
["A.I.R.","A.I.R."]
["A.MENARINI diagnostics","A.MENARINI diagnostics"]
["A.R.C. Pharma","A.R.C. Pharma"]
["A+A","A+A"]
["a2m rehateam","a2m rehateam"]
["AADAIRC","AADAIRC"]
["ABBOTT FRANCE","ABBOTT"]
["ABBOTT HEALTHCARE SAS","ABBOTT"]
["ABBOTT PRODUCTS SAS","ABBOTT"]
["AbbVie","AbbVie"]
["ABENA-FRANTEX","ABENA-FRANTEX"]
["Abiomed GmbH","Abiomed GmbH"]
["ABM","ABM"]
["abmedica","abmedica"]
["ABS-Bolton Medical","ABS-Bolton Medical"]
["accomed","accomed"]
["ACCORD HEALTHCARE FRANCE SAS","ACCORD HEALTHCARE FRANCE SAS"]
["ACCOVION SARL","ACCOVION SARL"]
["Accuray Europe","Accuray Europe"]
["ACIST Europe BV","ACIST Europe BV"]
["ACM","ACM"]
["Acorda Therapeutics, Inc.","Acorda Therapeutics, Inc."]
["ACOUSTIQUE MEDICAL DU LITTORAL","ACOUSTIQUE MEDICAL DU LITTORAL"]
["ACS-Agence Conseil Santé","ACS-Agence Conseil Santé"]
["ACS-Agence Conseil Santé","ACS-Agence Conseil Santé"]
["ACT+ Consulting","ACT+ Consulting"]
["ACTAVIS GROUP PTC EHF","ACTAVIS GROUP PTC EHF"]
["Actelion Pharmaceuticals France","Actelion"]
["Actelion Pharmaceuticals Ltd","Actelion"]
["ACTION D'ECLAT","ACTION D'ECLAT"]
["ADAIR","ADAIR"]
["ADAPSIA","ADAPSIA"]
["Adaptimmune LTD","Adaptimmune LTD"]
["ADARE PHARMACEUTICALS SAS","ADARE PHARMACEUTICALS SAS"]
["ADDMEDICA","ADDMEDICA"]
["ADEP ASSISTANCE","ADEP ASSISTANCE"]
["Adept Field Solutions","Adept Field Solutions"]
["ADIR ASSISTANCE","ADIR ASSISTANCE"]
["Adiral Assistance","Adiral Assistance"]
["ADIRAL Association d'Aide aux Traitements À Domicile","ADIRAL Association d'Aide aux Traitements À Domicile"]
["ADLER ORTHO France","ADLER ORTHO France"]
["Adler Ortho srl","Adler Ortho srl"]
["ADS ALSACE","ADS ALSACE"]
["ADS CHAMPAGNE ARDENNE","ADS CHAMPAGNE ARDENNE"]
["ADS LORRAINE","ADS LORRAINE"]
["ADVANCE SAS","ADVANCE SAS"]
["Advanced Accelerator Applications","Advanced Accelerator Applications"]
["Advanced Accelerator Applications International SA","Advanced Accelerator Applications International SA"]
["ADVANCED BIONICS SARL","ADVANCED BIONICS SARL"]
["Advanced Medical Services, AMS GmbH","Advanced Medical Services, AMS GmbH"]
["ADVICENNE","ADVICENNE"]
["Aegerion Pharmaceuticals","Aegerion Pharmaceuticals"]
["Aepodia France SARL","Aepodia France SARL"]
["AERIS Medical SAS","AERIS Medical SAS"]
["AEROGEN","AEROGEN"]
["AFFINITES SANTE","AFFINITES SANTE"]
["Agence Conseil 3P","Agence Conseil 3P"]
["agence européenne informatique","agence européenne informatique"]
["Agfa HealthCare France SA","Agfa HealthCare France SA"]
["AGFA Healthcare Imaging Agents France","AGFA Healthcare Imaging Agents France"]
["AGILENT TECHNOLOGIES FRANCE","AGILENT TECHNOLOGIES FRANCE"]
["AGIR À dom Assistance","AGIR À dom Assistance"]
["Aide aux Insuffisants Respiratoires de la Région Auvergne (A.I.R.R.A.)","Aide aux Insuffisants Respiratoires de la Région Auvergne (A.I.R.R.A.)"]
["Aide aux Insuffisants Respiratoires de la Région Auvergne (A.I.R.R.A.)","Aide aux Insuffisants Respiratoires de la Région Auvergne (A.I.R.R.A.)"]
["AIR A DOMICILE","AIR A DOMICILE"]
["AIR DE BRETAGNE","AIR DE BRETAGNE"]
["AIR DOMICILE SANTE ALPES","AIR DOMICILE SANTE ALPES"]
["AIR DOMICILE VALLEE DU RHONE","AIR DOMICILE VALLEE DU RHONE"]
["Air Liquide European Homecare Operations Services","Air Liquide European Homecare Operations Services"]
["AIR LIQUIDE MEDICAL SYSTEMS","AIR LIQUIDE MEDICAL SYSTEMS"]
["AIR LIQUIDE SANTE (INTERNATIONAL)","AIR LIQUIDE SANTE (INTERNATIONAL)"]
["AIR LIQUIDE SANTE FRANCE","AIR LIQUIDE SANTE FRANCE"]
["AIR SANTE","AIR SANTE"]
["AIRE","AIRE"]
["AIREL","AIREL"]
["AIXIAL","AIXIAL"]
["AIXPER'F","AIXPER'F"]
["AJ4MED","AJ4MED"]
["ALAIN AFFLELOU FRANCHISEUR","ALAIN AFFLELOU FRANCHISEUR"]
["ALAIR & AVD","ALAIR & AVD"]
["Alcimed GmbH","Alcimed GmbH"]
["Alcimed Inc","Alcimed Inc"]
["Alcimed SARL","Alcimed SARL"]
["Alcimed SAS","Alcimed SAS"]
["Alcimed Sprl","Alcimed Sprl"]
["Alcura France","Alcura France"]
["ALERE E-SANTE SAS","ALERE E-SANTE SAS"]
["ALERE SAS","ALERE SAS"]
["Alexion Pharma France","Alexion Pharma France"]
["ALFA WASSERMANN PHARMA","ALFA WASSERMANN PHARMA"]
["Align Technology SAS","Align Technology SAS"]
["Alimera Sciences France","Alimera Sciences France"]
["ALISEO","ALISEO"]
["Alizé Pharma SAS","Alizé Pharma SAS"]
["Alizé Pharma SAS","Alizé Pharma SAS"]
["Alizé Santé","Alizé Santé"]
["Alizé Santé","Alizé Santé"]
["ALK-Abelló","ALK-Abelló"]
["ALK-AbellÓ","ALK-AbellÓ"]
["ALKAPHARM","ALKAPHARM"]
["All Global","All Global"]
["ALLERGAN FRANCE","ALLERGAN FRANCE"]
["alliance healthcare repartition","alliance healthcare repartition"]
["ALLIANCE PHARMA FRANCE","ALLIANCE PHARMA FRANCE"]
["ALLIANCE'PERF","ALLIANCE'PERF"]
["ALLP MEDITEC","ALLP MEDITEC"]
["ALMIRALL SAS","ALMIRALL SAS"]
["ALMUS","ALMUS"]
["ALPHATEC SPINE INC","ALPHATEC SPINE INC"]
["ALPHEGA","ALPHEGA"]
["ALPINE SCIENTIFIC","ALPINE SCIENTIFIC"]
["ALSANZA sarl","ALSANZA sarl"]
["ALTEOR","ALTEOR"]
["alveol'air","alveol'air"]
["ALVIMEDICA Medical Technologie France","ALVIMEDICA Medical Technologie France"]
["AM AUDITION","AM AUDITION"]
["AMADEUS SANTE","AMADEUS SANTE"]
["AMB-I SANTE PROVENCE","AMB-I SANTE PROVENCE"]
["AMC APPAREILLAGE ET MATERIEL DE CARDIOLOGIE","AMC APPAREILLAGE ET MATERIEL DE CARDIOLOGIE"]
["American Medical Systems France","American Medical Systems France"]
["American Orthodontics","American Orthodontics"]
["AMGEN SAS","Amgen"]
["AMICUS THERAPEUTICS SAS","AMICUS THERAPEUTICS SAS"]
["AMO FRANCE SAS","AMO FRANCE SAS"]
["AMO Germany GmbH","AMO Germany GmbH"]
["AMO INC USA","AMO INC USA"]
["Amplifon Groupe France","Amplifon Groupe France"]
["AMPLITUDE","AMPLITUDE"]
["AMS 25","AMS 25"]
["AMS 70","AMS 70"]
["AMS 88","AMS 88"]
["ANERA","ANERA"]
["ANNAYAKE","ANNAYAKE"]
["ANTADIR","ANTADIR"]
["Antadir Assistance SAS","Antadir Assistance SAS"]
["ANTHOGYR","ANTHOGYR"]
["ANTILLES AUDITION GUADELOUPE","ANTILLES AUDITION GUADELOUPE"]
["AOTI Ltd","AOTI Ltd"]
["APARD","APARD"]
["apol","apol"]
["APOLLO ENDOSURGERY UK LTD","APOLLO ENDOSURGERY UK LTD"]
["Applied Medical France","Applied Medical France"]
["APROVA","APROVA"]
["APTALIS PHARMA SAS","APTALIS PHARMA SAS"]
["Aptiv Solutions","Aptiv Solutions"]
["AQUILAB","AQUILAB"]
["ARAIR Assistance","ARAIR Assistance"]
["ARAIR Assistance S.A.","ARAIR Assistance S.A."]
["ARAIRCHAR","ARAIRCHAR"]
["arard","arard"]
["ARCHIMEDES PHARMA France","ARCHIMEDES PHARMA France"]
["ARCOS","ARCOS"]
["ARGON MEDICAL DEVICES","ARGON MEDICAL DEVICES"]
["ARIAD Pharmaceuticals (France)","ARIAD Pharmaceuticals (France)"]
["ARJOHUNTLEIGH","ARJOHUNTLEIGH"]
["ARROW GENERIQUES SAS","ARROW GENERIQUES SAS"]
["ARSENAL-CDM","ARSENAL-CDM"]
["ART&COS","ART&COS"]
["ARTHES","ARTHES"]
["Arthrex SAS","Arthrex SAS"]
["Arthritis Fondation Courtin","Arthritis Fondation Courtin"]
["ArthroCare France","ArthroCare France"]
["Artialis","Artialis"]
["ARX SAS","ARX SAS"]
["ASAHI INTECC CO., LTD.","ASAHI INTECC CO., LTD."]
["Ascensia Diabetes Care France","Ascensia Diabetes Care France"]
["ASDIA","ASDIA"]
["Asept InMed","Asept InMed"]
["ASKLE SANTE","ASKLE SANTE"]
["ASPEN FRANCE","ASPEN FRANCE"]
["ASPIDE AESTHETIC","ASPIDE AESTHETIC"]
["ASPIDE MEDICAL","ASPIDE MEDICAL"]
["ASSISTANCE DU GRAND EST","ASSISTANCE DU GRAND EST"]
["ASSISTANCES MEDICALES SPECIALISEES","ASSISTANCES MEDICALES SPECIALISEES"]
["Association Françoise et Eugène MINKOWSKI pour la santé mentale des migrants","Association Françoise et Eugène MINKOWSKI pour la santé mentale des migrants"]
["Association Françoise et Eugène MINKOWSKI pour la santé mentale des migrants","Association Françoise et Eugène MINKOWSKI pour la santé mentale des migrants"]
["Association pour le Développement de l'Enseignement et des Recherches auprès des universités des centres de recherches et des entreprises d'Aquitaine (ADERA)","Association pour le Développement de l'Enseignement et des Recherches auprès des universités des centres de recherches et des entreprises d'Aquitaine (ADERA)"]
["Association pour le Développement de l'Enseignement et des Recherches auprès des universités des centres de recherches et des entreprises d'Aquitaine (ADERA)","Association pour le Développement de l'Enseignement et des Recherches auprès des universités des centres de recherches et des entreprises d'Aquitaine (ADERA)"]
["ASTELLAS PHARMA","ASTELLAS PHARMA"]
["ASTELLAS PHARMA B.V.","ASTELLAS PHARMA B.V."]
["ASTELLAS PHARMA GLOBAL DEVELOPMENT","ASTELLAS PHARMA GLOBAL DEVELOPMENT"]
["ASTELLAS PHARMA GmbH","ASTELLAS PHARMA GmbH"]
["ASTELLAS PHARMA Inc","ASTELLAS PHARMA Inc"]
["ASTELLAS PHARMA Ltd","ASTELLAS PHARMA Ltd"]
["ASTELLAS PHARMA S.A.","ASTELLAS PHARMA S.A."]
["Astellas Pharma Singapore Pte. Ltd.","Astellas Pharma Singapore Pte. Ltd."]
["ASTELLAS PHARMACEUTICALS AE","ASTELLAS PHARMACEUTICALS AE"]
["ASTON MEDICAL Anciennement SOCIETE DE GENIE MEDICAL - S.G.M.","ASTON MEDICAL Anciennement SOCIETE DE GENIE MEDICAL - S.G.M."]
["ASTRAZENECA","AstraZeneca"]
["Athersys, Inc.","Athersys, Inc."]
["Atlantic Pharmacetuicals Ltd","Atlantic Pharmacetuicals Ltd"]
["ATLANTIC SURDITE","ATLANTIC SURDITE"]
["ATLANTIS DIFFUSION","ATLANTIS DIFFUSION"]
["ATLANTIS DIFFUSION SAM","ATLANTIS DIFFUSION SAM"]
["ATOS MEDICAL SAS","ATOS MEDICAL SAS"]
["AtriCure, Inc.","AtriCure, Inc."]
["AUDARMOR","AUDARMOR"]
["Audika Groupe SA","Audika Groupe SA"]
["audio acoustique sud","audio acoustique sud"]
["AUDIOCONSULTING","AUDIOCONSULTING"]
["AUDIOELYSCAU","AUDIOELYSCAU"]
["AUDIOMEDI SAS","AUDIOMEDI SAS"]
["AudioNova France SAS","AudioNova France SAS"]
["AUDIOPTIC TRADE SERVICES","AUDIOPTIC TRADE SERVICES"]
["AUDITION 50","AUDITION 50"]
["AUDITION AQUITAINE CARBON BLANC","AUDITION AQUITAINE CARBON BLANC"]
["AUDITION B&H","AUDITION B&H"]
["AUDITION BOULEVARD MARIE","AUDITION BOULEVARD MARIE"]
["AUDITION CONSEIL FRANCE","AUDITION CONSEIL FRANCE"]
["Audition DEBRUILLE","Audition DEBRUILLE"]
["AUDITION DEBRUILLE BEZANNES","AUDITION DEBRUILLE BEZANNES"]
["AUDITION FISMES","AUDITION FISMES"]
["AUDITION GAMBETTA","AUDITION GAMBETTA"]
["AUDITION LYON EST","AUDITION LYON EST"]
["AUDITION MARIE SIRVEN","AUDITION MARIE SIRVEN"]
["Audition Martin","Audition Martin"]
["AUDITION OUTRE MER","AUDITION OUTRE MER"]
["AUDITION PARIS EST","AUDITION PARIS EST"]
["AUDITION REMI LAMOINE","AUDITION REMI LAMOINE"]
["AUDITION SANTE","AUDITION SANTE"]
["AUDITION TRIBUT VERJUS","AUDITION TRIBUT VERJUS"]
["AUDITIONLAC","AUDITIONLAC"]
["AUXESIA","AUXESIA"]
["AVANTEC","AVANTEC"]
["AX'AIR MEDICAL","AX'AIR MEDICAL"]
["AXDOM VAR","AXDOM VAR"]
["Axess Research","Axess Research"]
["AXIS biodental SA","AXIS biodental SA"]
["AXIS Dental Sarl","AXIS Dental Sarl"]
["AXIS Santé","AXIS Santé"]
["AXIS Santé","AXIS Santé"]
["AXONAL","AXONAL"]
["Axonics Modulation Technologies, Inc.","Axonics Modulation Technologies, Inc."]
["AX'PERF MEDICAL","AX'PERF MEDICAL"]
["AZ MEDICAL","AZ MEDICAL"]
["B. Braun Avitum France SAS","B. Braun Avitum France SAS"]
["B.BRAUN MEDICAL SAS","B.BRAUN MEDICAL SAS"]
["B.R.A. SAS","B.R.A. SAS"]
["B3TSI","B3TSI"]
["BAC OPTIQUE","BAC OPTIQUE"]
["BALJO","BALJO"]
["BALT EXTRUSION SAS","BALT EXTRUSION SAS"]
["BALT INTERNATIONAL","BALT INTERNATIONAL"]
["BARD FRANCE SAS","BARD FRANCE SAS"]
["Bastide Le Confort Médical","Bastide Le Confort Médical"]
["Bastide Le Confort Médical","Bastide Le Confort Médical"]
["BAUERFEIND FRANCE","BAUERFEIND FRANCE"]
["BAXALTA FRANCE SAS","BAXALTA FRANCE SAS"]
["Baxter SAS","Baxter SAS"]
["Bayer HealthCare SAS","Bayer HealthCare SAS"]
["BAYER SANTE FAMILIALE","BAYER SANTE FAMILIALE"]
["BBGR SAS","BBGR SAS"]
["BEAUFOUR IPSEN INDUSTRIE","BEAUFOUR IPSEN INDUSTRIE"]
["BEAUTE PRESTIGE INTERNATIONAL","BEAUTE PRESTIGE INTERNATIONAL"]
["Beaver-Visitec Int'l Sales Ltd","Beaver-Visitec Int'l Sales Ltd"]
["BECKMAN COULTER FRANCE","BECKMAN COULTER FRANCE"]
["Becton Dickinson France SAS","Becton Dickinson France SAS"]
["Beiersdorf s.a.s","Beiersdorf s.a.s"]
["BELLCO FRANCE","BELLCO FRANCE"]
["BEST OF OPTIMIZERS","BEST OF OPTIMIZERS"]
["Bien-Air France","Bien-Air France"]
["BIO COMPOSANTS MEDICAUX","BIO COMPOSANTS MEDICAUX"]
["BIOCODEX","BIOCODEX"]
["Biocompatibles UK Ltd","Biocompatibles UK Ltd"]
["BIOCORP PRODUCTION","BIOCORP PRODUCTION"]
["BioCryst Pharmaceuticals Inc.","BioCryst Pharmaceuticals Inc."]
["BIOCYTEX","BIOCYTEX"]
["BIODIMED Conseils","BIODIMED Conseils"]
["Biofortis SAS","Biofortis SAS"]
["BIOGARAN","BIOGARAN"]
["BIOGEN FRANCE SAS","BIOGEN FRANCE SAS"]
["BioHorizons Iberica S.R.L.","BioHorizons Iberica S.R.L."]
["Biomarin Europe Ltd.","Biomarin Europe Ltd."]
["BIOMATLANTE SA","BIOMATLANTE SA"]
["bioMérieux","bioMérieux"]
["bioMérieux","bioMérieux"]
["BIOMET","BIOMET"]
["BIOMET 3i","BIOMET 3i"]
["BIOMET BELGIUM BVBA","BIOMET BELGIUM BVBA"]
["BIOMET CHINA","BIOMET CHINA"]
["Biomet France","Biomet France"]
["BIOMET GLOBAL SUPPLY CHAIN CENTER B.V.","BIOMET GLOBAL SUPPLY CHAIN CENTER B.V."]
["Biomet Inc","Biomet Inc"]
["Biomet Japan, Inc.","Biomet Japan, Inc."]
["Biomet Orthopaedics Sweeden","Biomet Orthopaedics Sweeden"]
["Biomet Spain Orthopaedics S.L.","Biomet Spain Orthopaedics S.L."]
["BIOMET UK Limited","BIOMET UK Limited"]
["BIOM'UP","BIOM'UP"]
["Bioprojet","Bioprojet"]
["BIOPROJET PHARMA","BIOPROJET PHARMA"]
["BIO-RAD","BIO-RAD"]
["BIO-RAD AbD Serotec Ltd","BIO-RAD AbD Serotec Ltd"]
["BIO-RAD Innovations","BIO-RAD Innovations"]
["BIO-RAD Laboratories Inc.","BIO-RAD Laboratories Inc."]
["BIO-RAD Laboratories Limited","BIO-RAD Laboratories Limited"]
["BIO-RAD Laboratories S.A.S.","BIO-RAD Laboratories S.A.S."]
["Biosensors Europe SA","Biosensors Europe SA"]
["Biosensors France SAS","Biosensors France SAS"]
["BIOSERENITY","BIOSERENITY"]
["Biosphere Medical, Inc.","Biosphere Medical, Inc."]
["Biosphere Medical, S.A.","Biosphere Medical, S.A."]
["BIOSPINE IMPLANTS","BIOSPINE IMPLANTS"]
["BIOSTATEM","BIOSTATEM"]
["BIOTECH DENTAL","BIOTECH DENTAL"]
["BIOTECH ORTHO","BIOTECH ORTHO"]
["BIOTEST AG","BIOTEST AG"]
["BIOTEST FRANCE SAS","BIOTEST FRANCE SAS"]
["BIOTEST HUNGARIA KFT.","BIOTEST HUNGARIA KFT."]
["BIOTRIAL","BIOTRIAL"]
["BIOTRONIK AG","BIOTRONIK AG"]
["BIOTRONIK Belgium","BIOTRONIK Belgium"]
["BIOTRONIK FRANCE SAS","BIOTRONIK FRANCE SAS"]
["BIOTRONIK SE & Co. KG","BIOTRONIK SE & Co. KG"]
["BIOVENTUS","BIOVENTUS"]
["Bisico","Bisico"]
["BLOCKADE MEDICAL, LLC","BLOCKADE MEDICAL, LLC"]
["BLUE-REG PHARMA CONSULT","BLUE-REG PHARMA CONSULT"]
["BLUESOM","BLUESOM"]
["BOEHRINGER INGELHEIM FRANCE","BOEHRINGER INGELHEIM FRANCE"]
["BOIRON","BOIRON"]
["BOIRON CARAIBES","BOIRON CARAIBES"]
["BOIRON OCEAN INDIEN","BOIRON OCEAN INDIEN"]
["Bone Therapeutics","Bone Therapeutics"]
["BONNET SOUYRIS PROSPECTIVE","BONNET SOUYRIS PROSPECTIVE"]
["Boston Healthcare International","Boston Healthcare International"]
["BOSTON SCIENTIFIC SAS","BOSTON SCIENTIFIC SAS"]
["BRACCO DIAGNOSTICS INC","BRACCO DIAGNOSTICS INC"]
["BRACCO IMAGING FRANCE","BRACCO IMAGING FRANCE"]
["BRACCO IMAGING ITALIA SRL","BRACCO IMAGING ITALIA SRL"]
["BRACCO IMAGING SPA","BRACCO IMAGING SPA"]
["BRACCO SUISSE SA","BRACCO SUISSE SA"]
["BRAHMS FRANCE SAS","BRAHMS FRANCE SAS"]
["BRAHMS GmbH","BRAHMS GmbH"]
["Brainlab","Brainlab"]
["Brand Institute","Brand Institute"]
["Branding Science (UK) Ltd","Branding Science (UK) Ltd"]
["BREAS MEDICAL","BREAS MEDICAL"]
["Bristol -Myers Squibb GmbH & Co. KGaA","Bristol -Myers Squibb"]
["BRISTOL-MYERS SQUIBB","Bristol -Myers Squibb"]
["Bristol-Myers Squibb Australia Pty Limited","Bristol -Myers Squibb"]
["Bristol-Myers Squibb Business Services Limited","Bristol-Myers Squibb Business Services Limited"]
["BRISTOL-MYERS SQUIBB COMPANY","Bristol -Myers Squibb"]
["Bristol-Myers Squibb EMEA","Bristol -Myers Squibb"]
["Bristol-Myers Squibb Finlande Ab","Bristol-Myers Squibb Finlande Ab"]
["Bristol-Myers Squibb Israel","Bristol-Myers Squibb Israel"]
["Bristol-Myers Squibb K.K","Bristol-Myers Squibb K.K"]
["Bristol-Myers Squibb Middle East & Africa FZ-LLC","Bristol-Myers Squibb Middle East & Africa FZ-LLC"]
["BRISTOL-MYERS SQUIBB PHARMACEUTICALS LTD","Bristol -Myers Squibb"]
["BRISTOL-MYERS SQUIBB SA","Bristol -Myers Squibb"]
["Bristol-Myers Squibb, S.A.U.","Bristol-Myers Squibb, S.A.U."]
["Bruker Daltonique","Bruker Daltonique"]
["bruneau","bruneau"]
["BSN medical SAS","BSN medical SAS"]
["BSN-RADIANTE SAS","BSN-RADIANTE SAS"]
["Buhlmann France","Buhlmann France"]
["Bull's Eye Innovations","Bull's Eye Innovations"]
["BVA","BVA"]
["BY AGENCY GROUP","BY AGENCY GROUP"]
["C.F.E.B. SISLEY","C.F.E.B. SISLEY"]
["C@RDISTIM","C@RDISTIM"]
["C2F IMPLANTS","C2F IMPLANTS"]
["C2R SAS","C2R SAS"]
["CAB","CAB"]
["CAIR LGL","CAIR LGL"]
["CANAL 55 COMMUNICATION","CANAL 55 COMMUNICATION"]
["CAPIDEL SANTE SARL","CAPIDEL SANTE SARL"]
["CAPRON PODOLOGIE","CAPRON PODOLOGIE"]
["carco","carco"]
["Cardiac Dimensions, Pty LTD","Cardiac Dimensions, Pty LTD"]
["Cardial SAS","Cardial SAS"]
["CardiAQ Valve Technologies, Inc.","CardiAQ Valve Technologies, Inc."]
["CARDIF ASSISTANCE","CARDIF ASSISTANCE"]
["Cardim@t","Cardim@t"]
["CARDINAL HEALTH FRANCE 506 SAS","CARDINAL HEALTH FRANCE 506 SAS"]
["CARDIOLOGS TECHNOLOGIES","CARDIOLOGS TECHNOLOGIES"]
["cardipulse","cardipulse"]
["CAREFUSION FRANCE 309 SAS","CAREFUSION FRANCE 309 SAS"]
["CAREFUSION SWITZERLAND 317 SÀrl","CAREFUSION SWITZERLAND 317 SÀrl"]
["CARESTREAM HEALTH FRANCE","CARESTREAM HEALTH FRANCE"]
["CARL ZEISS MEDITEC AG","CARL ZEISS MEDITEC AG"]
["Carl Zeiss Meditec France","Carl Zeiss Meditec France"]
["CARL ZEISS MEDITEC SAS","CARL ZEISS MEDITEC SAS"]
["Carl Zeiss Vision France","Carl Zeiss Vision France"]
["CARMAT","CARMAT"]
["CAROLINE ROBIN AUDITION","CAROLINE ROBIN AUDITION"]
["CARPENTER SAS","CARPENTER SAS"]
["Carvadys S.A.S","Carvadys S.A.S"]
["CBPartners","CBPartners"]
["CDL OPTIQUE","CDL OPTIQUE"]
["CECS","CECS"]
["CELGENE","CELGENE"]
["CELGENE SAS","CELGENE SAS"]
["Celldex Therapeutics","Celldex Therapeutics"]
["CELLforCURE","CELLforCURE"]
["CELONOVA BIOSCIENCES OF EUROPE B.V","CELONOVA BIOSCIENCES OF EUROPE B.V"]
["cemka","cemka"]
["CENDRES+METAUX FRANCE SAS","CENDRES+METAUX FRANCE SAS"]
["CENTRALE DES OPTICIENS","CENTRALE DES OPTICIENS"]
["CENTRALE DES PEELINGS","CENTRALE DES PEELINGS"]
["CENTRALE DES PHARMACIENS","CENTRALE DES PHARMACIENS"]
["Centre d'Audition Bruant","Centre d'Audition Bruant"]
["Centre de stomathérapie","Centre de stomathérapie"]
["Centre de stomathérapie","Centre de stomathérapie"]
["Centre d'Etudes et de Recherches cosmétologiques CERCO","Centre d'Etudes et de Recherches cosmétologiques CERCO"]
["Centre d'Etudes et de Recherches cosmétologiques CERCO","Centre d'Etudes et de Recherches cosmétologiques CERCO"]
["centre d'optique et d'audition","centre d'optique et d'audition"]
["Cepheid Europe SAS","Cepheid Europe SAS"]
["Ceramconcept France","Ceramconcept France"]
["CERC","CERC"]
["CERECARE","CERECARE"]
["CEREDAS","CEREDAS"]
["CEREPLAS","CEREPLAS"]
["CERI MEDICAL","CERI MEDICAL"]
["CERMAVEIN","CERMAVEIN"]
["CERP RHIN RHONE MEDITERRANEE","CERP RHIN RHONE MEDITERRANEE"]
["CERP ROUEN","CERP ROUEN"]
["Cerus Corporation","Cerus Corporation"]
["Cerus Europe B.V.","Cerus Europe B.V."]
["Cezanne","Cezanne"]
["CHEMO S.A. FRANCE","CHEMO S.A. FRANCE"]
["CHIESI SAS","CHIESI SAS"]
["Chiltern International SARL","Chiltern International SARL"]
["CHOC","CHOC"]
["chris eyes","chris eyes"]
["CHRISTEYNS FRANCE","CHRISTEYNS FRANCE"]
["CHUGAI PHARMA FRANCE","CHUGAI"]
["CID","CID"]
["CIDELEC","CIDELEC"]
["Cido Research GmbH","Cido Research GmbH"]
["Cirrina","Cirrina"]
["CIS BIO INTERNATIONAL","CIS BIO INTERNATIONAL"]
["Cisbio Bioassays","Cisbio Bioassays"]
["CIZETA MEDICALI France","CIZETA MEDICALI France"]
["CLARIANCE","CLARIANCE"]
["CLARIANCE INC","CLARIANCE INC"]
["CLARIPHARM","CLARIPHARM"]
["CLCA consulting","CLCA consulting"]
["CLIN DATA MANAGEMENT","CLIN DATA MANAGEMENT"]
["CLINHOSPI","CLINHOSPI"]
["Clinical Trial Consulting","Clinical Trial Consulting"]
["CLINICPROSPORT SAS","CLINICPROSPORT SAS"]
["CLINSEARCH","CLINSEARCH"]
["CLS Paris","CLS Paris"]
["Cochlear France","Cochlear France"]
["Codexial Dermatologie","Codexial Dermatologie"]
["colgate palmolive","colgate palmolive"]
["COLGATE PALMOLIVE EUROPE SARL","COLGATE PALMOLIVE EUROPE SARL"]
["COLLIN","COLLIN"]
["COLOPLAST A/S","COLOPLAST A/S"]
["Coloplast Manufacturing France","Coloplast Manufacturing France"]
["COMM Santé","COMM Santé"]
["COMM Santé","COMM Santé"]
["COMMUNICATION GLOBALE SANTE","COMMUNICATION GLOBALE SANTE"]
["Conceptus SAS","Conceptus SAS"]
["CONGRES COLLOQUES CONVENTIONS","CONGRES COLLOQUES CONVENTIONS"]
["CONMED France","CONMED France"]
["Consentio","Consentio"]
["ConsuMed Research","ConsuMed Research"]
["CONVATEC Inc.","CONVATEC Inc."]
["Cook France SARL","Cook France SARL"]
["COOPERATION PHARMACEUTIQUE FRANCAISE","COOPERATION PHARMACEUTIQUE FRANCAISE"]
["COOPERVISION SAS","COOPERVISION SAS"]
["CORDIS","CORDIS"]
["CORMOVE","CORMOVE"]
["CORONA MEDICAL SAS","CORONA MEDICAL SAS"]
["CORREVIO","CORREVIO"]
["CORSE OXYGENE","CORSE OXYGENE"]
["CORTEX VISION TECH","CORTEX VISION TECH"]
["Corvia Medical Inc.","Corvia Medical Inc."]
["COSMACT","COSMACT"]
["COSMETIQUE ACTIVE FRANCE","COSMETIQUE ACTIVE FRANCE"]
["COSMETIQUE ACTIVE INTERNATIONAL","COSMETIQUE ACTIVE INTERNATIONAL"]
["Côté Audition","Côté Audition"]
["Côté Audition","Côté Audition"]
["COUSIN BIOSERV","COUSIN BIOSERV"]
["COUSIN BIOTECH","COUSIN BIOTECH"]
["COUSIN ENDOSURG","COUSIN ENDOSURG"]
["Covalia Interactive","Covalia Interactive"]
["Covance Clinical And Periapproval Services SARL","Covance Clinical And Periapproval Services SARL"]
["Covidien AG","Covidien AG"]
["COVIDIEN FRANCE S.A.S.","COVIDIEN FRANCE S.A.S."]
["CREAFIRST","CREAFIRST"]
["Creativ-Ceutical France","Creativ-Ceutical France"]
["CRISTALENS SA","CRISTALENS SA"]
["CRISTERS","CRISTERS"]
["CROMA","CROMA"]
["CROMA FRANCE SASU","CROMA FRANCE SASU"]
["CRYOLIFE FRANCE","CRYOLIFE FRANCE"]
["CSA","CSA"]
["CSL BEHRING SA","CSL BEHRING SA"]
["CTI Clinical Trial and Consulting Services France SARL","CTI Clinical Trial and Consulting Services France SARL"]
["Cubist Pharmaceuticals France","Cubist Pharmaceuticals France"]
["Cutting Edge","Cutting Edge"]
["CVRx Inc.","CVRx Inc."]
["Cyberonics BVBA","Cyberonics BVBA"]
["Cyberonics SA","Cyberonics SA"]
["Cyble Marketing","Cyble Marketing"]
["Cytori Therapeutics Inc.","Cytori Therapeutics Inc."]
["DAIICHI SANKYO FRANCE SAS","DAIICHI SANKYO FRANCE SAS"]
["DAKO FRANCE SAS","DAKO FRANCE SAS"]
["Damos","Damos"]
["DÃœRR DENTAL FRANCE","DÃœRR DENTAL FRANCE"]
["Datamonitor Healthcare","Datamonitor Healthcare"]
["DATEXIM","DATEXIM"]
["DATIS NORD","DATIS NORD"]
["David Pruce","David Pruce"]
["DDB Health Paris","DDB Health Paris"]
["DDS Assistance","DDS Assistance"]
["DDSM SARL","DDSM SARL"]
["DEBREGEAS ET ASSOCIES PHARMA","DEBREGEAS ET ASSOCIES PHARMA"]
["DEDIENNE SANTE","DEDIENNE SANTE"]
["DEFI ORTHO","DEFI ORTHO"]
["DENTALINOV","DENTALINOV"]
["DENTAURUM FRANCE","DENTAURUM FRANCE"]
["DENTSPLY FRANCE","DENTSPLY FRANCE"]
["Dentsply Gac Europe","Dentsply Gac Europe"]
["DENTSPLY IH AB","DENTSPLY IH AB"]
["DENTSPLY IH K.K.","DENTSPLY IH K.K."]
["DENTSPLY IH SAS","DENTSPLY IH SAS"]
["DENTSPLY Implants","DENTSPLY Implants"]
["DENTSPLY Implants Manufacturing GmbH","DENTSPLY Implants Manufacturing GmbH"]
["DEPUY France","DEPUY France"]
["Devicor Medical","Devicor Medical"]
["Dexter","Dexter"]
["DFine Europe GmbH","DFine Europe GmbH"]
["DFINE Inc","DFINE Inc"]
["DIABSANTE","DIABSANTE"]
["DIADOM SAS","DIADOM SAS"]
["DIAGAST","DIAGAST"]
["DIAGNOSTICA STAGO","DIAGNOSTICA STAGO"]
["Diamed France SA","Diamed France SA"]
["Diamed GmbH","Diamed GmbH"]
["DIASORIN SA","DIASORIN SA"]
["DIAXONHIT","DIAXONHIT"]
["DIDACTIC","DIDACTIC"]
["DINNO SANTE","DINNO SANTE"]
["Direct Medica","Direct Medica"]
["DIS PAR","DIS PAR"]
["DISMEDIS","DISMEDIS"]
["DISTRICLASS MEDICAL SA","DISTRICLASS MEDICAL SA"]
["DIXI microtechniques","DIXI microtechniques"]
["DJO France SAS","DJO France SAS"]
["DMEDICA","DMEDICA"]
["DOM'AIR","DOM'AIR"]
["Dominique TATE","Dominique TATE"]
["DOMISANTE PROXIMED","DOMISANTE PROXIMED"]
["DON'ORTHO","DON'ORTHO"]
["DR WEIGERT FRANCE SAS","DR WEIGERT FRANCE SAS"]
["Draeger Medical Canada","Draeger Medical Canada"]
["Draeger Medical Systems, Inc","Draeger Medical Systems, Inc"]
["DRÄGER MEDICAL GmbH","DRÄGER MEDICAL GmbH"]
["DRÄGER MEDICAL GmbH","DRÄGER MEDICAL GmbH"]
["DRAGER MEDICAL S.A.S.","DRAGER MEDICAL S.A.S."]
["Drägerwerk AG & Co. KGaA","Drägerwerk AG & Co. KGaA"]
["DRAPER PHARMA","DRAPER PHARMA"]
["DUFLOT SANTE","DUFLOT SANTE"]
["DUNES MEDICAL","DUNES MEDICAL"]
["DUOTECH","DUOTECH"]
["DUX B.V.","DUX B.V."]
["Dynavie","Dynavie"]
["E Coach Cardio","E Coach Cardio"]
["e(ye)BRAIN","e(ye)BRAIN"]
["Echosens","Echosens"]
["Eckert & Ziegler BEBIG","Eckert & Ziegler BEBIG"]
["ECM PROXIMED","ECM PROXIMED"]
["EDAP TMS France SAS","EDAP TMS France SAS"]
["EDIMARK","EDIMARK"]
["EDITION DE L'INTERLIGNE","EDITION DE L'INTERLIGNE"]
["EDUSANTE","EDUSANTE"]
["EDWARDS LIFESCIENCES","EDWARDS LIFESCIENCES"]
["EDWARDS LIFESCIENCES ALLEMAGNE","EDWARDS LIFESCIENCES ALLEMAGNE"]
["EDWARDS LIFESCIENCES AUSTRALIE","EDWARDS LIFESCIENCES AUSTRALIE"]
["EDWARDS LIFESCIENCES AUTRICHE","EDWARDS LIFESCIENCES AUTRICHE"]
["EDWARDS LIFESCIENCES BELGIQUE","EDWARDS LIFESCIENCES BELGIQUE"]
["EDWARDS LIFESCIENCES BRESIL","EDWARDS LIFESCIENCES BRESIL"]
["EDWARDS LIFESCIENCES CANADA","EDWARDS LIFESCIENCES CANADA"]
["EDWARDS LIFESCIENCES CHINA","EDWARDS LIFESCIENCES CHINA"]
["EDWARDS LIFESCIENCES COREE DU SUD","EDWARDS LIFESCIENCES COREE DU SUD"]
["EDWARDS LIFESCIENCES CORPORATION","EDWARDS LIFESCIENCES CORPORATION"]
["Edwards Lifesciences Danemark","Edwards Lifesciences Danemark"]
["EDWARDS LIFESCIENCES ESPAGNE","EDWARDS LIFESCIENCES ESPAGNE"]
["EDWARDS LIFESCIENCES GRECE","EDWARDS LIFESCIENCES GRECE"]
["EDWARDS LIFESCIENCES IRLANDE","EDWARDS LIFESCIENCES IRLANDE"]
["EDWARDS LIFESCIENCES ISRAEL","EDWARDS LIFESCIENCES ISRAEL"]
["EDWARDS LIFESCIENCES ITALIE","EDWARDS LIFESCIENCES ITALIE"]
["EDWARDS LIFESCIENCES JAPON","EDWARDS LIFESCIENCES JAPON"]
["EDWARDS LIFESCIENCES NORDIC/FINLAND","EDWARDS LIFESCIENCES NORDIC/FINLAND"]
["EDWARDS LIFESCIENCES PAYS-BAS","EDWARDS LIFESCIENCES PAYS-BAS"]
["EDWARDS LIFESCIENCES PORTUGAL","EDWARDS LIFESCIENCES PORTUGAL"]
["EDWARDS LIFESCIENCES REPUBLIQUE TCHEQUE","EDWARDS LIFESCIENCES REPUBLIQUE TCHEQUE"]
["EDWARDS LIFESCIENCES ROYAUME-UNI","EDWARDS LIFESCIENCES ROYAUME-UNI"]
["EDWARDS LIFESCIENCES RUSSIE","EDWARDS LIFESCIENCES RUSSIE"]
["Edwards Lifesciences SA","Edwards Lifesciences SA"]
["EDWARDS LIFESCIENCES SUEDE","EDWARDS LIFESCIENCES SUEDE"]
["EDWARDS LIFESCIENCES SUISSE","EDWARDS LIFESCIENCES SUISSE"]
["EDWARDS LIFESCIENCES TURQUIE","EDWARDS LIFESCIENCES TURQUIE"]
["EFFICARE SARL","EFFICARE SARL"]
["EFFIK","EFFIK"]
["EG LABO - LABORATOIRES EUROGENERICS","EG LABO - EUROGENERICS"]
["EISAI SAS","EISAI SAS"]
["ELEKTA SAS","ELEKTA SAS"]
["ELIA MEDICAL","ELIA MEDICAL"]
["ELIA MEDICAL MEDITERRANEE","ELIA MEDICAL MEDITERRANEE"]
["ELIA MEDICAL OUEST","ELIA MEDICAL OUEST"]
["ELIA MEDICAL PARIS","ELIA MEDICAL PARIS"]
["ELIA MEDICAL PARIS OUEST","ELIA MEDICAL PARIS OUEST"]
["ELIA SUD OUEST","ELIA SUD OUEST"]
["ELIAMM SARL","ELIAMM SARL"]
["ELITech France","ELITech France"]
["Elixo SAS","Elixo SAS"]
["Elma Research srl","Elma Research srl"]
["ELOI MEDICAL","ELOI MEDICAL"]
["Eloi Pernet","Eloi Pernet"]
["ELSODENT","ELSODENT"]
["EM Services","EM Services"]
["EMA SARL","EMA SARL"]
["EMETROP'","EMETROP'"]
["EMS FRANCE SARL","EMS FRANCE SARL"]
["EMULSAR","EMULSAR"]
["ENDOCONTROL","ENDOCONTROL"]
["ENDOLOGIX INTERNATIONAL BV","ENDOLOGIX INTERNATIONAL BV"]
["ENTENDRE","ENTENDRE"]
["Eole santé","Eole santé"]
["Eole santé","Eole santé"]
["EOLIS SANTE","EOLIS SANTE"]
["Eos imaging","Eos imaging"]
["EPISKIN","EPISKIN"]
["EQINOX HEALTHCARE FRANCE","EQINOX HEALTHCARE FRANCE"]
["ERYTECH Pharma","ERYTECH Pharma"]
["esanum GmbH","esanum GmbH"]
["ESAOTE Medical","ESAOTE Medical"]
["ESPACE MEDICAL BOURGES","ESPACE MEDICAL BOURGES"]
["espace medical medic centre","espace medical medic centre"]
["ESPACE MEDICAL MONTLUCON","ESPACE MEDICAL MONTLUCON"]
["ESPACE MEDICAL MOULINS","ESPACE MEDICAL MOULINS"]
["espace medical nevers","espace medical nevers"]
["espace medical vichy","espace medical vichy"]
["esprimed","esprimed"]
["Essilor","Essilor"]
["ESSOR FRANCE","ESSOR FRANCE"]
["Et Si ?","Et Si ?"]
["ETHICON","ETHICON"]
["ethimedix","ethimedix"]
["ETHYPHARM","ETHYPHARM"]
["EUMEDICA s.a.","EUMEDICA s.a."]
["EURAXI PHARMA","EURAXI PHARMA"]
["EURL Antoine Durouchez Audition","EURL Antoine Durouchez Audition"]
["Eurl Chaudemanche","Eurl Chaudemanche"]
["eurl generale d'optique","eurl generale d'optique"]
["Eurl Pharmacie Cantarelli","Eurl Pharmacie Cantarelli"]
["EUROBIO","EUROBIO"]
["Eurodep Exploitant","Eurodep Exploitant"]
["EUROFINS OPTIMED","EUROFINS OPTIMED"]
["EUROFINS OPTIMED LYON","EUROFINS OPTIMED LYON"]
["EUROMEDICA IMAGING","EUROMEDICA IMAGING"]
["EUROMEDS","EUROMEDS"]
["EUROPHTA","EUROPHTA"]
["EUROS SAS","EUROS SAS"]
["EUROSAFE","EUROSAFE"]
["EUROSILICONE SAS","EUROSILICONE SAS"]
["EUROSPINE SARL","EUROSPINE SARL"]
["EUROTEKNIKA","EUROTEKNIKA"]
["EUSA Pharma (France) SAS","EUSA Pharma (France) SAS"]
["EUSA PHARMA SAS","EUSA PHARMA SAS"]
["EV3 EUROPE S.A.S.","EV3 EUROPE S.A.S."]
["EVALYS SAS","EVALYS SAS"]
["EVAUX Laboratoires","EVAUX Laboratoires"]
["EVIC FRANCE","EVIC FRANCE"]
["EVIDENCE BASED COMMUNICATION","EVIDENCE BASED COMMUNICATION"]
["EVOLUTIS","EVOLUTIS"]
["EXACTECH FRANCE SAS","EXACTECH FRANCE SAS"]
["EXACTECH INTERNATIONAL OPERATION Ltd.","EXACTECH INTERNATIONAL OPERATION Ltd."]
["EXAFIELD","EXAFIELD"]
["EXPERF AQUITAINE","EXPERF AQUITAINE"]
["EXPERF AUVERGNE","EXPERF AUVERGNE"]
["EXPERF COTE D'AZUR","EXPERF COTE D'AZUR"]
["EXPERF DROME","EXPERF DROME"]
["EXPERF ISERE","EXPERF ISERE"]
["EXPERF LANGUEDOC ROUSSILLON","EXPERF LANGUEDOC ROUSSILLON"]
["EXPERF LORRAINE","EXPERF LORRAINE"]
["EXPERF MIDI PYRENEES","EXPERF MIDI PYRENEES"]
["EXPERF NORD","EXPERF NORD"]
["EXPERF NORMANDIE","EXPERF NORMANDIE"]
["EXPERF PACA","EXPERF PACA"]
["EXPERF PYRENEES ORIENTALES","EXPERF PYRENEES ORIENTALES"]
["EXPERF RHONE ALPES","EXPERF RHONE ALPES"]
["EXPERF VAUCLUSE DROME","EXPERF VAUCLUSE DROME"]
["EXPERTISE RESEARCH","EXPERTISE RESEARCH"]
["EYETECHCARE","EYETECHCARE"]
["Fab'entech","Fab'entech"]
["FAGRON","FAGRON"]
["FARCODERM France","FARCODERM France"]
["FCI SAS","FCI SAS"]
["FeetMe","FeetMe"]
["FERRING SAS","FERRING SAS"]
["FFF AUDIO","FFF AUDIO"]
["FH ORTHOPEDICS","FH ORTHOPEDICS"]
["Field Scope Int Ltd","Field Scope Int Ltd"]
["Field Scope International","Field Scope International"]
["FII","FII"]
["FIMED","FIMED"]
["FINANCIERE BATTEUR","FINANCIERE BATTEUR"]
["FINOX BIOTECH FRANCE SARL","FINOX BIOTECH FRANCE SARL"]
["Firme","Firme"]
["FISHER & PAYKEL HEALTHCARE SAS","FISHER & PAYKEL HEALTHCARE SAS"]
["FISHER SCIENTIFIC SAS","FISHER SCIENTIFIC SAS"]
["FLUOPTICS","FLUOPTICS"]
["Fondation Transplantation","Fondation Transplantation"]
["FOVEA PHARMACEUTICALS","FOVEA PHARMACEUTICALS"]
["France Oxygène","France Oxygène"]
["France Oxygène","France Oxygène"]
["FRANCHIS OPTIQUE AUDITION DE LA SCELLERIE","FRANCHIS OPTIQUE AUDITION DE LA SCELLERIE"]
["FRANCOPIA","FRANCOPIA"]
["FRESENIUS KABI FRANCE","FRESENIUS KABI FRANCE"]
["Fresenius Medical Care France S.A.S.","Fresenius Medical Care France S.A.S."]
["FRESENIUS VIAL","FRESENIUS VIAL"]
["FUJIFILM Medical Systems France","FUJIFILM Medical Systems France"]
["Fujifilm Sonosite France SARL","Fujifilm Sonosite France SARL"]
["FUJIREBIO FRANCE SARL","FUJIREBIO FRANCE SARL"]
["FUKUDA DENSHI CO., LTD","FUKUDA DENSHI CO., LTD"]
["FUMOUZE DIAGNOSTICS - SOFIBEL","FUMOUZE DIAGNOSTICS - SOFIBEL"]
["Future Thinking France","Future Thinking France"]
["FV Clinical","FV Clinical"]
["FX SOLUTIONS","FX SOLUTIONS"]
["GACD","GACD"]
["galderma international","galderma international"]
["Galderma Research & Development","Galderma Research & Development"]
["GaldermaQMed","GaldermaQMed"]
["GALLILEO BUSINESS CONSULTING","GALLILEO BUSINESS CONSULTING"]
["GAMAIN LEGROS","GAMAIN LEGROS"]
["GAMAMABS PHARMA","GAMAMABS PHARMA"]
["GAMBRO HOSPAL SAS","GAMBRO HOSPAL SAS"]
["GAMBRO INDUSTRIES","GAMBRO INDUSTRIES"]
["GAMIDA","GAMIDA"]
["GC FRANCE SAS","GC FRANCE SAS"]
["GC Orthodonics Europe GmbH","GC Orthodonics Europe GmbH"]
["GC TECHNOLOGY","GC TECHNOLOGY"]
["GE HEALTHCARE SAS","GE HEALTHCARE SAS"]
["GE Medical Systems SCS","GE Medical Systems SCS"]
["GECEM","GECEM"]
["GEDEON RICHTER France - Division Santé de la Femme","GEDEON RICHTER France - Division Santé de la Femme"]
["GEDEON RICHTER France - Division Santé de la Femme","GEDEON RICHTER France - Division Santé de la Femme"]
["GEISTLICH PHARMA FRANCE","GEISTLICH PHARMA FRANCE"]
["GemSeek","GemSeek"]
["Genactis SAS","Genactis SAS"]
["GENBIOTECH","GENBIOTECH"]
["Genen-Tech Inc","Genen-Tech Inc"]
["GENERIC IMPLANTS","GENERIC IMPLANTS"]
["generique international","generique international"]
["GENETHON","GENETHON"]
["GeNeuro","GeNeuro"]
["GeNeuro Innovation","GeNeuro Innovation"]
["GENEWAVE S.A.S","GENEWAVE S.A.S"]
["Genmab A/S","Genmab A/S"]
["GENOMIC HEALTH","GENOMIC HEALTH"]
["GENTICEL","GENTICEL"]
["Genzyme","Genzyme"]
["GENZYME POLYCLONALS","GENZYME POLYCLONALS"]
["GEP Santé","GEP Santé"]
["GEP Santé","GEP Santé"]
["Gesellschaft für Konsumforschung (GfK SE)","Gesellschaft für Konsumforschung (GfK SE)"]
["Gesellschaft fÜr Konsumforschung (GfK SE)","Gesellschaft fÜr Konsumforschung (GfK SE)"]
["GETINGE France","GETINGE France"]
["GFK ISL CUSTOM RESEARCH FRANCE","GFK ISL CUSTOM RESEARCH FRANCE"]
["GfK Market Access","GfK Market Access"]
["GfK NOP","GfK NOP"]
["GIBAUD","GIBAUD"]
["GIE DIALYSE SERVICES","GIE DIALYSE SERVICES"]
["GIFRER BARBEZAT","GIFRER BARBEZAT"]
["GILEAD SCIENCES","GILEAD SCIENCES"]
["GIM France","GIM France"]
["Gina","Gina"]
["GIVEN IMAGING","GIVEN IMAGING"]
["GlaxoSmithKline Biologicals","GlaxoSmithKline Biologicals"]
["GLAXOSMITHKLINE SANTE GRAND PUBLIC","GLAXOSMITHKLINE SANTE GRAND PUBLIC"]
["GLOBAL D","GLOBAL D"]
["GLOBAL MEDIA SANTE","GLOBAL MEDIA SANTE"]
["GlobalData","GlobalData"]
["Globe Life Sciences","Globe Life Sciences"]
["Glocal Mind","Glocal Mind"]
["GLocal Mind Inc","GLocal Mind Inc"]
["GLPTest","GLPTest"]
["gn hearing sas","gn hearing sas"]
["GN OTOMETRICS","GN OTOMETRICS"]
["GNB AUDIO 7","GNB AUDIO 7"]
["GNM Healthcare Consulting Ltd","GNM Healthcare Consulting Ltd"]
["GRAFTYS SA","GRAFTYS SA"]
["Grayling","Grayling"]
["GREAT PROJECTS 66","GREAT PROJECTS 66"]
["Grey Healthcare Paris","Grey Healthcare Paris"]
["GRIFOLS France","GRIFOLS France"]
["Groupe d'Etudes pour la Chirurgie Osseuse","Groupe d'Etudes pour la Chirurgie Osseuse"]
["GROUPE LEPINE","GROUPE LEPINE"]
["GROUPE SEBBIN","GROUPE SEBBIN"]
["GROUPE WELCOOP","GROUPE WELCOOP"]
["GT Urological, LLC","GT Urological, LLC"]
["GTO","GTO"]
["Guerbet","Guerbet"]
["GUERBET France","Guerbet"]
["GUILDE DES LUNETIERS","GUILDE DES LUNETIERS"]
["GXEL MEDICAL SARL","GXEL MEDICAL SARL"]
["H.A.C.Pharma","H.A.C.Pharma"]
["H32","H32"]
["H4D","H4D"]
["HALYARD France","HALYARD France"]
["HANDI PHARM ATLANTIQUE","HANDI PHARM ATLANTIQUE"]
["HANDI PHARM CHARENTES","HANDI PHARM CHARENTES"]
["HANDI PHARM GROUPE","HANDI PHARM GROUPE"]
["HANDI PHARM LIMOUSIN","HANDI PHARM LIMOUSIN"]
["HANDI PHARM NORMANDIE","HANDI PHARM NORMANDIE"]
["HANDI PHARM OCEAN","HANDI PHARM OCEAN"]
["HANDI PHARM PERCHE","HANDI PHARM PERCHE"]
["HANDI PHARM POITOU","HANDI PHARM POITOU"]
["HANSATON","HANSATON"]
["Hansen Medical, Inc.","Hansen Medical, Inc."]
["HARD CAB'","HARD CAB'"]
["HARMONIE MEDICAL SERVICE GRAND EST","HARMONIE MEDICAL SERVICE GRAND EST"]
["HAVAS LIFE PARIS","HAVAS LIFE PARIS"]
["HD MEDICAL","HD MEDICAL"]
["Health Advances","Health Advances"]
["HEALTHCARE COMPLIANCE CONSULTING FRANCE SAS","HEALTHCARE COMPLIANCE CONSULTING FRANCE SAS"]
["HEALTHCAREGEN COMMUNICATION","HEALTHCAREGEN COMMUNICATION"]
["HEARTWARE FRANCE","HEARTWARE FRANCE"]
["HeartWare Inc.","HeartWare Inc."]
["HELP ORTHO PRODUCTION","HELP ORTHO PRODUCTION"]
["HEMA.T MEDICAL","HEMA.T MEDICAL"]
["HEMODIA SAS","HEMODIA SAS"]
["HEMOTECH","HEMOTECH"]
["HENRY SCHEIN FRANCE SCA","HENRY SCHEIN FRANCE SCA"]
["HERAEUS","HERAEUS"]
["HERAEUS KULZER FRANCE","HERAEUS KULZER FRANCE"]
["HERINOMENJANAHARY ZAFITSARA","HERINOMENJANAHARY ZAFITSARA"]
["HEXACATH FRANCE","HEXACATH FRANCE"]
["HEXACATH SA","HEXACATH SA"]
["HEXAMEDICAL SAS","HEXAMEDICAL SAS"]
["HILL-ROM S.A.S.","HILL-ROM S.A.S."]
["HITACHI MEDICAL SYSTEMS SAS","HITACHI MEDICAL SYSTEMS SAS"]
["Hogan Lovells International LLP","Hogan Lovells International LLP"]
["Holaira, Inc.","Holaira, Inc."]
["HOLLISTER FRANCE Incorporated","HOLLISTER FRANCE Incorporated"]
["HOLOGIC","HOLOGIC"]
["Hologic Deutschland GmbH","Hologic Deutschland GmbH"]
["HOME AIR","HOME AIR"]
["HOMEDIS SANTE","HOMEDIS SANTE"]
["Homeperf","Homeperf"]
["HORIBA ABX SAS","HORIBA ABX SAS"]
["HORMETA FRANCE","HORMETA FRANCE"]
["horus pharma","horus pharma"]
["HOSPIDOM","HOSPIDOM"]
["HOSPIRA FRANCE","HOSPIRA"]
["HOYA LENS FRANCE SAS","HOYA LENS FRANCE SAS"]
["HOYA Surgical Optics GmbH","HOYA Surgical Optics GmbH"]
["HRA PHARMA FRANCE","HRA PHARMA FRANCE"]
["H-research Asia","H-research Asia"]
["HUERRE ALAIN FRANCOIS","HUERRE ALAIN FRANCOIS"]
["HUMANAIR MEDICAL","HUMANAIR MEDICAL"]
["HYPHEN BIOMED SAS","HYPHEN BIOMED SAS"]
["Hyprevention sas","Hyprevention sas"]
["I.CERAM","I.CERAM"]
["ICARE","ICARE"]
["ICOMED","Icomed"]
["ICON CLINICAL RESEARCH SARL","ICON CLINICAL RESEARCH SARL"]
["ICON CLINICAL RESEARCH UK LIMITED","ICON CLINICAL RESEARCH UK LIMITED"]
["ICTA PROJECT MANAGEMENT","ICTA PROJECT MANAGEMENT"]
["Ideal Gourmet","Ideal Gourmet"]
["IDEC 56","IDEC 56"]
["ID-NEST Medical","ID-NEST Medical"]
["idrm","idrm"]
["IFOP","IFOP"]
["IHEALTHLABS","IHEALTHLABS"]
["Illumina France","Illumina France"]
["IMACCESS","IMACCESS"]
["IMACTIS","IMACTIS"]
["IMAGO RESEARCH","IMAGO RESEARCH"]
["Imaxio","Imaxio"]
["Immucor France","Immucor France"]
["ImmunoDiagnostic Systems SAS","ImmunoDiagnostic Systems SAS"]
["IMPACT MEDICOM","IMPACT MEDICOM"]
["Impatients N.V","Impatients N.V"]
["IMPETO MEDICAL","IMPETO MEDICAL"]
["IMPLANET SA","IMPLANET SA"]
["IMPLANTS SERVICE ORTHOPEDIE","IMPLANTS SERVICE ORTHOPEDIE"]
["IMS Health Belgique","IMS Health Belgique"]
["IMS Health Cambridge","IMS Health Cambridge"]
["IMS HEALTH SAS","IMS HEALTH SAS"]
["IMS Medical Radar","IMS Medical Radar"]
["In2Bones","In2Bones"]
["INC RESEARCH, LLC","INC RESEARCH, LLC"]
["Incyte Biosciences France","Incyte Biosciences France"]
["Incyte Corporation","Incyte Corporation"]
["Indigo Medical","Indigo Medical"]
["INFECO","INFECO"]
["INGEN","INGEN"]
["INIT","INIT"]
["INNATE PHARMA","INNATE PHARMA"]
["InnOpath sarl","InnOpath sarl"]
["INNOPSYS","INNOPSYS"]
["Innothera Chouzy","Innothera Chouzy"]
["Innothera Services","Innothera Services"]
["INOVITALE","INOVITALE"]
["INRESA Sarl","INRESA Sarl"]
["Insight Research Group","Insight Research Group"]
["INSMED France SAS","INSMED France SAS"]
["INSMED INCORPORATED","INSMED INCORPORATED"]
["INSTITUT DE BIOTECHNOLOGIES J. BOY","INSTITUT DE BIOTECHNOLOGIES J. BOY"]
["INSTITUT GEORGES LOPEZ","INSTITUT GEORGES LOPEZ"]
["INSTITUT MERIEUX","INSTITUT MERIEUX"]
["Institut Roche","Institut Roche"]
["INSTITUT STERLING COOPER","INSTITUT STERLING COOPER"]
["Integra LifeSciences Services (France)","Integra LifeSciences Services (France)"]
["Integra MicroFrance","Integra MicroFrance"]
["Integra NeuroSciences Implants (France)","Integra NeuroSciences Implants (France)"]
["INTEGRAL ORTHO","INTEGRAL ORTHO"]
["INTER ORTHO","INTER ORTHO"]
["Interactive Biosoftware","Interactive Biosoftware"]
["Intercept Pharma France SAS","Intercept Pharma France SAS"]
["Intercept Pharmaceuticals Inc.","Intercept Pharmaceuticals Inc."]
["InterMune France SAS","InterMune France SAS"]
["InterMune International AG","InterMune International AG"]
["INTERSURGICAL SARL","INTERSURGICAL SARL"]
["Inter-View Partners France","Inter-View Partners France"]
["INTUITIVE SURGICAL SARL","INTUITIVE SURGICAL SARL"]
["INVACARE POIRIER SAS","INVACARE POIRIER SAS"]
["INVENTIVA","INVENTIVA"]
["Inventivhealthclinical","Inventivhealthclinical"]
["IP Santé domicile","IP Santé domicile"]
["IP Santé domicile","IP Santé domicile"]
["IPAD Médical","IPAD Médical"]
["IPAD Médical","IPAD Médical"]
["Ipanema Healthcare Consulting","Ipanema Healthcare Consulting"]
["IPPMed GmbH","IPPMed GmbH"]
["IPSEN INNOVATION","IPSEN INNOVATION"]
["IPSEN PHARMA","IPSEN PHARMA"]
["IPSEN PHARMA BIOTECH","IPSEN PHARMA BIOTECH"]
["Ipsos (France)","Ipsos (France)"]
["Ipsos Insight LLC","Ipsos Insight LLC"]
["Ipsos Mori UK Limited","Ipsos Mori UK Limited"]
["Ipsos Observer","Ipsos Observer"]
["Iris Pharma","Iris Pharma"]
["ISIS ADOUR","ISIS ADOUR"]
["ISIS ATLANTIQUE","ISIS ATLANTIQUE"]
["ISIS COTE D'AZUR","ISIS COTE D'AZUR"]
["ISIS DIABETE","ISIS DIABETE"]
["ISIS DIABETE EST","ISIS DIABETE EST"]
["ISIS DIABETE SERVICE","ISIS DIABETE SERVICE"]
["ISIS DIABETE SUD","ISIS DIABETE SUD"]
["ISIS GUADELOUPE","ISIS GUADELOUPE"]
["ISIS LANGUEDOC ROUSSILLON","ISIS LANGUEDOC ROUSSILLON"]
["ISIS MARTINIQUE","ISIS MARTINIQUE"]
["ISIS MÉDICAL VAR","ISIS MÉDICAL VAR"]
["ISIS MÉDICAL VAR","ISIS MÉDICAL VAR"]
["Isis Méditerranée","Isis Méditerranée"]
["Isis Méditerranée","Isis Méditerranée"]
["ISIS MIDI PYRENEES","ISIS MIDI PYRENEES"]
["ISIS NORMANDIE","ISIS NORMANDIE"]
["ISIS PARIS EST","ISIS PARIS EST"]
["ISIS PARIS NORD","ISIS PARIS NORD"]
["ISIS PARIS NORMANDIE","ISIS PARIS NORMANDIE"]
["ISIS PARIS OUEST","ISIS PARIS OUEST"]
["ISIS PARIS SUD","ISIS PARIS SUD"]
["ISIS PAYS DE LA LOIRE","ISIS PAYS DE LA LOIRE"]
["ISIS PERFUSION","ISIS PERFUSION"]
["ISIS PERFUSION NORD","ISIS PERFUSION NORD"]
["ISIS RHONE ALPES","ISIS RHONE ALPES"]
["IsoTis International SÀRL","IsoTis International SÀRL"]
["IST cardiology","IST cardiology"]
["ITEC SERVICES","ITEC SERVICES"]
["ITEM","ITEM"]
["ITENA CLINICAL","ITENA CLINICAL"]
["Ivoclar Vivadent SAS","Ivoclar Vivadent SAS"]
["IVTEC (Iol Vision Technology)","IVTEC (Iol Vision Technology)"]
["IXAIR","IXAIR"]
["IXAIR ASSISTANCE","IXAIR ASSISTANCE"]
["IXXI","IXXI"]
["JANSSEN-CILAG","Janssen-Cilag"]
["JAZZ PHARMACEUTICALS FRANCE","JAZZ PHARMACEUTICALS FRANCE"]
["Jean-Manuel Toussaint, IHMT","Jean-Manuel Toussaint, IHMT"]
["JLM MEDICAL","JLM MEDICAL"]
["Johnson & Johnson Diabetes Institute SAS","Johnson & Johnson Diabetes Institute SAS"]
["Johnson et Johnson Santé Beauté France","Johnson et Johnson Santé Beauté France"]
["Johnson et Johnson Santé Beauté France","Johnson et Johnson Santé Beauté France"]
["JOTEC GmbH","JOTEC GmbH"]
["JULIUS CLINICAL RESEARCH B.V.","JULIUS CLINICAL RESEARCH B.V."]
["Julius Zorn GmbH","Julius Zorn GmbH"]
["Junicon","Junicon"]
["Junicon Europe SL","Junicon Europe SL"]
["K. PARTICULIER","K. PARTICULIER"]
["Kadence international","Kadence international"]
["Kantar Health","Kantar Health"]
["Kappa Santé","Kappa Santé"]
["Kappa Santé","Kappa Santé"]
["KARL STORZ ENDOSCOPIE FRANCE SAS","KARL STORZ ENDOSCOPIE FRANCE SAS"]
["Karl Storz Gmbh and co KG","Karl Storz Gmbh and co KG"]
["KARUKERA AUDITION","KARUKERA AUDITION"]
["Karyopharm Therapeutics Inc.","Karyopharm Therapeutics Inc."]
["KASIOS","KASIOS"]
["Kavo Dental SAS","Kavo Dental SAS"]
["KCI EUROPE HOLDING B.V.","KCI EUROPE HOLDING B.V."]
["KCI KK JAPAN","KCI KK JAPAN"]
["KCI MEDICAL (CHINA) CO. LTD.","KCI MEDICAL (CHINA) CO. LTD."]
["KEBOMED","KEBOMED"]
["KEOCYT","KEOCYT"]
["KEPHREN","KEPHREN"]
["KERI MEDICAL FRANCE","KERI MEDICAL FRANCE"]
["KeyQuest Health Ltd","KeyQuest Health Ltd"]
["KeyQuest Health Ltd.","KeyQuest Health Ltd."]
["KEYSTONE DENTAL SAS","KEYSTONE DENTAL SAS"]
["Kimberly-Clark SAS","Kimberly-Clark SAS"]
["KINETIC CONCEPTS, INC.","KINETIC CONCEPTS, INC."]
["KISCO International","KISCO International"]
["KOELIS","KOELIS"]
["KOMET FRANCE","KOMET FRANCE"]
["KPL","KPL"]
["KRKA FRANCE EURL","KRKA FRANCE EURL"]
["Kuraray Europe France","Kuraray Europe France"]
["KYD ORTHOPEDIE","KYD ORTHOPEDIE"]
["L&L Rsourcing","L&L Rsourcing"]
["LA DIFFUSION TECHNIQUE FRANCAISE","LA DIFFUSION TECHNIQUE FRANCAISE"]
["LA FONDERIE","LA FONDERIE"]
["LA REGIE PUBLIQUE","LA REGIE PUBLIQUE"]
["LA SOLUTION AUDITIVE","LA SOLUTION AUDITIVE"]
["Lab Marketing SL","Lab Marketing SL"]
["LABCATAL","LABCATAL"]
["LABODIAL","LABODIAL"]
["Laboratoier Innotech international","Laboratoier Innotech international"]
["LABORATOIR CLAYTONE-TERRAFOR","LABORATOIR CLAYTONE-TERRAFOR"]
["Laboratoire AGUETTANT, Société par Actions Simplifiée","AGUETTANT, Société par Actions Simplifiée"]
["Laboratoire AGUETTANT, Société par Actions Simplifiée","Laboratoire AGUETTANT, Société par Actions Simplifiée"]
["LABORATOIRE ATO-ZIZINE","ATO-ZIZINE"]
["laboratoire audioprothèse lorrain","audioprothèse lorrain"]
["laboratoire audioprothèse lorrain","laboratoire audioprothèse lorrain"]
["laboratoire BAUSCH&LOMB","BAUSCH&LOMB"]
["Laboratoire Bioderma","Bioderma"]
["LABORATOIRE BIODIM","BIODIM"]
["Laboratoire CAT","CAT"]
["Laboratoire CCD","CCD"]
["LABORATOIRE CEVIDRA","LABORATOIRE CEVIDRA"]
["LABORATOIRE CORRECTION AUDITIVE DRAGUIGNAN","CORRECTION AUDITIVE DRAGUIGNAN"]
["LABORATOIRE CORRECTION AUDITIVE ST RAPHAEL-FREJUS","CORRECTION AUDITIVE ST RAPHAEL-FREJUS"]
["LABORATOIRE COSMETIQUE DE LECOUSSE","COSMETIQUE DE LECOUSSE"]
["Laboratoire de correction auditive","de correction auditive"]
["Laboratoire de correction auditive d'Aix en Provence","de correction auditive d'Aix en Provence"]
["laboratoire de correction auditive d'Aubagne","de correction auditive d'Aubagne"]
["LABORATOIRE DE CORRECTION AUDITIVE D'AVIGNON SAINT ROCH","DE CORRECTION AUDITIVE D'AVIGNON SAINT ROCH"]
["LABORATOIRE DE CORRECTION AUDITIVE DE CAVAILLON","DE CORRECTION AUDITIVE DE CAVAILLON"]
["laboratoire de correction auditive de dijon","de correction auditive de dijon"]
["LABORATOIRE DE CORRECTION AUDITIVE DE ISTRES","DE CORRECTION AUDITIVE DE ISTRES"]
["Laboratoire de correction auditive de lambesc","de correction auditive de lambesc"]
["LABORATOIRE DE CORRECTION AUDITIVE DE MARTIGUES","DE CORRECTION AUDITIVE DE MARTIGUES"]
["LABORATOIRE DE CORRECTION AUDITIVE DE TOULON","DE CORRECTION AUDITIVE DE TOULON"]
["Laboratoire de Correction Auditive de Villeneuve lez Avignon","de Correction Auditive de Villeneuve lez Avignon"]
["laboratoire de correction auditive Sylvain Chopinaud","de correction auditive Sylvain Chopinaud"]
["LABORATOIRE DE CORRECTION DE LA SURDITE","DE CORRECTION DE LA SURDITE"]
["laboratoire de correction de l'audition","de correction de l'audition"]
["Laboratoire de Dermocosmétique Active Docteur Pierre Ricaud","de Dermocosmétique Active Docteur Pierre Ricaud"]
["Laboratoire de Dermocosmétique Active Docteur Pierre Ricaud","Laboratoire de Dermocosmétique Active Docteur Pierre Ricaud"]
["LABORATOIRE DE DIFFUSION DE PRODUITS DE SANTE APPLIQUEE","DE DIFFUSION DE PRODUITS DE SANTE APPLIQUEE"]
["LABORATOIRE DE LA MER","DE LA MER"]
["LABORATOIRE DENSMORE","DENSMORE"]
["Laboratoire DERMSCAN","DERMSCAN"]
["LABORATOIRE DES GRANIONS","DES GRANIONS"]
["LABORATOIRE DISSOLVUROL","DISSOLVUROL"]
["Laboratoire du Dermophil Indien","Dermophil Indien"]
["LABORATOIRE DU SOLVIREX","LABORATOIRE DU SOLVIREX"]
["Laboratoire Eneomey","Laboratoire Eneomey"]
["LABORATOIRE EREMPHARMA","EREMPHARMA"]
["LABORATOIRE FLORENCE VERJUS","FLORENCE VERJUS"]
["Laboratoire français du Fractionnement et des Biotechnologies","LFB"]
["Laboratoire français du Fractionnement et des Biotechnologies","Laboratoire français du Fractionnement et des Biotechnologies"]
["Laboratoire GANDHOUR","GANDHOUR"]
["LABORATOIRE GLAXOSMITHKLINE","GSK"]
["Laboratoire HEPATOUM","HEPATOUM"]
["Laboratoire Innothera","Innothéra"]
["LABORATOIRE JALDES","JALDES"]
["LABORATOIRE KCI MEDICAL","KCI MEDICAL"]
["Laboratoire Kreussler pharma","Kreussler pharma"]
["laboratoire leblanc et associés","leblanc et associés"]
["laboratoire leblanc et associés","laboratoire leblanc et associés"]
["LABORATOIRE MENE ET MOY","MENE ET MOY"]
["Laboratoire MSD Chibret","MSD France"]
["LABORATOIRE NOVEX PHARMA","NOVEX PHARMA"]
["LABORATOIRE NUXE","NUXE"]
["Laboratoire PEDIACT","PEDIACT"]
["Laboratoire PHARMASTRA","PHARMASTRA"]
["Laboratoire Protec'Som","Protec'Som"]
["LABORATOIRE RENAUDIN","RENAUDIN"]
["Laboratoire SCIENCEX","SCIENCEX"]
["LABORATOIRE SOBER","SOBER"]
["LABORATOIRE TETRA MEDICAL","TETRA MEDICAL"]
["Laboratoire TRADIPHAR","TRADIPHAR"]
["LABORATOIRE UNITHER","UNITHER"]
["LABORATOIRES ALCON","ALCON"]
["LABORATOIRES ALTER","ALTER"]
["LABORATOIRES ARION","ARION"]
["Laboratoires ARKOPHARMA","ARKOPHARMA"]
["Laboratoires AUVEX","AUVEX"]
["Laboratoires Bailleul","Bailleul"]
["Laboratoires BESINS INTERNATIONAL","BESINS INTERNATIONAL"]
["LABORATOIRES BOUCHARA - RECORDATI","BOUCHARA - RECORDATI"]
["LABORATOIRES BROTHIER","BROTHIER"]
["Laboratoires Carilène","Carilène"]
["Laboratoires Carilène","Laboratoires Carilène"]
["LABORATOIRES CHAIX ET DU MARAIS","CHAIX ET DU MARAIS"]
["LABORATOIRES CLARINS","CLARINS"]
["LABORATOIRES COLOPLAST","COLOPLAST"]
["LABORATOIRES CONVATEC","CONVATEC"]
["Laboratoires Crinex","Crinex"]
["LABORATOIRES CTRS","CTRS"]
["Laboratoires CYCLOPHARMA","CYCLOPHARMA"]
["Laboratoires de Biologie Marine Daniel Jouvance","de Biologie Marine Daniel Jouvance"]
["Laboratoires de Biologie Végétale Yves Rocher","de Biologie Végétale Yves Rocher"]
["Laboratoires de Biologie Végétale Yves Rocher","Laboratoires de Biologie Végétale Yves Rocher"]
["Laboratoires DELBERT","DELBERT"]
["laboratoires dermatologiques d'Uriage","dermatologiques d'Uriage"]
["Laboratoires des Réalisations Thérapeutiques ELERTE","des Réalisations Thérapeutiques ELERTE"]
["Laboratoires des Réalisations Thérapeutiques ELERTE","Laboratoires des Réalisations Thérapeutiques ELERTE"]
["Laboratoires Doliage","Doliage"]
["Laboratoires ETHYPHARM","ETHYPHARM"]
["Laboratoires Expanscience","Expanscience"]
["LABORATOIRES GENEVRIER","GENEVRIER"]
["LABORATOIRES GERDA","GERDA"]
["LABORATOIRES GILBERT","GILBERT"]
["LABORATOIRES GRIMBERG SA","GRIMBERG SA"]
["Laboratoires Grünenthal SAS","Grünenthal"]
["Laboratoires Grünenthal SAS","Laboratoires Grünenthal SAS"]
["Laboratoires INELDEA","INELDEA"]
["Laboratoires inneov SNC","inneov SNC"]
["Laboratoires IPRAD PHARMA","IPRAD PHARMA"]
["LABORATOIRES JOLLY-JATEL","JOLLY-JATEL"]
["Laboratoires Juva Production","Juva Production"]
["Laboratoires Juva Santé","Juva Santé"]
["Laboratoires Juva Santé","Laboratoires Juva Santé"]
["LABORATOIRES JUVISE PHARMACEUTICALS","JUVISE PHARMACEUTICALS"]
["LABORATOIRES LEHNING SAS","LEHNING SAS"]
["Laboratoires Leurquin Mediolanum","Leurquin Mediolanum"]
["Laboratoires Lohmann & Rauscher","Lohmann & Rauscher"]
["LABORATOIRES M&L","M&L"]
["Laboratoires MAJORELLE","MAJORELLE"]
["LABORATOIRES MAYOLY SPINDLER","MAYOLY SPINDLER"]
["Laboratoires Moulin Royal Cosmetics","Moulin Royal Cosmetics"]
["Laboratoires NEGMA","NEGMA"]
["Laboratoires Nicox","Laboratoires Nicox"]
["LABORATOIRES NIGY","NIGY"]
["LABORATOIRES NOREVA LED","NOREVA LED"]
["LABORATOIRES OMEGA PHARMA FRANCE","OMEGA PHARMA FRANCE"]
["Laboratoires PHARMA 2000","PHARMA 2000"]
["LABORATOIRES PHARMACEUTIQUES DEXO","PHARMACEUTIQUES DEXO"]
["LABORATOIRES PHARMY II","PHARMY II"]
["Laboratoires PRED","PRED"]
["LABORATOIRES SUPER DIET","SUPER DIET"]
["Laboratoires SVR France","SVR France"]
["Laboratoires TERUMO S.A","TERUMO S.A"]
["Laboratoires THEA","THEA"]
["Laboratoires TONIPHARM SARL","TONIPHARM SARL"]
["LABORATOIRES URGO","URGO"]
["Laboratoires URSAPHARM SAS","URSAPHARM SAS"]
["LABORATORY IMPLANT MEDICAL DEVICE - LIMMED","LABORATORY IMPLANT MEDICAL DEVICE - LIMMED"]
["Labvoratoire CHAUVIN","Labvoratoire CHAUVIN"]
["Lamidey Noury Medical","Lamidey Noury Medical"]
["larm-o-tec","larm-o-tec"]
["LARS","LARS"]
["LASER","LASER"]
["LASOL ROYAN","LASOL ROYAN"]
["LAUVAL","LAUVAL"]
["LCA S.A.","LCA S.A."]
["LDR Médical","LDR Médical"]
["LDR Médical","LDR Médical"]
["Leica Biosystems Nussloch GmbH","Leica Biosystems Nussloch GmbH"]
["Leica Microsystèmes SAS","Leica Microsystèmes SAS"]
["Leica Microsystèmes SAS","Leica Microsystèmes SAS"]
["Leica Microsystems Inc.","Leica Microsystems Inc."]
["LeMaitre Vascular SAS","LeMaitre Vascular SAS"]
["LEN Médical","LEN Médical"]
["LEN Médical","LEN Médical"]
["LENTILLES SAS","LENTILLES SAS"]
["L'Entreprise Médicale","L'Entreprise Médicale"]
["L'Entreprise Médicale","L'Entreprise Médicale"]
["LEO Pharma","LEO Pharma"]
["LES LABORATOIRES OSTEAL MEDICAL","LES OSTEAL MEDICAL"]
["LES LABORATOIRES SERVIER","LES SERVIER"]
["LES SALONS DU PALAIS ROYAL SHISEIDO","LES SALONS DU PALAIS ROYAL SHISEIDO"]
["LFB BIOMANUFACTURING","LFB"]
["LFB BIOMEDICAMENTS","LFB"]
["LFB BIOTECHNOLOGIES","LFB"]
["LG HOMEO","LG HOMEO"]
["LIFE PARTNERS EUROPE","LIFE PARTNERS EUROPE"]
["Life Technologies Corporation","Life Technologies Corporation"]
["LIFE TECHNOLOGIES SAS","LIFE TECHNOLOGIES SAS"]
["LifeCell EMEA Limited","LifeCell EMEA Limited"]
["Lifescan","Lifescan"]
["Lilly France SAS","Lilly"]
["LIMA FRANCE","LIMA FRANCE"]
["LINDE FRANCE","LINDE FRANCE"]
["LINDE HOMECARE FRANCE SAS","LINDE HOMECARE FRANCE SAS"]
["LION / SENECA FRANCE AUDIO","LION / SENECA FRANCE AUDIO"]
["Lipomed GmbH","Lipomed GmbH"]
["Listening Pharma","Listening Pharma"]
["LivaNova","LivaNova"]
["LIVE ! BY GL EVENTS","LIVE ! BY GL EVENTS"]
["LKN MEDICAL SARL","LKN MEDICAL SARL"]
["Lohmann & Rauscher International GmbH & Co KG","Lohmann & Rauscher International GmbH & Co KG"]
["LOL PHARMA","LOL PHARMA"]
["LONGUEUR D'ONDES","LONGUEUR D'ONDES"]
["L'OREAL S.A.","L'OREAL S.A."]
["LPV","LPV"]
["LUCANE PHARMA","LUCANE PHARMA"]
["LUCAS MEYER COSMETICS","LUCAS MEYER COSMETICS"]
["Lumenis Ltd.","Lumenis Ltd."]
["LUNDBECK SAS","LUNDBECK SAS"]
["LV2","LV2"]
["LVL MEDICAL CENTRE EST","LVL MEDICAL CENTRE EST"]
["LVL MEDICAL EST","LVL MEDICAL EST"]
["LVL MEDICAL GROUPE","LVL MEDICAL GROUPE"]
["LVL MEDICAL OUEST","LVL MEDICAL OUEST"]
["LVL MEDICAL PARIS ET NORD","LVL MEDICAL PARIS ET NORD"]
["LVL MEDICAL SUD","LVL MEDICAL SUD"]
["LVL MEDICAL SUD OUEST","LVL MEDICAL SUD OUEST"]
["LYON KLEBER SANTE","LYON KLEBER SANTE"]
["Lysogene","Lysogene"]
["M3 Global Research Ltd","M3 Global Research Ltd"]
["MACO PHARMA","MACO PHARMA"]
["MACO PRODUCTIONS","MACO PRODUCTIONS"]
["MALLINCKRODT FRANCE SARL","MALLINCKRODT FRANCE SARL"]
["MANTARAY","MANTARAY"]
["MAPI SAS","MAPI SAS"]
["MAQUET SAS","MAQUET SAS"]
["MARIE AMELIE LENOIR CONSULTING - VICTA CONSEIL","MARIE AMELIE LENOIR CONSULTING - VICTA CONSEIL"]
["MARINA","MARINA"]
["mark'ennovy SARL","mark'ennovy SARL"]
["MARKET VISION","MARKET VISION"]
["MARQUAT GENIE BIOMEDICAL","MARQUAT GENIE BIOMEDICAL"]
["MARQUE VERTE WELCOOP SANTE","MARQUE VERTE WELCOOP SANTE"]
["MASIMO","MASIMO"]
["MAST THERAPEUTICS","MAST THERAPEUTICS"]
["Mathys Orthopédie","Mathys Orthopédie"]
["Mathys Orthopédie","Mathys Orthopédie"]
["Mauna Kea Technologies","Mauna Kea Technologies"]
["MAVALA FRANCE SA","MAVALA FRANCE SA"]
["MCCANN HEALTHCARE","MCCANN HEALTHCARE"]
["MD HANDICAP ET SOINS","MD HANDICAP ET SOINS"]
["MD ORTHO","MD ORTHO"]
["MDC-Partners","MDC-Partners"]
["Mdoloris Medical Systems","Mdoloris Medical Systems"]
["MECCELLIS BIOTECH","MECCELLIS BIOTECH"]
["MED OUEST","MED OUEST"]
["MED PLANET","MED PLANET"]
["med&you","med&you"]
["MEDA PHARMA","MEDA PHARMA"]
["MEDAC SAS","MEDAC SAS"]
["MEDACTA FRANCE","MEDACTA FRANCE"]
["MEDARTIS SARL","MEDARTIS SARL"]
["MEDCARE","MEDCARE"]
["medDigital","medDigital"]
["MED-EL Elektromedizinische Geraete Gesellschaft m.b.H","MED-EL Elektromedizinische Geraete Gesellschaft m.b.H"]
["Medela France Sarl","Medela France Sarl"]
["M-Eden","M-Eden"]
["MEDEX","MEDEX"]
["MEDEXACT","MEDEXACT"]
["medi","medi"]
["MEDI SYS","MEDI SYS"]
["Median Conseil","Median Conseil"]
["MEDIAN Technologies","MEDIAN Technologies"]
["MEDIATION CONSEIL SANTE","MEDIATION CONSEIL SANTE"]
["MEDIBOUM","MEDIBOUM"]
["MEDIC CENTRE EQUIPEMENT","MEDIC CENTRE EQUIPEMENT"]
["MEDIC CENTRE INDUSTRIE","MEDIC CENTRE INDUSTRIE"]
["MEDICAL AXÃˆS","MEDICAL AXÃˆS"]
["MEDICAL BEL AIR","MEDICAL BEL AIR"]
["Medical Eye Tec","Medical Eye Tec"]
["MEDICAL IMPLANTS","MEDICAL IMPLANTS"]
["MEDICAL INNOVATION DEVELOPPEMENT","MEDICAL INNOVATION DEVELOPPEMENT"]
["MEDICAL SANTE GRAND NORD","MEDICAL SANTE GRAND NORD"]
["Medicalo2","Medicalo2"]
["Medicals International (Off-Shore) SARL","Medicals International (Off-Shore) SARL"]
["Medicare_HTM","Medicare_HTM"]
["MEDICO FRANCE","MEDICO FRANCE"]
["MEDICONSEIL","MEDICONSEIL"]
["MEDICREA Europe Francophone","MEDICREA Europe Francophone"]
["MEDICREA INTERNATIONAL","MEDICREA INTERNATIONAL"]
["Medicys Limited","Medicys Limited"]
["Médi-Fav","Médi-Fav"]
["Médi-Fav","Médi-Fav"]
["MEDIKEA","MEDIKEA"]
["MEDIMARK EUROPE SARL","MEDIMARK EUROPE SARL"]
["MEDIOUTREMER","MEDIOUTREMER"]
["MEDIPHA SANTE","MEDIPHA SANTE"]
["MEDIPREMA","MEDIPREMA"]
["MEDISPORT","MEDISPORT"]
["MEDITEX","MEDITEX"]
["MEDITOR","MEDITOR"]
["MEDIVAL OUTRE-MER","MEDIVAL OUTRE-MER"]
["Mediwound Germany GmbH","Mediwound Germany GmbH"]
["Medline Assembly France SAS","Medline Assembly France SAS"]
["Medline International France SAS","Medline International France SAS"]
["Medtech","Medtech"]
["MEDTRONIC France S.A.S","MEDTRONIC France S.A.S"]
["MEDUSIMS","MEDUSIMS"]
["medwork France","medwork France"]
["MEGA DENTAL SAS","MEGA DENTAL SAS"]
["MELISANA","MELISANA"]
["MELLITUS CARE","MELLITUS CARE"]
["MENARINI FRANCE","MENARINI"]
["MENETRIER NARD SAS","MENETRIER NARD SAS"]
["MENICON SAS","MENICON SAS"]
["MENIX GROUP","MENIX GROUP"]
["Merck Medication Familiale","Merck Medication Familiale"]
["MERCK SANTE","MERCK SANTE"]
["MERCK SERONO","MERCK SERONO"]
["Mérieux Université","Mérieux Université"]
["Mérieux Université","Mérieux Université"]
["Merit Medical Asia Co., Ltd","Merit Medical Asia Co., Ltd"]
["Merit Medical France","Merit Medical France"]
["Merit Medical Netherlands","Merit Medical Netherlands"]
["Merit Medical Systems, Inc.","Merit Medical Systems, Inc."]
["MERZ PHARMA France","MERZ PHARMA France"]
["MERZ PHARMACEUTICALS GmbH","MERZ PHARMACEUTICALS GmbH"]
["MESSER FRANCE","MESSER FRANCE"]
["MICROGENICS GmbH","MICROGENICS GmbH"]
["MICRO-MEGA","MICRO-MEGA"]
["MICROPORT ORTHOPEDICS","MICROPORT ORTHOPEDICS"]
["MICROVAL","MICROVAL"]
["MicroVention Europe","MicroVention Europe"]
["MicroVention Inc.","MicroVention Inc."]
["MIELE SAS","MIELE SAS"]
["MILLWARD BROWN","MILLWARD BROWN"]
["MINMAXMEDICAL","MINMAXMEDICAL"]
["MINVASYS","MINVASYS"]
["MIS IMPLANTS TECHNOLOGIES FRANCE","MIS IMPLANTS TECHNOLOGIES FRANCE"]
["MITHRA PHARMACEUTICALS S.A.S","MITHRA PHARMACEUTICALS S.A.S"]
["ML2S","ML2S"]
["Mobidiag Oy","Mobidiag Oy"]
["Modérateur Ministère de la Santé","Modérateur Ministère de la Santé"]
["Modérateur Ministère de la Santé","Modérateur Ministère de la Santé"]
["Molnlycke Health Care","Molnlycke Health Care"]
["MONATH ELECTRONIC SARL","MONATH ELECTRONIC SARL"]
["MON-EVENT.COM","MON-EVENT.COM"]
["MONITORING FORCE FRANCE","MONITORING FORCE FRANCE"]
["MORIA LASE","MORIA LASE"]
["MORIA S.A.","MORIA S.A."]
["MOVE-UP","MOVE-UP"]
["MSD France","MSD France"]
["MSDAVENIR","MSD France"]
["MULTALER & CIE","MULTALER & CIE"]
["MULTIPLICOM","MULTIPLICOM"]
["MUNDIPHARMA","MUNDIPHARMA"]
["MV3 SAS","MV3 SAS"]
["MVRx, Inc.","MVRx, Inc."]
["MYLAN MEDICAL SAS","MYLAN"]
["MYLAN SAS","MYLAN"]
["NANOBIOTIX S.A.","NANOBIOTIX S.A."]
["Nanosonics Europe Limited","Nanosonics Europe Limited"]
["Nanosonics Limite","Nanosonics Limite"]
["Nanostring Technologies, Inc","Nanostring Technologies, Inc"]
["NAOS","NAOS"]
["NAOS FRANCE","NAOS FRANCE"]
["NeoMedLight SAS","NeoMedLight SAS"]
["NEOS","NEOS"]
["NEOSTEO","NEOSTEO"]
["NEOVACS","NEOVACS"]
["Nestlé Clinical Nutrition","Nestlé Clinical Nutrition"]
["Nestlé Clinical Nutrition","Nestlé Clinical Nutrition"]
["NESTLE HOMECARE","NESTLE HOMECARE"]
["Netika SA","Netika SA"]
["NEURAVI LIMITED","NEURAVI LIMITED"]
["NEURELEC","NEURELEC"]
["NEURELEC MAROC","NEURELEC MAROC"]
["newbone","newbone"]
["NEWCLIP INTERNATIONAL","NEWCLIP INTERNATIONAL"]
["NEWCLIP TECHNICS","NEWCLIP TECHNICS"]
["Newdeal","Newdeal"]
["NEXMED PHARMA","NEXMED PHARMA"]
["NICHROMINOX","NICHROMINOX"]
["NICOX","NICOX"]
["NIDEK SA","NIDEK SA"]
["NIHON KOHDEN","NIHON KOHDEN"]
["nile","nile"]
["NIPRO FRANCE","NIPRO FRANCE"]
["NOBEL BIOCARE FRANCE SAS","NOBEL BIOCARE FRANCE SAS"]
["Nobel Biocare Russia LLC","Nobel Biocare Russia LLC"]
["Nobel Biocare Services AG","Nobel Biocare Services AG"]
["Nobel Biocare USA LLC","Nobel Biocare USA LLC"]
["NODEA MEDICAL","NODEA MEDICAL"]
["NORAKER","NORAKER"]
["NORD IMPLANT","NORD IMPLANT"]
["NORDIC PHARMA SAS","Nordic Pharma"]
["NordiMED ApS","NordiMED ApS"]
["NORGINE PHARMA","NORGINE PHARMA"]
["Nouveal","Nouveal"]
["NOVALLIANCE MEDICAL","NOVALLIANCE MEDICAL"]
["NOVARTIS PHARMA SAS","Novartis"]
["NOVARTIS SANTE FAMILIALE SAS","Novartis"]
["NOVARTIS VACCINES AND DIAGNOSTICS SAS","Novartis"]
["NOVASTEP","NOVASTEP"]
["NOVATECH SA","NOVATECH SA"]
["NOVATEST","NOVATEST"]
["NOVILOIRE","NOVILOIRE"]
["NOVO NORDISK","Novo Nordisk"]
["Novo Nordisk Production SAS","Novo Nordisk Production SAS"]
["NPS PHARMA FRANCE","NPS PHARMA FRANCE"]
["NPS Pharma Holdings Limited","NPS Pharma Holdings Limited"]
["NPS Pharma UK Limited","NPS Pharma UK Limited"]
["NUTRICIA Nutrition Clinique","NUTRICIA Nutrition Clinique"]
["NUTRIMEDIA","NUTRIMEDIA"]
["NxStage Medical, Inc.","NxStage Medical, Inc."]
["OBJECTIF PHARMA","OBJECTIF PHARMA"]
["Objective Focus Limited","Objective Focus Limited"]
["OBL","OBL"]
["Observia SAS","Observia SAS"]
["Occurrence Healthcare","Occurrence Healthcare"]
["OCEAN TERRE BIOTECHNOLOGIE","OCEAN TERRE BIOTECHNOLOGIE"]
["Oceana Therapeutics, Ltd.","Oceana Therapeutics, Ltd."]
["Oceanide","Oceanide"]
["OCP REPARTITION","OCP REPARTITION"]
["Octapharma AG - Switzerland","Octapharma AG - Switzerland"]
["Octapharma France","Octapharma France"]
["OLEA MEDICAL S.A","OLEA MEDICAL S.A"]
["Olympus Biotech International","Olympus Biotech International"]
["Olympus Biotech International Europe","Olympus Biotech International Europe"]
["OLYMPUS CORPORATION","OLYMPUS CORPORATION"]
["OLYMPUS EUROPA SE & CO. KG","OLYMPUS EUROPA SE & CO. KG"]
["OLYMPUS France SAS","OLYMPUS France SAS"]
["OLYMPUS WINTER & IBE GmbH","OLYMPUS WINTER & IBE GmbH"]
["OMNIS MEDICA","OMNIS MEDICA"]
["OMR Globus","OMR Globus"]
["Omron Santé France","Omron Santé France"]
["Omron Santé France","Omron Santé France"]
["ONCommit","ONCommit"]
["ONIRIS","ONIRIS"]
["ONXEO","ONXEO"]
["OPHTACOM","OPHTACOM"]
["Ophta-France SA","Ophta-France SA"]
["Ophtalmic Compagnie","Ophtalmic Compagnie"]
["OPIA TECHNOLOGIES","OPIA TECHNOLOGIES"]
["OptiMed SARL","OptiMed SARL"]
["OPTIQUE E'CAUX","OPTIQUE E'CAUX"]
["OPTIQUE MENIVAL","OPTIQUE MENIVAL"]
["optique sebastopol","optique sebastopol"]
["Orexigen Therapeutics Ireland Limited","Orexigen Therapeutics Ireland Limited"]
["Orexigen Therapeutics, Inc.","Orexigen Therapeutics, Inc."]
["ORGENTEC SAS","ORGENTEC SAS"]
["ORIGIO France","ORIGIO France"]
["Orion Corporation Orion Pharma","Orion Corporation Orion Pharma"]
["ORION Santé","ORION Santé"]
["ORION Santé","ORION Santé"]
["ORLANE","ORLANE"]
["ORMCO FRANCE SAS","ORMCO FRANCE SAS"]
["ORMIHL DANET","ORMIHL DANET"]
["Orphan Europe","Orphan Europe"]
["Orphan Synergy Europe - Pharma","Orphan Synergy Europe - Pharma"]
["OrpheliPharm","OrpheliPharm"]
["ORTHO CLINICAL DIAGNOSTICS France","ORTHO CLINICAL DIAGNOSTICS France"]
["ORTHO CONCEPT","ORTHO CONCEPT"]
["ORTHO JET","ORTHO JET"]
["ortho medic","ortho medic"]
["Ortho Union","Ortho Union"]
["ORTHO.POUHAER","ORTHO.POUHAER"]
["Ortho-Clinical Diagnostics France","Ortho-Clinical Diagnostics France"]
["Orthofix S.r.l.","Orthofix S.r.l."]
["ORTHOFIX SA","ORTHOFIX SA"]
["ORTHOPAEDIC & SPINE DEVELOPMENT (OSD)","ORTHOPAEDIC & SPINE DEVELOPMENT (OSD)"]
["ORTHOPLUS","ORTHOPLUS"]
["ORTHO-SPACE Ltd","ORTHO-SPACE Ltd"]
["OrthoZ","OrthoZ"]
["OSE Immunotherapeutics","OSE Immunotherapeutics"]
["Oséus","Oséus"]
["Oséus","Oséus"]
["OST DEVELOPPEMENT","OST DEVELOPPEMENT"]
["OSTEOMED","OSTEOMED"]
["OSTESYS","OSTESYS"]
["OTICON MEDICAL","OTICON MEDICAL"]
["OTR3","OTR3"]
["Otsuka Novel Products GmbH","Otsuka Novel Products GmbH"]
["Otsuka Pharmaceutical France SAS","Otsuka Pharmaceutical France SAS"]
["Otsuka Pharpaceutical (Suisse) Sarl","Otsuka Pharpaceutical (Suisse) Sarl"]
["OTTO BOCK FRANCE SNC","OTTO BOCK FRANCE SNC"]
["Ouïe Fine","Ouïe Fine"]
["Ouïe Fine","Ouïe Fine"]
["OVERCOME","OVERCOME"]
["OWEN MUMFORD","OWEN MUMFORD"]
["OXOID","OXOID"]
["OXYPHARM","OXYPHARM"]
["OXYVIE S.A.S","OXYVIE S.A.S"]
["P\\S\\L Group France S.A. R. L.","P\\S\\L Group France S.A. R. L."]
["P\\S\\L Group Services","P\\S\\L Group Services"]
["PACKAGE","PACKAGE"]
["PALL FRANCE","PALL FRANCE"]
["PALLIEZ OPTIQUE","PALLIEZ OPTIQUE"]
["PALO ALTOURS","PALO ALTOURS"]
["PANPHARMA","PANPHARMA"]
["PANSEPLAIE","PANSEPLAIE"]
["Pa-pri-K","Pa-pri-K"]
["PAREXEL International","PAREXEL International"]
["PARIS KLEBER SANTE","PARIS KLEBER SANTE"]
["PASCALEO","PASCALEO"]
["PASTEL AUDIOLOGIE","PASTEL AUDIOLOGIE"]
["PathoQuest SAS","PathoQuest SAS"]
["PAUL HARTMANN SA","PAUL HARTMANN SA"]
["PDL ORTHO","PDL ORTHO"]
["PECH CERCIAT","PECH CERCIAT"]
["PEGASE","PEGASE"]
["PENTAX MEDICAL","PENTAX MEDICAL"]
["Penumbra, Inc.","Penumbra, Inc."]
["PERF NUT ASSISTANCE ILE DE FRANCE","PERF NUT ASSISTANCE ILE DE FRANCE"]
["PERF NUT ASSISTANCE LANGUEDOC ROUSSILLON","PERF NUT ASSISTANCE LANGUEDOC ROUSSILLON"]
["PERF NUT ASSISTANCE MIDI PYRENEES","PERF NUT ASSISTANCE MIDI PYRENEES"]
["PERF NUT ASSISTANCE NORD","PERF NUT ASSISTANCE NORD"]
["PERF NUT ASSISTANCE SUD EST","PERF NUT ASSISTANCE SUD EST"]
["PERF.U.LOR GROUPE","PERF.U.LOR GROUPE"]
["PERFORMANCE COMMUNICATION PHARMA","PERFORMANCE COMMUNICATION PHARMA"]
["PERF-R","PERF-R"]
["perkinElmer","perkinElmer"]
["PEROUSE MEDICAL","PEROUSE MEDICAL"]
["PEROUSE PLASTIE","PEROUSE PLASTIE"]
["PERRIER SURDITE ANNECY SAS","PERRIER SURDITE ANNECY SAS"]
["PETERS SURGICAL","PETERS SURGICAL"]
["PETNET Solutions SAS","PETNET Solutions SAS"]
["PFIZER INTERNATIONAL OPERATIONS","Pfizer"]
["PFIZER PFE FRANCE","Pfizer"]
["PFIZER SANTE FAMILIALE","Pfizer"]
["PFIZER SAS","Pfizer"]
["PFM MEDICAL FRANCE","PFM MEDICAL FRANCE"]
["PGRD","PGRD"]
["PHADIA GmbH","PHADIA GmbH"]
["PHADIA NV/SA","PHADIA NV/SA"]
["PHADIA SAS","PHADIA SAS"]
["PHARMA DOM","PHARMA DOM"]
["PHARMA MAR S.A.R.L.","PHARMA MAR S.A.R.L."]
["Pharma Services","Pharma Services"]
["Pharmacie du Tholon","Pharmacie du Tholon"]
["pharmacie ramberti","pharmacie ramberti"]
["Pharmacosmos","Pharmacosmos"]
["PHARMACTIV DISTRIBUTION","PHARMACTIV DISTRIBUTION"]
["pharmaouest industries","pharmaouest industries"]
["PHARMATHERA","PHARMATHERA"]
["Pharm-Olam International SPRL","Pharm-Olam International SPRL"]
["PHAROLY","PHAROLY"]
["PHASE 5 Editions médicales","PHASE 5 Editions médicales"]
["PHASE 5 Editions médicales","PHASE 5 Editions médicales"]
["PHENIX CARDIOLOGIE","PHENIX CARDIOLOGIE"]
["PHILIPS FRANCE","PHILIPS FRANCE"]
["Philips France Commercial","Philips France Commercial"]
["PHOCEENNE D'ORTHOPEDIE","PHOCEENNE D'ORTHOPEDIE"]
["PHOENIX PHARMA","PHOENIX PHARMA"]
["PHONAK FRANCE","PHONAK FRANCE"]
["PhoneResearch","PhoneResearch"]
["PHYDATA","PHYDATA"]
["PHYSIDIA","PHYSIDIA"]
["PHYSIO CONTROL FRANCE SARL","PHYSIO CONTROL FRANCE SARL"]
["Physiol","Physiol"]
["PHYSIOL FRANCE","PHYSIOL FRANCE"]
["PHYSIOMED","PHYSIOMED"]
["PHYTOCOM","PHYTOCOM"]
["Pierre Fabre Dermo-Cosmétique","Pierre Fabre Dermo-Cosmétique"]
["Pierre Fabre Dermo-Cosmétique","Pierre Fabre Dermo-Cosmétique"]
["PIERRE FABRE MEDICAMENT","Pierre Fabre Médicament"]
["PIERRE FABRE SA","PIERRE FABRE SA"]
["Piramal Imaging GmbH","Piramal Imaging GmbH"]
["PLASMA SURGICAL SARL","PLASMA SURGICAL SARL"]
["PneumRx Ltd.","PneumRx Ltd."]
["POLARIS MANAGEMENT","POLARIS MANAGEMENT"]
["PolyNovo Biomaterials Pty Ltd","PolyNovo Biomaterials Pty Ltd"]
["Porte de l'audition","Porte de l'audition"]
["POURET MEDICAL","POURET MEDICAL"]
["PPD FRANCE SAS","PPD FRANCE SAS"]
["PPi Healthcare Consulting Ltd","PPi Healthcare Consulting Ltd"]
["PR EDITIONS SAS","PR EDITIONS SAS"]
["PRA","PRA"]
["Precilens","Precilens"]
["PRECIPHAR","PRECIPHAR"]
["Premier Research","Premier Research"]
["PRESSE & PAPIERS","PRESSE & PAPIERS"]
["prevor","prevor"]
["Primax","Primax"]
["PRIORITIS","PRIORITIS"]
["PRIVIUM MEDICAL","PRIVIUM MEDICAL"]
["PROBACE MEDITEC","PROBACE MEDITEC"]
["PROBACE VAR","PROBACE VAR"]
["PROBIONOV","PROBIONOV"]
["PROCLAIM","PROCLAIM"]
["PROCTER & GAMBLE FRANCE","PROCTER & GAMBLE FRANCE"]
["PROCTER & GAMBLE PHARMACEUTICALS FRANCE","PROCTER & GAMBLE PHARMACEUTICALS FRANCE"]
["PRODAREV","PRODAREV"]
["PRODIS","PRODIS"]
["Prodition","Prodition"]
["PRODUITS DENTAIRES PIERRE ROLLAND","PRODUITS DENTAIRES PIERRE ROLLAND"]
["PROFIL ORTHOPEDIE","PROFIL ORTHOPEDIE"]
["Promethera Biosciences SA","Promethera Biosciences SA"]
["PROMOGEN","PROMOGEN"]
["PROMONET PROMEDICAL","PROMONET PROMEDICAL"]
["PROSTEEL","PROSTEEL"]
["ProStrakan Pharma","ProStrakan Pharma"]
["PROTHEOS INDUSTRIE","PROTHEOS INDUSTRIE"]
["PROTHEOS OUEST","PROTHEOS OUEST"]
["PROTHEOS SA","PROTHEOS SA"]
["PROXILIO","PROXILIO"]
["PSI CRO AG","PSI CRO AG"]
["PSI CRO FRANCE","PSI CRO FRANCE"]
["PTC THERAPEUTICS  INTERNATIONAL LIMITED","PTC THERAPEUTICS  INTERNATIONAL LIMITED"]
["PTC Therapeutics France SAS","PTC Therapeutics France SAS"]
["Publicis Consultants France","Publicis Consultants France"]
["PUBLICIS LIFE BRANDS","PUBLICIS LIFE BRANDS"]
["Pulmonx International SARL","Pulmonx International SARL"]
["Pulmonx International SÀrl","Pulmonx International SÀrl"]
["PURESSENTIEL","PURESSENTIEL"]
["Qiagen France SAS","Qiagen France SAS"]
["QIAGEN Marseille S.A","QIAGEN Marseille S.A"]
["QUALEES","QUALEES"]
["Qualitative & Quantitative Fieldwork Services","Qualitative & Quantitative Fieldwork Services"]
["QualWorld","QualWorld"]
["QUANTEL MEDICAL","QUANTEL MEDICAL"]
["QUERYO MEDICAL SAS","QUERYO MEDICAL SAS"]
["QUINTILES BENEFIT FRANCE SNC","QUINTILES BENEFIT FRANCE SNC"]
["RADENKOVIC SACHA","RADENKOVIC SACHA"]
["RADIANTE","RADIANTE"]
["RADIOMETER SAS","RADIOMETER SAS"]
["RANBAXY PHARMACIE GENERIQUES","RANBAXY PHARMACIE GENERIQUES"]
["RAPTOR PHARMACEUTICALS FRANCE","RAPTOR PHARMACEUTICALS FRANCE"]
["RAPTOR PHARMACEUTICALS FRANCE SAS","RAPTOR PHARMACEUTICALS FRANCE SAS"]
["RB Pharmaceuticals France","RB Pharmaceuticals France"]
["rc - research & consulting GmbH","rc - research & consulting GmbH"]
["Reckitt Benckiser France","Reckitt Benckiser France"]
["Reckitt Benckiser Healthcare France","Reckitt Benckiser Healthcare France"]
["Reckitt Benckiser SLOUGH","Reckitt Benckiser SLOUGH"]
["ReCor Medical Inc","ReCor Medical Inc"]
["Regeneron Pharmaceuticals, Inc.","Regeneron Pharma"]
["REGULUS THERAPEUTICS INC.",{"$error":"#N/A"}]
["RE-IMAGINE Health Agency","RE-IMAGINE Health Agency"]
["Renishaw Mayfield","Renishaw Mayfield"]
["RESAL","RESAL"]
["RESEARCH NOW SAS","RESEARCH NOW SAS"]
["RESMED SAS","RESMED SAS"]
["RESPI'SANTE","RESPI'SANTE"]
["ReVision Optics","ReVision Optics"]
["REVOL-BUISSON","REVOL-BUISSON"]
["RICHARD FRERES","RICHARD FRERES"]
["Richard SIMON","Richard SIMON"]
["RICHARD WOLF FRANCE","RICHARD WOLF FRANCE"]
["RIVORTHO","RIVORTHO"]
["RMO EUROPE","RMO EUROPE"]
["RNP SANTE","RNP SANTE"]
["ROCHE DIABETES CARE FRANCE","ROCHE DIABETES CARE FRANCE"]
["ROCHE DIAGNOSTICS FRANCE","ROCHE DIAGNOSTICS FRANCE"]
["Roche Diagnostics GmbH","Roche Diagnostics GmbH"]
["Roche Diagnostics International Ltd","Roche Diagnostics International Ltd"]
["Roche Diagnostics Operations, Inc.","Roche Diagnostics Operations, Inc."]
["Roche Lebanon SARL","Roche Lebanon SARL"]
["Roche Products (Pty) Ltd South Africa","Roche Products (Pty) Ltd South Africa"]
["ROCHE SAS","Roche"]
["Rodenstock France","Rodenstock France"]
["RONIN Corporation","RONIN Corporation"]
["ROTTAPHARM SAS","ROTTAPHARM"]
["R-Squared Services and Solutions, Inc.","R-Squared Services and Solutions, Inc."]
["R'SUD MEDICAL","R'SUD MEDICAL"]
["RTI SURGICAL","RTI SURGICAL"]
["RUNESCENCE","RUNESCENCE"]
["S.O.S M.A.D","S.O.S M.A.D"]
["S.O.S OXYGENE ILE DE France","S.O.S OXYGENE ILE DE France"]
["S.O.S OXYGENE SUD","S.O.S OXYGENE SUD"]
["S.O.S. OXYGENE ATLANTIQUE","S.O.S. OXYGENE ATLANTIQUE"]
["S.O.S. OXYGENE BRETAGNE","S.O.S. OXYGENE BRETAGNE"]
["S.O.S. OXYGENE GARONNE","S.O.S. OXYGENE GARONNE"]
["S.O.S. OXYGENE GRAND OUEST","S.O.S. OXYGENE GRAND OUEST"]
["S.O.S. OXYGENE NORMANDIE","S.O.S. OXYGENE NORMANDIE"]
["S.O.S. OXYGENE SUD","S.O.S. OXYGENE SUD"]
["S2A SANTE ILE DE FRANCE","S2A SANTE ILE DE FRANCE"]
["SA Bristol-Myers Squibb Belgium","SA Bristol-Myers Squibb Belgium"]
["SA CERP BRETAGNE ATLANTIQUE","SA CERP BRETAGNE ATLANTIQUE"]
["SA J & B FRANCOIS","SA J & B FRANCOIS"]
["SA LANDANGER","SA LANDANGER"]
["SA MEDICOSCOP","SA MEDICOSCOP"]
["SADIR ASSISTANCE","SADIR ASSISTANCE"]
["SAFE ORTHOPAEDICS","SAFE ORTHOPAEDICS"]
["SAFIR DENTAIRE","SAFIR DENTAIRE"]
["Sage Products LLC","Sage Products LLC"]
["SALESWAY","SALESWAY"]
["Salix Pharmaceuticals, Inc.","Salix Pharmaceuticals, Inc."]
["SAM TECHNI-PHARMA","SAM TECHNI-PHARMA"]
["SAMSUNG ELECTRONICS FRANCE","SAMSUNG ELECTRONICS FRANCE"]
["SANDOZ","SANDOZ"]
["SANETIS","SANETIS"]
["SANOFI AVENTIS FRANCE","Sanofi Aventis France"]
["SANOFI CHIMIE","SANOFI CHIMIE"]
["SANOFI PASTEUR","SANOFI PASTEUR"]
["SANOFI PASTEUR MSD SNC","SANOFI PASTEUR MSD SNC"]
["SANOFI WINTHROP INDUSTRIE","SANOFI WINTHROP INDUSTRIE"]
["SANOFI-AVENTIS GROUPE","SANOFI-AVENTIS GROUPE"]
["SANOFI-AVENTIS RECHERCHE & DEVELOPPEMENT","SANOFI-AVENTIS RECHERCHE & DEVELOPPEMENT"]
["SANOTEK","SANOTEK"]
["SANTE PLUS","SANTE PLUS"]
["Santelynes","Santelynes"]
["SANTELYS ASSOCIATION","SANTELYS ASSOCIATION"]
["SANTEN","SANTEN"]
["SANTEO","SANTEO"]
["Santor edition","Santor edition"]
["SARL ACIO","SARL ACIO"]
["SARL ACOUSTIQUE ALBIGEOISE","SARL ACOUSTIQUE ALBIGEOISE"]
["SARL ADAGIO","SARL ADAGIO"]
["SARL ALLIANCESOINS","SARL ALLIANCESOINS"]
["SARL ASTRIAD","SARL ASTRIAD"]
["sarl ATLANTIQUE PERFUSION","sarl ATLANTIQUE PERFUSION"]
["SARL AUDIO EISENHOWER","SARL AUDIO EISENHOWER"]
["SARL AUDIO.V","SARL AUDIO.V"]
["Sarl Audioptique Conseil","Sarl Audioptique Conseil"]
["SARL AUDIOSON","SARL AUDIOSON"]
["SARL AUDITION AQUITAINE","SARL AUDITION AQUITAINE"]
["SARL AUDITION JUTIER PIRON","SARL AUDITION JUTIER PIRON"]
["SARL AUNIS AUDITION","SARL AUNIS AUDITION"]
["SARL AURISSIMANS","SARL AURISSIMANS"]
["SARL AURISSIMO","SARL AURISSIMO"]
["SARL BALLAN AUDITION","SARL BALLAN AUDITION"]
["SARL BRIVE AUDITION","SARL BRIVE AUDITION"]
["SARL CENTRE DE L AUDITION","SARL CENTRE DE L AUDITION"]
["SARL Centre Val de Loire Audition","SARL Centre Val de Loire Audition"]
["SARL CLAUDE EMARD","SARL CLAUDE EMARD"]
["sarl conseil medico technique","sarl conseil medico technique"]
["SARL DLMEDICAL","SARL DLMEDICAL"]
["SARL DOMORTHO","SARL DOMORTHO"]
["SARL ETS M GRANDET","SARL ETS M GRANDET"]
["SARL GHAMA","SARL GHAMA"]
["SARL GROUSEAU","SARL GROUSEAU"]
["SARL INFINY","SARL INFINY"]
["SARL LABORATOIRE DUPONT","SARL DUPONT"]
["SARL LABORATOIRE LEMOINE AUDITION","SARL LEMOINE AUDITION"]
["SARL LABORATOIRE MICHAEL BERTOUX","SARL MICHAEL BERTOUX"]
["SARL LAUBEN","SARL LAUBEN"]
["SARL LE STRAT","SARL LE STRAT"]
["SARL LES MOUETTES OPTIQUE","SARL LES MOUETTES OPTIQUE"]
["SARL LOMACO","SARL LOMACO"]
["SARL L'OREILLETTE DU MANS","SARL L'OREILLETTE DU MANS"]
["SARL LUNODIA","SARL LUNODIA"]
["sarl msdcp","sarl msdcp"]
["SARL NIVOLET AUDITION","SARL NIVOLET AUDITION"]
["SARL OPTAC","SARL OPTAC"]
["sarl optique audioprotheses roussarie","sarl optique audioprotheses roussarie"]
["sarl optique mesnard","sarl optique mesnard"]
["sarl optique mesnard auchy","sarl optique mesnard auchy"]
["SARL ORLEANS AUDIOPROTHESE","SARL ORLEANS AUDIOPROTHESE"]
["SARL OXY-PERF","SARL OXY-PERF"]
["SARL PACIMED","SARL PACIMED"]
["Sarl Parapharm France","Sarl Parapharm France"]
["SARL PEFD","SARL PEFD"]
["SARL PROTHYS","SARL PROTHYS"]
["SARL RR CONSEIL","SARL RR CONSEIL"]
["SARL SOPHILMED","SARL SOPHILMED"]
["SARL SOPHILMED LENS","SARL SOPHILMED LENS"]
["SAS ALLIANCE MEDICALE SERVICES","SAS ALLIANCE MEDICALE SERVICES"]
["SAS AUDITION EXPERT","SAS AUDITION EXPERT"]
["SAS BIOVAS","SAS BIOVAS"]
["SAS Esprit d'Ethique","SAS Esprit d'Ethique"]
["SAS IOVIE","SAS IOVIE"]
["SAS LABORATOIRES VIVACY","SAS VIVACY"]
["SAS OPTIQUE SURDITE DESNOUES","SAS OPTIQUE SURDITE DESNOUES"]
["SAS ORTHO OUEST","SAS ORTHO OUEST"]
["SATELEC SAS","SATELEC SAS"]
["SBM","SBM"]
["Schering-Plough","Schering-Plough"]
["SCHEU DENTAL FRANCE","SCHEU DENTAL FRANCE"]
["Schulke France SARL","Schulke France SARL"]
["SCHWA-MEDICO FRANCE","SCHWA-MEDICO FRANCE"]
["SCIENCE ET MEDECINE","SCIENCE ET MEDECINE"]
["SCIENT'X SAS","SCIENT'X SAS"]
["Scope International France","Scope International France"]
["SCORPION","SCORPION"]
["SDC SOCIETE DES CENDRES","SDC SOCIETE DES CENDRES"]
["SDI Dental Limited","SDI Dental Limited"]
["SEBAC","SEBAC"]
["Sebia","Sebia"]
["Second Stage Pharma","Second Stage Pharma"]
["SEDOMA","SEDOMA"]
["SEFAM","SEFAM"]
["Segmedica","Segmedica"]
["Selarl Pharmacie Panonnaise","Selarl Pharmacie Panonnaise"]
["SELAS PHARMACIE DE LA REPUBLIQUE","SELAS PHARMACIE DE LA REPUBLIQUE"]
["SEMES","SEMES"]
["SENDAL FRANCE","SENDAL FRANCE"]
["SEPRODOM ANTILLES","SEPRODOM ANTILLES"]
["SEPRODOM REUNION","SEPRODOM REUNION"]
["SEPROPHARM INTERNATIONAL","SEPROPHARM INTERNATIONAL"]
["SEPTODONT SAS","SEPTODONT SAS"]
["Sequent Medical GmbH","Sequent Medical GmbH"]
["Sequent Medical Inc.","Sequent Medical Inc."]
["SERB","SERB"]
["SERENITY MEDICAL SERVICES SARL","SERENITY MEDICAL SERVICES SARL"]
["SERF","SERF"]
["SERF EXTREMITY","SERF EXTREMITY"]
["Serial Creative","Serial Creative"]
["SESC","SESC"]
["SETMI","SETMI"]
["seven dreamers laboratories","seven dreamers laboratories"]
["SGP AUDIO","SGP AUDIO"]
["SHAMIR FRANCE SARL","SHAMIR FRANCE SARL"]
["SHC Universal","SHC Universal"]
["SHIRE France S.A.","SHIRE France S.A."]
["SHISEIDO INTERNATIONAL FRANCE SIF","SHISEIDO INTERNATIONAL FRANCE SIF"]
["SHOCKWAVE MEDICAL INC.","SHOCKWAVE MEDICAL INC."]
["SIEMENS AUDIOLOGIE","SIEMENS AUDIOLOGIE"]
["Siemens Healthcare Diagnostics SAS","Siemens Healthcare Diagnostics SAS"]
["SIEMENS HEALTHCARE SAS","SIEMENS HEALTHCARE SAS"]
["SIEMENS SAS","SIEMENS SAS"]
["Sigma-tau France","Sigma-tau France"]
["SIGVARIS","SIGVARIS"]
["SIMARATO","SIMARATO"]
["Simon-Kucher & Partners","Simon-Kucher & Partners"]
["Simpson Carpenter","Simpson Carpenter"]
["SINCLAIR PHARMA","SINCLAIR PHARMA"]
["Sinclair pharmaceuticals limited french branch","Sinclair pharmaceuticals limited french branch"]
["SIRONA DENTAL SYSTEMS SAS","SIRONA DENTAL SYSTEMS SAS"]
["Sirtex Medical Europe GmbH","Sirtex Medical Europe GmbH"]
["SIVANTOS","SIVANTOS"]
["SKY CONSULTING","SKY CONSULTING"]
["SM EUROPE","SM EUROPE"]
["Small Bone Innovations International SAS","Small Bone Innovations International SAS"]
["Smartsanté Gestion","Smartsanté Gestion"]
["Smartsanté Gestion","Smartsanté Gestion"]
["Smith & Nephew FZE","Smith & Nephew FZE"]
["Smith & Nephew Inc.","Smith & Nephew Inc."]
["Smith & Nephew Orthopaedics AG","Smith & Nephew Orthopaedics AG"]
["Smith & Nephew Orthopaedics France SAS","Smith & Nephew Orthopaedics France SAS"]
["Smith & Nephew S.A.S.","Smith & Nephew S.A.S."]
["Smith & Nephew UK Limited","Smith & Nephew UK Limited"]
["Smith & Nephew US - Ortho","Smith & Nephew US - Ortho"]
["Smith & Nephew, Inc. Recon","Smith & Nephew, Inc. Recon"]
["SMITHS MEDICAL FRANCE","SMITHS MEDICAL FRANCE"]
["SNC LCA de NICE","SNC LCA de NICE"]
["Sociable Data Ltd","Sociable Data Ltd"]
["SOCIETE CARIBEENNE DE L'AUDITION","SOCIETE CARIBEENNE DE L'AUDITION"]
["Société des gaz industriels de la Guadeloupe","Société des gaz industriels de la Guadeloupe"]
["Société des gaz industriels de la Guadeloupe","Société des gaz industriels de la Guadeloupe"]
["Société Française de Cardiologie","Société Française de Cardiologie"]
["Société Française de Cardiologie","Société Française de Cardiologie"]
["SOCIETE FRANCAISE D'ORTHOPEDIE","SOCIETE FRANCAISE D'ORTHOPEDIE"]
["Société Guyanaise de l'Air Liquide","Société Guyanaise de l'Air Liquide"]
["Société Guyanaise de l'Air Liquide","Société Guyanaise de l'Air Liquide"]
["Société Martiniquaise de l'Air Liquide","Société Martiniquaise de l'Air Liquide"]
["Société Martiniquaise de l'Air Liquide","Société Martiniquaise de l'Air Liquide"]
["SOCIETES DU GROUPE TEVA HORS FRANCE","SOCIETES DU GROUPE TEVA HORS FRANCE"]
["SOFIBEL","SOFIBEL"]
["SOFIBEL Laboratoires Fumouze","SOFIBEL Fumouze"]
["SOFRADIM PRODUCTION","SOFRADIM PRODUCTION"]
["Solutions Finances","Solutions Finances"]
["SomnoMed France","SomnoMed France"]
["SONATINE","SONATINE"]
["SONY EUROPE LIMITED","SONY EUROPE LIMITED"]
["Sophysa","Sophysa"]
["SOPRO ACTEON Group","SOPRO ACTEON Group"]
["SORIN GROUP FRANCE","SORIN GROUP FRANCE"]
["SOS MEDICAL","SOS MEDICAL"]
["SOS OXYGENE","SOS OXYGENE"]
["SOS OXYGENE ALSACE","SOS OXYGENE ALSACE"]
["SOS OXYGENE ANTILLES","SOS OXYGENE ANTILLES"]
["SOS OXYGENE ATLANTIQUE CENTRE","SOS OXYGENE ATLANTIQUE CENTRE"]
["SOS OXYGENE AUVERGNE","SOS OXYGENE AUVERGNE"]
["SOS OXYGENE BASSIN PARISIEN NORD","SOS OXYGENE BASSIN PARISIEN NORD"]
["SOS OXYGENE BASSIN PARISIEN NORD Les Mureaux","SOS OXYGENE BASSIN PARISIEN NORD Les Mureaux"]
["SOS OXYGENE BASSIN PARISIEN SUD","SOS OXYGENE BASSIN PARISIEN SUD"]
["SOS OXYGENE CENTRE","SOS OXYGENE CENTRE"]
["SOS OXYGENE CENTRE EST","SOS OXYGENE CENTRE EST"]
["SOS OXYGENE CENTRE OUEST","SOS OXYGENE CENTRE OUEST"]
["SOS OXYGENE CHAMPAGNE ARDENNES","SOS OXYGENE CHAMPAGNE ARDENNES"]
["SOS OXYGENE FRANCHE COMTE","SOS OXYGENE FRANCHE COMTE"]
["SOS OXYGENE GARONNE","SOS OXYGENE GARONNE"]
["SOS OXYGENE GRAND EST","SOS OXYGENE GRAND EST"]
["SOS OXYGENE GRAND PERIGORD","SOS OXYGENE GRAND PERIGORD"]
["SOS OXYGENE GRAND SUD","SOS OXYGENE GRAND SUD"]
["SOS OXYGENE ILE DE France EST","SOS OXYGENE ILE DE France EST"]
["SOS OXYGENE ILE DE FRANCE EST Vierzon 1","SOS OXYGENE ILE DE FRANCE EST Vierzon 1"]
["SOS OXYGENE ILE DE FRANCE EST Vierzon 2","SOS OXYGENE ILE DE FRANCE EST Vierzon 2"]
["SOS OXYGENE ILE DE France NORD","SOS OXYGENE ILE DE France NORD"]
["SOS OXYGENE ILE E FRANCE EST","SOS OXYGENE ILE E FRANCE EST"]
["SOS OXYGENE LOIRE HAUTE LOIRE","SOS OXYGENE LOIRE HAUTE LOIRE"]
["SOS OXYGENE LORRAINE","SOS OXYGENE LORRAINE"]
["SOS OXYGENE MEDITERRANEE","SOS OXYGENE MEDITERRANEE"]
["SOS OXYGENE MOR-BIHAN / PENN AR BEDÂ Â","SOS OXYGENE MOR-BIHAN / PENN AR BEDÂ Â"]
["SOS OXYGENE MOR-BIHAN / PENN AR BEDÂ Â ","SOS OXYGENE MOR-BIHAN / PENN AR BEDÂ Â "]
["SOS OXYGENE NORD JOLY MEDICAL","SOS OXYGENE NORD JOLY MEDICAL"]
["SOS OXYGENE NORD OUEST","SOS OXYGENE NORD OUEST"]
["SOS OXYGENE NORMANDIE","SOS OXYGENE NORMANDIE"]
["SOS OXYGENE PARTICIPATIONS","SOS OXYGENE PARTICIPATIONS"]
["SOS OXYGENE PAYS DE LOIRE","SOS OXYGENE PAYS DE LOIRE"]
["SOS OXYGENE PAYS DE LOIRE NORD","SOS OXYGENE PAYS DE LOIRE NORD"]
["SOS OXYGENE PROVENCE","SOS OXYGENE PROVENCE"]
["SOS OXYGENE PYRENEES CENTRE","SOS OXYGENE PYRENEES CENTRE"]
["SOS OXYGENE REUNION","SOS OXYGENE REUNION"]
["SOS OXYGENE REUNION St Leu","SOS OXYGENE REUNION St Leu"]
["SOS OXYGENE REUNION St Paul","SOS OXYGENE REUNION St Paul"]
["SOS OXYGENE RHONE ALPES","SOS OXYGENE RHONE ALPES"]
["SOS OXYGENE RHONE ALPES Vaulx","SOS OXYGENE RHONE ALPES Vaulx"]
["SOS OXYGENE SUD ALSACE","SOS OXYGENE SUD ALSACE"]
["SOS OXYGENE SUD LOIRE","SOS OXYGENE SUD LOIRE"]
["SOS OXYGENE VAR","SOS OXYGENE VAR"]
["SOSECAT","SOSECAT"]
["SOTHYS PARIS","SOTHYS PARIS"]
["sowadio","sowadio"]
["Spector Consulting","Spector Consulting"]
["SPECTRANETICS FRANCE SARL","SPECTRANETICS FRANCE SARL"]
["SPECTRANETICS INTERNATIONAL B.V.","SPECTRANETICS INTERNATIONAL B.V."]
["SPINEART SA","SPINEART SA"]
["SPINEGUARD","SPINEGUARD"]
["SPINEVISION","SPINEVISION"]
["SPINEWAY","SPINEWAY"]
["Springer Science+Business Media France","Springer Science+Business Media France"]
["SSL HEALTHCARE ITALIA","SSL HEALTHCARE ITALIA"]
["ST AUDITION","ST AUDITION"]
["St Jude Medical France SAS","St Jude Medical France SAS"]
["STALLERGENES SA","STALLERGENES SA"]
["Stanhome International","Stanhome International"]
["STARKEY FRANCE","STARKEY FRANCE"]
["STATESIA","STATESIA"]
["STENTYS S.A","STENTYS S.A"]
["STEPHANIX","STEPHANIX"]
["sterience","sterience"]
["STERIS","STERIS"]
["STERLING COOPER","STERLING COOPER"]
["STETHOS","STETHOS"]
["STETHOS INTERNATIONAL","STETHOS INTERNATIONAL"]
["Stragen France","Stragen France"]
["STRATEGIQUE SANTE","STRATEGIQUE SANTE"]
["StratLab81","StratLab81"]
["STRAUB MEDICAL (France)","STRAUB MEDICAL (France)"]
["Straumann France","Straumann France"]
["STRYKER FRANCE SAS","STRYKER FRANCE SAS"]
["Stryker Trauma GmbH","Stryker Trauma GmbH"]
["SUBLIMED","SUBLIMED"]
["SUBSTIPHARM DEVELOPPEMENT","SUBSTIPHARM DEVELOPPEMENT"]
["SUBSTRATHOMME","SUBSTRATHOMME"]
["SUD OUEST ORTHOPEDIE","SUD OUEST ORTHOPEDIE"]
["SUN PHARMACEUTICALS FRANCE","SUN PHARMACEUTICALS FRANCE"]
["Sunesis Pharmaceuticals","Sunesis Pharmaceuticals"]
["Sunnikan Consulting","Sunnikan Consulting"]
["SUNSTAR FRANCE","SUNSTAR FRANCE"]
["SuperSonic Imagine","SuperSonic Imagine"]
["surdioptic","surdioptic"]
["SURGIVIEW SAS","SURGIVIEW SAS"]
["SURGIVISIO","SURGIVISIO"]
["SWEDISH ORPHAN BIOVITRUM","SWEDISH ORPHAN BIOVITRUM"]
["SWEDISH ORPHAN BIOVITRUM AB (publ)","SWEDISH ORPHAN BIOVITRUM AB (publ)"]
["SWING TECHNOLOGIES","SWING TECHNOLOGIES"]
["SYLVESTRE AUDITION","SYLVESTRE AUDITION"]
["SYMATESE","SYMATESE"]
["SYMATESE AESTHETICS","SYMATESE AESTHETICS"]
["Symbios Orthopédie SA","Symbios Orthopédie SA"]
["Symbios Orthopédie SA","Symbios Orthopédie SA"]
["symbios sas","symbios sas"]
["Synageva BioPharma SAS","Synageva BioPharma SAS"]
["Synakene","Synakene"]
["SYNAPSE SANTE","SYNAPSE SANTE"]
["SynteractHCR France S.A.S.","SynteractHCR France S.A.S."]
["SYNTHES","SYNTHES"]
["SYSMED ASSISTANCE","SYSMED ASSISTANCE"]
["SYSMED PAS DE CALAIS","SYSMED PAS DE CALAIS"]
["SYSMEX FRANCE","SYSMEX FRANCE"]
["SYSTAGENIX WOUND MANAGEMENT FRANCE","SYSTAGENIX WOUND MANAGEMENT FRANCE"]
["System Analytic","System Analytic"]
["System Assistance Medical","System Assistance Medical"]
["Takeda France","Takeda France"]
["TARA SANTE","TARA SANTE"]
["TBF GENIE TISSULAIRE","TBF GENIE TISSULAIRE"]
["TBWA\\ADELPHI","TBWA\\ADELPHI"]
["TEKNIMED","TEKNIMED"]
["TELEFLEX MEDICAL SAS","TELEFLEX MEDICAL SAS"]
["TEM-France","TEM-France"]
["TEOXANE","TEOXANE"]
["TEOXANE FRANCE","TEOXANE FRANCE"]
["TERALI","TERALI"]
["TERRA FIRMA","TERRA FIRMA"]
["TERRE NEUVE","TERRE NEUVE"]
["Terumo BCT Europe SA","Terumo BCT Europe SA"]
["Test","Test"]
["TEVA SANTE SAS","TEVA SANTE SAS"]
["TEXTILE HI-TEC","TEXTILE HI-TEC"]
["TFS TRIAL FORM SUPPORT SASU","TFS TRIAL FORM SUPPORT SASU"]
["THE BINDING SITE GROUP LTD","THE BINDING SITE GROUP LTD"]
["The KOL Connection","The KOL Connection"]
["The MarkeTech Group SARL","The MarkeTech Group SARL"]
["The Medicines Company France SAS","The Medicines Company France SAS"]
["The Research Partnership","The Research Partnership"]
["The Spectranetics Corporation","The Spectranetics Corporation"]
["Theorem Clinical Research SARL","Theorem Clinical Research SARL"]
["THERABEL LUCIEN PHARMA","THERABEL LUCIEN PHARMA"]
["THERACLION","THERACLION"]
["THERADIAG SA","THERADIAG SA"]
["THERADIAL SAS","THERADIAL SAS"]
["THERAKOS UK Ltd","THERAKOS UK Ltd"]
["Theravance, Inc.","Theravance, Inc."]
["THERMO ELECTRON LED SAS","THERMO ELECTRON LED SAS"]
["THERMO ELECTRON SAS","THERMO ELECTRON SAS"]
["THERMO FISHER DIAGNOSTICS","THERMO FISHER DIAGNOSTICS"]
["Think Tuvalu","Think Tuvalu"]
["THORATEC EUROPE LTD","THORATEC EUROPE LTD"]
["THUASNE","THUASNE"]
["Tillotts Pharma France SAS","Tillotts Pharma France SAS"]
["TIME RESEARCH LIMITED","TIME RESEARCH LIMITED"]
["to the heart ltd","to the heart ltd"]
["Topcon SARL","Topcon SARL"]
["TOP-Service für Lingualtechnik GmbH","TOP-Service für Lingualtechnik GmbH"]
["TOP-Service für Lingualtechnik GmbH","TOP-Service für Lingualtechnik GmbH"]
["Toray Industries, Inc.","Toray Industries, Inc."]
["TORNIER","TORNIER"]
["TOSHIBA MEDICAL FRANCE","TOSHIBA MEDICAL FRANCE"]
["TOSOH EUROPE NV","TOSOH EUROPE NV"]
["TOURS CERAM","TOURS CERAM"]
["Trame Way","Trame Way"]
["Transgene SA","Transgene SA"]
["Transystème - JMT IMPLANTS","Transystème - JMT IMPLANTS"]
["Transystème - JMT IMPLANTS","Transystème - JMT IMPLANTS"]
["TRANSYSTEME SN","TRANSYSTEME SN"]
["TRB CHEMEDICA","TRB CHEMEDICA"]
["TROIS PRIME","TROIS PRIME"]
["TROPHOS","TROPHOS"]
["TSP","TSP"]
["Tungsten-Software","Tungsten-Software"]
["Tutogen Médical France","Tutogen Médical France"]
["Tutogen Médical France","Tutogen Médical France"]
["TxCell","TxCell"]
["UCB Pharma SA","UCB Pharma"]
["Ugam Solutions","Ugam Solutions"]
["Ultradent Products GmbH","Ultradent Products GmbH"]
["ULURU SANTE / VIGIE Pharma","ULURU SANTE / VIGIE Pharma"]
["UNILEVER FRANCE","UNILEVER FRANCE"]
["United Orthopedic Corporation (France)","United Orthopedic Corporation (France)"]
["UNITHER DEVELOPPEMENT BORDEAUX","UNITHER DEVELOPPEMENT BORDEAUX"]
["UNITHER INDUSTRIES","UNITHER INDUSTRIES"]
["UNITHER LIQUID MANUFACTURING","UNITHER LIQUID MANUFACTURING"]
["UNITHER PHARMACEUTICALS","UNITHER PHARMACEUTICALS"]
["UNIVERSAL MEDICA","UNIVERSAL MEDICA"]
["Update France Terrain d'Etudes","Update France Terrain d'Etudes"]
["UPSA SAS","UPSA SAS"]
["URGO RECHERCHE INNOVATION ET DEVELOPPEMENT","URGO RECHERCHE INNOVATION ET DEVELOPPEMENT"]
["Use-Lab GmbH","Use-Lab GmbH"]
["Valtech Cardio Ltd","Valtech Cardio Ltd"]
["VALUA SARL","VALUA SARL"]
["Varian Medical Systems France Sarl","Varian Medical Systems France Sarl"]
["Vascular Solutions, Inc.","Vascular Solutions, Inc."]
["VASCUTEK FRANCE","VASCUTEK FRANCE"]
["Vatech France","Vatech France"]
["VECTEC","VECTEC"]
["Veniti, Inc.","Veniti, Inc."]
["Ventana Medical Systems, Inc.","Ventana Medical Systems, Inc."]
["Ventiléa","Ventiléa"]
["Ventiléa","Ventiléa"]
["VEODIS","VEODIS"]
["VERBAL","VERBAL"]
["Vertex Pharmaceuticals Incorporated","Vertex Pharmaceuticals Incorporated"]
["VEXIM SA","VEXIM SA"]
["Vibrant Med-El","Vibrant Med-El"]
["VIFOR FRANCE SA","VIFOR FRANCE SA"]
["VIFOR FRESENIUS MEDICAL CARE RENAL PHARMA","VIFOR FRESENIUS MEDICAL CARE RENAL PHARMA"]
["ViiV HEALTHCARE SAS","ViiV HEALTHCARE SAS"]
["VIROPHARMA","VIROPHARMA"]
["VIROPHARMA SPRL","VIROPHARMA SPRL"]
["VISION OUTRE MER","VISION OUTRE MER"]
["Vital Images France Sarl","Vital Images France Sarl"]
["VITALAIRE","VITALAIRE"]
["VITALEA MEDICAL","VITALEA MEDICAL"]
["VITALITEC INTERNATIONAL","VITALITEC INTERNATIONAL"]
["VIVACTIS MEDICAL EDUCATION","VIVACTIS MEDICAL EDUCATION"]
["Vivactis-M2Research","Vivactis-M2Research"]
["VIVISOL France","VIVISOL France"]
["VKMED","VKMED"]
["VO Medica","VO Medica"]
["VOISIN CONSULTING","VOISIN CONSULTING"]
["VOLCANO EUROPE BVBA/SPRL","VOLCANO EUROPE BVBA/SPRL"]
["VOLUNTIS","VOLUNTIS"]
["VYGON","VYGON"]
["W L GORE & ASSOCIES","W L GORE & ASSOCIES"]
["W&H FRANCE","W&H FRANCE"]
["WAM","WAM"]
["Warner Chilcott France SAS","Warner Chilcott France SAS"]
["WEINMANN EMERGENCY FRANCE","WEINMANN EMERGENCY FRANCE"]
["WEINMANN SAS","WEINMANN SAS"]
["Weleda S.A.","Weleda S.A."]
["WELLSPECT HEALTHCARE","WELLSPECT HEALTHCARE"]
["WELLSPECT HEALTHCARE/DENTSPLY IH AB","WELLSPECT HEALTHCARE/DENTSPLY IH AB"]
["WERFEN","WERFEN"]
["WIDEX","WIDEX"]
["WOO YOUNG MEDICAL FRANCE","WOO YOUNG MEDICAL FRANCE"]
["WorldOne Group B.V.","WorldOne Group B.V."]
["WR CONSEIL","WR CONSEIL"]
["WRIGHT MEDICAL FRANCE","WRIGHT MEDICAL FRANCE"]
["XENIOS","XENIOS"]
["XNOV","XNOV"]
["XNOV Distribution","XNOV Distribution"]
["YPSOMED SAS","YPSOMED SAS"]
["YSSUP RESEARCH","YSSUP RESEARCH"]
["Zambon France","Zambon France"]
["Zeste Research","Zeste Research"]
["Zimmer BVBA","Zimmer BVBA"]
["Zimmer Dental SAS","Zimmer Dental SAS"]
["Zimmer France SAS","Zimmer France SAS"]
["Zimmer GmbH","Zimmer GmbH"]
["Zimmer Spine SAS","Zimmer Spine SAS"]
["ZOLL Médical France","ZOLL Médical France"]
["ZOLL Médical France","ZOLL Médical France"]
["ZS Associates","ZS Associates"]
["ZS Associates International, Inc.","ZS Associates International, Inc."]
["ZYDUS FRANCE","ZYDUS FRANCE"]

{"sheet":"Conception","index":5,"n_rows":18,"n_cols":4,"rows_kept":18,"cut":false,"hidden":false,"merged":[[23,3,23,14],[17,1,17,14],[13,3,13,5],[16,3,16,14],[18,3,18,14],[6,3,10,8],[19,3,19,14],[20,3,20,14],[21,3,21,14],[22,3,22,14]]}
[]
[null,"Concepteur :"]
[]
[null,null,null,"François PESTY"]
[null,null,null,"Pharmacien, Ancien Interne des Hôpitaux de Paris, Institut Supérieur de Gestion,"]
[null,null,null,"Consultant indépendant, "]
[null,null,null,"Expert-Conseil en organisation et informatisation du circuit du médicament / Optimisation des approvisionnements et des stocks pharmaceutiques / Pilotage \n« médico-économique » des médicaments et dispositifs médicaux / Campagne \n« pilotes » de visites médicalisées des délégués de l’assurance maladie sur le médicament / Pertinence des traitements médicamenteux"]
[]
[]
[]
[]
[null,null,null,"2, square Gay Lussac"]
[null,null,null,"78330 Fontenay le Fleury"]
[null,null,null,"Francois.PESTY@Wanadoo.fr"]
[null,null,null,"01 30 45 03 59 / 06 88 89 53 51"]
[]
[]
[null,"François PESTY est membre de l'association FORMINDEP, "]

{"sheet":"Rémunérations","index":6,"n_rows":477,"n_cols":8,"rows_kept":477,"cut":false,"hidden":false,"merged":[]}
["Entreprise","Type de bénéficiaire","Bénéficiaire","Date","Montant"]
["SANOFI-AVENTIS RECHERCHE & DEVELOPPEMENT","Etablissement de santé ","INSTITUT GUSTAVE ROUSSY","14/01/2013",15000]
["SANOFI-AVENTIS RECHERCHE & DEVELOPPEMENT","Etablissement de santé ","INSTITUT GUSTAVE ROUSSY","17/01/2013",4552]
["SANOFI-AVENTIS RECHERCHE & DEVELOPPEMENT","Etablissement de santé ","INSTITUT GUSTAVE ROUSSY","21/01/2013",39296]
["SANOFI-AVENTIS GROUPE","Etablissement de santé ","INSTITUT GUSTAVE ROUSSY","2013-04-02",2392]
["SANOFI AVENTIS FRANCE","Etablissement de santé ","INSTITUT GUSTAVE ROUSSY","2013-07-02",18090]
["SANOFI-AVENTIS RECHERCHE & DEVELOPPEMENT","Etablissement de santé ","INSTITUT GUSTAVE ROUSSY","14/02/2013",21606]
["SANOFI-AVENTIS RECHERCHE & DEVELOPPEMENT","Etablissement de santé ","INSTITUT GUSTAVE ROUSSY","14/02/2013",21606]
["SANOFI-AVENTIS RECHERCHE & DEVELOPPEMENT","Etablissement de santé ","INSTITUT GUSTAVE ROUSSY","21/03/2013",400]
["SANOFI-AVENTIS RECHERCHE & DEVELOPPEMENT","Etablissement de santé ","INSTITUT GUSTAVE ROUSSY","29/03/2013",1950]
["ONXEO","Etablissement de santé ","GUSTAVE ROUSSY","16/04/2013",23920]
["SANOFI-AVENTIS RECHERCHE & DEVELOPPEMENT","Etablissement de santé ","INSTITUT GUSTAVE ROUSSY","2013-02-05",21606]
["SANOFI-AVENTIS RECHERCHE & DEVELOPPEMENT","Etablissement de santé ","INSTITUT GUSTAVE ROUSSY","2013-06-05",11960]
["SANOFI AVENTIS FRANCE","Etablissement de santé ","INSTITUT GUSTAVE ROUSSY","16/05/2013",3552]
["SANOFI-AVENTIS RECHERCHE & DEVELOPPEMENT","Etablissement de santé ","INSTITUT GUSTAVE ROUSSY","16/05/2013",2000]
["ONXEO","Etablissement de santé ","GUSTAVE ROUSSY","28/06/2013",300]
["SANOFI-AVENTIS RECHERCHE & DEVELOPPEMENT","Etablissement de santé ","INSTITUT GUSTAVE ROUSSY","2013-04-07",17940]
["SANOFI-AVENTIS RECHERCHE & DEVELOPPEMENT","Etablissement de santé ","INSTITUT GUSTAVE ROUSSY","22/07/2013",1196]
["SANOFI-AVENTIS RECHERCHE & DEVELOPPEMENT","Etablissement de santé ","INSTITUT GUSTAVE ROUSSY","2013-05-08",11960]
["SANOFI-AVENTIS RECHERCHE & DEVELOPPEMENT","Etablissement de santé ","INSTITUT GUSTAVE ROUSSY","29/08/2013",17940]
["Orion Corporation Orion Pharma","Etablissement de santé ","INSTITUT GUSTAVE ROUSSY","2013-03-09",40075]
["Orion Corporation Orion Pharma","Etablissement de santé ","INSTITUT GUSTAVE ROUSSY","2013-07-10",1760]
["Orion Corporation Orion Pharma","Etablissement de santé ","INSTITUT GUSTAVE ROUSSY","2013-07-10",1408]
["Orion Corporation Orion Pharma","Etablissement de santé ","INSTITUT GUSTAVE ROUSSY","2013-07-10",1320]
["Orion Corporation Orion Pharma","Etablissement de santé ","INSTITUT GUSTAVE ROUSSY","2013-07-10",14314]
["SANOFI-AVENTIS RECHERCHE & DEVELOPPEMENT","Etablissement de santé ","INSTITUT GUSTAVE ROUSSY","2013-10-10",3900]
["ONXEO","Etablissement de santé ","GUSTAVE ROUSSY","16/10/2013",19836]
["SANOFI AVENTIS FRANCE","Etablissement de santé ","INSTITUT GUSTAVE ROUSSY","24/10/2013",45783]
["SANOFI AVENTIS FRANCE","Etablissement de santé ","INSTITUT GUSTAVE ROUSSY","29/10/2013",3465]
["SANOFI-AVENTIS RECHERCHE & DEVELOPPEMENT","Etablissement de santé ","INSTITUT GUSTAVE ROUSSY","2013-07-11",19648]
["SANOFI AVENTIS FRANCE","Etablissement de santé ","INSTITUT GUSTAVE ROUSSY","2013-07-11",34271]
["SANOFI AVENTIS FRANCE","Etablissement de santé ","INSTITUT GUSTAVE ROUSSY","21/11/2013",41705]
["SANOFI AVENTIS FRANCE","Etablissement de santé ","INSTITUT GUSTAVE ROUSSY","21/01/2014",16334]
["SANOFI AVENTIS FRANCE","Etablissement de santé ","INSTITUT GUSTAVE ROUSSY","21/01/2014",18182]
["SANOFI-AVENTIS RECHERCHE & DEVELOPPEMENT","Etablissement de santé ","INSTITUT GUSTAVE ROUSSY","28/01/2014",10869]
["SANOFI-AVENTIS RECHERCHE & DEVELOPPEMENT","Etablissement de santé ","INSTITUT GUSTAVE ROUSSY","28/01/2014",10869]
["Bayer HealthCare SAS","Etablissement de santé ","INSTITUT GUSTAVE-ROUSSY","2014-10-02",1800]
["ONXEO","Etablissement de santé ","GUSTAVE ROUSSY","27/02/2014",78732]
["ONXEO","Etablissement de santé ","GUSTAVE ROUSSY","19/03/2014",660]
["ONXEO","Etablissement de santé ","GUSTAVE ROUSSY","28/03/2014",24931]
["SANOFI AVENTIS FRANCE","Etablissement de santé ","INSTITUT GUSTAVE ROUSSY","2014-08-04",115845]
["Bayer HealthCare SAS","Etablissement de santé ","INSTITUT GUSTAVE-ROUSSY","2014-11-04",3000]
["SANOFI AVENTIS FRANCE","Etablissement de santé ","INSTITUT GUSTAVE ROUSSY","2014-12-06",8118]
["Genzyme","Etablissement de santé ","INSTITUT GUSTAVE ROUSSY","15/07/2014",6800]
["Bayer HealthCare SAS","Etablissement de santé ","INSTITUT GUSTAVE-ROUSSY","2014-10-09",330]
["Bayer HealthCare SAS","Etablissement de santé ","INSTITUT GUSTAVE-ROUSSY","19/09/2014",1000]
["Bayer HealthCare SAS","Etablissement de santé ","INSTITUT GUSTAVE-ROUSSY","19/09/2014",1350]
["SANOFI AVENTIS FRANCE","Etablissement de santé ","INSTITUT GUSTAVE ROUSSY","25/09/2014",60000]
["SANOFI AVENTIS FRANCE","Etablissement de santé ","INSTITUT GUSTAVE ROUSSY","2014-02-10",9161]
["SANOFI AVENTIS FRANCE","Etablissement de santé ","INSTITUT GUSTAVE ROUSSY","16/10/2014",49286]
["Orion Corporation Orion Pharma","Etablissement de santé ","INSTITUT GUSTAVE ROUSSY","17/10/2014",30373]
["ONXEO","Personnes morales assurant la formation initiale ou continue des professionnels de santé ","GUSTAVE ROUSSY","18/11/2014",36432]
["SANOFI AVENTIS FRANCE","Etablissement de santé ","INSTITUT GUSTAVE ROUSSY","2014-04-12",19272]
["SANOFI AVENTIS FRANCE","Etablissement de santé ","INSTITUT GUSTAVE ROUSSY","2014-09-12",48000]
["LABORATOIRE GLAXOSMITHKLINE","Etablissement de santé ","INSTITUT GUSTAVE ROUSSY","2015-06-01",2400]
["Genzyme","Etablissement de santé ","INSTITUT GUSTAVE ROUSSY","15/01/2015",1800]
["LABORATOIRE GLAXOSMITHKLINE","Etablissement de santé ","INSTITUT GUSTAVE ROUSSY","20/01/2015",1440]
["LABORATOIRE GLAXOSMITHKLINE","Etablissement de santé ","INSTITUT GUSTAVE ROUSSY","20/01/2015",480]
["LABORATOIRE GLAXOSMITHKLINE","Etablissement de santé ","INSTITUT GUSTAVE ROUSSY","20/01/2015",600]
["LABORATOIRE GLAXOSMITHKLINE","Etablissement de santé ","INSTITUT GUSTAVE ROUSSY","20/01/2015",2304]
["LABORATOIRE GLAXOSMITHKLINE","Etablissement de santé ","INSTITUT GUSTAVE ROUSSY","20/01/2015",21215]
["LABORATOIRE GLAXOSMITHKLINE","Etablissement de santé ","INSTITUT GUSTAVE ROUSSY","27/01/2015",660]
["LABORATOIRE GLAXOSMITHKLINE","Etablissement de santé ","INSTITUT GUSTAVE ROUSSY","24/02/2015",179453]
["LABORATOIRE GLAXOSMITHKLINE","Etablissement de santé ","INSTITUT GUSTAVE ROUSSY","24/02/2015",18400]
["LABORATOIRE GLAXOSMITHKLINE","Etablissement de santé ","INSTITUT GUSTAVE ROUSSY","24/02/2015",88920]
["SANOFI AVENTIS FRANCE","Etablissement de santé ","INSTITUT GUSTAVE ROUSSY","2015-02-04",10047]
["Genzyme","Etablissement de santé ","INSTITUT GUSTAVE ROUSSY","2015-09-04",2000]
["SANOFI AVENTIS FRANCE","Etablissement de santé ","INSTITUT GUSTAVE ROUSSY","2015-09-04",264]
["SANOFI AVENTIS FRANCE","Etablissement de santé ","INSTITUT GUSTAVE ROUSSY","2015-09-04",60000]
["Orion Corporation Orion Pharma","Etablissement de santé ","INSTITUT GUSTAVE ROUSSY","2015-09-04",440]
["Orion Corporation Orion Pharma","Etablissement de santé ","INSTITUT GUSTAVE ROUSSY","2015-09-04",15239]
["Orion Corporation Orion Pharma","Etablissement de santé ","INSTITUT GUSTAVE ROUSSY","2015-09-04",440]
["Orion Corporation Orion Pharma","Etablissement de santé ","INSTITUT GUSTAVE ROUSSY","2015-09-04",440]
["Orion Corporation Orion Pharma","Etablissement de santé ","INSTITUT GUSTAVE ROUSSY","2015-09-04",660]
["Orion Corporation Orion Pharma","Etablissement de santé ","INSTITUT GUSTAVE ROUSSY","14/04/2015",3908]
["SANOFI AVENTIS FRANCE","Etablissement de santé ","INSTITUT GUSTAVE ROUSSY","16/04/2015",211]
["LABORATOIRE GLAXOSMITHKLINE","Etablissement de santé ","INSTITUT GUSTAVE ROUSSY","2015-05-05",5950]
["LABORATOIRE GLAXOSMITHKLINE","Etablissement de santé ","INSTITUT GUSTAVE ROUSSY","2015-05-05",37140]
["Bayer HealthCare SAS","Etablissement de santé ","INSTITUT GUSTAVE-ROUSSY","21/05/2015",24695]
["LABORATOIRE GLAXOSMITHKLINE","Etablissement de santé ","INSTITUT GUSTAVE ROUSSY","26/05/2015",46999]
["LABORATOIRE GLAXOSMITHKLINE","Etablissement de santé ","INSTITUT GUSTAVE ROUSSY","26/05/2015",4500]
["Genzyme","Etablissement de santé ","INSTITUT GUSTAVE ROUSSY","2015-11-06",1560]
["LABORATOIRE GLAXOSMITHKLINE","Etablissement de santé ","INSTITUT GUSTAVE ROUSSY","14/07/2015",22980]
["LABORATOIRE GLAXOSMITHKLINE","Etablissement de santé ","INSTITUT GUSTAVE ROUSSY","14/07/2015",19621]
["LABORATOIRE GLAXOSMITHKLINE","Etablissement de santé ","INSTITUT GUSTAVE ROUSSY","15/07/2015",63390]
["ONXEO","Personnes morales assurant la formation initiale ou continue des professionnels de santé ","GUSTAVE ROUSSY","16/07/2015",7576]
["LABORATOIRE GLAXOSMITHKLINE","Etablissement de santé ","INSTITUT GUSTAVE ROUSSY","28/07/2015",18060]
["Bayer HealthCare SAS","Etablissement de santé ","INSTITUT GUSTAVE-ROUSSY","18/09/2015",2219]
["Bayer HealthCare SAS","Etablissement de santé ","INSTITUT GUSTAVE-ROUSSY","21/09/2015",1000]
["Bayer HealthCare SAS","Etablissement de santé ","INSTITUT GUSTAVE-ROUSSY","2015-07-10",2310]
["Bayer HealthCare SAS","Etablissement de santé ","INSTITUT GUSTAVE-ROUSSY","2015-09-10",2640]
["Bayer HealthCare SAS","Etablissement de santé ","INSTITUT GUSTAVE-ROUSSY","2015-09-10",10120]
["Bayer HealthCare SAS","Etablissement de santé ","INSTITUT GUSTAVE-ROUSSY","2015-09-10",13585]
["Bayer HealthCare SAS","Etablissement de santé ","INSTITUT GUSTAVE-ROUSSY","2015-09-10",1650]
["Bayer HealthCare SAS","Etablissement de santé ","INSTITUT GUSTAVE-ROUSSY","2015-09-10",1403]
["PIERRE FABRE MEDICAMENT","Etablissement de santé ","INSTITUT GUSTAVE ROUSSY","14/10/2015",216144]
["ROCHE SAS","Etablissement de santé ","GUSTAVE ROUSSY","2015-03-11",1200]
["LABORATOIRE GLAXOSMITHKLINE","Etablissement de santé ","INSTITUT GUSTAVE ROUSSY","2015-10-11",19308]
["ROCHE SAS","Etablissement de santé ","GUSTAVE ROUSSY","17/11/2015",7000]
["LABORATOIRE GLAXOSMITHKLINE","Etablissement de santé ","INSTITUT GUSTAVE ROUSSY","17/11/2015",10560]
["ROCHE SAS","Etablissement de santé ","GUSTAVE ROUSSY","24/11/2015",321]
["SANOFI AVENTIS FRANCE","Etablissement de santé ","INSTITUT GUSTAVE ROUSSY","17/12/2015",2244]
["Genzyme","Etablissement de santé ","INSTITUT GUSTAVE ROUSSY","24/12/2015",1800]
["SANOFI AVENTIS FRANCE","Etablissement de santé ","INSTITUT GUSTAVE ROUSSY","24/12/2015",14159]
["LABORATOIRE GLAXOSMITHKLINE","Etablissement de santé ","INSTITUT GUSTAVE ROUSSY","2016-06-01",133380]
["LABORATOIRE GLAXOSMITHKLINE","Etablissement de santé ","INSTITUT GUSTAVE ROUSSY","2016-06-01",130110]
["ROCHE SAS","Etablissement de santé ","GUSTAVE ROUSSY","2016-12-01",968]
["LABORATOIRE GLAXOSMITHKLINE","Etablissement de santé ","INSTITUT GUSTAVE ROUSSY","19/01/2016",8736]
["LABORATOIRE GLAXOSMITHKLINE","Etablissement de santé ","INSTITUT GUSTAVE ROUSSY","19/01/2016",24720]
["LABORATOIRE GLAXOSMITHKLINE","Etablissement de santé ","INSTITUT GUSTAVE ROUSSY","19/01/2016",6480]
["LABORATOIRE GLAXOSMITHKLINE","Etablissement de santé ","INSTITUT GUSTAVE ROUSSY","19/01/2016",1800]
["LABORATOIRE GLAXOSMITHKLINE","Etablissement de santé ","INSTITUT GUSTAVE ROUSSY","19/01/2016",3300]
["LABORATOIRE GLAXOSMITHKLINE","Etablissement de santé ","INSTITUT GUSTAVE ROUSSY","19/01/2016",600]
["LABORATOIRE GLAXOSMITHKLINE","Etablissement de santé ","INSTITUT GUSTAVE ROUSSY","19/01/2016",840]
["LABORATOIRE GLAXOSMITHKLINE","Etablissement de santé ","INSTITUT GUSTAVE ROUSSY","27/01/2016",19080]
["LABORATOIRE GLAXOSMITHKLINE","Etablissement de santé ","INSTITUT GUSTAVE ROUSSY","27/01/2016",254160]
["LABORATOIRE GLAXOSMITHKLINE","Etablissement de santé ","INSTITUT GUSTAVE ROUSSY","27/01/2016",600]
["SANOFI-AVENTIS RECHERCHE & DEVELOPPEMENT","Etablissement de santé ","INSTITUT GUSTAVE ROUSSY","2016-02-02",112114]
["LABORATOIRE GLAXOSMITHKLINE","Etablissement de santé ","INSTITUT GUSTAVE ROUSSY","2016-02-02",2520]
["SANOFI-AVENTIS RECHERCHE & DEVELOPPEMENT","Etablissement de santé ","INSTITUT GUSTAVE ROUSSY","2016-02-02",213000]
["LABORATOIRE GLAXOSMITHKLINE","Etablissement de santé ","INSTITUT GUSTAVE ROUSSY","2016-02-02",480]
["SANOFI-AVENTIS RECHERCHE & DEVELOPPEMENT","Etablissement de santé ","INSTITUT GUSTAVE ROUSSY","2016-02-02",112114]
["ROCHE SAS","Etablissement de santé ","GUSTAVE ROUSSY","2016-09-02",30000]
["LABORATOIRE GLAXOSMITHKLINE","Etablissement de santé ","INSTITUT GUSTAVE ROUSSY","2016-09-02",6120]
["LABORATOIRE GLAXOSMITHKLINE","Etablissement de santé ","INSTITUT GUSTAVE ROUSSY","2016-09-02",240]
["LABORATOIRE GLAXOSMITHKLINE","Etablissement de santé ","INSTITUT GUSTAVE ROUSSY","2016-09-02",2280]
["LABORATOIRE GLAXOSMITHKLINE","Etablissement de santé ","INSTITUT GUSTAVE ROUSSY","2016-09-02",3780]
["LABORATOIRE GLAXOSMITHKLINE","Etablissement de santé ","INSTITUT GUSTAVE ROUSSY","2016-09-02",8400]
["LABORATOIRE GLAXOSMITHKLINE","Etablissement de santé ","INSTITUT GUSTAVE ROUSSY","2016-09-02",33434]
["Orion Corporation Orion Pharma","Etablissement de santé ","INSTITUT GUSTAVE ROUSSY","15/02/2016",1100]
["Orion Corporation Orion Pharma","Etablissement de santé ","INSTITUT GUSTAVE ROUSSY","15/02/2016",8511]
["Orion Corporation Orion Pharma","Etablissement de santé ","INSTITUT GUSTAVE ROUSSY","15/02/2016",9693]
["Orion Corporation Orion Pharma","Etablissement de santé ","INSTITUT GUSTAVE ROUSSY","15/02/2016",880]
["ROCHE SAS","Etablissement de santé ","GUSTAVE ROUSSY","16/02/2016",552]
["LABORATOIRE GLAXOSMITHKLINE","Etablissement de santé ","INSTITUT GUSTAVE ROUSSY","16/02/2016",840]
["LABORATOIRE GLAXOSMITHKLINE","Etablissement de santé ","INSTITUT GUSTAVE ROUSSY","16/02/2016",3840]
["LABORATOIRE GLAXOSMITHKLINE","Etablissement de santé ","INSTITUT GUSTAVE ROUSSY","16/02/2016",3555]
["Orion Corporation Orion Pharma","Etablissement de santé ","INSTITUT GUSTAVE ROUSSY","16/02/2016",14204]
["ROCHE SAS","Etablissement de santé ","GUSTAVE ROUSSY","2016-01-03",31]
["LABORATOIRE GLAXOSMITHKLINE","Etablissement de santé ","INSTITUT GUSTAVE ROUSSY","2016-02-03",5088]
["SANOFI AVENTIS FRANCE","Etablissement de santé ","INSTITUT GUSTAVE ROUSSY","2016-03-03",60000]
["PIERRE FABRE MEDICAMENT","Etablissement de santé ","INSTITUT GUSTAVE ROUSSY","2016-05-03",12000]
["SANOFI-AVENTIS RECHERCHE & DEVELOPPEMENT","Etablissement de santé ","INSTITUT GUSTAVE ROUSSY","2016-08-03",472896]
["LABORATOIRE GLAXOSMITHKLINE","Etablissement de santé ","INSTITUT GUSTAVE ROUSSY","2016-08-03",11896]
["LABORATOIRE GLAXOSMITHKLINE","Etablissement de santé ","INSTITUT GUSTAVE ROUSSY","2016-08-03",50707]
["LABORATOIRE GLAXOSMITHKLINE","Etablissement de santé ","INSTITUT GUSTAVE ROUSSY","2016-08-03",9662]
["LABORATOIRE GLAXOSMITHKLINE","Etablissement de santé ","INSTITUT GUSTAVE ROUSSY","15/03/2016",106952]
["Bayer HealthCare SAS","Etablissement de santé ","INSTITUT GUSTAVE-ROUSSY","18/03/2016",6050]
["Bayer HealthCare SAS","Etablissement de santé ","INSTITUT GUSTAVE-ROUSSY","18/03/2016",4455]
["LABORATOIRE GLAXOSMITHKLINE","Etablissement de santé ","INSTITUT GUSTAVE ROUSSY","22/03/2016",120]
["LABORATOIRE GLAXOSMITHKLINE","Etablissement de santé ","INSTITUT GUSTAVE ROUSSY","22/03/2016",7803]
["ONXEO","Personnes morales assurant la formation initiale ou continue des professionnels de santé ","GUSTAVE ROUSSY","31/03/2016",2700]
["ROCHE SAS","Etablissement de santé ","GUSTAVE ROUSSY","2016-02-04",750]
["LABORATOIRE GLAXOSMITHKLINE","Etablissement de santé ","INSTITUT GUSTAVE ROUSSY","2016-05-04",3600]
["SANOFI-AVENTIS RECHERCHE & DEVELOPPEMENT","Etablissement de santé ","INSTITUT GUSTAVE ROUSSY","2016-12-04",6600]
["NOVARTIS PHARMA SAS","Etablissement de santé ","GUSTAVE ROUSSY","14/04/2016",34419]
["LABORATOIRE GLAXOSMITHKLINE","Etablissement de santé ","INSTITUT GUSTAVE ROUSSY","19/04/2016",2772]
["LABORATOIRE GLAXOSMITHKLINE","Etablissement de santé ","INSTITUT GUSTAVE ROUSSY","19/04/2016",660]
["LABORATOIRE GLAXOSMITHKLINE","Etablissement de santé ","INSTITUT GUSTAVE ROUSSY","19/04/2016",25410]
["LABORATOIRE GLAXOSMITHKLINE","Etablissement de santé ","INSTITUT GUSTAVE ROUSSY","19/04/2016",1848]
["LABORATOIRE GLAXOSMITHKLINE","Etablissement de santé ","INSTITUT GUSTAVE ROUSSY","19/04/2016",1901]
["LABORATOIRE GLAXOSMITHKLINE","Etablissement de santé ","INSTITUT GUSTAVE ROUSSY","19/04/2016",660]
["LABORATOIRE GLAXOSMITHKLINE","Etablissement de santé ","INSTITUT GUSTAVE ROUSSY","19/04/2016",2112]
["AbbVie","Etablissement de santé ","INSTITUT GUSTAVE ROUSSY","25/04/2016",27524]
["JANSSEN-CILAG","Académies, Fondation, sociétés savantes, organismes de conseils ","NILE SARL","2016-02-05",7650]
["LABORATOIRE GLAXOSMITHKLINE","Etablissement de santé ","INSTITUT GUSTAVE ROUSSY","2016-04-05",1584]
["LABORATOIRE GLAXOSMITHKLINE","Etablissement de santé ","INSTITUT GUSTAVE ROUSSY","2016-04-05",660]
["LABORATOIRE GLAXOSMITHKLINE","Etablissement de santé ","INSTITUT GUSTAVE ROUSSY","2016-04-05",35244]
["LABORATOIRE GLAXOSMITHKLINE","Etablissement de santé ","INSTITUT GUSTAVE ROUSSY","2016-04-05",17774]
["LABORATOIRE GLAXOSMITHKLINE","Etablissement de santé ","INSTITUT GUSTAVE ROUSSY","2016-04-05",845]
["LABORATOIRE GLAXOSMITHKLINE","Etablissement de santé ","INSTITUT GUSTAVE ROUSSY","2016-04-05",18974]
["LABORATOIRE GLAXOSMITHKLINE","Etablissement de santé ","INSTITUT GUSTAVE ROUSSY","2016-04-05",3960]
["LABORATOIRE GLAXOSMITHKLINE","Etablissement de santé ","INSTITUT GUSTAVE ROUSSY","2016-04-05",1980]
["LABORATOIRE GLAXOSMITHKLINE","Etablissement de santé ","INSTITUT GUSTAVE ROUSSY","2016-04-05",924]
["SANOFI-AVENTIS RECHERCHE & DEVELOPPEMENT","Etablissement de santé ","INSTITUT GUSTAVE ROUSSY","2016-10-05",1711]
["LABORATOIRE GLAXOSMITHKLINE","Etablissement de santé ","INSTITUT GUSTAVE ROUSSY","2016-10-05",6384]
["Bayer HealthCare SAS","Etablissement de santé ","INSTITUT GUSTAVE-ROUSSY","2016-11-05",26714]
["LABORATOIRE GLAXOSMITHKLINE","Etablissement de santé ","INSTITUT GUSTAVE ROUSSY","17/05/2016",30893]
["Genzyme","Etablissement de santé ","INSTITUT GUSTAVE ROUSSY","19/05/2016",2400]
["ROCHE SAS","Etablissement de santé ","GUSTAVE ROUSSY","23/05/2016",9600]
["SANOFI-AVENTIS RECHERCHE & DEVELOPPEMENT","Etablissement de santé ","INSTITUT GUSTAVE ROUSSY","14/06/2016",2492]
["AbbVie","Etablissement de santé ","INSTITUT GUSTAVE ROUSSY","20/06/2016",24282]
["Bayer HealthCare SAS","Etablissement de santé ","INSTITUT GUSTAVE-ROUSSY","23/06/2016",990]
["Bayer HealthCare SAS","Etablissement de santé ","INSTITUT GUSTAVE-ROUSSY","24/06/2016",4534]
["LABORATOIRE GLAXOSMITHKLINE","Etablissement de santé ","INSTITUT GUSTAVE ROUSSY","2016-12-07",60000]
["PFIZER SAS","Etablissement de santé ","INSTITUT GUSTAVE ROUSSY","26/07/2016",3600]
["JANSSEN-CILAG","Académies, Fondation, sociétés savantes, organismes de conseils ","NILE SARL","27/08/2016",7650]
["NOVARTIS PHARMA SAS","Etablissement de santé ","GUSTAVE ROUSSY","31/08/2016",7200]
["LABORATOIRE GLAXOSMITHKLINE","Etablissement de santé ","INSTITUT GUSTAVE ROUSSY","2016-02-09",63574]
["LABORATOIRE GLAXOSMITHKLINE","Etablissement de santé ","INSTITUT GUSTAVE ROUSSY","2016-02-09",73430]
["PFIZER SAS","Etablissement de santé ","INSTITUT GUSTAVE ROUSSY","2016-06-09",1000]
["LABORATOIRE GLAXOSMITHKLINE","Etablissement de santé ","INSTITUT GUSTAVE ROUSSY","2016-07-09",9240]
["LABORATOIRE GLAXOSMITHKLINE","Etablissement de santé ","INSTITUT GUSTAVE ROUSSY","2016-09-09",27720]
["LABORATOIRE GLAXOSMITHKLINE","Etablissement de santé ","INSTITUT GUSTAVE ROUSSY","2016-09-09",7814]
["Celgene Corporation","Etablissement de santé ","INSTITUT GUSTAVE ROUSSY","2016-09-09",71225]
["Celgene Corporation","Etablissement de santé ","INSTITUT GUSTAVE ROUSSY","2016-09-09",77000]
["LABORATOIRE GLAXOSMITHKLINE","Etablissement de santé ","INSTITUT GUSTAVE ROUSSY","13/09/2016",20400]
["LABORATOIRE GLAXOSMITHKLINE","Etablissement de santé ","INSTITUT GUSTAVE ROUSSY","13/09/2016",43716]
["AbbVie","Etablissement de santé ","INSTITUT CURIE","19/09/2016",18838]
["SANOFI-AVENTIS RECHERCHE & DEVELOPPEMENT","Etablissement de santé ","INSTITUT GUSTAVE ROUSSY","20/09/2016",18000]
["ROCHE SAS","Etablissement de santé ","GUSTAVE ROUSSY","27/09/2016",2500]
["LABORATOIRE GLAXOSMITHKLINE","Etablissement de santé ","INSTITUT GUSTAVE ROUSSY","27/09/2016",924]
["AbbVie","Etablissement de santé ","INSTITUT CURIE","2016-03-10",76284]
["Genzyme","Etablissement de santé ","INSTITUT GUSTAVE ROUSSY","13/10/2016",900]
["Celgene Corporation","Association professionnel de santé ","IFM","19/10/2016",268875]
["AbbVie","Etablissement de santé ","INSTITUT GUSTAVE ROUSSY","24/10/2016",58284]
["Lilly France SAS","Etablissement de santé ","GUSTAVE ROUSSY","26/10/2016",1447]
["PIERRE FABRE MEDICAMENT","Etablissement de santé ","INSTITUT GUSTAVE ROUSSY","2016-02-11",10000]
["LABORATOIRE GLAXOSMITHKLINE","Etablissement de santé ","INSTITUT GUSTAVE ROUSSY","2016-08-11",49500]
["Celgene Corporation","Etablissement de santé ","INSTITUT GUSTAVE ROUSSY","2016-09-11",72050]
["JANSSEN-CILAG","Académies, Fondation, sociétés savantes, organismes de conseils ","NILE SARL","13/11/2016",7650]
["ROCHE SAS","Etablissement de santé ","GUSTAVE ROUSSY","14/11/2016",72000]
["ROCHE SAS","Etablissement de santé ","GUSTAVE ROUSSY","15/11/2016",20000]
["LABORATOIRE GLAXOSMITHKLINE","Etablissement de santé ","INSTITUT GUSTAVE ROUSSY","15/11/2016",60000]
["LABORATOIRE GLAXOSMITHKLINE","Etablissement de santé ","INSTITUT GUSTAVE ROUSSY","22/11/2016",71040]
["KYOWA KIRIN","Académies, Fondation, sociétés savantes, organismes de conseils ","INSTITUT GUSTAVE ROUSSY","2016-02-12",2000]
["LABORATOIRE GLAXOSMITHKLINE","Etablissement de santé ","INSTITUT GUSTAVE ROUSSY","2016-02-12",5000]
["ROCHE SAS","Etablissement de santé ","GUSTAVE ROUSSY","2016-09-12",600]
["NOVARTIS PHARMA SAS","Association professionnel de santé ","INSTITUT GUSTAVE ROUSSY","2016-09-12",10000]
["LABORATOIRE GLAXOSMITHKLINE","Etablissement de santé ","INSTITUT GUSTAVE ROUSSY","13/12/2016",38616]
["Genzyme","Etablissement de santé ","INSTITUT GUSTAVE ROUSSY","15/12/2016",1500]
["ONXEO","Personnes morales assurant la formation initiale ou continue des professionnels de santé ","GUSTAVE ROUSSY","16/12/2016",10800]
["Lilly France SAS","Etablissement de santé ","GUSTAVE ROUSSY","20/12/2016",22110]
["Celgene Corporation","Etablissement de santé ","INSTITUT GUSTAVE ROUSSY","23/12/2016",62975]
["AbbVie","Etablissement de santé ","INSTITUT GUSTAVE ROUSSY","26/12/2016",69618]
["SANOFI-AVENTIS GROUPE","Etablissement de santé ","INSTITUT GUSTAVE ROUSSY","2017-09-01",52215]
["Sociétés étrangères du groupe Novartis","Académies, Fondation, sociétés savantes, organismes de conseils ","INSTITUT GUSTAVE ROUSSY","2017-10-01",1161]
["Lilly France SAS","Etablissement de santé ","GUSTAVE ROUSSY","2017-11-01",16610]
["ROCHE SAS","Etablissement de santé ","GUSTAVE ROUSSY","15/01/2017",36572]
["ONXEO","Personnes morales assurant la formation initiale ou continue des professionnels de santé ","GUSTAVE ROUSSY","16/01/2017",840]
["LABORATOIRE GLAXOSMITHKLINE","Etablissement de santé ","INSTITUT GUSTAVE ROUSSY","17/01/2017",29880]
["PPD FRANCE SAS","Etablissement de santé ","Centre Paul Strauss","19/01/2017",3857]
["ASTRAZENECA","Etablissement de santé ","IGR - INSTITUT GUSTAVE ROUSSY","19/01/2017",1200]
["PPD FRANCE SAS","Etablissement de santé ","Centre Paul Strauss","23/01/2017",753]
["LABORATOIRE GLAXOSMITHKLINE","Etablissement de santé ","INSTITUT GUSTAVE ROUSSY","24/01/2017",57924]
["Lilly France SAS","Etablissement de santé ","GUSTAVE ROUSSY","25/01/2017",16923]
["Lilly France SAS","Etablissement de santé ","GUSTAVE ROUSSY","25/01/2017",1158]
["EISAI SAS","Etablissement de santé ","IGR - INSTITUT CANCERO GUSTAVE ROUS","26/01/2017",5000]
["ONXEO","Personnes morales assurant la formation initiale ou continue des professionnels de santé ","GUSTAVE ROUSSY","30/01/2017",4800]
["NOVARTIS PHARMA SAS","Etablissement de santé ","GUSTAVE ROUSSY","31/01/2017",1000]
["ROCHE SAS","Etablissement de santé ","GUSTAVE ROUSSY","31/01/2017",541]
["ASTRAZENECA","Etablissement de santé ","IGR - INSTITUT GUSTAVE ROUSSY","2017-01-02",1200]
["KYOWA KIRIN","Académies, Fondation, sociétés savantes, organismes de conseils ","INSTITUT CURIE","2017-01-02",1000]
["ASTRAZENECA","Etablissement de santé ","IGR - INSTITUT GUSTAVE ROUSSY","2017-02-02",1200]
["Lilly France SAS","Etablissement de santé ","INSTITUT CURIE","2017-04-02",1394]
["ROCHE SAS","Etablissement de santé ","GUSTAVE ROUSSY","2017-07-02",177]
["SANOFI-AVENTIS RECHERCHE & DEVELOPPEMENT","Etablissement de santé ","INSTITUT GUSTAVE ROUSSY","14/02/2017",18000]
["ASTRAZENECA","Etablissement de santé ","IGR - INSTITUT GUSTAVE ROUSSY","16/02/2017",60000]
["Lilly France SAS","Etablissement de santé ","Institut Gustave Roussy","16/02/2017",400]
["ROCHE SAS","Etablissement de santé ","GUSTAVE ROUSSY","21/02/2017",22]
["PSI CRO FRANCE","Etablissement de santé ","GUSTAVE ROUSSY","23/02/2017",31733]
["EISAI SAS","Association professionnel de santé ","IGR - INSTITUT CANCERO GUSTAVE ROUS","27/02/2017",3600]
["NOVARTIS PHARMA SAS","Etablissement de santé ","GUSTAVE ROUSSY","2017-01-03",46025]
["ASTRAZENECA","Académies, Fondation, sociétés savantes, organismes de conseils ","IGR - INSTITUT GUSTAVE ROUSSY","2017-07-03",6000]
["PPD FRANCE SAS","Etablissement de santé ","INSTITUT GUSTAVE ROUSSY - VILLEJUIF","2017-07-03",25512]
["PPD FRANCE SAS","Etablissement de santé ","INSTITUT GUSTAVE ROUSSY - VILLEJUIF","2017-07-03",13072]
["EISAI SAS","Etablissement de santé ","IGR - INSTITUT CANCERO GUSTAVE ROUS","2017-08-03",30000]
["SANOFI AVENTIS FRANCE","Etablissement de santé ","INSTITUT GUSTAVE ROUSSY","2017-09-03",4000]
["SANOFI-AVENTIS RECHERCHE & DEVELOPPEMENT","Etablissement de santé ","INSTITUT GUSTAVE ROUSSY","14/03/2017",213000]
["Bayer HealthCare SAS","Etablissement de santé ","INSTITUT GUSTAVE-ROUSSY","17/03/2017",1000]
["AMGEN SAS","Etablissement de santé ","GUSTAVE ROUSSY","20/03/2017",440]
["AMGEN SAS","Etablissement de santé ","GUSTAVE ROUSSY","20/03/2017",65153]
["AMGEN SAS","Etablissement de santé ","GUSTAVE ROUSSY","20/03/2017",8184]
["ROCHE SAS","Etablissement de santé ","GUSTAVE ROUSSY","21/03/2017",20000]
["AMGEN SAS","Etablissement de santé ","GUSTAVE ROUSSY","22/03/2017",5170]
["AbbVie","Etablissement de santé ","INSTITUT GUSTAVE ROUSSY","27/03/2017",19836]
["PFIZER SAS","Etablissement de santé ","INSTITUT GUSTAVE ROUSSY","28/03/2017",2500]
["PFIZER SAS","Etablissement de santé ","INSTITUT GUSTAVE ROUSSY","28/03/2017",2400]
["PPD FRANCE SAS","Etablissement de santé ","INSTITUT GUSTAVE ROUSSY","29/03/2017",30000]
["AMGEN SAS","Etablissement de santé ","GUSTAVE ROUSSY","30/03/2017",76692]
["AMGEN SAS","Etablissement de santé ","GUSTAVE ROUSSY","30/03/2017",18150]
["AMGEN SAS","Etablissement de santé ","GUSTAVE ROUSSY","30/03/2017",5540]
["AMGEN SAS","Etablissement de santé ","GUSTAVE ROUSSY","30/03/2017",2805]
["PIERRE FABRE MEDICAMENT","Etablissement de santé ","INSTITUT GUSTAVE ROUSSY","30/03/2017",27013]
["AMGEN SAS","Etablissement de santé ","GUSTAVE ROUSSY","2017-03-04",770]
["AMGEN SAS","Etablissement de santé ","GUSTAVE ROUSSY","2017-03-04",3960]
["AMGEN SAS","Etablissement de santé ","GUSTAVE ROUSSY","2017-03-04",121400]
["AMGEN SAS","Etablissement de santé ","GUSTAVE ROUSSY","2017-03-04",1320]
["Bayer HealthCare SAS","Etablissement de santé ","Centre de Lutte Contre le Cancer GUSTAVE ROUSSY","2017-06-04",11330]
["Lilly France SAS","Etablissement de santé ","GUSTAVE ROUSSY","19/04/2017",24269]
["AMGEN SAS","Etablissement de santé ","GUSTAVE ROUSSY","20/04/2017",4800]
["LABORATOIRE GLAXOSMITHKLINE","Etablissement de santé ","INSTITUT GUSTAVE ROUSSY","25/04/2017",924]
["LABORATOIRE GLAXOSMITHKLINE","Etablissement de santé ","INSTITUT GUSTAVE ROUSSY","25/04/2017",13464]
["LABORATOIRE GLAXOSMITHKLINE","Etablissement de santé ","INSTITUT GUSTAVE ROUSSY","25/04/2017",4260]
["LABORATOIRE GLAXOSMITHKLINE","Etablissement de santé ","INSTITUT GUSTAVE ROUSSY","25/04/2017",4356]
["LABORATOIRE GLAXOSMITHKLINE","Etablissement de santé ","INSTITUT GUSTAVE ROUSSY","25/04/2017",5808]
["LABORATOIRE GLAXOSMITHKLINE","Etablissement de santé ","INSTITUT GUSTAVE ROUSSY","25/04/2017",13464]
["LABORATOIRE GLAXOSMITHKLINE","Etablissement de santé ","INSTITUT GUSTAVE ROUSSY","25/04/2017",59510]
["LABORATOIRE GLAXOSMITHKLINE","Etablissement de santé ","INSTITUT GUSTAVE ROUSSY","25/04/2017",35550]
["LABORATOIRE GLAXOSMITHKLINE","Etablissement de santé ","INSTITUT GUSTAVE ROUSSY","25/04/2017",30120]
["LABORATOIRE GLAXOSMITHKLINE","Etablissement de santé ","INSTITUT GUSTAVE ROUSSY","25/04/2017",6970]
["AMGEN SAS","Etablissement de santé ","GUSTAVE ROUSSY","26/04/2017",78259]
["AMGEN SAS","Etablissement de santé ","GUSTAVE ROUSSY","27/04/2017",37675]
["AMGEN SAS","Etablissement de santé ","GUSTAVE ROUSSY","27/04/2017",1232]
["AMGEN SAS","Etablissement de santé ","GUSTAVE ROUSSY","27/04/2017",3520]
["AMGEN SAS","Etablissement de santé ","GUSTAVE ROUSSY","27/04/2017",2475]
["AMGEN SAS","Etablissement de santé ","GUSTAVE ROUSSY","27/04/2017",550]
["Genzyme","Etablissement de santé ","INSTITUT GUSTAVE ROUSSY","2017-04-05",2400]
["AbbVie","Etablissement de santé ","INSTITUT CURIE","2017-06-05",110661]
["PPD FRANCE SAS","Etablissement de santé ","INSTITUT GUSTAVE ROUSSY - VILLEJUIF","2017-09-05",660]
["PPD FRANCE SAS","Etablissement de santé ","INSTITUT GUSTAVE ROUSSY - VILLEJUIF","2017-09-05",8902]
["PPD FRANCE SAS","Etablissement de santé ","INSTITUT GUSTAVE ROUSSY - VILLEJUIF","2017-09-05",660]
["PPD FRANCE SAS","Etablissement de santé ","INSTITUT GUSTAVE ROUSSY - VILLEJUIF","2017-09-05",16232]
["PPD FRANCE SAS","Etablissement de santé ","INSTITUT GUSTAVE ROUSSY - VILLEJUIF","2017-09-05",990]
["PPD FRANCE SAS","Etablissement de santé ","INSTITUT GUSTAVE ROUSSY - VILLEJUIF","2017-09-05",1056]
["PPD FRANCE SAS","Etablissement de santé ","INSTITUT GUSTAVE ROUSSY - VILLEJUIF","2017-10-05",1901]
["AbbVie","Etablissement de santé ","INSTITUT GUSTAVE ROUSSY","15/05/2017",6900]
["Lilly France SAS","Etablissement de santé ","INSTITUT CURIE","17/05/2017",31857]
["NOVARTIS PHARMA SAS","Etablissement de santé ","GUSTAVE ROUSSY","18/05/2017",600]
["NOVARTIS PHARMA SAS","Etablissement de santé ","IGR - INSTITUT GUSTAVE ROUSSY","19/05/2017",3000]
["PSI CRO FRANCE","Etablissement de santé ","GUSTAVE ROUSSY","29/05/2017",38544]
["PSI CRO FRANCE","Etablissement de santé ","GUSTAVE ROUSSY","29/05/2017",1161]
["PSI CRO FRANCE","Etablissement de santé ","GUSTAVE ROUSSY","29/05/2017",924]
["PSI CRO FRANCE","Etablissement de santé ","GUSTAVE ROUSSY","29/05/2017",1452]
["PSI CRO FRANCE","Etablissement de santé ","GUSTAVE ROUSSY","29/05/2017",46554]
["ROCHE SAS","Etablissement de santé ","GUSTAVE ROUSSY","2017-06-06",425]
["Lilly France SAS","Association professionnel de santé ","INSTITUT GUSTAVE ROUSSY","2017-06-06",134400]
["SANOFI-AVENTIS RECHERCHE & DEVELOPPEMENT","Etablissement de santé ","INSTITUT GUSTAVE ROUSSY","2017-06-06",10000]
["ICON CLINICAL RESEARCH SARL","Etablissement de santé ","Centre de Lutte contre le Cancer Gustave Roussy","2017-07-06",8690]
["NOVARTIS PHARMA SAS","Association professionnel de santé ","IGR - INSTITUT GUSTAVE ROUSSY","13/06/2017",1000]
["LABORATOIRE GLAXOSMITHKLINE","Etablissement de santé ","INSTITUT GUSTAVE ROUSSY","13/06/2017",11520]
["LABORATOIRE GLAXOSMITHKLINE","Etablissement de santé ","INSTITUT GUSTAVE ROUSSY","13/06/2017",29940]
["ASTRAZENECA","Académies, Fondation, sociétés savantes, organismes de conseils ","IGR - INSTITUT GUSTAVE ROUSSY","15/06/2017",6000]
["NANOBIOTIX S.A.","Etablissement de santé ","GUSTAVE ROUSSY","20/06/2017",12600]
["LABORATOIRE GLAXOSMITHKLINE","Etablissement de santé ","INSTITUT GUSTAVE ROUSSY","20/06/2017",9567]
["ROCHE SAS","Etablissement de santé ","GUSTAVE ROUSSY","27/06/2017",600]
["ASTRAZENECA","Etablissement de santé ","IGR - INSTITUT GUSTAVE ROUSSY","27/06/2017",6500]
["PFIZER SAS","Etablissement de santé ","INSTITUT GUSTAVE ROUSSY","27/06/2017",1680]
["LABORATOIRE GLAXOSMITHKLINE","Etablissement de santé ","INSTITUT GUSTAVE ROUSSY","27/06/2017",55432]
["LABORATOIRE GLAXOSMITHKLINE","Etablissement de santé ","INSTITUT GUSTAVE ROUSSY","27/06/2017",480]
["LABORATOIRE GLAXOSMITHKLINE","Etablissement de santé ","INSTITUT GUSTAVE ROUSSY","27/06/2017",7296]
["Lilly France SAS","Etablissement de santé ","GUSTAVE ROUSSY","28/06/2017",772]
["Lilly France SAS","Etablissement de santé ","GUSTAVE ROUSSY","28/06/2017",183488]
["PFIZER SAS","Etablissement de santé ","INSTITUT GUSTAVE ROUSSY","2017-04-07",1200]
["LABORATOIRE GLAXOSMITHKLINE","Etablissement de santé ","INSTITUT GUSTAVE ROUSSY","2017-04-07",2852]
["OLYMPUS France SAS","Etablissement de santé ","Institut Gustave Roussy","2017-06-07",2000]
["SANOFI-AVENTIS RECHERCHE & DEVELOPPEMENT","Etablissement de santé ","INSTITUT GUSTAVE ROUSSY","2017-11-07",78816]
["SANOFI-AVENTIS RECHERCHE & DEVELOPPEMENT","Etablissement de santé ","INSTITUT GUSTAVE ROUSSY","2017-11-07",234022]
["NOVARTIS PHARMA SAS","Etablissement de santé ","GUSTAVE ROUSSY","2017-12-07",17787]
["NOVARTIS PHARMA SAS","Etablissement de santé ","GUSTAVE ROUSSY","2017-12-07",20913]
["Lilly France SAS","Etablissement de santé ","INSTITUT CURIE","2017-12-07",4248]
["AMGEN SAS","Etablissement de santé ","GUSTAVE ROUSSY","13/07/2017",500]
["ASTRAZENECA","Etablissement de santé ","IGR - INSTITUT GUSTAVE ROUSSY","13/07/2017",2160]
["ASTRAZENECA","Etablissement de santé ","IGR - INSTITUT GUSTAVE ROUSSY","13/07/2017",35020]
["ASTRAZENECA","Etablissement de santé ","IGR - INSTITUT GUSTAVE ROUSSY","13/07/2017",720]
["ASTRAZENECA","Etablissement de santé ","IGR - INSTITUT GUSTAVE ROUSSY","13/07/2017",24000]
["SANOFI AVENTIS FRANCE","Etablissement de santé ","INSTITUT GUSTAVE ROUSSY","13/07/2017",58978]
["Lilly France SAS","Etablissement de santé ","Gustave Roussy","19/07/2017",500]
["AMGEN SAS","Etablissement de santé ","GUSTAVE ROUSSY","19/07/2017",900]
["SANOFI AVENTIS FRANCE","Etablissement de santé ","INSTITUT GUSTAVE ROUSSY","20/07/2017",44814]
["ICON CLINICAL RESEARCH SARL","Etablissement de santé ","Centre de Lutte contre le Cancer Gustave Roussy","26/07/2017",96133]
["ICON CLINICAL RESEARCH SARL","Etablissement de santé ","Centre de Lutte contre le Cancer Gustave Roussy","2017-02-08",54725]
["ROCHE SAS","Etablissement de santé ","GUSTAVE ROUSSY","2017-08-08",3000]
["LABORATOIRE GLAXOSMITHKLINE","Etablissement de santé ","INSTITUT GUSTAVE ROUSSY","2017-08-08",4713]
["PFIZER SAS","Etablissement de santé ","INSTITUT GUSTAVE ROUSSY","2017-08-08",1000]
["LABORATOIRE GLAXOSMITHKLINE","Etablissement de santé ","INSTITUT GUSTAVE ROUSSY","2017-08-08",4950]
["PPD FRANCE SAS","Etablissement de santé ","INSTITUT DE CANCEROLOGIE GUSTAVE ROUSSY","2017-11-08",4158]
["ROCHE SAS","Etablissement de santé ","GUSTAVE ROUSSY","16/08/2017",125]
["SANOFI-AVENTIS RECHERCHE & DEVELOPPEMENT","Etablissement de santé ","INSTITUT GUSTAVE ROUSSY","16/08/2017",96000]
["AbbVie","Etablissement de santé ","GUSTAVE ROUSSY","21/08/2017",22803]
["ICON CLINICAL RESEARCH SARL","Etablissement de santé ","Centre de Lutte contre le Cancer Gustave Roussy","23/08/2017",2728]
["Bayer HealthCare SAS","Etablissement de santé ","INSTITUT GUSTAVE-ROUSSY","23/08/2017",1000]
["NOVARTIS PHARMA SAS","Académies, Fondation, sociétés savantes, organismes de conseils ","INSTITUT GUSTAVE ROUSSY","30/08/2017",12000]
["NOVARTIS PHARMA SAS","Etablissement de santé ","GUSTAVE ROUSSY","31/08/2017",7200]
["AMGEN SAS","Etablissement de santé ","INSTITUT GUSTAVE ROUSSY","31/08/2017",600]
["JANSSEN-CILAG","Académies, Fondation, sociétés savantes, organismes de conseils ","NILE SARL","31/08/2017",10800]
["ASTRAZENECA","Académies, Fondation, sociétés savantes, organismes de conseils ","IGR - INSTITUT GUSTAVE ROUSSY","2017-05-09",1200]
["Lilly France SAS","Etablissement de santé ","INSTITUT CURIE","2017-07-09",1800]
["LABORATOIRE GLAXOSMITHKLINE","Etablissement de santé ","INSTITUT GUSTAVE ROUSSY","2017-12-09",50460]
["Lilly France SAS","Etablissement de santé ","GUSTAVE ROUSSY","14/09/2017",75372]
["Lilly France SAS","Etablissement de santé ","Institut Gustave Roussy","14/09/2017",114543]
["PPD FRANCE SAS","Etablissement de santé ","Institut de Cancérologie Gustave Roussy","27/09/2017",50]
["PPD FRANCE SAS","Etablissement de santé ","Institut de Cancérologie Gustave Roussy","27/09/2017",300]
["PPD FRANCE SAS","Etablissement de santé ","Institut de Cancérologie Gustave Roussy","27/09/2017",200]
["Sociétés étrangères du groupe Novartis","Académies, Fondation, sociétés savantes, organismes de conseils ","INSTITUT GUSTAVE ROUSSY","27/09/2017",1875]
["ASTRAZENECA","Etablissement de santé ","IGR - INSTITUT GUSTAVE ROUSSY","2017-05-10",104400]
["PPD FRANCE SAS","Etablissement de santé ","Centre Paul Strauss","2017-06-10",538]
["ASTRAZENECA","Etablissement de santé ","IGR - INSTITUT GUSTAVE ROUSSY","2017-12-10",1000]
["SANOFI AVENTIS FRANCE","Etablissement de santé ","INSTITUT GUSTAVE ROUSSY","2017-12-10",16880]
["BRISTOL-MYERS SQUIBB COMPANY","Etablissement de santé ","GUSTAVE ROUSSY","13/10/2017",1400]
["SANOFI-AVENTIS RECHERCHE & DEVELOPPEMENT","Etablissement de santé ","INSTITUT GUSTAVE ROUSSY","17/10/2017",250]
["ASTRAZENECA","Etablissement de santé ","IGR - INSTITUT GUSTAVE ROUSSY","24/10/2017",1200]
["ROCHE SAS","Etablissement de santé ","GUSTAVE ROUSSY","31/10/2017",2430]
["ROCHE SAS","Etablissement de santé ","GUSTAVE ROUSSY","2017-07-11",600]
["LABORATOIRE GLAXOSMITHKLINE","Etablissement de santé ","INSTITUT GUSTAVE ROUSSY","2017-07-11",2429]
["LABORATOIRE GLAXOSMITHKLINE","Etablissement de santé ","INSTITUT GUSTAVE ROUSSY","2017-07-11",1056]
["LABORATOIRE GLAXOSMITHKLINE","Etablissement de santé ","INSTITUT GUSTAVE ROUSSY","2017-07-11",660]
["LABORATOIRE GLAXOSMITHKLINE","Etablissement de santé ","INSTITUT GUSTAVE ROUSSY","2017-07-11",1188]
["LABORATOIRE GLAXOSMITHKLINE","Etablissement de santé ","INSTITUT GUSTAVE ROUSSY","2017-07-11",38507]
["Lilly France SAS","Etablissement de santé ","GUSTAVE ROUSSY","2017-08-11",121691]
["JANSSEN-CILAG","Académies, Fondation, sociétés savantes, organismes de conseils ","NILE SARL","2017-09-11",10800]
["Institut Roche","Etablissement de santé ","Gustave Roussy","20/11/2017",100000]
["ASTRAZENECA","Etablissement de santé ","IGR - INSTITUT GUSTAVE ROUSSY","21/11/2017",75]
["IPSEN PHARMA","Etablissement de santé ","Institut Gustave Roussy","21/11/2017",1200]
["LABORATOIRE GLAXOSMITHKLINE","Etablissement de santé ","INSTITUT GUSTAVE ROUSSY","21/11/2017",5676]
["LABORATOIRE GLAXOSMITHKLINE","Etablissement de santé ","INSTITUT GUSTAVE ROUSSY","21/11/2017",60277]
["LABORATOIRE GLAXOSMITHKLINE","Etablissement de santé ","INSTITUT GUSTAVE ROUSSY","21/11/2017",17028]
["LABORATOIRE GLAXOSMITHKLINE","Etablissement de santé ","INSTITUT GUSTAVE ROUSSY","21/11/2017",6230]
["ASTRAZENECA","Etablissement de santé ","IGR - INSTITUT GUSTAVE ROUSSY","28/11/2017",2820]
["LABORATOIRE GLAXOSMITHKLINE","Etablissement de santé ","INSTITUT GUSTAVE ROUSSY","28/11/2017",1260]
["SANOFI-AVENTIS RECHERCHE & DEVELOPPEMENT","Etablissement de santé ","INSTITUT GUSTAVE ROUSSY","28/11/2017",18000]
["LABORATOIRE GLAXOSMITHKLINE","Etablissement de santé ","INSTITUT GUSTAVE ROUSSY","28/11/2017",48624]
["LABORATOIRE GLAXOSMITHKLINE","Etablissement de santé ","INSTITUT GUSTAVE ROUSSY","28/11/2017",600]
["Lilly France SAS","Etablissement de santé ","INSTITUT CURIE","2017-01-12",3600]
["LABORATOIRE GLAXOSMITHKLINE","Etablissement de santé ","INSTITUT GUSTAVE ROUSSY","2017-05-12",47091]
["JANSSEN-CILAG","Editeur de logiciel ","INSTITUT GUSTAVE ROUSSY","2017-07-12",1200]
["PPD FRANCE SAS","Etablissement de santé ","Centre Paul Strauss","2017-08-12",561]
["BRISTOL-MYERS SQUIBB COMPANY","Etablissement de santé ","GUSTAVE ROUSSY","2017-08-12",120000]
["JANSSEN-CILAG","Editeur de logiciel ","INSTITUT GUSTAVE ROUSSY","2017-11-12",7018]
["ASTRAZENECA","Etablissement de santé ","IGR - INSTITUT GUSTAVE ROUSSY","2017-12-12",210380]
["SANOFI-AVENTIS RECHERCHE & DEVELOPPEMENT","Etablissement de santé ","INSTITUT GUSTAVE ROUSSY","2017-12-12",424062]
["Lilly France SAS","Etablissement de santé ","GUSTAVE ROUSSY","13/12/2017",34920]
["IPSEN PHARMA","Etablissement de santé ","Institut Gustave Roussy","13/12/2017",500]
["ICON CLINICAL RESEARCH SARL","Etablissement de santé ","Centre de Lutte contre le Cancer Gustave Roussy","14/12/2017",10395]
["ROCHE SAS","Etablissement de santé ","GUSTAVE ROUSSY CHEVILLY LARUE","19/12/2017",2000]
[null,"Total :",null,null,{"$f":"SUM(E2:E415)","v":10421465}]
[]
[null,null,null,null,"Montants","Nbres","%Montant","% cumulé"]
["SANOFI-AVENTIS RECHERCHE & DEVELOPPEMENT",null,null,null,{"$f":"SUMIF($A$2:$A$415,A419,$E$2:$E$415)","v":2265375},{"$f":"COUNTIF($A$2:$A$415,A419)","v":35}]
["SANOFI AVENTIS France",null,null,null,{"$f":"SUMIF($A$2:$A$415,A420,$E$2:$E$415)","v":762661},{"$f":"COUNTIF($A$2:$A$415,A420)","v":26}]
["SANOFI-AVENTIS GROUPE",null,null,null,54607,2]
["TOTAL SANOFI-AVENTIS",null,null,null,{"$f":"SUM(E419:E421)","v":3082643},{"$f":"SUM(F419:F421)","v":63},{"$f":"E422/$E$416","v":0.29579747185256583},{"$f":"G422","v":0.29579747185256583}]
[]
["LABORATOIRE GLAXOSMITHKLINE",null,null,null,{"$f":"SUMIF($A$2:$A$415,A424,$E$2:$E$415)","v":2765128},{"$f":"COUNTIF($A$2:$A$415,A424)","v":118},{"$f":"E424/$E$416","v":0.26533006635823275},{"$f":"H422+G424","v":0.56112753821079853}]
[]
["Lilly France SAS",null,null,null,{"$f":"SUMIF($A$2:$A$415,A426,$E$2:$E$415)","v":791502},{"$f":"COUNTIF($A$2:$A$415,A426)","v":20},{"$f":"E426/$E$416","v":7.5949206757399274E-2},{"$f":"G426+H424","v":0.63707674496819777}]
[]
["Celgene Corporation",null,null,null,{"$f":"SUMIF($A$2:$A$415,A428,$E$2:$E$415)","v":552125},{"$f":"COUNTIF($A$2:$A$415,A428)","v":5},{"$f":"E428/$E$416","v":5.297959547913849E-2},{"$f":"G428+H426","v":0.69005634044733621}]
[]
["ASTRAZENECA",null,null,null,{"$f":"SUMIF($A$2:$A$415,A430,$E$2:$E$415)","v":465075},{"$f":"COUNTIF($A$2:$A$415,A430)","v":18},{"$f":"E430/$E$416","v":4.4626643183084146E-2},{"$f":"G430+H428","v":0.73468298363042039}]
[]
["AMGEN SAS",null,null,null,{"$f":"SUMIF($A$2:$A$415,A432,$E$2:$E$415)","v":440095},{"$f":"COUNTIF($A$2:$A$415,A432)","v":22},{"$f":"E432/$E$416","v":4.2229667326042934E-2},{"$f":"G432+H430","v":0.77691265095646334}]
[]
["AbbVie",null,null,null,{"$f":"SUMIF($A$2:$A$415,A434,$E$2:$E$415)","v":435030},{"$f":"COUNTIF($A$2:$A$415,A434)","v":10},{"$f":"E434/$E$416","v":4.1743651204509152E-2},{"$f":"G434+H432","v":0.81865630216097252}]
[]
["ROCHE SAS",null,null,null,{"$f":"SUMIF($A$2:$A$415,A436,$E$2:$E$415)","v":212014},{"$f":"COUNTIF($A$2:$A$415,A436)","v":25}]
["Institut Roche",null,null,null,{"$f":"SUMIF($A$2:$A$415,A437,$E$2:$E$415)","v":100000},{"$f":"COUNTIF($A$2:$A$415,A437)","v":1}]
["Total ROCHE",null,null,null,{"$f":"SUM(E436:E437)","v":312014},{"$f":"SUM(F436:F437)","v":26},{"$f":"E438/$E$416","v":2.993955264446985E-2},{"$f":"G438+H434","v":0.84859585480544242}]
[]
["PIERRE FABRE MEDICAMENT",null,null,null,{"$f":"SUMIF($A$2:$A$415,A440,$E$2:$E$415)","v":265157},{"$f":"COUNTIF($A$2:$A$415,A440)","v":4},{"$f":"E440/$E$416","v":2.5443351774438624E-2},{"$f":"G440+H438","v":0.87403920657988099}]
[]
["NOVARTIS PHARMA SAS",null,null,null,{"$f":"SUMIF($A$2:$A$415,A442,$E$2:$E$415)","v":161144},{"$f":"COUNTIF($A$2:$A$415,A442)","v":12}]
["Sociétés étrangères du groupe Novartis",null,null,null,{"$f":"SUMIF($A$2:$A$415,A443,$E$2:$E$415)","v":3036},{"$f":"COUNTIF($A$2:$A$415,A443)","v":2}]
["Total NOVARTIS",null,null,null,{"$f":"SUM(E442:E443)","v":164180},{"$f":"SUM(F442:F443)","v":14},{"$f":"E444/$E$416","v":1.5754023066814504E-2},{"$f":"G444+H440","v":0.88979322964669549}]
[]
["Orion Corporation Orion Pharma",null,null,null,{"$f":"SUMIF($A$2:$A$415,A446,$E$2:$E$415)","v":144765},{"$f":"COUNTIF($A$2:$A$415,A446)","v":17},{"$f":"E446/$E$416","v":1.3891041230767459E-2},{"$f":"G446+H444","v":0.90368427087746295}]
[]
["Bayer HealthCare SAS",null,null,null,{"$f":"SUMIF($A$2:$A$415,A448,$E$2:$E$415)","v":123175},{"$f":"COUNTIF($A$2:$A$415,A448)","v":22},{"$f":"E448/$E$416","v":1.1819355532067708E-2},{"$f":"G448+H446","v":0.91550362640953065}]
[]
["BRISTOL-MYERS SQUIBB COMPANY",null,null,null,{"$f":"SUMIF($A$2:$A$415,A450,$E$2:$E$415)","v":121400},{"$f":"COUNTIF($A$2:$A$415,A450)","v":2},{"$f":"E450/$E$416","v":1.1649033988983315E-2},{"$f":"G450+H448","v":0.92715266039851396}]
[]
["PSI CRO France",null,null,null,{"$f":"SUMIF($A$2:$A$415,A452,$E$2:$E$415)","v":120368},{"$f":"COUNTIF($A$2:$A$415,A452)","v":6},{"$f":"E452/$E$416","v":1.1550007604497065E-2},{"$f":"G452+H450","v":0.93870266800301105}]
[]
["JANSSEN-CILAG",null,null,null,{"$f":"SUMIF($A$2:$A$415,A454,$E$2:$E$415)","v":52768},{"$f":"COUNTIF($A$2:$A$415,A454)","v":7},{"$f":"E454/$E$416","v":5.0633955974519898E-3},{"$f":"G454+H452","v":0.943766063600463}]
[]
["Genzyme",null,null,null,{"$f":"SUMIF($A$2:$A$415,A456,$E$2:$E$415)","v":21160},{"$f":"COUNTIF($A$2:$A$415,A456)","v":9},{"$f":"E456/$E$416","v":2.0304247051638135E-3},{"$f":"G456+H454","v":0.94579648830562679}]
[]
["PFIZER SAS",null,null,null,{"$f":"SUMIF($A$2:$A$415,A458,$E$2:$E$415)","v":13380},{"$f":"COUNTIF($A$2:$A$415,A458)","v":7},{"$f":"E458/$E$416","v":1.2838885895601051E-3},{"$f":"G458+H456","v":0.94708037689518687}]
[]
["IPSEN PHARMA",null,null,null,{"$f":"SUMIF($A$2:$A$415,A460,$E$2:$E$415)","v":1700},{"$f":"COUNTIF($A$2:$A$415,A460)","v":2},{"$f":"E460/$E$416","v":1.6312485816533473E-4},{"$f":"G460+H458","v":0.94724350175335226}]
[]
["MSD France",null,null,null,{"$f":"SUMIF($A$2:$A$415,A462,$E$2:$E$415)","v":0},{"$f":"COUNTIF($A$2:$A$415,A462)","v":0}]
[]
["MERCK SERONO",null,null,null,{"$f":"SUMIF($A$2:$A$415,A464,$E$2:$E$415)","v":0},{"$f":"COUNTIF($A$2:$A$415,A464)","v":0}]
[]
["Takeda France",null,null,null,{"$f":"SUMIF($A$2:$A$415,A466,$E$2:$E$415)","v":0},{"$f":"COUNTIF($A$2:$A$415,A466)","v":0}]
[]
["CHUGAI PHARMA France",null,null,null,{"$f":"SUMIF($A$2:$A$415,A468,$E$2:$E$415)","v":0},{"$f":"COUNTIF($A$2:$A$415,A468)","v":0}]
[]
["INSTITUT MERIEUX",null,null,null,{"$f":"SUMIF($A$2:$A$415,A470,$E$2:$E$415)","v":0},{"$f":"COUNTIF($A$2:$A$415,A470)","v":0}]
[]
["GE Medical Systems SCS",null,null,null,{"$f":"SUMIF($A$2:$A$415,A472,$E$2:$E$415)","v":0},{"$f":"COUNTIF($A$2:$A$415,A472)","v":0}]
[]
["EISAI SAS",null,null,null,{"$f":"SUMIF($A$2:$A$415,A474,$E$2:$E$415)","v":38600},{"$f":"COUNTIF($A$2:$A$415,A474)","v":3}]
[]
[]
[null,null,null,null,{"$f":"SUM(E422:E460)-E436-E437-E442-E443","v":9871665},null,{"$f":"E477/$E$416","v":0.94724350175335237}]

{"sheet":"Déplacements","index":7,"n_rows":2,"n_cols":6,"rows_kept":2,"cut":false,"hidden":false,"merged":[]}
[]
["Début","Fin ","Signature","Congrès","Lieux","Firme"]

{"sheet":"Tableaux de synthèse","index":8,"n_rows":11,"n_cols":157,"rows_kept":11,"cut":false,"hidden":false,"merged":[[2,83,2,156],[2,2,2,4],[2,6,2,13],[2,14,2,24],[2,25,2,53],[2,54,2,82]]}
[]
[]
[null,null,"Synthèse",null,null,null,"Avantages perçus",null,null,null,null,null,null,null,"Conventions signées",null,null,null,null,null,null,null,null,null,null,"Montants des avantages versés par les entreprises - Montants des avantages versés par les entreprises - Montants des avantages versés par les entreprises - Montants des avantages versés ",null,null,null,null,null,null,null,null,null,null,null,null,null,null,null,null,null,null,null,null,null,null,null,null,null,null,null,null,"Nombres d'avantages versés par les entreprises - Nombres d'avantages versés par les entreprises - Nombres d'avantages versés par les entreprises - Nombres d'avantages versés par les entreprises - Nombres d'avantages versés par les entreprises - ",null,null,null,null,null,null,null,null,null,null,null,null,null,null,null,null,null,null,null,null,null,null,null,null,null,null,null,null,"Nombres de conventions signées avec les entreprises - Nombres de conventions signées avec les entreprises - Nombres de conventions signées avec les entreprises - Nombres de conventions signées avec les entreprises - Nombres de conventions signées avec les entreprises - "]
[null,"Bénéficiaire","Total avantages perçus (€)","Nombre d'avantages perçus","Nombre de conventions signées","Rémunérations\n+ montants de conventions","Transport","Hébergement","Repas","Hospitalité","Inscription","Conseil","Congrès","Autre","Hospitalité","Orateur","Réunion professionnelle","Expert","Conseil","Recherche Clinique","Etude de marché","Formateur","Rédacteur","Réunion de « Board »","Autre","PSI CRO FRANCE","CHUGAI","Novartis","MSD France","ASTELLAS PHARMA","Pfizer","Takeda France","Roche","CELGENE","INSTITUT MERIEUX","AstraZeneca","Genzyme","BOSTON SCIENTIFIC SAS","MERCK SERONO","SINCLAIR PHARMA","Lilly","INC RESEARCH, LLC","Becton Dickinson France SAS","NUXE","AbbVie","LEO Pharma","BIOM'UP","GAMIDA","PHILIPS FRANCE","Advanced Accelerator Applications","Bayer HealthCare SAS","SANDOZ","GSK","COVIDIEN FRANCE S.A.S.","Roche","PSI CRO FRANCE","CHUGAI","INC RESEARCH, LLC","MSD France","Pfizer","INSTITUT MERIEUX","ASTELLAS PHARMA","Novartis","Takeda France","Genzyme","SINCLAIR PHARMA","MERCK SERONO","SANDOZ","COVIDIEN FRANCE S.A.S.","CELGENE","BIOM'UP","GAMIDA","PHILIPS FRANCE","Becton Dickinson France SAS","LEO Pharma","BOSTON SCIENTIFIC SAS","Advanced Accelerator Applications","Lilly","AbbVie","Bayer HealthCare SAS","NUXE","AstraZeneca","GSK","Roche","AstraZeneca","Bristol -Myers Squibb","MSD France","Novartis","Bayer HealthCare SAS","Pfizer","SANOFI-AVENTIS RECHERCHE & DEVELOPPEMENT","Lilly","QUINTILES BENEFIT FRANCE SNC","BOEHRINGER INGELHEIM FRANCE","INC RESEARCH, LLC","Inventivhealthclinical","GE Medical Systems SCS","AbbVie","Genzyme","PPD FRANCE SAS","Sanofi Aventis France","MERCK SERONO","Amgen","Pierre Fabre Médicament","ICON CLINICAL RESEARCH SARL","Takeda France","EISAI SAS","Janssen-Cilag","GSK","IPSEN PHARMA","Orion Corporation Orion Pharma","NODEA MEDICAL","CHUGAI","Accuray Europe","ONXEO","PRA","SANOFI-AVENTIS GROUPE","GENETHON","B.BRAUN MEDICAL SAS","PAREXEL International","Medline International France SAS","INNATE PHARMA","Advanced Accelerator Applications","LEO Pharma","PSI CRO FRANCE","CELGENE","Transgene SA","FRESENIUS KABI FRANCE","COVIDIEN FRANCE S.A.S.","MEDTRONIC France S.A.S","LVL MEDICAL PARIS ET NORD","NANOBIOTIX S.A.","PSI CRO AG","INSTITUT MERIEUX","GENTICEL","OLYMPUS France SAS","JAZZ PHARMACEUTICALS FRANCE","MUNDIPHARMA","VIFOR FRANCE SA","DIAXONHIT","SANDOZ","ProStrakan Pharma","BRACCO IMAGING FRANCE","SIEMENS SAS","Institut Roche","PHILIPS FRANCE","BARD FRANCE SAS","KEOCYT","SynteractHCR France S.A.S.","OSE Immunotherapeutics","Becton Dickinson France SAS","ETHICON","CIS BIO INTERNATIONAL","PHARMA MAR S.A.R.L.","CELGENE SAS","ROCHE DIAGNOSTICS FRANCE","EUSA Pharma (France) SAS"]
[null,"IGR, Villejuif",{"$f":"'Avantages perçus'!F115","v":1889985},{"$f":"COUNTIFS('Avantages perçus'!$A$2:$A$30041,B5,'Avantages perçus'!$F$2:$F$30041,\">0\")","v":112},{"$f":"COUNTIFS('Conventions signées'!$A$2:$A$15010,B5,'Conventions signées'!$A$2:$A$15010,\"*\")","v":679},{"$f":"'Conventions signées'!G681+Rémunérations!E416","v":20423545},4080,914,404,0,0,0,11160,1873427,1,16,59,16,103,350,2,15,0,0,117,105556,64600,50000,48853,45000,33430,27700,21855,15000,6400,5000,4500,4500,3520,2960,1200,1058,1000,1000,800,600,500,500,500,400,186,60,29,24,20,19,14,10,9,5,5,3,3,2,2,2,2,1,1,1,1,1,1,1,1,1,1,1,1,1,1,1,1,64,61,56,47,46,34,27,23,23,20,16,15,14,13,13,12,12,11,11,11,10,10,9,9,8,7,6,4,4,4,4,4,4,3,3,3,3,3,2,2,2,2,2,2,2,2,2,2,2,2,2,2,2,2,1,1,1,1,1,1,1,1,1,1,1,1,1,1,1,1,1,1,1,1]
[null,"TOTAUX",1889985,112,679,{"$f":"F5","v":20423545},4080,914,404,0,0,0,11160,1873427,1,16,59,16,103,350,2,15,0,0,117,105556,64600,50000,48853,45000,33430,27700,21855,15000,6400,5000,4500,4500,3520,2960,1200,1058,1000,1000,800,600,500,500,500,400,186,60,29,24,20,19,14,10,9,5,5,3,3,2,2,2,2,1,1,1,1,1,1,1,1,1,1,1,1,1,1,1,1,64,61,56,47,46,34,27,23,23,20,16,15,14,13,13,12,12,11,11,11,10,10,9,9,8,7,6,4,4,4,4,4,4,3,3,3,3,3,2,2,2,2,2,2,2,2,2,2,2,2,2,2,2,2,1,1,1,1,1,1,1,1,1,1,1,1,1,1,1,1,1,1,1,1]
[]
[]
[null,"Période d'étude","   1er semestre 2013 - 2ème semestre 2017, soient 5 années"]
[null,"Début de l'analyse","   11/07/2018 10:54:37"]
[null,"Fin de l'analyse","   11/07/2018 10:55:15"]

{"sheet":"Top 25 firmes","index":9,"n_rows":29,"n_cols":9,"rows_kept":29,"cut":false,"hidden":false,"merged":[]}
["Rang","Firmes","Avantages","Conventions","Rémunérations","Total","% Avantages","% Conventions","% Rémunérations"]
[1,"BRISTOL-MYERS SQUIBB",{"$f":"'Avantages perçus'!F158","v":0},{"$f":"'Conventions signées'!G686","v":3478143},{"$f":"Rémunérations!E450","v":121400},{"$f":"SUM(C2:E2)","v":3599543},{"$f":"C2/F2","v":0},{"$f":"D2/F2","v":0.96627349638551341},{"$f":"E2/F2","v":3.3726503614486619E-2}]
[2,"Lilly France SAS",{"$f":"'Avantages perçus'!F146","v":1200},{"$f":"'Conventions signées'!G688","v":2470567},{"$f":"Rémunérations!E426","v":791502},{"$f":"SUM(C3:E3)","v":3263269},{"$f":"C3/F3","v":3.677294148904059E-4},{"$f":"D3/F3","v":0.75708346446462116},{"$f":"E3/F3","v":0.24254880612048837}]
[3,"SANOFI-AVENTIS",{"$f":"'Avantages perçus'!F173","v":0},{"$f":"'Conventions signées'!G731","v":0},{"$f":"Rémunérations!E422","v":3082643},{"$f":"SUM(C4:E4)","v":3082643},0,0,1]
[4,"Bayer HealthCare SAS",{"$f":"'Avantages perçus'!F150","v":186},{"$f":"'Conventions signées'!G690","v":2175951},{"$f":"Rémunérations!E448","v":123175},{"$f":"SUM(C5:E5)","v":2299312},8.089376300388986E-5,0.94634873388213514,5.357037235486093E-2]
[5,"LABORATOIRE GLAXOSMITHKLINE",{"$f":"'Avantages perçus'!F152","v":29},{"$f":"'Conventions signées'!G716","v":0},{"$f":"Rémunérations!E424","v":2765128},2765157,1.0487650429975585E-5,0,0.99998951234957001]
[6,"PFIZER SAS",{"$f":"'Avantages perçus'!F118","v":1030738},{"$f":"'Conventions signées'!G722","v":0},{"$f":"Rémunérations!E458","v":13380},{"$f":"SUM(C7:E7)","v":1044118},0.98718535644438654,0,1.2814643555613446E-2]
[7,"Celgene Corporation",{"$f":"'Avantages perçus'!F160","v":0},{"$f":"'Conventions signées'!G698","v":262728},{"$f":"Rémunérations!E428","v":552125},814853,0,0.32242379913923125,0.67757620086076875]
[8,"ASTRAZENECA",{"$f":"'Avantages perçus'!F128","v":60000},{"$f":"'Conventions signées'!G700","v":134117},{"$f":"Rémunérations!E430","v":465075},659192,9.1020522093714723E-2,0.20345665602737897,0.70552282187890625]
[9,"ROCHE",{"$f":"'Avantages perçus'!F140","v":21855},{"$f":"'Conventions signées'!G696","v":289572},{"$f":"Rémunérations!E438","v":312014},{"$f":"SUM(C10:E10)","v":623441},3.5055442295261301E-2,0.46447378340532625,0.50047077429941245]
[10,"AbbVie",{"$f":"'Avantages perçus'!F148","v":800},{"$f":"'Conventions signées'!G710","v":9200},{"$f":"Rémunérations!E434","v":435030},{"$f":"SUM(C11:E11)","v":445030},1.7976316203402018E-3,2.0672763633912322E-2,0.97752960474574746]
[11,"Orion Corporation Orion Pharma",{"$f":"'Avantages perçus'!F154","v":0},{"$f":"'Conventions signées'!G692","v":295864},{"$f":"Rémunérations!E446","v":144765},{"$f":"SUM(C12:E12)","v":440629},0,0.67145830165513387,0.32854169834486607]
[12,"AMGEN SAS",{"$f":"'Avantages perçus'!F164","v":0},{"$f":"'Conventions signées'!G714","v":500},{"$f":"Rémunérations!E432","v":440095},440595,0,1.1348290380054245E-3,0.99886517096199456]
[13,"PSI CRO France",{"$f":"'Avantages perçus'!F120","v":265258},{"$f":"'Conventions signées'!G737","v":0},{"$f":"Rémunérations!E452","v":120368},{"$f":"SUM(C14:E14)","v":385626},0.68786337020844035,0,0.31213662979155971]
[14,"NOVARTIS",{"$f":"'Avantages perçus'!F132","v":50000},{"$f":"'Conventions signées'!G704","v":98630},{"$f":"Rémunérations!E444","v":164180},{"$f":"SUM(C15:E15)","v":312810},0.15984143729420414,0.31530321920654708,0.52485534349924878]
[15,"PIERRE FABRE MEDICAMENT",{"$f":"'Avantages perçus'!F166","v":0},{"$f":"'Conventions signées'!G718","v":0},{"$f":"Rémunérations!E440","v":265157},265157,0,0,1]
[16,"MSD France",{"$f":"'Avantages perçus'!F122","v":184997},{"$f":"'Conventions signées'!G726","v":0},{"$f":"Rémunérations!E462","v":0},{"$f":"SUM(C17:E17)","v":184997},1,0,0]
[17,"INSTITUT MERIEUX",{"$f":"'Avantages perçus'!F124","v":101500},{"$f":"'Conventions signées'!G739","v":0},{"$f":"Rémunérations!E470","v":0},101500,1,0,0]
[18,"EISAI SAS",{"$f":"'Avantages perçus'!F177","v":0},{"$f":"'Conventions signées'!G741","v":38600},{"$f":"Rémunérations!E474","v":38600},77200,{"$f":"C19/F19","v":0},{"$f":"D19/F19","v":0.5},{"$f":"E19/F19","v":0.5}]
[19,"CHUGAI PHARMA France",{"$f":"'Avantages perçus'!F126","v":64600},{"$f":"'Conventions signées'!G735","v":0},{"$f":"Rémunérations!E468","v":0},64600,1,0,0]
[20,"GE Medical Systems SCS",{"$f":"'Avantages perçus'!F175","v":0},{"$f":"'Conventions signées'!G706","v":52970},{"$f":"Rémunérations!E472","v":0},52970,{"$f":"C21/F21","v":0},{"$f":"D21/F21","v":1},{"$f":"E21/F21","v":0}]
[21,"Takeda France",{"$f":"'Avantages perçus'!F136","v":27700},{"$f":"'Conventions signées'!G708","v":27700},{"$f":"Rémunérations!E466","v":0},55400,0.5,0.5,0]
[22,"JANSSEN-CILAG",{"$f":"'Avantages perçus'!F162","v":0},{"$f":"'Conventions signées'!G712","v":1200},{"$f":"Rémunérations!E454","v":52768},53968,0,2.223539875481767E-2,0.97776460124518239]
[23,"Genzyme",{"$f":"'Avantages perçus'!F142","v":4500},{"$f":"'Conventions signées'!G720","v":0},{"$f":"Rémunérations!E456","v":21160},25660,0.17537022603273578,0,0.82462977396726422]
[24,"MERCK SERONO",{"$f":"'Avantages perçus'!F144","v":3520},{"$f":"'Conventions signées'!G733","v":0},{"$f":"Rémunérations!E464","v":0},{"$f":"SUM(C25:E25)","v":3520},1,0,0]
[25,"IPSEN PHARMA",{"$f":"'Avantages perçus'!F168","v":0},{"$f":"'Conventions signées'!G724","v":0},{"$f":"Rémunérations!E460","v":1700},1700,0,0,1]
[]
[]
[null,"Total",null,null,null,{"$f":"SUM(F2:F26)","v":21062890},{"$f":"F29/('Tableaux de synthèse'!C5+'Tableaux de synthèse'!F5)","v":0.94395149490017938}]